Workbook

Sheet Feeder
C1: Appendix VIII - Sample Reporting Foreign Fund of Funds
C2: Feeder fund (FF)
B4: [DTF] | C4: Financial year end of feeder fund (FF) | D4: 2007-10-31 | G4: 2007-10-31 | J4: 2007-10-31 | M4: 2007-10-31 | P4: 2007-10-31
C5: FF currency | D5: CHF | G5: EUR | J5: USD | M5: GBP | P5: JPY
C9: Basis data Name of feeder fund | D9: CHF Feeder | G9: EUR Feeder | J9: USD Feeder | M9: GBP Feeder | P9: JPY Feeder | T9: Total
C11: ISIN or Valor | D11: 1 234 567 | G11: 1 234 568 | J11: 1 234 569 | M11: 1 234 570 | P11: 1 234 571
B14: [A] | C14: Total net asset value (NAV) as per [DTF] | D14: 85000000 | E14: =IF(D14="",".",1) -> 1 | G14: 85000000 | H14: =IF(G14="",".",1) -> 1 | J14: 85000000 | K14: =IF(J14="",".",1) -> 1 | M14: 85000000 | N14: =IF(M14="",".",1) -> 1 | P14: 85000000 | Q14: =IF(P14="",".",1) -> 1
B15: [B1] | C15: Total outstanding shares of FF as per [DTF] | D15: 850000 | G15: 850000 | J15: 850000 | M15: 850000 | P15: 850000
B16: [B2] | C16: FoF shares held by the FF as per [DTF] / %-Part of FoF held by the FF | D16: =E17*Master!$D$15 -> 150000 | E16: =IF(D16="",".",IF(ISERROR(D16/Master!$D$15),".",D16/Master!$D$15)) -> 0.3 | G16: =H17*Master!$D$15 -> 140000 | H16: =IF(G16="",".",IF(ISERROR(G16/Master!$D$15),".",G16/Master!$D$15)) -> 0.28 | J16: 60000 | K16: =IF(J16="",".",IF(ISERROR(J16/Master!$D$15),".",J16/Master!$D$15)) -> 0.12 | M16: 100000 | N16: =IF(M16="",".",IF(ISERROR(M16/Master!$D$15),".",M16/Master!$D$15)) -> 0.2 | P16: =Q17*Master!$D$15 -> 50000 | Q16: =IF(P16="",".",IF(ISERROR(P16/Master!$D$15),".",P16/Master!$D$15)) -> 0.1 | T16: =SUM(E16,H16,K16,N16,Q16) -> 1
D17: or as percentage | E17: 0.3 | G17: or as percentage | H17: 0.28 | J17: or as percentage | M17: or as percentage | P17: or as percentage | Q17: 0.1
C19: Total investment income according to financial statements
C21: Income from investments | D21: 10000 | G21: 4000 | J21: 4000 | M21: 5000 | P21: 2000
C22: Interest income | D22: 20000 | G22: 2000 | J22: 2000 | M22: 2000 | P22: 1000
C23: SLB fees (lending) | D23: 0 | G23: 0 | J23: 0 | M23: 0 | P23: 0
C24: Other income | D24: 1000 | G24: 0 | J24: 0 | M24: 0 | P24: 0
C25: Equalization related to income | D25: 2000 | G25: 0 | J25: 0 | M25: 0 | P25: 0
B27: [C] | C27: Total investment income | D27: =SUM(D21:D26) -> 33000 | G27: =SUM(G21:G26) -> 6000 | J27: =SUM(J21:J26) -> 6000 | M27: =SUM(M21:M26) -> 7000 | P27: =SUM(P21:P26) -> 3000
C30: Total investment expenses according to financial statements
C32: Interest paid | D32: 3000 | G32: 6000 | J32: 3500 | M32: 3200 | P32: 500
C33: Dividend paid | D33: 0 | G33: 3000 | J33: 1400 | M33: 1000 | P33: 500
C34: Other expenses (e.g. SLB fees (borrowing), etc.) | D34: 0 | G34: 0 | J34: 0 | M34: 0 | P34: 0
C35: Equalization related to expenses | D35: 0 | G35: 0 | J35: 0 | M35: 0 | P35: 0
B37: [D1] | C37: Deductible expenses | D37: =SUM(D32:D35) -> 3000 | G37: =SUM(G32:G35) -> 9000 | J37: =SUM(J32:J35) -> 4900 | M37: =SUM(M32:M35) -> 4200 | P37: =SUM(P32:P35) -> 1000
C43: Fees / costs | D43: 20000 | G43: 2000 | J43: 1500000 | M43: 15000 | P43: 5000
B45: [D2] | C45: Expenses subject to the 1.5% rule | D45: =SUM(D43) -> 20000 | E45: =IF(ISERROR(D43/D14),".",D43/D14) -> 0.0002352941176 | G45: =SUM(G43) -> 2000 | H45: =IF(ISERROR(G43/G14),".",G43/G14) -> 2.352941176e-05 | J45: =SUM(J43) -> 1500000 | K45: =IF(ISERROR(J43/J14),".",J43/J14) -> 0.01764705882 | M45: =SUM(M43) -> 15000 | N45: =IF(ISERROR(M43/M14),".",M43/M14) -> 0.0001764705882 | P45: =SUM(P43) -> 5000 | Q45: =IF(ISERROR(P43/P14),".",P43/P14) -> 5.882352941e-05
B47: [D] | C47: Total expenses [D1]+[D2] | D47: =SUM(D37,D45) -> 23000 | G47: =SUM(G37,G45) -> 11000 | J47: =SUM(J37,J45) -> 1504900 | M47: =SUM(M37,M45) -> 19200 | P47: =SUM(P37,P45) -> 6000
C50: Taxable income for Swiss tax purposes
B52: [E] | C52: Net investment income [C] - [D] | D52: =IF(ISERROR(D27-D47),"",D27-D47) -> 10000 | G52: =IF(ISERROR(G27-G47),"",G27-G47) -> -5000 | J52: =IF(ISERROR(J27-J47),"",J27-J47) -> -1498900 | M52: =IF(ISERROR(M27-M47),"",M27-M47) -> -12200 | P52: =IF(ISERROR(P27-P47),"",P27-P47) -> -3000
C55: Adjustment of [D2] greater than 1.5% | D55: =IF(D14="",0,MAX(IF(OR(E45>0.015,E45=0.015),D45-0.015*D14,0))) -> 0 | E55: =IF(ISERROR(D55/D14),".",D55/D14) -> 0 | G55: =IF(G14="",0,MAX(IF(OR(H45>0.015,H45=0.015),G45-0.015*G14,0))) -> 0 | H55: =IF(ISERROR(G55/G14),".",G55/G14) -> 0 | J55: =IF(J14="",0,MAX(IF(OR(K45>0.015,K45=0.015),J45-0.015*J14,0))) -> 225000 | K55: =IF(ISERROR(J55/J14),".",J55/J14) -> 0.002647058824 | M55: =IF(M14="",0,MAX(IF(OR(N45>0.015,N45=0.015),M45-0.015*M14,0))) -> 0 | N55: =IF(ISERROR(M55/M14),".",M55/M14) -> 0 | P55: =IF(P14="",0,MAX(IF(OR(Q45>0.015,Q45=0.015),P45-0.015*P14,0))) -> 0 | Q55: =IF(ISERROR(P55/P14),".",P55/P14) -> 0
B57: [F] | C57: Taxable income on FF level (after adjustments) in FF currency as per [DTF] | D57: =IF(ISERROR(MAX(D52+D55,0)),"",MAX(D52+D55,0)) -> 10000 | G57: =IF(ISERROR(MAX(G52+G55,0)),"",MAX(G52+G55,0)) -> 0 | J57: =IF(ISERROR(MAX(J52+J55,0)),"",MAX(J52+J55,0)) -> 0 | M57: =IF(ISERROR(MAX(M52+M55,0)),"",MAX(M52+M55,0)) -> 0 | P57: =IF(ISERROR(MAX(P52+P55,0)),"",MAX(P52+P55,0)) -> 0
B59: [G1] | C59: Taxable income FoF in FoF currency as per [DT1] | D59: =IF(ISERROR(D16*Master!$D$70),0,D16*Master!$D$70) -> 299550 | G59: =IF(ISERROR(G16*Master!$D$70),0,G16*Master!$D$70) -> 279580 | J59: =IF(ISERROR(J16*Master!$D$70),0,J16*Master!$D$70) -> 119820 | M59: =IF(ISERROR(M16*Master!$D$70),0,M16*Master!$D$70) -> 199700 | P59: =IF(ISERROR(P16*Master!$D$70),0,P16*Master!$D$70) -> 99850
C60: Change rate [FN1] to FF currency as per [DTF] | D60: 1.1582 | G60: 0.6903 | J60: 1 | M60: 0.4808 | P60: 115.43
B62: [G2] | C62: Taxable income of FoF in FF currency as per [DTF] | D62: =IF(ISERROR(D59*D60),0,D59*D60) -> 346938.81 | G62: =IF(ISERROR(G59*G60),0,G59*G60) -> 192994.074 | J62: =IF(ISERROR(J59*J60),0,J59*J60) -> 119820 | M62: =IF(ISERROR(M59*M60),0,M59*M60) -> 96015.76 | P62: =IF(ISERROR(P59*P60),0,P59*P60) -> 11525685.5
B64: [H] | C64: Total Taxable income of FF in FF currency as per [DTF] [F]+[G2] | D64: =IF(ISERROR(SUM(D57,D62)),0,SUM(D57,D62)) -> 356938.81 | G64: =IF(ISERROR(SUM(G57,G62)),0,SUM(G57,G62)) -> 192994.074 | J64: =IF(ISERROR(SUM(J57,J62)),0,SUM(J57,J62)) -> 119820 | M64: =IF(ISERROR(SUM(M57,M62)),0,SUM(M57,M62)) -> 96015.76 | P64: =IF(ISERROR(SUM(P57,P62)),0,SUM(P57,P62)) -> 11525685.5
C67: Taxable income per share for Swiss tax purposes in FoF currency
B70: [I] | C70: Taxable income per share as per [DTF] in FF currency [H] / [B1] | D70: =MAX(TRUNC(D64/D15,IF(D64/D15<1,5,IF(AND(OR(D64/D15=1,D64/D15>1),D64/D15<100),3,IF(OR(D64/D15=100,D64/D15>100),2)))),TRUNC(0,5)) -> 0.41992 | G70: =MAX(TRUNC(G64/G15,IF(G64/G15<1,5,IF(AND(OR(G64/G15=1,G64/G15>1),G64/G15<100),3,IF(OR(G64/G15=100,G64/G15>100),2)))),TRUNC(0,5)) -> 0.22705 | J70: =MAX(TRUNC(J64/J15,IF(J64/J15<1,5,IF(AND(OR(J64/J15=1,J64/J15>1),J64/J15<100),3,IF(OR(J64/J15=100,J64/J15>100),2)))),TRUNC(0,5)) -> 0.14096 | M70: =MAX(TRUNC(M64/M15,IF(M64/M15<1,5,IF(AND(OR(M64/M15=1,M64/M15>1),M64/M15<100),3,IF(OR(M64/M15=100,M64/M15>100),2)))),TRUNC(0,5)) -> 0.11295 | P70: =MAX(TRUNC(P64/P15,IF(P64/P15<1,5,IF(AND(OR(P64/P15=1,P64/P15>1),P64/P15<100),3,IF(OR(P64/P15=100,P64/P15>100),2)))),TRUNC(0,5)) -> 13.559
C73: Change rate [FN1] to CHF as per [DTF] | D73: 1 | G73: 1.6778 | J73: 1.1582 | M73: 2.4086 | P73: =1.0033/100 -> 0.010033
B76: [J] | C76: Taxable income per share as per [DTF] in CHF | D76: =MAX(TRUNC(D70*D73,IF(D70*D73<1,5,IF(AND(OR(D70*D73=1,D70*D73>1),D70*D73<100),3,IF(OR(D70*D73=100,D70*D73>100),2)))),TRUNC(0,5)) -> 0.41992 | G76: =MAX(TRUNC(G70*G73,IF(G70*G73<1,5,IF(AND(OR(G70*G73=1,G70*G73>1),G70*G73<100),3,IF(OR(G70*G73=100,G70*G73>100),2)))),TRUNC(0,5)) -> 0.38094 | J76: =MAX(TRUNC(J70*J73,IF(J70*J73<1,5,IF(AND(OR(J70*J73=1,J70*J73>1),J70*J73<100),3,IF(OR(J70*J73=100,J70*J73>100),2)))),TRUNC(0,5)) -> 0.16325 | M76: =MAX(TRUNC(M70*M73,IF(M70*M73<1,5,IF(AND(OR(M70*M73=1,M70*M73>1),M70*M73<100),3,IF(OR(M70*M73=100,M70*M73>100),2)))),TRUNC(0,5)) -> 0.27205 | P76: =MAX(TRUNC(P70*P73,IF(P70*P73<1,5,IF(AND(OR(P70*P73=1,P70*P73>1),P70*P73<100),3,IF(OR(P70*P73=100,P70*P73>100),2)))),TRUNC(0,5)) -> 0.13603
B80: [FN1] | C80: e.g. Source Bloomberg USD/CHF: USD/CHF Curncy HP

Sheet Master
C1: Appendix VIII - Sample Reporting Foreign Fund of Funds
C2: Fund-of-fund (FoF) (master fund level)
B4: [DT1] | C4: Financial year end of fund-of-funds (FoF) | D4: 2007-09-30
C5: FoF currency | D5: USD
C9: Basis data Name of fund-of-fund | D9: Fund-of-fund X
C11: ISIN or Valor | D11: 1 234 567
B14: [A] | C14: Total net asset value (NAV) as per [DT1] | D14: 240000000 | E14: =IF(D14="",".",1) -> 1
B15: [B] | C15: Total outstanding shares of FoF as per [DT1] | D15: 500000 | E15: =IF(D15="",".",1) -> 1
C19: Total investment income according to financial statements
C21: Income from investments | D21: 1500000
C22: minus total distribution | D22: =IF(ISERROR('Target Funds Distributing'!$D$35-'Target Funds Mixed'!$D$145),0,'Target Funds Distributing'!$D$35-'Target Funds Mixed'!$D$145) -> 15963.991
C23: Interest income | D23: 1000000
C24: SLB fees (lending) | D24: 550000
C25: Other income | D25: 50000
C26: Equalization related to income | D26: 450000
B28: [C] | C28: Total investment income | D28: =SUM(D21,-D22,D23,D24,D25,D26) -> 3534036.009
C31: Total investment expenses according to financial statements
C33: Interest paid | D33: 1000000
C34: Dividend paid | D34: 500000
C35: Other expenses (e.g. SLB fees (borrowing), etc.) | D35: 450000
C36: Equalization related to expenses | D36: 99784
B38: [D1] | C38: Deductible expenses | D38: =SUM(D33:D36) -> 2049784
C44: Fees / costs | D44: 750000
B46: [D2] | C46: Expenses subject to the 1.5% rule | D46: =SUM(D44) -> 750000 | E46: =IF(ISERROR(D44/D14),".",D44/D14) -> 0.003125
B48: [D] | C48: Total expenses [D1]+[D2] | D48: =SUM(D38,D46) -> 2799784
C51: Taxable income for Swiss tax purposes
B53: [E] | C53: Net investment income [C] - [D] | D53: =IF(ISERROR(D28-D48),"",D28-D48) -> 734252.009
C56: Adjustment of [D2] greater than 1.5% | D56: =IF(D14="",0,MAX(IF(OR(E46>0.015,E46=0.015),D46-0.015*D14,0))) -> 0 | E56: =IF(ISERROR(D56/D14),".",D56/D14) -> 0
B58: [F] | C58: Taxable income on FoF level (after adjustments) as per [DT1] | D58: =IF(ISERROR(MAX(D53+D56,0)),"",MAX(D53+D56,0)) -> 734252.009
B60: [G1] | C60: Taxable income ACCUMULATING TF in FoF currency as per [DT1] | D60: =IF(ISERROR(SUM('Target Funds Accumulating'!$D$108,'Target Funds Accumulating'!$D$89,'Target Funds Mixed'!$D$120,'Target Funds Mixed'!$D$96)),0,SUM('Target Funds Accumulating'!D108,'Target Funds Accumulating'!D89,'Target Funds Mixed'!$D$120,'Target Funds Mixed'!$D$96)) -> 250980.8057
B62: [G2] | C62: Taxable income DISTRIBUTING TF in FoF currency as per [DT1] | D62: =IF(ISERROR('Target Funds Distributing'!$D$47+'Target Funds Mixed'!$D$143),0,'Target Funds Distributing'!$D$47+'Target Funds Mixed'!$D$143) -> 13563.23585
B64: [H] | C64: Total Taxable income of FoF as per [DT1] [F] + [G] | D64: =IF(ISERROR(SUM(D60,D58,D62)),0,SUM(D60,D58,D62)) -> 998796.0506
C67: Taxable income per share for Swiss tax purposes in FoF currency
B70: [I] | C70: Taxable income per share as per [DT1] in FoF currency [H] / [B] | D70: =MAX(TRUNC(D64/D15,IF(D64/D15<1,5,IF(AND(OR(D64/D15=1,D64/D15>1),D64/D15<100),3,IF(OR(D64/D15=100,D64/D15>100),2)))),TRUNC(0,5)) -> 1.997
C73: Change rate [FN1] to CHF as per [DT1] | D73: 1.164
B76: [J] | C76: Taxable income per share as per [DT1] in CHF | D76: =MAX(TRUNC(D70*D73,IF(D70*D73<1,5,IF(AND(OR(D70*D73=1,D70*D73>1),D70*D73<100),3,IF(OR(D70*D73=100,D70*D73>100),2)))),TRUNC(0,5)) -> 2.324
B80: [FN1] | C80: e.g. Source Bloomberg USD/CHF: USD/CHF Curncy HP

Sheet Target Funds Accumulating
C1: Appendix VIII - Sample Reporting Foreign Fund of Funds
C2: Accumulating Target funds (TF)
B5: [DT1] | C5: Financial year end of fund-of-funds (FoF) | D5: =IF(Master!D4="","",Master!D4) -> 2007-09-30
C6: FoF currency | D6: =IF(Master!D5="","",Master!D5) -> USD
C10: Basis data Name of target fund | D10: Subtotal FoF | G10: CS Bond Fund - Asia | J10: target fund 2 | M10: target fund 3 | P10: target fund 4 | S10: JB Multibond - Absolute Return Bond Fund | V10: UBS (Lux) Bond Fund | Y10: target fund 7 | AB10: target fund 8 | AE10: target fund 9 | AH10: target fund 10 | AK10: target fund 11
C12: ISIN or Valor | G12: 2500648 | S12: 2 648 029 | V12: 608 431
C15: Tax figures available ("Kursliste" of FTA) | G15: YES | J15: NO | M15: NO | P15: YES | S15: YES | V15: YES | Y15: NO | AB15: NO | AE15: NO | AH15: NO INFO | AK15: NO
B17: [DT2] | C17: Last available financial statements | G17: 2007-09-30 | J17: 2007-04-30 | M17: 2006-12-31 | P17: 2007-04-30 | S17: 2007-06-30 | V17: 2007-03-31 | Y17: 2007-06-30 | AB17: 2005-12-31 | AE17: 2005-03-31 | AK17: 2007-06-30
C18: - within 2 years | J18: YES | M18: YES | Y18: YES | AB18: YES | AE18: NO | AH18: NO INFO | AK18: YES
C19: - used only once as tax calculation base | J19: YES | M19: YES | Y19: YES | AB19: NO | AH19: NO INFO | AK19: YES
C25: Cost details delivered | J25: YES | M25: YES | Y25: NO | AB25: NO | AH25: NO INFO | AK25: YES
C28: TF currency | G28: USD | J28: USD | M28: EUR | P28: GBP | S28: CHF | V28: JPY | Y28: EUR | AB28: JPY | AE28: GBP | AH28: EUR | AK28: USD
B30: [A] | C30: Total net asset value (NAV) of TF as per [DT2] | H30: =IF(G30="",".",1) -> . | J30: 20060200 | K30: =IF(J30="",".",1) -> 1 | M30: 12500000 | N30: =IF(M30="",".",1) -> 1 | Q30: =IF(P30="",".",1) -> . | T30: =IF(S30="",".",1) -> . | W30: =IF(V30="",".",1) -> . | Y30: 2500000 | Z30: =IF(Y30="",".",1) -> 1 | AC30: =IF(AB30="",".",1) -> . | AF30: =IF(AE30="",".",1) -> . | AI30: =IF(AH30="",".",1) -> . | AK30: 10000000 | AL30: =IF(AK30="",".",1) -> 1 | AO30: =IF(AN30="",".",1) -> . | AR30: =IF(AQ30="",".",1) -> . | AU30: =IF(AT30="",".",1) -> . | AX30: =IF(AW30="",".",1) -> . | BA30: =IF(AZ30="",".",1) -> . | BD30: =IF(BC30="",".",1) -> . | BG30: =IF(BF30="",".",1) -> . | BJ30: =IF(BI30="",".",1) -> . | BM30: =IF(BL30="",".",1) -> . | BP30: =IF(BO30="",".",1) -> . | BS30: =IF(BR30="",".",1) -> . | BV30: =IF(BU30="",".",1) -> . | BY30: =IF(BX30="",".",1) -> . | CB30: =IF(CA30="",".",1) -> . | CE30: =IF(CD30="",".",1) -> . | CH30: =IF(CG30="",".",1) -> . | CK30: =IF(CJ30="",".",1) -> . | CN30: =IF(CM30="",".",1) -> . | CQ30: =IF(CP30="",".",1) -> . | CT30: =IF(CS30="",".",1) -> . | CW30: =IF(CV30="",".",1) -> . | CZ30: =IF(CY30="",".",1) -> . | DC30: =IF(DB30="",".",1) -> . | DF30: =IF(DE30="",".",1) -> . | DI30: =IF(DH30="",".",1) -> . | DL30: =IF(DK30="",".",1) -> . | DO30: =IF(DN30="",".",1) -> . | DR30: =IF(DQ30="",".",1) -> . | DU30: =IF(DT30="",".",1) -> . | DX30: =IF(DW30="",".",1) -> . | EA30: =IF(DZ30="",".",1) -> . | ED30: =IF(EC30="",".",1) -> . | EG30: =IF(EF30="",".",1) -> . | EJ30: =IF(EI30="",".",1) -> . | EM30: =IF(EL30="",".",1) -> . | EP30: =IF(EO30="",".",1) -> . | ES30: =IF(ER30="",".",1) -> . | EV30: =IF(EU30="",".",1) -> . | EY30: =IF(EX30="",".",1) -> . | FB30: =IF(FA30="",".",1) -> . | FE30: =IF(FD30="",".",1) -> . | FH30: =IF(FG30="",".",1) -> . | FK30: =IF(FJ30="",".",1) -> . | FN30: =IF(FM30="",".",1) -> . | FQ30: =IF(FP30="",".",1) -> . | FT30: =IF(FS30="",".",1) -> . | FW30: =IF(FV30="",".",1) -> . | FZ30: =IF(FY30="",".",1) -> . | GC30: =IF(GB30="",".",1) -> . | GF30: =IF(GE30="",".",1) -> . | GI30: =IF(GH30="",".",1) -> . | GL30: =IF(GK30="",".",1) -> . | GO30: =IF(GN30="",".",1) -> . | GR30: =IF(GQ30="",".",1) -> . | GU30: =IF(GT30="",".",1) -> . | GX30: =IF(GW30="",".",1) -> . | HA30: =IF(GZ30="",".",1) -> . | HD30: =IF(HC30="",".",1) -> . | HG30: =IF(HF30="",".",1) -> . | HJ30: =IF(HI30="",".",1) -> . | HM30: =IF(HL30="",".",1) -> . | HP30: =IF(HO30="",".",1) -> . | HS30: =IF(HR30="",".",1) -> . | HV30: =IF(HU30="",".",1) -> . | HY30: =IF(HX30="",".",1) -> . | IB30: =IF(IA30="",".",1) -> . | IE30: =IF(ID30="",".",1) -> . | IH30: =IF(IG30="",".",1) -> . | IK30: =IF(IJ30="",".",1) -> . | IN30: =IF(IM30="",".",1) -> . | IQ30: =IF(IP30="",".",1) -> . | IT30: =IF(IS30="",".",1) -> . | IW30: =IF(IV30="",".",1) -> . | IZ30: =IF(IY30="",".",1) -> . | JC30: =IF(JB30="",".",1) -> . | JF30: =IF(JE30="",".",1) -> . | JI30: =IF(JH30="",".",1) -> . | JL30: =IF(JK30="",".",1) -> . | JO30: =IF(JN30="",".",1) -> . | JR30: =IF(JQ30="",".",1) -> . | JU30: =IF(JT30="",".",1) -> . | JX30: =IF(JW30="",".",1) -> . | KA30: =IF(JZ30="",".",1) -> . | KD30: =IF(KC30="",".",1) -> . | KG30: =IF(KF30="",".",1) -> . | KJ30: =IF(KI30="",".",1) -> . | KM30: =IF(KL30="",".",1) -> . | KP30: =IF(KO30="",".",1) -> . | KS30: =IF(KR30="",".",1) -> . | KV30: =IF(KU30="",".",1) -> . | KY30: =IF(KX30="",".",1) -> . | LB30: =IF(LA30="",".",1) -> . | LE30: =IF(LD30="",".",1) -> . | LH30: =IF(LG30="",".",1) -> . | LK30: =IF(LJ30="",".",1) -> . | LN30: =IF(LM30="",".",1) -> . | LQ30: =IF(LP30="",".",1) -> . | LT30: =IF(LS30="",".",1) -> . | LW30: =IF(LV30="",".",1) -> . | LZ30: =IF(LY30="",".",1) -> . | MC30: =IF(MB30="",".",1) -> . | MF30: =IF(ME30="",".",1) -> . | MI30: =IF(MH30="",".",1) -> . | ML30: =IF(MK30="",".",1) -> . | MO30: =IF(MN30="",".",1) -> . | MR30: =IF(MQ30="",".",1) -> . | MU30: =IF(MT30="",".",1) -> . | MX30: =IF(MW30="",".",1) -> . | NA30: =IF(MZ30="",".",1) -> . | ND30: =IF(NC30="",".",1) -> . | NG30: =IF(NF30="",".",1) -> . | NJ30: =IF(NI30="",".",1) -> . | NM30: =IF(NL30="",".",1) -> . | NP30: =IF(NO30="",".",1) -> . | NS30: =IF(NR30="",".",1) -> . | NV30: =IF(NU30="",".",1) -> . | NY30: =IF(NX30="",".",1) -> . | OB30: =IF(OA30="",".",1) -> . | OE30: =IF(OD30="",".",1) -> . | OH30: =IF(OG30="",".",1) -> . | OK30: =IF(OJ30="",".",1) -> . | ON30: =IF(OM30="",".",1) -> . | OQ30: =IF(OP30="",".",1) -> . | OT30: =IF(OS30="",".",1) -> . | OW30: =IF(OV30="",".",1) -> . | OZ30: =IF(OY30="",".",1) -> . | PC30: =IF(PB30="",".",1) -> . | PF30: =IF(PE30="",".",1) -> . | PI30: =IF(PH30="",".",1) -> . | PL30: =IF(PK30="",".",1) -> . | PO30: =IF(PN30="",".",1) -> . | PR30: =IF(PQ30="",".",1) -> . | PU30: =IF(PT30="",".",1) -> . | PX30: =IF(PW30="",".",1) -> . | QA30: =IF(PZ30="",".",1) -> . | QD30: =IF(QC30="",".",1) -> . | QG30: =IF(QF30="",".",1) -> . | QJ30: =IF(QI30="",".",1) -> . | QM30: =IF(QL30="",".",1) -> . | QP30: =IF(QO30="",".",1) -> . | QS30: =IF(QR30="",".",1) -> . | QV30: =IF(QU30="",".",1) -> . | QY30: =IF(QX30="",".",1) -> . | RB30: =IF(RA30="",".",1) -> . | RE30: =IF(RD30="",".",1) -> . | RH30: =IF(RG30="",".",1) -> . | RK30: =IF(RJ30="",".",1) -> . | RN30: =IF(RM30="",".",1) -> . | RQ30: =IF(RP30="",".",1) -> . | RT30: =IF(RS30="",".",1) -> . | RW30: =IF(RV30="",".",1) -> . | RZ30: =IF(RY30="",".",1) -> . | SC30: =IF(SB30="",".",1) -> . | SF30: =IF(SE30="",".",1) -> . | SI30: =IF(SH30="",".",1) -> . | SL30: =IF(SK30="",".",1) -> . | SO30: =IF(SN30="",".",1) -> . | SR30: =IF(SQ30="",".",1) -> . | SU30: =IF(ST30="",".",1) -> . | SX30: =IF(SW30="",".",1) -> . | TA30: =IF(SZ30="",".",1) -> . | TD30: =IF(TC30="",".",1) -> . | TG30: =IF(TF30="",".",1) -> . | TJ30: =IF(TI30="",".",1) -> . | TM30: =IF(TL30="",".",1) -> . | TP30: =IF(TO30="",".",1) -> . | TS30: =IF(TR30="",".",1) -> . | TV30: =IF(TU30="",".",1) -> . | TY30: =IF(TX30="",".",1) -> . | UB30: =IF(UA30="",".",1) -> . | UE30: =IF(UD30="",".",1) -> . | UH30: =IF(UG30="",".",1) -> . | UK30: =IF(UJ30="",".",1) -> . | UN30: =IF(UM30="",".",1) -> . | UQ30: =IF(UP30="",".",1) -> . | UT30: =IF(US30="",".",1) -> . | UW30: =IF(UV30="",".",1) -> . | UZ30: =IF(UY30="",".",1) -> . | VC30: =IF(VB30="",".",1) -> . | VF30: =IF(VE30="",".",1) -> . | VI30: =IF(VH30="",".",1) -> . | VL30: =IF(VK30="",".",1) -> . | VO30: =IF(VN30="",".",1) -> . | VR30: =IF(VQ30="",".",1) -> . | VU30: =IF(VT30="",".",1) -> . | VX30: =IF(VW30="",".",1) -> . | WA30: =IF(VZ30="",".",1) -> . | WD30: =IF(WC30="",".",1) -> . | WG30: =IF(WF30="",".",1) -> . | WJ30: =IF(WI30="",".",1) -> . | WM30: =IF(WL30="",".",1) -> . | WP30: =IF(WO30="",".",1) -> . | WS30: =IF(WR30="",".",1) -> . | WV30: =IF(WU30="",".",1) -> . | WY30: =IF(WX30="",".",1) -> . | XB30: =IF(XA30="",".",1) -> . | XE30: =IF(XD30="",".",1) -> . | XH30: =IF(XG30="",".",1) -> . | XK30: =IF(XJ30="",".",1) -> . | XN30: =IF(XM30="",".",1) -> . | XQ30: =IF(XP30="",".",1) -> . | XT30: =IF(XS30="",".",1) -> . | XW30: =IF(XV30="",".",1) -> . | XZ30: =IF(XY30="",".",1) -> . | YC30: =IF(YB30="",".",1) -> . | YF30: =IF(YE30="",".",1) -> . | YI30: =IF(YH30="",".",1) -> . | YL30: =IF(YK30="",".",1) -> . | YO30: =IF(YN30="",".",1) -> . | YR30: =IF(YQ30="",".",1) -> . | YU30: =IF(YT30="",".",1) -> . | YX30: =IF(YW30="",".",1) -> . | ZA30: =IF(YZ30="",".",1) -> . | ZD30: =IF(ZC30="",".",1) -> . | ZG30: =IF(ZF30="",".",1) -> . | ZJ30: =IF(ZI30="",".",1) -> . | ZM30: =IF(ZL30="",".",1) -> . | ZP30: =IF(ZO30="",".",1) -> . | ZS30: =IF(ZR30="",".",1) -> . | ZV30: =IF(ZU30="",".",1) -> . | ZY30: =IF(ZX30="",".",1) -> . | AAB30: =IF(AAA30="",".",1) -> . | AAE30: =IF(AAD30="",".",1) -> . | AAH30: =IF(AAG30="",".",1) -> . | AAK30: =IF(AAJ30="",".",1) -> . | AAN30: =IF(AAM30="",".",1) -> . | AAQ30: =IF(AAP30="",".",1) -> . | AAT30: =IF(AAS30="",".",1) -> . | AAW30: =IF(AAV30="",".",1) -> . | AAZ30: =IF(AAY30="",".",1) -> . | ABC30: =IF(ABB30="",".",1) -> . | ABF30: =IF(ABE30="",".",1) -> . | ABI30: =IF(ABH30="",".",1) -> . | ABL30: =IF(ABK30="",".",1) -> . | ABO30: =IF(ABN30="",".",1) -> . | ABR30: =IF(ABQ30="",".",1) -> . | ABU30: =IF(ABT30="",".",1) -> . | ABX30: =IF(ABW30="",".",1) -> . | ACA30: =IF(ABZ30="",".",1) -> . | ACD30: =IF(ACC30="",".",1) -> . | ACG30: =IF(ACF30="",".",1) -> . | ACJ30: =IF(ACI30="",".",1) -> . | ACM30: =IF(ACL30="",".",1) -> . | ACP30: =IF(ACO30="",".",1) -> . | ACS30: =IF(ACR30="",".",1) -> . | ACV30: =IF(ACU30="",".",1) -> . | ACY30: =IF(ACX30="",".",1) -> . | ADB30: =IF(ADA30="",".",1) -> . | ADE30: =IF(ADD30="",".",1) -> . | ADH30: =IF(ADG30="",".",1) -> . | ADK30: =IF(ADJ30="",".",1) -> . | ADN30: =IF(ADM30="",".",1) -> . | ADQ30: =IF(ADP30="",".",1) -> . | ADT30: =IF(ADS30="",".",1) -> . | ADW30: =IF(ADV30="",".",1) -> . | ADZ30: =IF(ADY30="",".",1) -> . | AEC30: =IF(AEB30="",".",1) -> . | AEF30: =IF(AEE30="",".",1) -> . | AEI30: =IF(AEH30="",".",1) -> . | AEL30: =IF(AEK30="",".",1) -> . | AEO30: =IF(AEN30="",".",1) -> . | AER30: =IF(AEQ30="",".",1) -> . | AEU30: =IF(AET30="",".",1) -> . | AEX30: =IF(AEW30="",".",1) -> . | AFA30: =IF(AEZ30="",".",1) -> . | AFD30: =IF(AFC30="",".",1) -> . | AFG30: =IF(AFF30="",".",1) -> . | AFJ30: =IF(AFI30="",".",1) -> . | AFM30: =IF(AFL30="",".",1) -> . | AFP30: =IF(AFO30="",".",1) -> . | AFS30: =IF(AFR30="",".",1) -> . | AFV30: =IF(AFU30="",".",1) -> . | AFY30: =IF(AFX30="",".",1) -> . | AGB30: =IF(AGA30="",".",1) -> . | AGE30: =IF(AGD30="",".",1) -> . | AGH30: =IF(AGG30="",".",1) -> . | AGK30: =IF(AGJ30="",".",1) -> . | AGN30: =IF(AGM30="",".",1) -> . | AGQ30: =IF(AGP30="",".",1) -> . | AGT30: =IF(AGS30="",".",1) -> . | AGW30: =IF(AGV30="",".",1) -> . | AGZ30: =IF(AGY30="",".",1) -> . | AHC30: =IF(AHB30="",".",1) -> . | AHF30: =IF(AHE30="",".",1) -> . | AHI30: =IF(AHH30="",".",1) -> . | AHL30: =IF(AHK30="",".",1) -> . | AHO30: =IF(AHN30="",".",1) -> . | AHR30: =IF(AHQ30="",".",1) -> . | AHU30: =IF(AHT30="",".",1) -> .
B31: [B] | C31: Total outstanding shares of TF as per [DT2] | J31: 5000 | M31: 2100 | Y31: 10000 | AK31: 10000000
B32: [C] | C32: TF shares held by the FoF as per [DT1] | G32: 3000 | J32: 650 | M32: 300 | P32: 5000 | S32: 500 | V32: 1000 | Y32: 350 | AB32: 5000 | AE32: 270 | AH32: 500 | AK32: 450
C35: Total investment income according to financial statements
C37: Income from investments | J37: 400000 | M37: 200000 | Y37: 90000 | AK37: 500000
C38: Interest income | J38: 120000 | Y38: 20000 | AK38: 500000
C39: SLB fees (lending) | J39: 250000
C40: Other income | J40: 20000 | M40: 30000
C41: Equalization related to income | J41: 25000 | M41: 10000
B43: [D] | C43: Total investment income | G43: =SUM(G37:G41) -> 0 | J43: =SUM(J37:J41) -> 815000 | M43: =SUM(M37:M41) -> 240000 | P43: =SUM(P37:P41) -> 0 | S43: =SUM(S37:S41) -> 0 | V43: =SUM(V37:V41) -> 0 | Y43: =SUM(Y37:Y41) -> 110000 | AB43: =SUM(AB37:AB41) -> 0 | AE43: =SUM(AE37:AE41) -> 0 | AH43: =SUM(AH37:AH41) -> 0 | AK43: =SUM(AK37:AK41) -> 1000000 | AN43: =SUM(AN37:AN41) -> 0 | AQ43: =SUM(AQ37:AQ41) -> 0 | AT43: =SUM(AT37:AT41) -> 0 | AW43: =SUM(AW37:AW41) -> 0 | AZ43: =SUM(AZ37:AZ41) -> 0 | BC43: =SUM(BC37:BC41) -> 0 | BF43: =SUM(BF37:BF41) -> 0 | BI43: =SUM(BI37:BI41) -> 0 | BL43: =SUM(BL37:BL41) -> 0 | BO43: =SUM(BO37:BO41) -> 0 | BR43: =SUM(BR37:BR41) -> 0 | BU43: =SUM(BU37:BU41) -> 0 | BX43: =SUM(BX37:BX41) -> 0 | CA43: =SUM(CA37:CA41) -> 0 | CD43: =SUM(CD37:CD41) -> 0 | CG43: =SUM(CG37:CG41) -> 0 | CJ43: =SUM(CJ37:CJ41) -> 0 | CM43: =SUM(CM37:CM41) -> 0 | CP43: =SUM(CP37:CP41) -> 0 | CS43: =SUM(CS37:CS41) -> 0 | CV43: =SUM(CV37:CV41) -> 0 | CY43: =SUM(CY37:CY41) -> 0 | DB43: =SUM(DB37:DB41) -> 0 | DE43: =SUM(DE37:DE41) -> 0 | DH43: =SUM(DH37:DH41) -> 0 | DK43: =SUM(DK37:DK41) -> 0 | DN43: =SUM(DN37:DN41) -> 0 | DQ43: =SUM(DQ37:DQ41) -> 0 | DT43: =SUM(DT37:DT41) -> 0 | DW43: =SUM(DW37:DW41) -> 0 | DZ43: =SUM(DZ37:DZ41) -> 0 | EC43: =SUM(EC37:EC41) -> 0 | EF43: =SUM(EF37:EF41) -> 0 | EI43: =SUM(EI37:EI41) -> 0 | EL43: =SUM(EL37:EL41) -> 0 | EO43: =SUM(EO37:EO41) -> 0 | ER43: =SUM(ER37:ER41) -> 0 | EU43: =SUM(EU37:EU41) -> 0 | EX43: =SUM(EX37:EX41) -> 0 | FA43: =SUM(FA37:FA41) -> 0 | FD43: =SUM(FD37:FD41) -> 0 | FG43: =SUM(FG37:FG41) -> 0 | FJ43: =SUM(FJ37:FJ41) -> 0 | FM43: =SUM(FM37:FM41) -> 0 | FP43: =SUM(FP37:FP41) -> 0 | FS43: =SUM(FS37:FS41) -> 0 | FV43: =SUM(FV37:FV41) -> 0 | FY43: =SUM(FY37:FY41) -> 0 | GB43: =SUM(GB37:GB41) -> 0 | GE43: =SUM(GE37:GE41) -> 0 | GH43: =SUM(GH37:GH41) -> 0 | GK43: =SUM(GK37:GK41) -> 0 | GN43: =SUM(GN37:GN41) -> 0 | GQ43: =SUM(GQ37:GQ41) -> 0 | GT43: =SUM(GT37:GT41) -> 0 | GW43: =SUM(GW37:GW41) -> 0 | GZ43: =SUM(GZ37:GZ41) -> 0 | HC43: =SUM(HC37:HC41) -> 0 | HF43: =SUM(HF37:HF41) -> 0 | HI43: =SUM(HI37:HI41) -> 0 | HL43: =SUM(HL37:HL41) -> 0 | HO43: =SUM(HO37:HO41) -> 0 | HR43: =SUM(HR37:HR41) -> 0 | HU43: =SUM(HU37:HU41) -> 0 | HX43: =SUM(HX37:HX41) -> 0 | IA43: =SUM(IA37:IA41) -> 0 | ID43: =SUM(ID37:ID41) -> 0 | IG43: =SUM(IG37:IG41) -> 0 | IJ43: =SUM(IJ37:IJ41) -> 0 | IM43: =SUM(IM37:IM41) -> 0 | IP43: =SUM(IP37:IP41) -> 0 | IS43: =SUM(IS37:IS41) -> 0 | IV43: =SUM(IV37:IV41) -> 0 | IY43: =SUM(IY37:IY41) -> 0 | JB43: =SUM(JB37:JB41) -> 0 | JE43: =SUM(JE37:JE41) -> 0 | JH43: =SUM(JH37:JH41) -> 0 | JK43: =SUM(JK37:JK41) -> 0 | JN43: =SUM(JN37:JN41) -> 0 | JQ43: =SUM(JQ37:JQ41) -> 0 | JT43: =SUM(JT37:JT41) -> 0 | JW43: =SUM(JW37:JW41) -> 0 | JZ43: =SUM(JZ37:JZ41) -> 0 | KC43: =SUM(KC37:KC41) -> 0 | KF43: =SUM(KF37:KF41) -> 0 | KI43: =SUM(KI37:KI41) -> 0 | KL43: =SUM(KL37:KL41) -> 0 | KO43: =SUM(KO37:KO41) -> 0 | KR43: =SUM(KR37:KR41) -> 0 | KU43: =SUM(KU37:KU41) -> 0 | KX43: =SUM(KX37:KX41) -> 0 | LA43: =SUM(LA37:LA41) -> 0 | LD43: =SUM(LD37:LD41) -> 0 | LG43: =SUM(LG37:LG41) -> 0 | LJ43: =SUM(LJ37:LJ41) -> 0 | LM43: =SUM(LM37:LM41) -> 0 | LP43: =SUM(LP37:LP41) -> 0 | LS43: =SUM(LS37:LS41) -> 0 | LV43: =SUM(LV37:LV41) -> 0 | LY43: =SUM(LY37:LY41) -> 0 | MB43: =SUM(MB37:MB41) -> 0 | ME43: =SUM(ME37:ME41) -> 0 | MH43: =SUM(MH37:MH41) -> 0 | MK43: =SUM(MK37:MK41) -> 0 | MN43: =SUM(MN37:MN41) -> 0 | MQ43: =SUM(MQ37:MQ41) -> 0 | MT43: =SUM(MT37:MT41) -> 0 | MW43: =SUM(MW37:MW41) -> 0 | MZ43: =SUM(MZ37:MZ41) -> 0 | NC43: =SUM(NC37:NC41) -> 0 | NF43: =SUM(NF37:NF41) -> 0 | NI43: =SUM(NI37:NI41) -> 0 | NL43: =SUM(NL37:NL41) -> 0 | NO43: =SUM(NO37:NO41) -> 0 | NR43: =SUM(NR37:NR41) -> 0 | NU43: =SUM(NU37:NU41) -> 0 | NX43: =SUM(NX37:NX41) -> 0 | OA43: =SUM(OA37:OA41) -> 0 | OD43: =SUM(OD37:OD41) -> 0 | OG43: =SUM(OG37:OG41) -> 0 | OJ43: =SUM(OJ37:OJ41) -> 0 | OM43: =SUM(OM37:OM41) -> 0 | OP43: =SUM(OP37:OP41) -> 0 | OS43: =SUM(OS37:OS41) -> 0 | OV43: =SUM(OV37:OV41) -> 0 | OY43: =SUM(OY37:OY41) -> 0 | PB43: =SUM(PB37:PB41) -> 0 | PE43: =SUM(PE37:PE41) -> 0 | PH43: =SUM(PH37:PH41) -> 0 | PK43: =SUM(PK37:PK41) -> 0 | PN43: =SUM(PN37:PN41) -> 0 | PQ43: =SUM(PQ37:PQ41) -> 0 | PT43: =SUM(PT37:PT41) -> 0 | PW43: =SUM(PW37:PW41) -> 0 | PZ43: =SUM(PZ37:PZ41) -> 0 | QC43: =SUM(QC37:QC41) -> 0 | QF43: =SUM(QF37:QF41) -> 0 | QI43: =SUM(QI37:QI41) -> 0 | QL43: =SUM(QL37:QL41) -> 0 | QO43: =SUM(QO37:QO41) -> 0 | QR43: =SUM(QR37:QR41) -> 0 | QU43: =SUM(QU37:QU41) -> 0 | QX43: =SUM(QX37:QX41) -> 0 | RA43: =SUM(RA37:RA41) -> 0 | RD43: =SUM(RD37:RD41) -> 0 | RG43: =SUM(RG37:RG41) -> 0 | RJ43: =SUM(RJ37:RJ41) -> 0 | RM43: =SUM(RM37:RM41) -> 0 | RP43: =SUM(RP37:RP41) -> 0 | RS43: =SUM(RS37:RS41) -> 0 | RV43: =SUM(RV37:RV41) -> 0 | RY43: =SUM(RY37:RY41) -> 0 | SB43: =SUM(SB37:SB41) -> 0 | SE43: =SUM(SE37:SE41) -> 0 | SH43: =SUM(SH37:SH41) -> 0 | SK43: =SUM(SK37:SK41) -> 0 | SN43: =SUM(SN37:SN41) -> 0 | SQ43: =SUM(SQ37:SQ41) -> 0 | ST43: =SUM(ST37:ST41) -> 0 | SW43: =SUM(SW37:SW41) -> 0 | SZ43: =SUM(SZ37:SZ41) -> 0 | TC43: =SUM(TC37:TC41) -> 0 | TF43: =SUM(TF37:TF41) -> 0 | TI43: =SUM(TI37:TI41) -> 0 | TL43: =SUM(TL37:TL41) -> 0 | TO43: =SUM(TO37:TO41) -> 0 | TR43: =SUM(TR37:TR41) -> 0 | TU43: =SUM(TU37:TU41) -> 0 | TX43: =SUM(TX37:TX41) -> 0 | UA43: =SUM(UA37:UA41) -> 0 | UD43: =SUM(UD37:UD41) -> 0 | UG43: =SUM(UG37:UG41) -> 0 | UJ43: =SUM(UJ37:UJ41) -> 0 | UM43: =SUM(UM37:UM41) -> 0 | UP43: =SUM(UP37:UP41) -> 0 | US43: =SUM(US37:US41) -> 0 | UV43: =SUM(UV37:UV41) -> 0 | UY43: =SUM(UY37:UY41) -> 0 | VB43: =SUM(VB37:VB41) -> 0 | VE43: =SUM(VE37:VE41) -> 0 | VH43: =SUM(VH37:VH41) -> 0 | VK43: =SUM(VK37:VK41) -> 0 | VN43: =SUM(VN37:VN41) -> 0 | VQ43: =SUM(VQ37:VQ41) -> 0 | VT43: =SUM(VT37:VT41) -> 0 | VW43: =SUM(VW37:VW41) -> 0 | VZ43: =SUM(VZ37:VZ41) -> 0 | WC43: =SUM(WC37:WC41) -> 0 | WF43: =SUM(WF37:WF41) -> 0 | WI43: =SUM(WI37:WI41) -> 0 | WL43: =SUM(WL37:WL41) -> 0 | WO43: =SUM(WO37:WO41) -> 0 | WR43: =SUM(WR37:WR41) -> 0 | WU43: =SUM(WU37:WU41) -> 0 | WX43: =SUM(WX37:WX41) -> 0 | XA43: =SUM(XA37:XA41) -> 0 | XD43: =SUM(XD37:XD41) -> 0 | XG43: =SUM(XG37:XG41) -> 0 | XJ43: =SUM(XJ37:XJ41) -> 0 | XM43: =SUM(XM37:XM41) -> 0 | XP43: =SUM(XP37:XP41) -> 0 | XS43: =SUM(XS37:XS41) -> 0 | XV43: =SUM(XV37:XV41) -> 0 | XY43: =SUM(XY37:XY41) -> 0 | YB43: =SUM(YB37:YB41) -> 0 | YE43: =SUM(YE37:YE41) -> 0 | YH43: =SUM(YH37:YH41) -> 0 | YK43: =SUM(YK37:YK41) -> 0 | YN43: =SUM(YN37:YN41) -> 0 | YQ43: =SUM(YQ37:YQ41) -> 0 | YT43: =SUM(YT37:YT41) -> 0 | YW43: =SUM(YW37:YW41) -> 0 | YZ43: =SUM(YZ37:YZ41) -> 0 | ZC43: =SUM(ZC37:ZC41) -> 0 | ZF43: =SUM(ZF37:ZF41) -> 0 | ZI43: =SUM(ZI37:ZI41) -> 0 | ZL43: =SUM(ZL37:ZL41) -> 0 | ZO43: =SUM(ZO37:ZO41) -> 0 | ZR43: =SUM(ZR37:ZR41) -> 0 | ZU43: =SUM(ZU37:ZU41) -> 0 | ZX43: =SUM(ZX37:ZX41) -> 0 | AAA43: =SUM(AAA37:AAA41) -> 0 | AAD43: =SUM(AAD37:AAD41) -> 0 | AAG43: =SUM(AAG37:AAG41) -> 0 | AAJ43: =SUM(AAJ37:AAJ41) -> 0 | AAM43: =SUM(AAM37:AAM41) -> 0 | AAP43: =SUM(AAP37:AAP41) -> 0 | AAS43: =SUM(AAS37:AAS41) -> 0 | AAV43: =SUM(AAV37:AAV41) -> 0 | AAY43: =SUM(AAY37:AAY41) -> 0 | ABB43: =SUM(ABB37:ABB41) -> 0 | ABE43: =SUM(ABE37:ABE41) -> 0 | ABH43: =SUM(ABH37:ABH41) -> 0 | ABK43: =SUM(ABK37:ABK41) -> 0 | ABN43: =SUM(ABN37:ABN41) -> 0 | ABQ43: =SUM(ABQ37:ABQ41) -> 0 | ABT43: =SUM(ABT37:ABT41) -> 0 | ABW43: =SUM(ABW37:ABW41) -> 0 | ABZ43: =SUM(ABZ37:ABZ41) -> 0 | ACC43: =SUM(ACC37:ACC41) -> 0 | ACF43: =SUM(ACF37:ACF41) -> 0 | ACI43: =SUM(ACI37:ACI41) -> 0 | ACL43: =SUM(ACL37:ACL41) -> 0 | ACO43: =SUM(ACO37:ACO41) -> 0 | ACR43: =SUM(ACR37:ACR41) -> 0 | ACU43: =SUM(ACU37:ACU41) -> 0 | ACX43: =SUM(ACX37:ACX41) -> 0 | ADA43: =SUM(ADA37:ADA41) -> 0 | ADD43: =SUM(ADD37:ADD41) -> 0 | ADG43: =SUM(ADG37:ADG41) -> 0 | ADJ43: =SUM(ADJ37:ADJ41) -> 0 | ADM43: =SUM(ADM37:ADM41) -> 0 | ADP43: =SUM(ADP37:ADP41) -> 0 | ADS43: =SUM(ADS37:ADS41) -> 0 | ADV43: =SUM(ADV37:ADV41) -> 0 | ADY43: =SUM(ADY37:ADY41) -> 0 | AEB43: =SUM(AEB37:AEB41) -> 0 | AEE43: =SUM(AEE37:AEE41) -> 0 | AEH43: =SUM(AEH37:AEH41) -> 0 | AEK43: =SUM(AEK37:AEK41) -> 0 | AEN43: =SUM(AEN37:AEN41) -> 0 | AEQ43: =SUM(AEQ37:AEQ41) -> 0 | AET43: =SUM(AET37:AET41) -> 0 | AEW43: =SUM(AEW37:AEW41) -> 0 | AEZ43: =SUM(AEZ37:AEZ41) -> 0 | AFC43: =SUM(AFC37:AFC41) -> 0 | AFF43: =SUM(AFF37:AFF41) -> 0 | AFI43: =SUM(AFI37:AFI41) -> 0 | AFL43: =SUM(AFL37:AFL41) -> 0 | AFO43: =SUM(AFO37:AFO41) -> 0 | AFR43: =SUM(AFR37:AFR41) -> 0 | AFU43: =SUM(AFU37:AFU41) -> 0 | AFX43: =SUM(AFX37:AFX41) -> 0 | AGA43: =SUM(AGA37:AGA41) -> 0 | AGD43: =SUM(AGD37:AGD41) -> 0 | AGG43: =SUM(AGG37:AGG41) -> 0 | AGJ43: =SUM(AGJ37:AGJ41) -> 0 | AGM43: =SUM(AGM37:AGM41) -> 0 | AGP43: =SUM(AGP37:AGP41) -> 0 | AGS43: =SUM(AGS37:AGS41) -> 0 | AGV43: =SUM(AGV37:AGV41) -> 0 | AGY43: =SUM(AGY37:AGY41) -> 0 | AHB43: =SUM(AHB37:AHB41) -> 0 | AHE43: =SUM(AHE37:AHE41) -> 0 | AHH43: =SUM(AHH37:AHH41) -> 0 | AHK43: =SUM(AHK37:AHK41) -> 0 | AHN43: =SUM(AHN37:AHN41) -> 0 | AHQ43: =SUM(AHQ37:AHQ41) -> 0 | AHT43: =SUM(AHT37:AHT41) -> 0
C46: Total investment expenses according to financial statements
C48: Interest paid | J48: 50000 | Y48: 0 | AK48: 300000
C49: Dividend paid | J49: 10000 | M49: 4500 | Y49: 0 | AK49: 700000
C50: Other expenses (e.g. SLB fees (borrowing), etc.) | J50: 12000 | Y50: 0
C51: Equalization related to expenses | J51: 350 | Y51: 0
B53: [E1] | C53: Deductible expenses | G53: =SUM(G48:G51) -> 0 | J53: =SUM(J48:J51) -> 72350 | M53: =SUM(M48:M51) -> 4500 | P53: =SUM(P48:P51) -> 0 | S53: =SUM(S48:S51) -> 0 | V53: =SUM(V48:V51) -> 0 | Y53: =SUM(Y48:Y51) -> 0 | AB53: =SUM(AB48:AB51) -> 0 | AE53: =SUM(AE48:AE51) -> 0 | AH53: =SUM(AH48:AH51) -> 0 | AK53: =SUM(AK48:AK51) -> 1000000 | AN53: =SUM(AN48:AN51) -> 0 | AQ53: =SUM(AQ48:AQ51) -> 0 | AT53: =SUM(AT48:AT51) -> 0 | AW53: =SUM(AW48:AW51) -> 0 | AZ53: =SUM(AZ48:AZ51) -> 0 | BC53: =SUM(BC48:BC51) -> 0 | BF53: =SUM(BF48:BF51) -> 0 | BI53: =SUM(BI48:BI51) -> 0 | BL53: =SUM(BL48:BL51) -> 0 | BO53: =SUM(BO48:BO51) -> 0 | BR53: =SUM(BR48:BR51) -> 0 | BU53: =SUM(BU48:BU51) -> 0 | BX53: =SUM(BX48:BX51) -> 0 | CA53: =SUM(CA48:CA51) -> 0 | CD53: =SUM(CD48:CD51) -> 0 | CG53: =SUM(CG48:CG51) -> 0 | CJ53: =SUM(CJ48:CJ51) -> 0 | CM53: =SUM(CM48:CM51) -> 0 | CP53: =SUM(CP48:CP51) -> 0 | CS53: =SUM(CS48:CS51) -> 0 | CV53: =SUM(CV48:CV51) -> 0 | CY53: =SUM(CY48:CY51) -> 0 | DB53: =SUM(DB48:DB51) -> 0 | DE53: =SUM(DE48:DE51) -> 0 | DH53: =SUM(DH48:DH51) -> 0 | DK53: =SUM(DK48:DK51) -> 0 | DN53: =SUM(DN48:DN51) -> 0 | DQ53: =SUM(DQ48:DQ51) -> 0 | DT53: =SUM(DT48:DT51) -> 0 | DW53: =SUM(DW48:DW51) -> 0 | DZ53: =SUM(DZ48:DZ51) -> 0 | EC53: =SUM(EC48:EC51) -> 0 | EF53: =SUM(EF48:EF51) -> 0 | EI53: =SUM(EI48:EI51) -> 0 | EL53: =SUM(EL48:EL51) -> 0 | EO53: =SUM(EO48:EO51) -> 0 | ER53: =SUM(ER48:ER51) -> 0 | EU53: =SUM(EU48:EU51) -> 0 | EX53: =SUM(EX48:EX51) -> 0 | FA53: =SUM(FA48:FA51) -> 0 | FD53: =SUM(FD48:FD51) -> 0 | FG53: =SUM(FG48:FG51) -> 0 | FJ53: =SUM(FJ48:FJ51) -> 0 | FM53: =SUM(FM48:FM51) -> 0 | FP53: =SUM(FP48:FP51) -> 0 | FS53: =SUM(FS48:FS51) -> 0 | FV53: =SUM(FV48:FV51) -> 0 | FY53: =SUM(FY48:FY51) -> 0 | GB53: =SUM(GB48:GB51) -> 0 | GE53: =SUM(GE48:GE51) -> 0 | GH53: =SUM(GH48:GH51) -> 0 | GK53: =SUM(GK48:GK51) -> 0 | GN53: =SUM(GN48:GN51) -> 0 | GQ53: =SUM(GQ48:GQ51) -> 0 | GT53: =SUM(GT48:GT51) -> 0 | GW53: =SUM(GW48:GW51) -> 0 | GZ53: =SUM(GZ48:GZ51) -> 0 | HC53: =SUM(HC48:HC51) -> 0 | HF53: =SUM(HF48:HF51) -> 0 | HI53: =SUM(HI48:HI51) -> 0 | HL53: =SUM(HL48:HL51) -> 0 | HO53: =SUM(HO48:HO51) -> 0 | HR53: =SUM(HR48:HR51) -> 0 | HU53: =SUM(HU48:HU51) -> 0 | HX53: =SUM(HX48:HX51) -> 0 | IA53: =SUM(IA48:IA51) -> 0 | ID53: =SUM(ID48:ID51) -> 0 | IG53: =SUM(IG48:IG51) -> 0 | IJ53: =SUM(IJ48:IJ51) -> 0 | IM53: =SUM(IM48:IM51) -> 0 | IP53: =SUM(IP48:IP51) -> 0 | IS53: =SUM(IS48:IS51) -> 0 | IV53: =SUM(IV48:IV51) -> 0 | IY53: =SUM(IY48:IY51) -> 0 | JB53: =SUM(JB48:JB51) -> 0 | JE53: =SUM(JE48:JE51) -> 0 | JH53: =SUM(JH48:JH51) -> 0 | JK53: =SUM(JK48:JK51) -> 0 | JN53: =SUM(JN48:JN51) -> 0 | JQ53: =SUM(JQ48:JQ51) -> 0 | JT53: =SUM(JT48:JT51) -> 0 | JW53: =SUM(JW48:JW51) -> 0 | JZ53: =SUM(JZ48:JZ51) -> 0 | KC53: =SUM(KC48:KC51) -> 0 | KF53: =SUM(KF48:KF51) -> 0 | KI53: =SUM(KI48:KI51) -> 0 | KL53: =SUM(KL48:KL51) -> 0 | KO53: =SUM(KO48:KO51) -> 0 | KR53: =SUM(KR48:KR51) -> 0 | KU53: =SUM(KU48:KU51) -> 0 | KX53: =SUM(KX48:KX51) -> 0 | LA53: =SUM(LA48:LA51) -> 0 | LD53: =SUM(LD48:LD51) -> 0 | LG53: =SUM(LG48:LG51) -> 0 | LJ53: =SUM(LJ48:LJ51) -> 0 | LM53: =SUM(LM48:LM51) -> 0 | LP53: =SUM(LP48:LP51) -> 0 | LS53: =SUM(LS48:LS51) -> 0 | LV53: =SUM(LV48:LV51) -> 0 | LY53: =SUM(LY48:LY51) -> 0 | MB53: =SUM(MB48:MB51) -> 0 | ME53: =SUM(ME48:ME51) -> 0 | MH53: =SUM(MH48:MH51) -> 0 | MK53: =SUM(MK48:MK51) -> 0 | MN53: =SUM(MN48:MN51) -> 0 | MQ53: =SUM(MQ48:MQ51) -> 0 | MT53: =SUM(MT48:MT51) -> 0 | MW53: =SUM(MW48:MW51) -> 0 | MZ53: =SUM(MZ48:MZ51) -> 0 | NC53: =SUM(NC48:NC51) -> 0 | NF53: =SUM(NF48:NF51) -> 0 | NI53: =SUM(NI48:NI51) -> 0 | NL53: =SUM(NL48:NL51) -> 0 | NO53: =SUM(NO48:NO51) -> 0 | NR53: =SUM(NR48:NR51) -> 0 | NU53: =SUM(NU48:NU51) -> 0 | NX53: =SUM(NX48:NX51) -> 0 | OA53: =SUM(OA48:OA51) -> 0 | OD53: =SUM(OD48:OD51) -> 0 | OG53: =SUM(OG48:OG51) -> 0 | OJ53: =SUM(OJ48:OJ51) -> 0 | OM53: =SUM(OM48:OM51) -> 0 | OP53: =SUM(OP48:OP51) -> 0 | OS53: =SUM(OS48:OS51) -> 0 | OV53: =SUM(OV48:OV51) -> 0 | OY53: =SUM(OY48:OY51) -> 0 | PB53: =SUM(PB48:PB51) -> 0 | PE53: =SUM(PE48:PE51) -> 0 | PH53: =SUM(PH48:PH51) -> 0 | PK53: =SUM(PK48:PK51) -> 0 | PN53: =SUM(PN48:PN51) -> 0 | PQ53: =SUM(PQ48:PQ51) -> 0 | PT53: =SUM(PT48:PT51) -> 0 | PW53: =SUM(PW48:PW51) -> 0 | PZ53: =SUM(PZ48:PZ51) -> 0 | QC53: =SUM(QC48:QC51) -> 0 | QF53: =SUM(QF48:QF51) -> 0 | QI53: =SUM(QI48:QI51) -> 0 | QL53: =SUM(QL48:QL51) -> 0 | QO53: =SUM(QO48:QO51) -> 0 | QR53: =SUM(QR48:QR51) -> 0 | QU53: =SUM(QU48:QU51) -> 0 | QX53: =SUM(QX48:QX51) -> 0 | RA53: =SUM(RA48:RA51) -> 0 | RD53: =SUM(RD48:RD51) -> 0 | RG53: =SUM(RG48:RG51) -> 0 | RJ53: =SUM(RJ48:RJ51) -> 0 | RM53: =SUM(RM48:RM51) -> 0 | RP53: =SUM(RP48:RP51) -> 0 | RS53: =SUM(RS48:RS51) -> 0 | RV53: =SUM(RV48:RV51) -> 0 | RY53: =SUM(RY48:RY51) -> 0 | SB53: =SUM(SB48:SB51) -> 0 | SE53: =SUM(SE48:SE51) -> 0 | SH53: =SUM(SH48:SH51) -> 0 | SK53: =SUM(SK48:SK51) -> 0 | SN53: =SUM(SN48:SN51) -> 0 | SQ53: =SUM(SQ48:SQ51) -> 0 | ST53: =SUM(ST48:ST51) -> 0 | SW53: =SUM(SW48:SW51) -> 0 | SZ53: =SUM(SZ48:SZ51) -> 0 | TC53: =SUM(TC48:TC51) -> 0 | TF53: =SUM(TF48:TF51) -> 0 | TI53: =SUM(TI48:TI51) -> 0 | TL53: =SUM(TL48:TL51) -> 0 | TO53: =SUM(TO48:TO51) -> 0 | TR53: =SUM(TR48:TR51) -> 0 | TU53: =SUM(TU48:TU51) -> 0 | TX53: =SUM(TX48:TX51) -> 0 | UA53: =SUM(UA48:UA51) -> 0 | UD53: =SUM(UD48:UD51) -> 0 | UG53: =SUM(UG48:UG51) -> 0 | UJ53: =SUM(UJ48:UJ51) -> 0 | UM53: =SUM(UM48:UM51) -> 0 | UP53: =SUM(UP48:UP51) -> 0 | US53: =SUM(US48:US51) -> 0 | UV53: =SUM(UV48:UV51) -> 0 | UY53: =SUM(UY48:UY51) -> 0 | VB53: =SUM(VB48:VB51) -> 0 | VE53: =SUM(VE48:VE51) -> 0 | VH53: =SUM(VH48:VH51) -> 0 | VK53: =SUM(VK48:VK51) -> 0 | VN53: =SUM(VN48:VN51) -> 0 | VQ53: =SUM(VQ48:VQ51) -> 0 | VT53: =SUM(VT48:VT51) -> 0 | VW53: =SUM(VW48:VW51) -> 0 | VZ53: =SUM(VZ48:VZ51) -> 0 | WC53: =SUM(WC48:WC51) -> 0 | WF53: =SUM(WF48:WF51) -> 0 | WI53: =SUM(WI48:WI51) -> 0 | WL53: =SUM(WL48:WL51) -> 0 | WO53: =SUM(WO48:WO51) -> 0 | WR53: =SUM(WR48:WR51) -> 0 | WU53: =SUM(WU48:WU51) -> 0 | WX53: =SUM(WX48:WX51) -> 0 | XA53: =SUM(XA48:XA51) -> 0 | XD53: =SUM(XD48:XD51) -> 0 | XG53: =SUM(XG48:XG51) -> 0 | XJ53: =SUM(XJ48:XJ51) -> 0 | XM53: =SUM(XM48:XM51) -> 0 | XP53: =SUM(XP48:XP51) -> 0 | XS53: =SUM(XS48:XS51) -> 0 | XV53: =SUM(XV48:XV51) -> 0 | XY53: =SUM(XY48:XY51) -> 0 | YB53: =SUM(YB48:YB51) -> 0 | YE53: =SUM(YE48:YE51) -> 0 | YH53: =SUM(YH48:YH51) -> 0 | YK53: =SUM(YK48:YK51) -> 0 | YN53: =SUM(YN48:YN51) -> 0 | YQ53: =SUM(YQ48:YQ51) -> 0 | YT53: =SUM(YT48:YT51) -> 0 | YW53: =SUM(YW48:YW51) -> 0 | YZ53: =SUM(YZ48:YZ51) -> 0 | ZC53: =SUM(ZC48:ZC51) -> 0 | ZF53: =SUM(ZF48:ZF51) -> 0 | ZI53: =SUM(ZI48:ZI51) -> 0 | ZL53: =SUM(ZL48:ZL51) -> 0 | ZO53: =SUM(ZO48:ZO51) -> 0 | ZR53: =SUM(ZR48:ZR51) -> 0 | ZU53: =SUM(ZU48:ZU51) -> 0 | ZX53: =SUM(ZX48:ZX51) -> 0 | AAA53: =SUM(AAA48:AAA51) -> 0 | AAD53: =SUM(AAD48:AAD51) -> 0 | AAG53: =SUM(AAG48:AAG51) -> 0 | AAJ53: =SUM(AAJ48:AAJ51) -> 0 | AAM53: =SUM(AAM48:AAM51) -> 0 | AAP53: =SUM(AAP48:AAP51) -> 0 | AAS53: =SUM(AAS48:AAS51) -> 0 | AAV53: =SUM(AAV48:AAV51) -> 0 | AAY53: =SUM(AAY48:AAY51) -> 0 | ABB53: =SUM(ABB48:ABB51) -> 0 | ABE53: =SUM(ABE48:ABE51) -> 0 | ABH53: =SUM(ABH48:ABH51) -> 0 | ABK53: =SUM(ABK48:ABK51) -> 0 | ABN53: =SUM(ABN48:ABN51) -> 0 | ABQ53: =SUM(ABQ48:ABQ51) -> 0 | ABT53: =SUM(ABT48:ABT51) -> 0 | ABW53: =SUM(ABW48:ABW51) -> 0 | ABZ53: =SUM(ABZ48:ABZ51) -> 0 | ACC53: =SUM(ACC48:ACC51) -> 0 | ACF53: =SUM(ACF48:ACF51) -> 0 | ACI53: =SUM(ACI48:ACI51) -> 0 | ACL53: =SUM(ACL48:ACL51) -> 0 | ACO53: =SUM(ACO48:ACO51) -> 0 | ACR53: =SUM(ACR48:ACR51) -> 0 | ACU53: =SUM(ACU48:ACU51) -> 0 | ACX53: =SUM(ACX48:ACX51) -> 0 | ADA53: =SUM(ADA48:ADA51) -> 0 | ADD53: =SUM(ADD48:ADD51) -> 0 | ADG53: =SUM(ADG48:ADG51) -> 0 | ADJ53: =SUM(ADJ48:ADJ51) -> 0 | ADM53: =SUM(ADM48:ADM51) -> 0 | ADP53: =SUM(ADP48:ADP51) -> 0 | ADS53: =SUM(ADS48:ADS51) -> 0 | ADV53: =SUM(ADV48:ADV51) -> 0 | ADY53: =SUM(ADY48:ADY51) -> 0 | AEB53: =SUM(AEB48:AEB51) -> 0 | AEE53: =SUM(AEE48:AEE51) -> 0 | AEH53: =SUM(AEH48:AEH51) -> 0 | AEK53: =SUM(AEK48:AEK51) -> 0 | AEN53: =SUM(AEN48:AEN51) -> 0 | AEQ53: =SUM(AEQ48:AEQ51) -> 0 | AET53: =SUM(AET48:AET51) -> 0 | AEW53: =SUM(AEW48:AEW51) -> 0 | AEZ53: =SUM(AEZ48:AEZ51) -> 0 | AFC53: =SUM(AFC48:AFC51) -> 0 | AFF53: =SUM(AFF48:AFF51) -> 0 | AFI53: =SUM(AFI48:AFI51) -> 0 | AFL53: =SUM(AFL48:AFL51) -> 0 | AFO53: =SUM(AFO48:AFO51) -> 0 | AFR53: =SUM(AFR48:AFR51) -> 0 | AFU53: =SUM(AFU48:AFU51) -> 0 | AFX53: =SUM(AFX48:AFX51) -> 0 | AGA53: =SUM(AGA48:AGA51) -> 0 | AGD53: =SUM(AGD48:AGD51) -> 0 | AGG53: =SUM(AGG48:AGG51) -> 0 | AGJ53: =SUM(AGJ48:AGJ51) -> 0 | AGM53: =SUM(AGM48:AGM51) -> 0 | AGP53: =SUM(AGP48:AGP51) -> 0 | AGS53: =SUM(AGS48:AGS51) -> 0 | AGV53: =SUM(AGV48:AGV51) -> 0 | AGY53: =SUM(AGY48:AGY51) -> 0 | AHB53: =SUM(AHB48:AHB51) -> 0 | AHE53: =SUM(AHE48:AHE51) -> 0 | AHH53: =SUM(AHH48:AHH51) -> 0 | AHK53: =SUM(AHK48:AHK51) -> 0 | AHN53: =SUM(AHN48:AHN51) -> 0 | AHQ53: =SUM(AHQ48:AHQ51) -> 0 | AHT53: =SUM(AHT48:AHT51) -> 0
C59: Fees / Costs | J59: 33950.2 | M59: 22000 | Y59: 100000 | AK59: 500000
B61: [E2] | C61: Expenses subject to the 1.5% rule | G61: =SUM(G59) -> 0 | H61: =IF(ISERROR(G59/G30),".",G59/G30) -> . | J61: =SUM(J59) -> 33950.2 | K61: =IF(ISERROR(J59/J30),".",J59/J30) -> 0.001692415828 | M61: =SUM(M59) -> 22000 | N61: =IF(ISERROR(M59/M30),".",M59/M30) -> 0.00176 | P61: =SUM(P59) -> 0 | Q61: =IF(ISERROR(P59/P30),".",P59/P30) -> . | S61: =SUM(S59) -> 0 | T61: =IF(ISERROR(S59/S30),".",S59/S30) -> . | V61: =SUM(V59) -> 0 | W61: =IF(ISERROR(V59/V30),".",V59/V30) -> . | Y61: =SUM(Y59) -> 100000 | Z61: =IF(ISERROR(Y59/Y30),".",Y59/Y30) -> 0.04 | AB61: =SUM(AB59) -> 0 | AC61: =IF(ISERROR(AB59/AB30),".",AB59/AB30) -> . | AE61: =SUM(AE59) -> 0 | AF61: =IF(ISERROR(AE59/AE30),".",AE59/AE30) -> . | AH61: =SUM(AH59) -> 0 | AI61: =IF(ISERROR(AH59/AH30),".",AH59/AH30) -> . | AK61: =SUM(AK59) -> 500000 | AL61: =IF(ISERROR(AK59/AK30),".",AK59/AK30) -> 0.05 | AN61: =SUM(AN59) -> 0 | AO61: =IF(ISERROR(AN59/AN30),".",AN59/AN30) -> . | AQ61: =SUM(AQ59) -> 0 | AR61: =IF(ISERROR(AQ59/AQ30),".",AQ59/AQ30) -> . | AT61: =SUM(AT59) -> 0 | AU61: =IF(ISERROR(AT59/AT30),".",AT59/AT30) -> . | AW61: =SUM(AW59) -> 0 | AX61: =IF(ISERROR(AW59/AW30),".",AW59/AW30) -> . | AZ61: =SUM(AZ59) -> 0 | BA61: =IF(ISERROR(AZ59/AZ30),".",AZ59/AZ30) -> . | BC61: =SUM(BC59) -> 0 | BD61: =IF(ISERROR(BC59/BC30),".",BC59/BC30) -> . | BF61: =SUM(BF59) -> 0 | BG61: =IF(ISERROR(BF59/BF30),".",BF59/BF30) -> . | BI61: =SUM(BI59) -> 0 | BJ61: =IF(ISERROR(BI59/BI30),".",BI59/BI30) -> . | BL61: =SUM(BL59) -> 0 | BM61: =IF(ISERROR(BL59/BL30),".",BL59/BL30) -> . | BO61: =SUM(BO59) -> 0 | BP61: =IF(ISERROR(BO59/BO30),".",BO59/BO30) -> . | BR61: =SUM(BR59) -> 0 | BS61: =IF(ISERROR(BR59/BR30),".",BR59/BR30) -> . | BU61: =SUM(BU59) -> 0 | BV61: =IF(ISERROR(BU59/BU30),".",BU59/BU30) -> . | BX61: =SUM(BX59) -> 0 | BY61: =IF(ISERROR(BX59/BX30),".",BX59/BX30) -> . | CA61: =SUM(CA59) -> 0 | CB61: =IF(ISERROR(CA59/CA30),".",CA59/CA30) -> . | CD61: =SUM(CD59) -> 0 | CE61: =IF(ISERROR(CD59/CD30),".",CD59/CD30) -> . | CG61: =SUM(CG59) -> 0 | CH61: =IF(ISERROR(CG59/CG30),".",CG59/CG30) -> . | CJ61: =SUM(CJ59) -> 0 | CK61: =IF(ISERROR(CJ59/CJ30),".",CJ59/CJ30) -> . | CM61: =SUM(CM59) -> 0 | CN61: =IF(ISERROR(CM59/CM30),".",CM59/CM30) -> . | CP61: =SUM(CP59) -> 0 | CQ61: =IF(ISERROR(CP59/CP30),".",CP59/CP30) -> . | CS61: =SUM(CS59) -> 0 | CT61: =IF(ISERROR(CS59/CS30),".",CS59/CS30) -> . | CV61: =SUM(CV59) -> 0 | CW61: =IF(ISERROR(CV59/CV30),".",CV59/CV30) -> . | CY61: =SUM(CY59) -> 0 | CZ61: =IF(ISERROR(CY59/CY30),".",CY59/CY30) -> . | DB61: =SUM(DB59) -> 0 | DC61: =IF(ISERROR(DB59/DB30),".",DB59/DB30) -> . | DE61: =SUM(DE59) -> 0 | DF61: =IF(ISERROR(DE59/DE30),".",DE59/DE30) -> . | DH61: =SUM(DH59) -> 0 | DI61: =IF(ISERROR(DH59/DH30),".",DH59/DH30) -> . | DK61: =SUM(DK59) -> 0 | DL61: =IF(ISERROR(DK59/DK30),".",DK59/DK30) -> . | DN61: =SUM(DN59) -> 0 | DO61: =IF(ISERROR(DN59/DN30),".",DN59/DN30) -> . | DQ61: =SUM(DQ59) -> 0 | DR61: =IF(ISERROR(DQ59/DQ30),".",DQ59/DQ30) -> . | DT61: =SUM(DT59) -> 0 | DU61: =IF(ISERROR(DT59/DT30),".",DT59/DT30) -> . | DW61: =SUM(DW59) -> 0 | DX61: =IF(ISERROR(DW59/DW30),".",DW59/DW30) -> . | DZ61: =SUM(DZ59) -> 0 | EA61: =IF(ISERROR(DZ59/DZ30),".",DZ59/DZ30) -> . | EC61: =SUM(EC59) -> 0 | ED61: =IF(ISERROR(EC59/EC30),".",EC59/EC30) -> . | EF61: =SUM(EF59) -> 0 | EG61: =IF(ISERROR(EF59/EF30),".",EF59/EF30) -> . | EI61: =SUM(EI59) -> 0 | EJ61: =IF(ISERROR(EI59/EI30),".",EI59/EI30) -> . | EL61: =SUM(EL59) -> 0 | EM61: =IF(ISERROR(EL59/EL30),".",EL59/EL30) -> . | EO61: =SUM(EO59) -> 0 | EP61: =IF(ISERROR(EO59/EO30),".",EO59/EO30) -> . | ER61: =SUM(ER59) -> 0 | ES61: =IF(ISERROR(ER59/ER30),".",ER59/ER30) -> . | EU61: =SUM(EU59) -> 0 | EV61: =IF(ISERROR(EU59/EU30),".",EU59/EU30) -> . | EX61: =SUM(EX59) -> 0 | EY61: =IF(ISERROR(EX59/EX30),".",EX59/EX30) -> . | FA61: =SUM(FA59) -> 0 | FB61: =IF(ISERROR(FA59/FA30),".",FA59/FA30) -> . | FD61: =SUM(FD59) -> 0 | FE61: =IF(ISERROR(FD59/FD30),".",FD59/FD30) -> . | FG61: =SUM(FG59) -> 0 | FH61: =IF(ISERROR(FG59/FG30),".",FG59/FG30) -> . | FJ61: =SUM(FJ59) -> 0 | FK61: =IF(ISERROR(FJ59/FJ30),".",FJ59/FJ30) -> . | FM61: =SUM(FM59) -> 0 | FN61: =IF(ISERROR(FM59/FM30),".",FM59/FM30) -> . | FP61: =SUM(FP59) -> 0 | FQ61: =IF(ISERROR(FP59/FP30),".",FP59/FP30) -> . | FS61: =SUM(FS59) -> 0 | FT61: =IF(ISERROR(FS59/FS30),".",FS59/FS30) -> . | FV61: =SUM(FV59) -> 0 | FW61: =IF(ISERROR(FV59/FV30),".",FV59/FV30) -> . | FY61: =SUM(FY59) -> 0 | FZ61: =IF(ISERROR(FY59/FY30),".",FY59/FY30) -> . | GB61: =SUM(GB59) -> 0 | GC61: =IF(ISERROR(GB59/GB30),".",GB59/GB30) -> . | GE61: =SUM(GE59) -> 0 | GF61: =IF(ISERROR(GE59/GE30),".",GE59/GE30) -> . | GH61: =SUM(GH59) -> 0 | GI61: =IF(ISERROR(GH59/GH30),".",GH59/GH30) -> . | GK61: =SUM(GK59) -> 0 | GL61: =IF(ISERROR(GK59/GK30),".",GK59/GK30) -> . | GN61: =SUM(GN59) -> 0 | GO61: =IF(ISERROR(GN59/GN30),".",GN59/GN30) -> . | GQ61: =SUM(GQ59) -> 0 | GR61: =IF(ISERROR(GQ59/GQ30),".",GQ59/GQ30) -> . | GT61: =SUM(GT59) -> 0 | GU61: =IF(ISERROR(GT59/GT30),".",GT59/GT30) -> . | GW61: =SUM(GW59) -> 0 | GX61: =IF(ISERROR(GW59/GW30),".",GW59/GW30) -> . | GZ61: =SUM(GZ59) -> 0 | HA61: =IF(ISERROR(GZ59/GZ30),".",GZ59/GZ30) -> . | HC61: =SUM(HC59) -> 0 | HD61: =IF(ISERROR(HC59/HC30),".",HC59/HC30) -> . | HF61: =SUM(HF59) -> 0 | HG61: =IF(ISERROR(HF59/HF30),".",HF59/HF30) -> . | HI61: =SUM(HI59) -> 0 | HJ61: =IF(ISERROR(HI59/HI30),".",HI59/HI30) -> . | HL61: =SUM(HL59) -> 0 | HM61: =IF(ISERROR(HL59/HL30),".",HL59/HL30) -> . | HO61: =SUM(HO59) -> 0 | HP61: =IF(ISERROR(HO59/HO30),".",HO59/HO30) -> . | HR61: =SUM(HR59) -> 0 | HS61: =IF(ISERROR(HR59/HR30),".",HR59/HR30) -> . | HU61: =SUM(HU59) -> 0 | HV61: =IF(ISERROR(HU59/HU30),".",HU59/HU30) -> . | HX61: =SUM(HX59) -> 0 | HY61: =IF(ISERROR(HX59/HX30),".",HX59/HX30) -> . | IA61: =SUM(IA59) -> 0 | IB61: =IF(ISERROR(IA59/IA30),".",IA59/IA30) -> . | ID61: =SUM(ID59) -> 0 | IE61: =IF(ISERROR(ID59/ID30),".",ID59/ID30) -> . | IG61: =SUM(IG59) -> 0 | IH61: =IF(ISERROR(IG59/IG30),".",IG59/IG30) -> . | IJ61: =SUM(IJ59) -> 0 | IK61: =IF(ISERROR(IJ59/IJ30),".",IJ59/IJ30) -> . | IM61: =SUM(IM59) -> 0 | IN61: =IF(ISERROR(IM59/IM30),".",IM59/IM30) -> . | IP61: =SUM(IP59) -> 0 | IQ61: =IF(ISERROR(IP59/IP30),".",IP59/IP30) -> . | IS61: =SUM(IS59) -> 0 | IT61: =IF(ISERROR(IS59/IS30),".",IS59/IS30) -> . | IV61: =SUM(IV59) -> 0 | IW61: =IF(ISERROR(IV59/IV30),".",IV59/IV30) -> . | IY61: =SUM(IY59) -> 0 | IZ61: =IF(ISERROR(IY59/IY30),".",IY59/IY30) -> . | JB61: =SUM(JB59) -> 0 | JC61: =IF(ISERROR(JB59/JB30),".",JB59/JB30) -> . | JE61: =SUM(JE59) -> 0 | JF61: =IF(ISERROR(JE59/JE30),".",JE59/JE30) -> . | JH61: =SUM(JH59) -> 0 | JI61: =IF(ISERROR(JH59/JH30),".",JH59/JH30) -> . | JK61: =SUM(JK59) -> 0 | JL61: =IF(ISERROR(JK59/JK30),".",JK59/JK30) -> . | JN61: =SUM(JN59) -> 0 | JO61: =IF(ISERROR(JN59/JN30),".",JN59/JN30) -> . | JQ61: =SUM(JQ59) -> 0 | JR61: =IF(ISERROR(JQ59/JQ30),".",JQ59/JQ30) -> . | JT61: =SUM(JT59) -> 0 | JU61: =IF(ISERROR(JT59/JT30),".",JT59/JT30) -> . | JW61: =SUM(JW59) -> 0 | JX61: =IF(ISERROR(JW59/JW30),".",JW59/JW30) -> . | JZ61: =SUM(JZ59) -> 0 | KA61: =IF(ISERROR(JZ59/JZ30),".",JZ59/JZ30) -> . | KC61: =SUM(KC59) -> 0 | KD61: =IF(ISERROR(KC59/KC30),".",KC59/KC30) -> . | KF61: =SUM(KF59) -> 0 | KG61: =IF(ISERROR(KF59/KF30),".",KF59/KF30) -> . | KI61: =SUM(KI59) -> 0 | KJ61: =IF(ISERROR(KI59/KI30),".",KI59/KI30) -> . | KL61: =SUM(KL59) -> 0 | KM61: =IF(ISERROR(KL59/KL30),".",KL59/KL30) -> . | KO61: =SUM(KO59) -> 0 | KP61: =IF(ISERROR(KO59/KO30),".",KO59/KO30) -> . | KR61: =SUM(KR59) -> 0 | KS61: =IF(ISERROR(KR59/KR30),".",KR59/KR30) -> . | KU61: =SUM(KU59) -> 0 | KV61: =IF(ISERROR(KU59/KU30),".",KU59/KU30) -> . | KX61: =SUM(KX59) -> 0 | KY61: =IF(ISERROR(KX59/KX30),".",KX59/KX30) -> . | LA61: =SUM(LA59) -> 0 | LB61: =IF(ISERROR(LA59/LA30),".",LA59/LA30) -> . | LD61: =SUM(LD59) -> 0 | LE61: =IF(ISERROR(LD59/LD30),".",LD59/LD30) -> . | LG61: =SUM(LG59) -> 0 | LH61: =IF(ISERROR(LG59/LG30),".",LG59/LG30) -> . | LJ61: =SUM(LJ59) -> 0 | LK61: =IF(ISERROR(LJ59/LJ30),".",LJ59/LJ30) -> . | LM61: =SUM(LM59) -> 0 | LN61: =IF(ISERROR(LM59/LM30),".",LM59/LM30) -> . | LP61: =SUM(LP59) -> 0 | LQ61: =IF(ISERROR(LP59/LP30),".",LP59/LP30) -> . | LS61: =SUM(LS59) -> 0 | LT61: =IF(ISERROR(LS59/LS30),".",LS59/LS30) -> . | LV61: =SUM(LV59) -> 0 | LW61: =IF(ISERROR(LV59/LV30),".",LV59/LV30) -> . | LY61: =SUM(LY59) -> 0 | LZ61: =IF(ISERROR(LY59/LY30),".",LY59/LY30) -> . | MB61: =SUM(MB59) -> 0 | MC61: =IF(ISERROR(MB59/MB30),".",MB59/MB30) -> . | ME61: =SUM(ME59) -> 0 | MF61: =IF(ISERROR(ME59/ME30),".",ME59/ME30) -> . | MH61: =SUM(MH59) -> 0 | MI61: =IF(ISERROR(MH59/MH30),".",MH59/MH30) -> . | MK61: =SUM(MK59) -> 0 | ML61: =IF(ISERROR(MK59/MK30),".",MK59/MK30) -> . | MN61: =SUM(MN59) -> 0 | MO61: =IF(ISERROR(MN59/MN30),".",MN59/MN30) -> . | MQ61: =SUM(MQ59) -> 0 | MR61: =IF(ISERROR(MQ59/MQ30),".",MQ59/MQ30) -> . | MT61: =SUM(MT59) -> 0 | MU61: =IF(ISERROR(MT59/MT30),".",MT59/MT30) -> . | MW61: =SUM(MW59) -> 0 | MX61: =IF(ISERROR(MW59/MW30),".",MW59/MW30) -> . | MZ61: =SUM(MZ59) -> 0 | NA61: =IF(ISERROR(MZ59/MZ30),".",MZ59/MZ30) -> . | NC61: =SUM(NC59) -> 0 | ND61: =IF(ISERROR(NC59/NC30),".",NC59/NC30) -> . | NF61: =SUM(NF59) -> 0 | NG61: =IF(ISERROR(NF59/NF30),".",NF59/NF30) -> . | NI61: =SUM(NI59) -> 0 | NJ61: =IF(ISERROR(NI59/NI30),".",NI59/NI30) -> . | NL61: =SUM(NL59) -> 0 | NM61: =IF(ISERROR(NL59/NL30),".",NL59/NL30) -> . | NO61: =SUM(NO59) -> 0 | NP61: =IF(ISERROR(NO59/NO30),".",NO59/NO30) -> . | NR61: =SUM(NR59) -> 0 | NS61: =IF(ISERROR(NR59/NR30),".",NR59/NR30) -> . | NU61: =SUM(NU59) -> 0 | NV61: =IF(ISERROR(NU59/NU30),".",NU59/NU30) -> . | NX61: =SUM(NX59) -> 0 | NY61: =IF(ISERROR(NX59/NX30),".",NX59/NX30) -> . | OA61: =SUM(OA59) -> 0 | OB61: =IF(ISERROR(OA59/OA30),".",OA59/OA30) -> . | OD61: =SUM(OD59) -> 0 | OE61: =IF(ISERROR(OD59/OD30),".",OD59/OD30) -> . | OG61: =SUM(OG59) -> 0 | OH61: =IF(ISERROR(OG59/OG30),".",OG59/OG30) -> . | OJ61: =SUM(OJ59) -> 0 | OK61: =IF(ISERROR(OJ59/OJ30),".",OJ59/OJ30) -> . | OM61: =SUM(OM59) -> 0 | ON61: =IF(ISERROR(OM59/OM30),".",OM59/OM30) -> . | OP61: =SUM(OP59) -> 0 | OQ61: =IF(ISERROR(OP59/OP30),".",OP59/OP30) -> . | OS61: =SUM(OS59) -> 0 | OT61: =IF(ISERROR(OS59/OS30),".",OS59/OS30) -> . | OV61: =SUM(OV59) -> 0 | OW61: =IF(ISERROR(OV59/OV30),".",OV59/OV30) -> . | OY61: =SUM(OY59) -> 0 | OZ61: =IF(ISERROR(OY59/OY30),".",OY59/OY30) -> . | PB61: =SUM(PB59) -> 0 | PC61: =IF(ISERROR(PB59/PB30),".",PB59/PB30) -> . | PE61: =SUM(PE59) -> 0 | PF61: =IF(ISERROR(PE59/PE30),".",PE59/PE30) -> . | PH61: =SUM(PH59) -> 0 | PI61: =IF(ISERROR(PH59/PH30),".",PH59/PH30) -> . | PK61: =SUM(PK59) -> 0 | PL61: =IF(ISERROR(PK59/PK30),".",PK59/PK30) -> . | PN61: =SUM(PN59) -> 0 | PO61: =IF(ISERROR(PN59/PN30),".",PN59/PN30) -> . | PQ61: =SUM(PQ59) -> 0 | PR61: =IF(ISERROR(PQ59/PQ30),".",PQ59/PQ30) -> . | PT61: =SUM(PT59) -> 0 | PU61: =IF(ISERROR(PT59/PT30),".",PT59/PT30) -> . | PW61: =SUM(PW59) -> 0 | PX61: =IF(ISERROR(PW59/PW30),".",PW59/PW30) -> . | PZ61: =SUM(PZ59) -> 0 | QA61: =IF(ISERROR(PZ59/PZ30),".",PZ59/PZ30) -> . | QC61: =SUM(QC59) -> 0 | QD61: =IF(ISERROR(QC59/QC30),".",QC59/QC30) -> . | QF61: =SUM(QF59) -> 0 | QG61: =IF(ISERROR(QF59/QF30),".",QF59/QF30) -> . | QI61: =SUM(QI59) -> 0 | QJ61: =IF(ISERROR(QI59/QI30),".",QI59/QI30) -> . | QL61: =SUM(QL59) -> 0 | QM61: =IF(ISERROR(QL59/QL30),".",QL59/QL30) -> . | QO61: =SUM(QO59) -> 0 | QP61: =IF(ISERROR(QO59/QO30),".",QO59/QO30) -> . | QR61: =SUM(QR59) -> 0 | QS61: =IF(ISERROR(QR59/QR30),".",QR59/QR30) -> . | QU61: =SUM(QU59) -> 0 | QV61: =IF(ISERROR(QU59/QU30),".",QU59/QU30) -> . | QX61: =SUM(QX59) -> 0 | QY61: =IF(ISERROR(QX59/QX30),".",QX59/QX30) -> . | RA61: =SUM(RA59) -> 0 | RB61: =IF(ISERROR(RA59/RA30),".",RA59/RA30) -> . | RD61: =SUM(RD59) -> 0 | RE61: =IF(ISERROR(RD59/RD30),".",RD59/RD30) -> . | RG61: =SUM(RG59) -> 0 | RH61: =IF(ISERROR(RG59/RG30),".",RG59/RG30) -> . | RJ61: =SUM(RJ59) -> 0 | RK61: =IF(ISERROR(RJ59/RJ30),".",RJ59/RJ30) -> . | RM61: =SUM(RM59) -> 0 | RN61: =IF(ISERROR(RM59/RM30),".",RM59/RM30) -> . | RP61: =SUM(RP59) -> 0 | RQ61: =IF(ISERROR(RP59/RP30),".",RP59/RP30) -> . | RS61: =SUM(RS59) -> 0 | RT61: =IF(ISERROR(RS59/RS30),".",RS59/RS30) -> . | RV61: =SUM(RV59) -> 0 | RW61: =IF(ISERROR(RV59/RV30),".",RV59/RV30) -> . | RY61: =SUM(RY59) -> 0 | RZ61: =IF(ISERROR(RY59/RY30),".",RY59/RY30) -> . | SB61: =SUM(SB59) -> 0 | SC61: =IF(ISERROR(SB59/SB30),".",SB59/SB30) -> . | SE61: =SUM(SE59) -> 0 | SF61: =IF(ISERROR(SE59/SE30),".",SE59/SE30) -> . | SH61: =SUM(SH59) -> 0 | SI61: =IF(ISERROR(SH59/SH30),".",SH59/SH30) -> . | SK61: =SUM(SK59) -> 0 | SL61: =IF(ISERROR(SK59/SK30),".",SK59/SK30) -> . | SN61: =SUM(SN59) -> 0 | SO61: =IF(ISERROR(SN59/SN30),".",SN59/SN30) -> . | SQ61: =SUM(SQ59) -> 0 | SR61: =IF(ISERROR(SQ59/SQ30),".",SQ59/SQ30) -> . | ST61: =SUM(ST59) -> 0 | SU61: =IF(ISERROR(ST59/ST30),".",ST59/ST30) -> . | SW61: =SUM(SW59) -> 0 | SX61: =IF(ISERROR(SW59/SW30),".",SW59/SW30) -> . | SZ61: =SUM(SZ59) -> 0 | TA61: =IF(ISERROR(SZ59/SZ30),".",SZ59/SZ30) -> . | TC61: =SUM(TC59) -> 0 | TD61: =IF(ISERROR(TC59/TC30),".",TC59/TC30) -> . | TF61: =SUM(TF59) -> 0 | TG61: =IF(ISERROR(TF59/TF30),".",TF59/TF30) -> . | TI61: =SUM(TI59) -> 0 | TJ61: =IF(ISERROR(TI59/TI30),".",TI59/TI30) -> . | TL61: =SUM(TL59) -> 0 | TM61: =IF(ISERROR(TL59/TL30),".",TL59/TL30) -> . | TO61: =SUM(TO59) -> 0 | TP61: =IF(ISERROR(TO59/TO30),".",TO59/TO30) -> . | TR61: =SUM(TR59) -> 0 | TS61: =IF(ISERROR(TR59/TR30),".",TR59/TR30) -> . | TU61: =SUM(TU59) -> 0 | TV61: =IF(ISERROR(TU59/TU30),".",TU59/TU30) -> . | TX61: =SUM(TX59) -> 0 | TY61: =IF(ISERROR(TX59/TX30),".",TX59/TX30) -> . | UA61: =SUM(UA59) -> 0 | UB61: =IF(ISERROR(UA59/UA30),".",UA59/UA30) -> . | UD61: =SUM(UD59) -> 0 | UE61: =IF(ISERROR(UD59/UD30),".",UD59/UD30) -> . | UG61: =SUM(UG59) -> 0 | UH61: =IF(ISERROR(UG59/UG30),".",UG59/UG30) -> . | UJ61: =SUM(UJ59) -> 0 | UK61: =IF(ISERROR(UJ59/UJ30),".",UJ59/UJ30) -> . | UM61: =SUM(UM59) -> 0 | UN61: =IF(ISERROR(UM59/UM30),".",UM59/UM30) -> . | UP61: =SUM(UP59) -> 0 | UQ61: =IF(ISERROR(UP59/UP30),".",UP59/UP30) -> . | US61: =SUM(US59) -> 0 | UT61: =IF(ISERROR(US59/US30),".",US59/US30) -> . | UV61: =SUM(UV59) -> 0 | UW61: =IF(ISERROR(UV59/UV30),".",UV59/UV30) -> . | UY61: =SUM(UY59) -> 0 | UZ61: =IF(ISERROR(UY59/UY30),".",UY59/UY30) -> . | VB61: =SUM(VB59) -> 0 | VC61: =IF(ISERROR(VB59/VB30),".",VB59/VB30) -> . | VE61: =SUM(VE59) -> 0 | VF61: =IF(ISERROR(VE59/VE30),".",VE59/VE30) -> . | VH61: =SUM(VH59) -> 0 | VI61: =IF(ISERROR(VH59/VH30),".",VH59/VH30) -> . | VK61: =SUM(VK59) -> 0 | VL61: =IF(ISERROR(VK59/VK30),".",VK59/VK30) -> . | VN61: =SUM(VN59) -> 0 | VO61: =IF(ISERROR(VN59/VN30),".",VN59/VN30) -> . | VQ61: =SUM(VQ59) -> 0 | VR61: =IF(ISERROR(VQ59/VQ30),".",VQ59/VQ30) -> . | VT61: =SUM(VT59) -> 0 | VU61: =IF(ISERROR(VT59/VT30),".",VT59/VT30) -> . | VW61: =SUM(VW59) -> 0 | VX61: =IF(ISERROR(VW59/VW30),".",VW59/VW30) -> . | VZ61: =SUM(VZ59) -> 0 | WA61: =IF(ISERROR(VZ59/VZ30),".",VZ59/VZ30) -> . | WC61: =SUM(WC59) -> 0 | WD61: =IF(ISERROR(WC59/WC30),".",WC59/WC30) -> . | WF61: =SUM(WF59) -> 0 | WG61: =IF(ISERROR(WF59/WF30),".",WF59/WF30) -> . | WI61: =SUM(WI59) -> 0 | WJ61: =IF(ISERROR(WI59/WI30),".",WI59/WI30) -> . | WL61: =SUM(WL59) -> 0 | WM61: =IF(ISERROR(WL59/WL30),".",WL59/WL30) -> . | WO61: =SUM(WO59) -> 0 | WP61: =IF(ISERROR(WO59/WO30),".",WO59/WO30) -> . | WR61: =SUM(WR59) -> 0 | WS61: =IF(ISERROR(WR59/WR30),".",WR59/WR30) -> . | WU61: =SUM(WU59) -> 0 | WV61: =IF(ISERROR(WU59/WU30),".",WU59/WU30) -> . | WX61: =SUM(WX59) -> 0 | WY61: =IF(ISERROR(WX59/WX30),".",WX59/WX30) -> . | XA61: =SUM(XA59) -> 0 | XB61: =IF(ISERROR(XA59/XA30),".",XA59/XA30) -> . | XD61: =SUM(XD59) -> 0 | XE61: =IF(ISERROR(XD59/XD30),".",XD59/XD30) -> . | XG61: =SUM(XG59) -> 0 | XH61: =IF(ISERROR(XG59/XG30),".",XG59/XG30) -> . | XJ61: =SUM(XJ59) -> 0 | XK61: =IF(ISERROR(XJ59/XJ30),".",XJ59/XJ30) -> . | XM61: =SUM(XM59) -> 0 | XN61: =IF(ISERROR(XM59/XM30),".",XM59/XM30) -> . | XP61: =SUM(XP59) -> 0 | XQ61: =IF(ISERROR(XP59/XP30),".",XP59/XP30) -> . | XS61: =SUM(XS59) -> 0 | XT61: =IF(ISERROR(XS59/XS30),".",XS59/XS30) -> . | XV61: =SUM(XV59) -> 0 | XW61: =IF(ISERROR(XV59/XV30),".",XV59/XV30) -> . | XY61: =SUM(XY59) -> 0 | XZ61: =IF(ISERROR(XY59/XY30),".",XY59/XY30) -> . | YB61: =SUM(YB59) -> 0 | YC61: =IF(ISERROR(YB59/YB30),".",YB59/YB30) -> . | YE61: =SUM(YE59) -> 0 | YF61: =IF(ISERROR(YE59/YE30),".",YE59/YE30) -> . | YH61: =SUM(YH59) -> 0 | YI61: =IF(ISERROR(YH59/YH30),".",YH59/YH30) -> . | YK61: =SUM(YK59) -> 0 | YL61: =IF(ISERROR(YK59/YK30),".",YK59/YK30) -> . | YN61: =SUM(YN59) -> 0 | YO61: =IF(ISERROR(YN59/YN30),".",YN59/YN30) -> . | YQ61: =SUM(YQ59) -> 0 | YR61: =IF(ISERROR(YQ59/YQ30),".",YQ59/YQ30) -> . | YT61: =SUM(YT59) -> 0 | YU61: =IF(ISERROR(YT59/YT30),".",YT59/YT30) -> . | YW61: =SUM(YW59) -> 0 | YX61: =IF(ISERROR(YW59/YW30),".",YW59/YW30) -> . | YZ61: =SUM(YZ59) -> 0 | ZA61: =IF(ISERROR(YZ59/YZ30),".",YZ59/YZ30) -> . | ZC61: =SUM(ZC59) -> 0 | ZD61: =IF(ISERROR(ZC59/ZC30),".",ZC59/ZC30) -> . | ZF61: =SUM(ZF59) -> 0 | ZG61: =IF(ISERROR(ZF59/ZF30),".",ZF59/ZF30) -> . | ZI61: =SUM(ZI59) -> 0 | ZJ61: =IF(ISERROR(ZI59/ZI30),".",ZI59/ZI30) -> . | ZL61: =SUM(ZL59) -> 0 | ZM61: =IF(ISERROR(ZL59/ZL30),".",ZL59/ZL30) -> . | ZO61: =SUM(ZO59) -> 0 | ZP61: =IF(ISERROR(ZO59/ZO30),".",ZO59/ZO30) -> . | ZR61: =SUM(ZR59) -> 0 | ZS61: =IF(ISERROR(ZR59/ZR30),".",ZR59/ZR30) -> . | ZU61: =SUM(ZU59) -> 0 | ZV61: =IF(ISERROR(ZU59/ZU30),".",ZU59/ZU30) -> . | ZX61: =SUM(ZX59) -> 0 | ZY61: =IF(ISERROR(ZX59/ZX30),".",ZX59/ZX30) -> . | AAA61: =SUM(AAA59) -> 0 | AAB61: =IF(ISERROR(AAA59/AAA30),".",AAA59/AAA30) -> . | AAD61: =SUM(AAD59) -> 0 | AAE61: =IF(ISERROR(AAD59/AAD30),".",AAD59/AAD30) -> . | AAG61: =SUM(AAG59) -> 0 | AAH61: =IF(ISERROR(AAG59/AAG30),".",AAG59/AAG30) -> . | AAJ61: =SUM(AAJ59) -> 0 | AAK61: =IF(ISERROR(AAJ59/AAJ30),".",AAJ59/AAJ30) -> . | AAM61: =SUM(AAM59) -> 0 | AAN61: =IF(ISERROR(AAM59/AAM30),".",AAM59/AAM30) -> . | AAP61: =SUM(AAP59) -> 0 | AAQ61: =IF(ISERROR(AAP59/AAP30),".",AAP59/AAP30) -> . | AAS61: =SUM(AAS59) -> 0 | AAT61: =IF(ISERROR(AAS59/AAS30),".",AAS59/AAS30) -> . | AAV61: =SUM(AAV59) -> 0 | AAW61: =IF(ISERROR(AAV59/AAV30),".",AAV59/AAV30) -> . | AAY61: =SUM(AAY59) -> 0 | AAZ61: =IF(ISERROR(AAY59/AAY30),".",AAY59/AAY30) -> . | ABB61: =SUM(ABB59) -> 0 | ABC61: =IF(ISERROR(ABB59/ABB30),".",ABB59/ABB30) -> . | ABE61: =SUM(ABE59) -> 0 | ABF61: =IF(ISERROR(ABE59/ABE30),".",ABE59/ABE30) -> . | ABH61: =SUM(ABH59) -> 0 | ABI61: =IF(ISERROR(ABH59/ABH30),".",ABH59/ABH30) -> . | ABK61: =SUM(ABK59) -> 0 | ABL61: =IF(ISERROR(ABK59/ABK30),".",ABK59/ABK30) -> . | ABN61: =SUM(ABN59) -> 0 | ABO61: =IF(ISERROR(ABN59/ABN30),".",ABN59/ABN30) -> . | ABQ61: =SUM(ABQ59) -> 0 | ABR61: =IF(ISERROR(ABQ59/ABQ30),".",ABQ59/ABQ30) -> . | ABT61: =SUM(ABT59) -> 0 | ABU61: =IF(ISERROR(ABT59/ABT30),".",ABT59/ABT30) -> . | ABW61: =SUM(ABW59) -> 0 | ABX61: =IF(ISERROR(ABW59/ABW30),".",ABW59/ABW30) -> . | ABZ61: =SUM(ABZ59) -> 0 | ACA61: =IF(ISERROR(ABZ59/ABZ30),".",ABZ59/ABZ30) -> . | ACC61: =SUM(ACC59) -> 0 | ACD61: =IF(ISERROR(ACC59/ACC30),".",ACC59/ACC30) -> . | ACF61: =SUM(ACF59) -> 0 | ACG61: =IF(ISERROR(ACF59/ACF30),".",ACF59/ACF30) -> . | ACI61: =SUM(ACI59) -> 0 | ACJ61: =IF(ISERROR(ACI59/ACI30),".",ACI59/ACI30) -> . | ACL61: =SUM(ACL59) -> 0 | ACM61: =IF(ISERROR(ACL59/ACL30),".",ACL59/ACL30) -> . | ACO61: =SUM(ACO59) -> 0 | ACP61: =IF(ISERROR(ACO59/ACO30),".",ACO59/ACO30) -> . | ACR61: =SUM(ACR59) -> 0 | ACS61: =IF(ISERROR(ACR59/ACR30),".",ACR59/ACR30) -> . | ACU61: =SUM(ACU59) -> 0 | ACV61: =IF(ISERROR(ACU59/ACU30),".",ACU59/ACU30) -> . | ACX61: =SUM(ACX59) -> 0 | ACY61: =IF(ISERROR(ACX59/ACX30),".",ACX59/ACX30) -> . | ADA61: =SUM(ADA59) -> 0 | ADB61: =IF(ISERROR(ADA59/ADA30),".",ADA59/ADA30) -> . | ADD61: =SUM(ADD59) -> 0 | ADE61: =IF(ISERROR(ADD59/ADD30),".",ADD59/ADD30) -> . | ADG61: =SUM(ADG59) -> 0 | ADH61: =IF(ISERROR(ADG59/ADG30),".",ADG59/ADG30) -> . | ADJ61: =SUM(ADJ59) -> 0 | ADK61: =IF(ISERROR(ADJ59/ADJ30),".",ADJ59/ADJ30) -> . | ADM61: =SUM(ADM59) -> 0 | ADN61: =IF(ISERROR(ADM59/ADM30),".",ADM59/ADM30) -> . | ADP61: =SUM(ADP59) -> 0 | ADQ61: =IF(ISERROR(ADP59/ADP30),".",ADP59/ADP30) -> . | ADS61: =SUM(ADS59) -> 0 | ADT61: =IF(ISERROR(ADS59/ADS30),".",ADS59/ADS30) -> . | ADV61: =SUM(ADV59) -> 0 | ADW61: =IF(ISERROR(ADV59/ADV30),".",ADV59/ADV30) -> . | ADY61: =SUM(ADY59) -> 0 | ADZ61: =IF(ISERROR(ADY59/ADY30),".",ADY59/ADY30) -> . | AEB61: =SUM(AEB59) -> 0 | AEC61: =IF(ISERROR(AEB59/AEB30),".",AEB59/AEB30) -> . | AEE61: =SUM(AEE59) -> 0 | AEF61: =IF(ISERROR(AEE59/AEE30),".",AEE59/AEE30) -> . | AEH61: =SUM(AEH59) -> 0 | AEI61: =IF(ISERROR(AEH59/AEH30),".",AEH59/AEH30) -> . | AEK61: =SUM(AEK59) -> 0 | AEL61: =IF(ISERROR(AEK59/AEK30),".",AEK59/AEK30) -> . | AEN61: =SUM(AEN59) -> 0 | AEO61: =IF(ISERROR(AEN59/AEN30),".",AEN59/AEN30) -> . | AEQ61: =SUM(AEQ59) -> 0 | AER61: =IF(ISERROR(AEQ59/AEQ30),".",AEQ59/AEQ30) -> . | AET61: =SUM(AET59) -> 0 | AEU61: =IF(ISERROR(AET59/AET30),".",AET59/AET30) -> . | AEW61: =SUM(AEW59) -> 0 | AEX61: =IF(ISERROR(AEW59/AEW30),".",AEW59/AEW30) -> . | AEZ61: =SUM(AEZ59) -> 0 | AFA61: =IF(ISERROR(AEZ59/AEZ30),".",AEZ59/AEZ30) -> . | AFC61: =SUM(AFC59) -> 0 | AFD61: =IF(ISERROR(AFC59/AFC30),".",AFC59/AFC30) -> . | AFF61: =SUM(AFF59) -> 0 | AFG61: =IF(ISERROR(AFF59/AFF30),".",AFF59/AFF30) -> . | AFI61: =SUM(AFI59) -> 0 | AFJ61: =IF(ISERROR(AFI59/AFI30),".",AFI59/AFI30) -> . | AFL61: =SUM(AFL59) -> 0 | AFM61: =IF(ISERROR(AFL59/AFL30),".",AFL59/AFL30) -> . | AFO61: =SUM(AFO59) -> 0 | AFP61: =IF(ISERROR(AFO59/AFO30),".",AFO59/AFO30) -> . | AFR61: =SUM(AFR59) -> 0 | AFS61: =IF(ISERROR(AFR59/AFR30),".",AFR59/AFR30) -> . | AFU61: =SUM(AFU59) -> 0 | AFV61: =IF(ISERROR(AFU59/AFU30),".",AFU59/AFU30) -> . | AFX61: =SUM(AFX59) -> 0 | AFY61: =IF(ISERROR(AFX59/AFX30),".",AFX59/AFX30) -> . | AGA61: =SUM(AGA59) -> 0 | AGB61: =IF(ISERROR(AGA59/AGA30),".",AGA59/AGA30) -> . | AGD61: =SUM(AGD59) -> 0 | AGE61: =IF(ISERROR(AGD59/AGD30),".",AGD59/AGD30) -> . | AGG61: =SUM(AGG59) -> 0 | AGH61: =IF(ISERROR(AGG59/AGG30),".",AGG59/AGG30) -> . | AGJ61: =SUM(AGJ59) -> 0 | AGK61: =IF(ISERROR(AGJ59/AGJ30),".",AGJ59/AGJ30) -> . | AGM61: =SUM(AGM59) -> 0 | AGN61: =IF(ISERROR(AGM59/AGM30),".",AGM59/AGM30) -> . | AGP61: =SUM(AGP59) -> 0 | AGQ61: =IF(ISERROR(AGP59/AGP30),".",AGP59/AGP30) -> . | AGS61: =SUM(AGS59) -> 0 | AGT61: =IF(ISERROR(AGS59/AGS30),".",AGS59/AGS30) -> . | AGV61: =SUM(AGV59) -> 0 | AGW61: =IF(ISERROR(AGV59/AGV30),".",AGV59/AGV30) -> . | AGY61: =SUM(AGY59) -> 0 | AGZ61: =IF(ISERROR(AGY59/AGY30),".",AGY59/AGY30) -> . | AHB61: =SUM(AHB59) -> 0 | AHC61: =IF(ISERROR(AHB59/AHB30),".",AHB59/AHB30) -> . | AHE61: =SUM(AHE59) -> 0 | AHF61: =IF(ISERROR(AHE59/AHE30),".",AHE59/AHE30) -> . | AHH61: =SUM(AHH59) -> 0 | AHI61: =IF(ISERROR(AHH59/AHH30),".",AHH59/AHH30) -> . | AHK61: =SUM(AHK59) -> 0 | AHL61: =IF(ISERROR(AHK59/AHK30),".",AHK59/AHK30) -> . | AHN61: =SUM(AHN59) -> 0 | AHO61: =IF(ISERROR(AHN59/AHN30),".",AHN59/AHN30) -> . | AHQ61: =SUM(AHQ59) -> 0 | AHR61: =IF(ISERROR(AHQ59/AHQ30),".",AHQ59/AHQ30) -> . | AHT61: =SUM(AHT59) -> 0 | AHU61: =IF(ISERROR(AHT59/AHT30),".",AHT59/AHT30) -> .
B63: [E] | C63: Total expenses [E1]+[E2] | G63: =SUM(G53,G61) -> 0 | J63: =SUM(J53,J61) -> 106300.2 | M63: =SUM(M53,M61) -> 26500 | P63: =SUM(P53,P61) -> 0 | S63: =SUM(S53,S61) -> 0 | V63: =SUM(V53,V61) -> 0 | Y63: =SUM(Y53,Y61) -> 100000 | AB63: =SUM(AB53,AB61) -> 0 | AE63: =SUM(AE53,AE61) -> 0 | AH63: =SUM(AH53,AH61) -> 0 | AK63: =SUM(AK53,AK61) -> 1500000 | AN63: =SUM(AN53,AN61) -> 0 | AQ63: =SUM(AQ53,AQ61) -> 0 | AT63: =SUM(AT53,AT61) -> 0 | AW63: =SUM(AW53,AW61) -> 0 | AZ63: =SUM(AZ53,AZ61) -> 0 | BC63: =SUM(BC53,BC61) -> 0 | BF63: =SUM(BF53,BF61) -> 0 | BI63: =SUM(BI53,BI61) -> 0 | BL63: =SUM(BL53,BL61) -> 0 | BO63: =SUM(BO53,BO61) -> 0 | BR63: =SUM(BR53,BR61) -> 0 | BU63: =SUM(BU53,BU61) -> 0 | BX63: =SUM(BX53,BX61) -> 0 | CA63: =SUM(CA53,CA61) -> 0 | CD63: =SUM(CD53,CD61) -> 0 | CG63: =SUM(CG53,CG61) -> 0 | CJ63: =SUM(CJ53,CJ61) -> 0 | CM63: =SUM(CM53,CM61) -> 0 | CP63: =SUM(CP53,CP61) -> 0 | CS63: =SUM(CS53,CS61) -> 0 | CV63: =SUM(CV53,CV61) -> 0 | CY63: =SUM(CY53,CY61) -> 0 | DB63: =SUM(DB53,DB61) -> 0 | DE63: =SUM(DE53,DE61) -> 0 | DH63: =SUM(DH53,DH61) -> 0 | DK63: =SUM(DK53,DK61) -> 0 | DN63: =SUM(DN53,DN61) -> 0 | DQ63: =SUM(DQ53,DQ61) -> 0 | DT63: =SUM(DT53,DT61) -> 0 | DW63: =SUM(DW53,DW61) -> 0 | DZ63: =SUM(DZ53,DZ61) -> 0 | EC63: =SUM(EC53,EC61) -> 0 | EF63: =SUM(EF53,EF61) -> 0 | EI63: =SUM(EI53,EI61) -> 0 | EL63: =SUM(EL53,EL61) -> 0 | EO63: =SUM(EO53,EO61) -> 0 | ER63: =SUM(ER53,ER61) -> 0 | EU63: =SUM(EU53,EU61) -> 0 | EX63: =SUM(EX53,EX61) -> 0 | FA63: =SUM(FA53,FA61) -> 0 | FD63: =SUM(FD53,FD61) -> 0 | FG63: =SUM(FG53,FG61) -> 0 | FJ63: =SUM(FJ53,FJ61) -> 0 | FM63: =SUM(FM53,FM61) -> 0 | FP63: =SUM(FP53,FP61) -> 0 | FS63: =SUM(FS53,FS61) -> 0 | FV63: =SUM(FV53,FV61) -> 0 | FY63: =SUM(FY53,FY61) -> 0 | GB63: =SUM(GB53,GB61) -> 0 | GE63: =SUM(GE53,GE61) -> 0 | GH63: =SUM(GH53,GH61) -> 0 | GK63: =SUM(GK53,GK61) -> 0 | GN63: =SUM(GN53,GN61) -> 0 | GQ63: =SUM(GQ53,GQ61) -> 0 | GT63: =SUM(GT53,GT61) -> 0 | GW63: =SUM(GW53,GW61) -> 0 | GZ63: =SUM(GZ53,GZ61) -> 0 | HC63: =SUM(HC53,HC61) -> 0 | HF63: =SUM(HF53,HF61) -> 0 | HI63: =SUM(HI53,HI61) -> 0 | HL63: =SUM(HL53,HL61) -> 0 | HO63: =SUM(HO53,HO61) -> 0 | HR63: =SUM(HR53,HR61) -> 0 | HU63: =SUM(HU53,HU61) -> 0 | HX63: =SUM(HX53,HX61) -> 0 | IA63: =SUM(IA53,IA61) -> 0 | ID63: =SUM(ID53,ID61) -> 0 | IG63: =SUM(IG53,IG61) -> 0 | IJ63: =SUM(IJ53,IJ61) -> 0 | IM63: =SUM(IM53,IM61) -> 0 | IP63: =SUM(IP53,IP61) -> 0 | IS63: =SUM(IS53,IS61) -> 0 | IV63: =SUM(IV53,IV61) -> 0 | IY63: =SUM(IY53,IY61) -> 0 | JB63: =SUM(JB53,JB61) -> 0 | JE63: =SUM(JE53,JE61) -> 0 | JH63: =SUM(JH53,JH61) -> 0 | JK63: =SUM(JK53,JK61) -> 0 | JN63: =SUM(JN53,JN61) -> 0 | JQ63: =SUM(JQ53,JQ61) -> 0 | JT63: =SUM(JT53,JT61) -> 0 | JW63: =SUM(JW53,JW61) -> 0 | JZ63: =SUM(JZ53,JZ61) -> 0 | KC63: =SUM(KC53,KC61) -> 0 | KF63: =SUM(KF53,KF61) -> 0 | KI63: =SUM(KI53,KI61) -> 0 | KL63: =SUM(KL53,KL61) -> 0 | KO63: =SUM(KO53,KO61) -> 0 | KR63: =SUM(KR53,KR61) -> 0 | KU63: =SUM(KU53,KU61) -> 0 | KX63: =SUM(KX53,KX61) -> 0 | LA63: =SUM(LA53,LA61) -> 0 | LD63: =SUM(LD53,LD61) -> 0 | LG63: =SUM(LG53,LG61) -> 0 | LJ63: =SUM(LJ53,LJ61) -> 0 | LM63: =SUM(LM53,LM61) -> 0 | LP63: =SUM(LP53,LP61) -> 0 | LS63: =SUM(LS53,LS61) -> 0 | LV63: =SUM(LV53,LV61) -> 0 | LY63: =SUM(LY53,LY61) -> 0 | MB63: =SUM(MB53,MB61) -> 0 | ME63: =SUM(ME53,ME61) -> 0 | MH63: =SUM(MH53,MH61) -> 0 | MK63: =SUM(MK53,MK61) -> 0 | MN63: =SUM(MN53,MN61) -> 0 | MQ63: =SUM(MQ53,MQ61) -> 0 | MT63: =SUM(MT53,MT61) -> 0 | MW63: =SUM(MW53,MW61) -> 0 | MZ63: =SUM(MZ53,MZ61) -> 0 | NC63: =SUM(NC53,NC61) -> 0 | NF63: =SUM(NF53,NF61) -> 0 | NI63: =SUM(NI53,NI61) -> 0 | NL63: =SUM(NL53,NL61) -> 0 | NO63: =SUM(NO53,NO61) -> 0 | NR63: =SUM(NR53,NR61) -> 0 | NU63: =SUM(NU53,NU61) -> 0 | NX63: =SUM(NX53,NX61) -> 0 | OA63: =SUM(OA53,OA61) -> 0 | OD63: =SUM(OD53,OD61) -> 0 | OG63: =SUM(OG53,OG61) -> 0 | OJ63: =SUM(OJ53,OJ61) -> 0 | OM63: =SUM(OM53,OM61) -> 0 | OP63: =SUM(OP53,OP61) -> 0 | OS63: =SUM(OS53,OS61) -> 0 | OV63: =SUM(OV53,OV61) -> 0 | OY63: =SUM(OY53,OY61) -> 0 | PB63: =SUM(PB53,PB61) -> 0 | PE63: =SUM(PE53,PE61) -> 0 | PH63: =SUM(PH53,PH61) -> 0 | PK63: =SUM(PK53,PK61) -> 0 | PN63: =SUM(PN53,PN61) -> 0 | PQ63: =SUM(PQ53,PQ61) -> 0 | PT63: =SUM(PT53,PT61) -> 0 | PW63: =SUM(PW53,PW61) -> 0 | PZ63: =SUM(PZ53,PZ61) -> 0 | QC63: =SUM(QC53,QC61) -> 0 | QF63: =SUM(QF53,QF61) -> 0 | QI63: =SUM(QI53,QI61) -> 0 | QL63: =SUM(QL53,QL61) -> 0 | QO63: =SUM(QO53,QO61) -> 0 | QR63: =SUM(QR53,QR61) -> 0 | QU63: =SUM(QU53,QU61) -> 0 | QX63: =SUM(QX53,QX61) -> 0 | RA63: =SUM(RA53,RA61) -> 0 | RD63: =SUM(RD53,RD61) -> 0 | RG63: =SUM(RG53,RG61) -> 0 | RJ63: =SUM(RJ53,RJ61) -> 0 | RM63: =SUM(RM53,RM61) -> 0 | RP63: =SUM(RP53,RP61) -> 0 | RS63: =SUM(RS53,RS61) -> 0 | RV63: =SUM(RV53,RV61) -> 0 | RY63: =SUM(RY53,RY61) -> 0 | SB63: =SUM(SB53,SB61) -> 0 | SE63: =SUM(SE53,SE61) -> 0 | SH63: =SUM(SH53,SH61) -> 0 | SK63: =SUM(SK53,SK61) -> 0 | SN63: =SUM(SN53,SN61) -> 0 | SQ63: =SUM(SQ53,SQ61) -> 0 | ST63: =SUM(ST53,ST61) -> 0 | SW63: =SUM(SW53,SW61) -> 0 | SZ63: =SUM(SZ53,SZ61) -> 0 | TC63: =SUM(TC53,TC61) -> 0 | TF63: =SUM(TF53,TF61) -> 0 | TI63: =SUM(TI53,TI61) -> 0 | TL63: =SUM(TL53,TL61) -> 0 | TO63: =SUM(TO53,TO61) -> 0 | TR63: =SUM(TR53,TR61) -> 0 | TU63: =SUM(TU53,TU61) -> 0 | TX63: =SUM(TX53,TX61) -> 0 | UA63: =SUM(UA53,UA61) -> 0 | UD63: =SUM(UD53,UD61) -> 0 | UG63: =SUM(UG53,UG61) -> 0 | UJ63: =SUM(UJ53,UJ61) -> 0 | UM63: =SUM(UM53,UM61) -> 0 | UP63: =SUM(UP53,UP61) -> 0 | US63: =SUM(US53,US61) -> 0 | UV63: =SUM(UV53,UV61) -> 0 | UY63: =SUM(UY53,UY61) -> 0 | VB63: =SUM(VB53,VB61) -> 0 | VE63: =SUM(VE53,VE61) -> 0 | VH63: =SUM(VH53,VH61) -> 0 | VK63: =SUM(VK53,VK61) -> 0 | VN63: =SUM(VN53,VN61) -> 0 | VQ63: =SUM(VQ53,VQ61) -> 0 | VT63: =SUM(VT53,VT61) -> 0 | VW63: =SUM(VW53,VW61) -> 0 | VZ63: =SUM(VZ53,VZ61) -> 0 | WC63: =SUM(WC53,WC61) -> 0 | WF63: =SUM(WF53,WF61) -> 0 | WI63: =SUM(WI53,WI61) -> 0 | WL63: =SUM(WL53,WL61) -> 0 | WO63: =SUM(WO53,WO61) -> 0 | WR63: =SUM(WR53,WR61) -> 0 | WU63: =SUM(WU53,WU61) -> 0 | WX63: =SUM(WX53,WX61) -> 0 | XA63: =SUM(XA53,XA61) -> 0 | XD63: =SUM(XD53,XD61) -> 0 | XG63: =SUM(XG53,XG61) -> 0 | XJ63: =SUM(XJ53,XJ61) -> 0 | XM63: =SUM(XM53,XM61) -> 0 | XP63: =SUM(XP53,XP61) -> 0 | XS63: =SUM(XS53,XS61) -> 0 | XV63: =SUM(XV53,XV61) -> 0 | XY63: =SUM(XY53,XY61) -> 0 | YB63: =SUM(YB53,YB61) -> 0 | YE63: =SUM(YE53,YE61) -> 0 | YH63: =SUM(YH53,YH61) -> 0 | YK63: =SUM(YK53,YK61) -> 0 | YN63: =SUM(YN53,YN61) -> 0 | YQ63: =SUM(YQ53,YQ61) -> 0 | YT63: =SUM(YT53,YT61) -> 0 | YW63: =SUM(YW53,YW61) -> 0 | YZ63: =SUM(YZ53,YZ61) -> 0 | ZC63: =SUM(ZC53,ZC61) -> 0 | ZF63: =SUM(ZF53,ZF61) -> 0 | ZI63: =SUM(ZI53,ZI61) -> 0 | ZL63: =SUM(ZL53,ZL61) -> 0 | ZO63: =SUM(ZO53,ZO61) -> 0 | ZR63: =SUM(ZR53,ZR61) -> 0 | ZU63: =SUM(ZU53,ZU61) -> 0 | ZX63: =SUM(ZX53,ZX61) -> 0 | AAA63: =SUM(AAA53,AAA61) -> 0 | AAD63: =SUM(AAD53,AAD61) -> 0 | AAG63: =SUM(AAG53,AAG61) -> 0 | AAJ63: =SUM(AAJ53,AAJ61) -> 0 | AAM63: =SUM(AAM53,AAM61) -> 0 | AAP63: =SUM(AAP53,AAP61) -> 0 | AAS63: =SUM(AAS53,AAS61) -> 0 | AAV63: =SUM(AAV53,AAV61) -> 0 | AAY63: =SUM(AAY53,AAY61) -> 0 | ABB63: =SUM(ABB53,ABB61) -> 0 | ABE63: =SUM(ABE53,ABE61) -> 0 | ABH63: =SUM(ABH53,ABH61) -> 0 | ABK63: =SUM(ABK53,ABK61) -> 0 | ABN63: =SUM(ABN53,ABN61) -> 0 | ABQ63: =SUM(ABQ53,ABQ61) -> 0 | ABT63: =SUM(ABT53,ABT61) -> 0 | ABW63: =SUM(ABW53,ABW61) -> 0 | ABZ63: =SUM(ABZ53,ABZ61) -> 0 | ACC63: =SUM(ACC53,ACC61) -> 0 | ACF63: =SUM(ACF53,ACF61) -> 0 | ACI63: =SUM(ACI53,ACI61) -> 0 | ACL63: =SUM(ACL53,ACL61) -> 0 | ACO63: =SUM(ACO53,ACO61) -> 0 | ACR63: =SUM(ACR53,ACR61) -> 0 | ACU63: =SUM(ACU53,ACU61) -> 0 | ACX63: =SUM(ACX53,ACX61) -> 0 | ADA63: =SUM(ADA53,ADA61) -> 0 | ADD63: =SUM(ADD53,ADD61) -> 0 | ADG63: =SUM(ADG53,ADG61) -> 0 | ADJ63: =SUM(ADJ53,ADJ61) -> 0 | ADM63: =SUM(ADM53,ADM61) -> 0 | ADP63: =SUM(ADP53,ADP61) -> 0 | ADS63: =SUM(ADS53,ADS61) -> 0 | ADV63: =SUM(ADV53,ADV61) -> 0 | ADY63: =SUM(ADY53,ADY61) -> 0 | AEB63: =SUM(AEB53,AEB61) -> 0 | AEE63: =SUM(AEE53,AEE61) -> 0 | AEH63: =SUM(AEH53,AEH61) -> 0 | AEK63: =SUM(AEK53,AEK61) -> 0 | AEN63: =SUM(AEN53,AEN61) -> 0 | AEQ63: =SUM(AEQ53,AEQ61) -> 0 | AET63: =SUM(AET53,AET61) -> 0 | AEW63: =SUM(AEW53,AEW61) -> 0 | AEZ63: =SUM(AEZ53,AEZ61) -> 0 | AFC63: =SUM(AFC53,AFC61) -> 0 | AFF63: =SUM(AFF53,AFF61) -> 0 | AFI63: =SUM(AFI53,AFI61) -> 0 | AFL63: =SUM(AFL53,AFL61) -> 0 | AFO63: =SUM(AFO53,AFO61) -> 0 | AFR63: =SUM(AFR53,AFR61) -> 0 | AFU63: =SUM(AFU53,AFU61) -> 0 | AFX63: =SUM(AFX53,AFX61) -> 0 | AGA63: =SUM(AGA53,AGA61) -> 0 | AGD63: =SUM(AGD53,AGD61) -> 0 | AGG63: =SUM(AGG53,AGG61) -> 0 | AGJ63: =SUM(AGJ53,AGJ61) -> 0 | AGM63: =SUM(AGM53,AGM61) -> 0 | AGP63: =SUM(AGP53,AGP61) -> 0 | AGS63: =SUM(AGS53,AGS61) -> 0 | AGV63: =SUM(AGV53,AGV61) -> 0 | AGY63: =SUM(AGY53,AGY61) -> 0 | AHB63: =SUM(AHB53,AHB61) -> 0 | AHE63: =SUM(AHE53,AHE61) -> 0 | AHH63: =SUM(AHH53,AHH61) -> 0 | AHK63: =SUM(AHK53,AHK61) -> 0 | AHN63: =SUM(AHN53,AHN61) -> 0 | AHQ63: =SUM(AHQ53,AHQ61) -> 0 | AHT63: =SUM(AHT53,AHT61) -> 0
C66: Taxable income for Swiss tax purposes
B68: [F] | C68: Net investment income [D] - [E] | G68: =IF(ISERROR(G43-G63),"",G43-G63) -> 0 | J68: =IF(ISERROR(J43-J63),"",J43-J63) -> 708699.8 | M68: =IF(ISERROR(M43-M63),"",M43-M63) -> 213500 | P68: =IF(ISERROR(P43-P63),"",P43-P63) -> 0 | S68: =IF(ISERROR(S43-S63),"",S43-S63) -> 0 | V68: =IF(ISERROR(V43-V63),"",V43-V63) -> 0 | Y68: =IF(ISERROR(Y43-Y63),"",Y43-Y63) -> 10000 | AB68: =IF(ISERROR(AB43-AB63),"",AB43-AB63) -> 0 | AE68: =IF(ISERROR(AE43-AE63),"",AE43-AE63) -> 0 | AH68: =IF(ISERROR(AH43-AH63),"",AH43-AH63) -> 0 | AK68: =IF(ISERROR(AK43-AK63),"",AK43-AK63) -> -500000 | AN68: =IF(ISERROR(AN43-AN63),"",AN43-AN63) -> 0 | AQ68: =IF(ISERROR(AQ43-AQ63),"",AQ43-AQ63) -> 0 | AT68: =IF(ISERROR(AT43-AT63),"",AT43-AT63) -> 0 | AW68: =IF(ISERROR(AW43-AW63),"",AW43-AW63) -> 0 | AZ68: =IF(ISERROR(AZ43-AZ63),"",AZ43-AZ63) -> 0 | BC68: =IF(ISERROR(BC43-BC63),"",BC43-BC63) -> 0 | BF68: =IF(ISERROR(BF43-BF63),"",BF43-BF63) -> 0 | BI68: =IF(ISERROR(BI43-BI63),"",BI43-BI63) -> 0 | BL68: =IF(ISERROR(BL43-BL63),"",BL43-BL63) -> 0 | BO68: =IF(ISERROR(BO43-BO63),"",BO43-BO63) -> 0 | BR68: =IF(ISERROR(BR43-BR63),"",BR43-BR63) -> 0 | BU68: =IF(ISERROR(BU43-BU63),"",BU43-BU63) -> 0 | BX68: =IF(ISERROR(BX43-BX63),"",BX43-BX63) -> 0 | CA68: =IF(ISERROR(CA43-CA63),"",CA43-CA63) -> 0 | CD68: =IF(ISERROR(CD43-CD63),"",CD43-CD63) -> 0 | CG68: =IF(ISERROR(CG43-CG63),"",CG43-CG63) -> 0 | CJ68: =IF(ISERROR(CJ43-CJ63),"",CJ43-CJ63) -> 0 | CM68: =IF(ISERROR(CM43-CM63),"",CM43-CM63) -> 0 | CP68: =IF(ISERROR(CP43-CP63),"",CP43-CP63) -> 0 | CS68: =IF(ISERROR(CS43-CS63),"",CS43-CS63) -> 0 | CV68: =IF(ISERROR(CV43-CV63),"",CV43-CV63) -> 0 | CY68: =IF(ISERROR(CY43-CY63),"",CY43-CY63) -> 0 | DB68: =IF(ISERROR(DB43-DB63),"",DB43-DB63) -> 0 | DE68: =IF(ISERROR(DE43-DE63),"",DE43-DE63) -> 0 | DH68: =IF(ISERROR(DH43-DH63),"",DH43-DH63) -> 0 | DK68: =IF(ISERROR(DK43-DK63),"",DK43-DK63) -> 0 | DN68: =IF(ISERROR(DN43-DN63),"",DN43-DN63) -> 0 | DQ68: =IF(ISERROR(DQ43-DQ63),"",DQ43-DQ63) -> 0 | DT68: =IF(ISERROR(DT43-DT63),"",DT43-DT63) -> 0 | DW68: =IF(ISERROR(DW43-DW63),"",DW43-DW63) -> 0 | DZ68: =IF(ISERROR(DZ43-DZ63),"",DZ43-DZ63) -> 0 | EC68: =IF(ISERROR(EC43-EC63),"",EC43-EC63) -> 0 | EF68: =IF(ISERROR(EF43-EF63),"",EF43-EF63) -> 0 | EI68: =IF(ISERROR(EI43-EI63),"",EI43-EI63) -> 0 | EL68: =IF(ISERROR(EL43-EL63),"",EL43-EL63) -> 0 | EO68: =IF(ISERROR(EO43-EO63),"",EO43-EO63) -> 0 | ER68: =IF(ISERROR(ER43-ER63),"",ER43-ER63) -> 0 | EU68: =IF(ISERROR(EU43-EU63),"",EU43-EU63) -> 0 | EX68: =IF(ISERROR(EX43-EX63),"",EX43-EX63) -> 0 | FA68: =IF(ISERROR(FA43-FA63),"",FA43-FA63) -> 0 | FD68: =IF(ISERROR(FD43-FD63),"",FD43-FD63) -> 0 | FG68: =IF(ISERROR(FG43-FG63),"",FG43-FG63) -> 0 | FJ68: =IF(ISERROR(FJ43-FJ63),"",FJ43-FJ63) -> 0 | FM68: =IF(ISERROR(FM43-FM63),"",FM43-FM63) -> 0 | FP68: =IF(ISERROR(FP43-FP63),"",FP43-FP63) -> 0 | FS68: =IF(ISERROR(FS43-FS63),"",FS43-FS63) -> 0 | FV68: =IF(ISERROR(FV43-FV63),"",FV43-FV63) -> 0 | FY68: =IF(ISERROR(FY43-FY63),"",FY43-FY63) -> 0 | GB68: =IF(ISERROR(GB43-GB63),"",GB43-GB63) -> 0 | GE68: =IF(ISERROR(GE43-GE63),"",GE43-GE63) -> 0 | GH68: =IF(ISERROR(GH43-GH63),"",GH43-GH63) -> 0 | GK68: =IF(ISERROR(GK43-GK63),"",GK43-GK63) -> 0 | GN68: =IF(ISERROR(GN43-GN63),"",GN43-GN63) -> 0 | GQ68: =IF(ISERROR(GQ43-GQ63),"",GQ43-GQ63) -> 0 | GT68: =IF(ISERROR(GT43-GT63),"",GT43-GT63) -> 0 | GW68: =IF(ISERROR(GW43-GW63),"",GW43-GW63) -> 0 | GZ68: =IF(ISERROR(GZ43-GZ63),"",GZ43-GZ63) -> 0 | HC68: =IF(ISERROR(HC43-HC63),"",HC43-HC63) -> 0 | HF68: =IF(ISERROR(HF43-HF63),"",HF43-HF63) -> 0 | HI68: =IF(ISERROR(HI43-HI63),"",HI43-HI63) -> 0 | HL68: =IF(ISERROR(HL43-HL63),"",HL43-HL63) -> 0 | HO68: =IF(ISERROR(HO43-HO63),"",HO43-HO63) -> 0 | HR68: =IF(ISERROR(HR43-HR63),"",HR43-HR63) -> 0 | HU68: =IF(ISERROR(HU43-HU63),"",HU43-HU63) -> 0 | HX68: =IF(ISERROR(HX43-HX63),"",HX43-HX63) -> 0 | IA68: =IF(ISERROR(IA43-IA63),"",IA43-IA63) -> 0 | ID68: =IF(ISERROR(ID43-ID63),"",ID43-ID63) -> 0 | IG68: =IF(ISERROR(IG43-IG63),"",IG43-IG63) -> 0 | IJ68: =IF(ISERROR(IJ43-IJ63),"",IJ43-IJ63) -> 0 | IM68: =IF(ISERROR(IM43-IM63),"",IM43-IM63) -> 0 | IP68: =IF(ISERROR(IP43-IP63),"",IP43-IP63) -> 0 | IS68: =IF(ISERROR(IS43-IS63),"",IS43-IS63) -> 0 | IV68: =IF(ISERROR(IV43-IV63),"",IV43-IV63) -> 0 | IY68: =IF(ISERROR(IY43-IY63),"",IY43-IY63) -> 0 | JB68: =IF(ISERROR(JB43-JB63),"",JB43-JB63) -> 0 | JE68: =IF(ISERROR(JE43-JE63),"",JE43-JE63) -> 0 | JH68: =IF(ISERROR(JH43-JH63),"",JH43-JH63) -> 0 | JK68: =IF(ISERROR(JK43-JK63),"",JK43-JK63) -> 0 | JN68: =IF(ISERROR(JN43-JN63),"",JN43-JN63) -> 0 | JQ68: =IF(ISERROR(JQ43-JQ63),"",JQ43-JQ63) -> 0 | JT68: =IF(ISERROR(JT43-JT63),"",JT43-JT63) -> 0 | JW68: =IF(ISERROR(JW43-JW63),"",JW43-JW63) -> 0 | JZ68: =IF(ISERROR(JZ43-JZ63),"",JZ43-JZ63) -> 0 | KC68: =IF(ISERROR(KC43-KC63),"",KC43-KC63) -> 0 | KF68: =IF(ISERROR(KF43-KF63),"",KF43-KF63) -> 0 | KI68: =IF(ISERROR(KI43-KI63),"",KI43-KI63) -> 0 | KL68: =IF(ISERROR(KL43-KL63),"",KL43-KL63) -> 0 | KO68: =IF(ISERROR(KO43-KO63),"",KO43-KO63) -> 0 | KR68: =IF(ISERROR(KR43-KR63),"",KR43-KR63) -> 0 | KU68: =IF(ISERROR(KU43-KU63),"",KU43-KU63) -> 0 | KX68: =IF(ISERROR(KX43-KX63),"",KX43-KX63) -> 0 | LA68: =IF(ISERROR(LA43-LA63),"",LA43-LA63) -> 0 | LD68: =IF(ISERROR(LD43-LD63),"",LD43-LD63) -> 0 | LG68: =IF(ISERROR(LG43-LG63),"",LG43-LG63) -> 0 | LJ68: =IF(ISERROR(LJ43-LJ63),"",LJ43-LJ63) -> 0 | LM68: =IF(ISERROR(LM43-LM63),"",LM43-LM63) -> 0 | LP68: =IF(ISERROR(LP43-LP63),"",LP43-LP63) -> 0 | LS68: =IF(ISERROR(LS43-LS63),"",LS43-LS63) -> 0 | LV68: =IF(ISERROR(LV43-LV63),"",LV43-LV63) -> 0 | LY68: =IF(ISERROR(LY43-LY63),"",LY43-LY63) -> 0 | MB68: =IF(ISERROR(MB43-MB63),"",MB43-MB63) -> 0 | ME68: =IF(ISERROR(ME43-ME63),"",ME43-ME63) -> 0 | MH68: =IF(ISERROR(MH43-MH63),"",MH43-MH63) -> 0 | MK68: =IF(ISERROR(MK43-MK63),"",MK43-MK63) -> 0 | MN68: =IF(ISERROR(MN43-MN63),"",MN43-MN63) -> 0 | MQ68: =IF(ISERROR(MQ43-MQ63),"",MQ43-MQ63) -> 0 | MT68: =IF(ISERROR(MT43-MT63),"",MT43-MT63) -> 0 | MW68: =IF(ISERROR(MW43-MW63),"",MW43-MW63) -> 0 | MZ68: =IF(ISERROR(MZ43-MZ63),"",MZ43-MZ63) -> 0 | NC68: =IF(ISERROR(NC43-NC63),"",NC43-NC63) -> 0 | NF68: =IF(ISERROR(NF43-NF63),"",NF43-NF63) -> 0 | NI68: =IF(ISERROR(NI43-NI63),"",NI43-NI63) -> 0 | NL68: =IF(ISERROR(NL43-NL63),"",NL43-NL63) -> 0 | NO68: =IF(ISERROR(NO43-NO63),"",NO43-NO63) -> 0 | NR68: =IF(ISERROR(NR43-NR63),"",NR43-NR63) -> 0 | NU68: =IF(ISERROR(NU43-NU63),"",NU43-NU63) -> 0 | NX68: =IF(ISERROR(NX43-NX63),"",NX43-NX63) -> 0 | OA68: =IF(ISERROR(OA43-OA63),"",OA43-OA63) -> 0 | OD68: =IF(ISERROR(OD43-OD63),"",OD43-OD63) -> 0 | OG68: =IF(ISERROR(OG43-OG63),"",OG43-OG63) -> 0 | OJ68: =IF(ISERROR(OJ43-OJ63),"",OJ43-OJ63) -> 0 | OM68: =IF(ISERROR(OM43-OM63),"",OM43-OM63) -> 0 | OP68: =IF(ISERROR(OP43-OP63),"",OP43-OP63) -> 0 | OS68: =IF(ISERROR(OS43-OS63),"",OS43-OS63) -> 0 | OV68: =IF(ISERROR(OV43-OV63),"",OV43-OV63) -> 0 | OY68: =IF(ISERROR(OY43-OY63),"",OY43-OY63) -> 0 | PB68: =IF(ISERROR(PB43-PB63),"",PB43-PB63) -> 0 | PE68: =IF(ISERROR(PE43-PE63),"",PE43-PE63) -> 0 | PH68: =IF(ISERROR(PH43-PH63),"",PH43-PH63) -> 0 | PK68: =IF(ISERROR(PK43-PK63),"",PK43-PK63) -> 0 | PN68: =IF(ISERROR(PN43-PN63),"",PN43-PN63) -> 0 | PQ68: =IF(ISERROR(PQ43-PQ63),"",PQ43-PQ63) -> 0 | PT68: =IF(ISERROR(PT43-PT63),"",PT43-PT63) -> 0 | PW68: =IF(ISERROR(PW43-PW63),"",PW43-PW63) -> 0 | PZ68: =IF(ISERROR(PZ43-PZ63),"",PZ43-PZ63) -> 0 | QC68: =IF(ISERROR(QC43-QC63),"",QC43-QC63) -> 0 | QF68: =IF(ISERROR(QF43-QF63),"",QF43-QF63) -> 0 | QI68: =IF(ISERROR(QI43-QI63),"",QI43-QI63) -> 0 | QL68: =IF(ISERROR(QL43-QL63),"",QL43-QL63) -> 0 | QO68: =IF(ISERROR(QO43-QO63),"",QO43-QO63) -> 0 | QR68: =IF(ISERROR(QR43-QR63),"",QR43-QR63) -> 0 | QU68: =IF(ISERROR(QU43-QU63),"",QU43-QU63) -> 0 | QX68: =IF(ISERROR(QX43-QX63),"",QX43-QX63) -> 0 | RA68: =IF(ISERROR(RA43-RA63),"",RA43-RA63) -> 0 | RD68: =IF(ISERROR(RD43-RD63),"",RD43-RD63) -> 0 | RG68: =IF(ISERROR(RG43-RG63),"",RG43-RG63) -> 0 | RJ68: =IF(ISERROR(RJ43-RJ63),"",RJ43-RJ63) -> 0 | RM68: =IF(ISERROR(RM43-RM63),"",RM43-RM63) -> 0 | RP68: =IF(ISERROR(RP43-RP63),"",RP43-RP63) -> 0 | RS68: =IF(ISERROR(RS43-RS63),"",RS43-RS63) -> 0 | RV68: =IF(ISERROR(RV43-RV63),"",RV43-RV63) -> 0 | RY68: =IF(ISERROR(RY43-RY63),"",RY43-RY63) -> 0 | SB68: =IF(ISERROR(SB43-SB63),"",SB43-SB63) -> 0 | SE68: =IF(ISERROR(SE43-SE63),"",SE43-SE63) -> 0 | SH68: =IF(ISERROR(SH43-SH63),"",SH43-SH63) -> 0 | SK68: =IF(ISERROR(SK43-SK63),"",SK43-SK63) -> 0 | SN68: =IF(ISERROR(SN43-SN63),"",SN43-SN63) -> 0 | SQ68: =IF(ISERROR(SQ43-SQ63),"",SQ43-SQ63) -> 0 | ST68: =IF(ISERROR(ST43-ST63),"",ST43-ST63) -> 0 | SW68: =IF(ISERROR(SW43-SW63),"",SW43-SW63) -> 0 | SZ68: =IF(ISERROR(SZ43-SZ63),"",SZ43-SZ63) -> 0 | TC68: =IF(ISERROR(TC43-TC63),"",TC43-TC63) -> 0 | TF68: =IF(ISERROR(TF43-TF63),"",TF43-TF63) -> 0 | TI68: =IF(ISERROR(TI43-TI63),"",TI43-TI63) -> 0 | TL68: =IF(ISERROR(TL43-TL63),"",TL43-TL63) -> 0 | TO68: =IF(ISERROR(TO43-TO63),"",TO43-TO63) -> 0 | TR68: =IF(ISERROR(TR43-TR63),"",TR43-TR63) -> 0 | TU68: =IF(ISERROR(TU43-TU63),"",TU43-TU63) -> 0 | TX68: =IF(ISERROR(TX43-TX63),"",TX43-TX63) -> 0 | UA68: =IF(ISERROR(UA43-UA63),"",UA43-UA63) -> 0 | UD68: =IF(ISERROR(UD43-UD63),"",UD43-UD63) -> 0 | UG68: =IF(ISERROR(UG43-UG63),"",UG43-UG63) -> 0 | UJ68: =IF(ISERROR(UJ43-UJ63),"",UJ43-UJ63) -> 0 | UM68: =IF(ISERROR(UM43-UM63),"",UM43-UM63) -> 0 | UP68: =IF(ISERROR(UP43-UP63),"",UP43-UP63) -> 0 | US68: =IF(ISERROR(US43-US63),"",US43-US63) -> 0 | UV68: =IF(ISERROR(UV43-UV63),"",UV43-UV63) -> 0 | UY68: =IF(ISERROR(UY43-UY63),"",UY43-UY63) -> 0 | VB68: =IF(ISERROR(VB43-VB63),"",VB43-VB63) -> 0 | VE68: =IF(ISERROR(VE43-VE63),"",VE43-VE63) -> 0 | VH68: =IF(ISERROR(VH43-VH63),"",VH43-VH63) -> 0 | VK68: =IF(ISERROR(VK43-VK63),"",VK43-VK63) -> 0 | VN68: =IF(ISERROR(VN43-VN63),"",VN43-VN63) -> 0 | VQ68: =IF(ISERROR(VQ43-VQ63),"",VQ43-VQ63) -> 0 | VT68: =IF(ISERROR(VT43-VT63),"",VT43-VT63) -> 0 | VW68: =IF(ISERROR(VW43-VW63),"",VW43-VW63) -> 0 | VZ68: =IF(ISERROR(VZ43-VZ63),"",VZ43-VZ63) -> 0 | WC68: =IF(ISERROR(WC43-WC63),"",WC43-WC63) -> 0 | WF68: =IF(ISERROR(WF43-WF63),"",WF43-WF63) -> 0 | WI68: =IF(ISERROR(WI43-WI63),"",WI43-WI63) -> 0 | WL68: =IF(ISERROR(WL43-WL63),"",WL43-WL63) -> 0 | WO68: =IF(ISERROR(WO43-WO63),"",WO43-WO63) -> 0 | WR68: =IF(ISERROR(WR43-WR63),"",WR43-WR63) -> 0 | WU68: =IF(ISERROR(WU43-WU63),"",WU43-WU63) -> 0 | WX68: =IF(ISERROR(WX43-WX63),"",WX43-WX63) -> 0 | XA68: =IF(ISERROR(XA43-XA63),"",XA43-XA63) -> 0 | XD68: =IF(ISERROR(XD43-XD63),"",XD43-XD63) -> 0 | XG68: =IF(ISERROR(XG43-XG63),"",XG43-XG63) -> 0 | XJ68: =IF(ISERROR(XJ43-XJ63),"",XJ43-XJ63) -> 0 | XM68: =IF(ISERROR(XM43-XM63),"",XM43-XM63) -> 0 | XP68: =IF(ISERROR(XP43-XP63),"",XP43-XP63) -> 0 | XS68: =IF(ISERROR(XS43-XS63),"",XS43-XS63) -> 0 | XV68: =IF(ISERROR(XV43-XV63),"",XV43-XV63) -> 0 | XY68: =IF(ISERROR(XY43-XY63),"",XY43-XY63) -> 0 | YB68: =IF(ISERROR(YB43-YB63),"",YB43-YB63) -> 0 | YE68: =IF(ISERROR(YE43-YE63),"",YE43-YE63) -> 0 | YH68: =IF(ISERROR(YH43-YH63),"",YH43-YH63) -> 0 | YK68: =IF(ISERROR(YK43-YK63),"",YK43-YK63) -> 0 | YN68: =IF(ISERROR(YN43-YN63),"",YN43-YN63) -> 0 | YQ68: =IF(ISERROR(YQ43-YQ63),"",YQ43-YQ63) -> 0 | YT68: =IF(ISERROR(YT43-YT63),"",YT43-YT63) -> 0 | YW68: =IF(ISERROR(YW43-YW63),"",YW43-YW63) -> 0 | YZ68: =IF(ISERROR(YZ43-YZ63),"",YZ43-YZ63) -> 0 | ZC68: =IF(ISERROR(ZC43-ZC63),"",ZC43-ZC63) -> 0 | ZF68: =IF(ISERROR(ZF43-ZF63),"",ZF43-ZF63) -> 0 | ZI68: =IF(ISERROR(ZI43-ZI63),"",ZI43-ZI63) -> 0 | ZL68: =IF(ISERROR(ZL43-ZL63),"",ZL43-ZL63) -> 0 | ZO68: =IF(ISERROR(ZO43-ZO63),"",ZO43-ZO63) -> 0 | ZR68: =IF(ISERROR(ZR43-ZR63),"",ZR43-ZR63) -> 0 | ZU68: =IF(ISERROR(ZU43-ZU63),"",ZU43-ZU63) -> 0 | ZX68: =IF(ISERROR(ZX43-ZX63),"",ZX43-ZX63) -> 0 | AAA68: =IF(ISERROR(AAA43-AAA63),"",AAA43-AAA63) -> 0 | AAD68: =IF(ISERROR(AAD43-AAD63),"",AAD43-AAD63) -> 0 | AAG68: =IF(ISERROR(AAG43-AAG63),"",AAG43-AAG63) -> 0 | AAJ68: =IF(ISERROR(AAJ43-AAJ63),"",AAJ43-AAJ63) -> 0 | AAM68: =IF(ISERROR(AAM43-AAM63),"",AAM43-AAM63) -> 0 | AAP68: =IF(ISERROR(AAP43-AAP63),"",AAP43-AAP63) -> 0 | AAS68: =IF(ISERROR(AAS43-AAS63),"",AAS43-AAS63) -> 0 | AAV68: =IF(ISERROR(AAV43-AAV63),"",AAV43-AAV63) -> 0 | AAY68: =IF(ISERROR(AAY43-AAY63),"",AAY43-AAY63) -> 0 | ABB68: =IF(ISERROR(ABB43-ABB63),"",ABB43-ABB63) -> 0 | ABE68: =IF(ISERROR(ABE43-ABE63),"",ABE43-ABE63) -> 0 | ABH68: =IF(ISERROR(ABH43-ABH63),"",ABH43-ABH63) -> 0 | ABK68: =IF(ISERROR(ABK43-ABK63),"",ABK43-ABK63) -> 0 | ABN68: =IF(ISERROR(ABN43-ABN63),"",ABN43-ABN63) -> 0 | ABQ68: =IF(ISERROR(ABQ43-ABQ63),"",ABQ43-ABQ63) -> 0 | ABT68: =IF(ISERROR(ABT43-ABT63),"",ABT43-ABT63) -> 0 | ABW68: =IF(ISERROR(ABW43-ABW63),"",ABW43-ABW63) -> 0 | ABZ68: =IF(ISERROR(ABZ43-ABZ63),"",ABZ43-ABZ63) -> 0 | ACC68: =IF(ISERROR(ACC43-ACC63),"",ACC43-ACC63) -> 0 | ACF68: =IF(ISERROR(ACF43-ACF63),"",ACF43-ACF63) -> 0 | ACI68: =IF(ISERROR(ACI43-ACI63),"",ACI43-ACI63) -> 0 | ACL68: =IF(ISERROR(ACL43-ACL63),"",ACL43-ACL63) -> 0 | ACO68: =IF(ISERROR(ACO43-ACO63),"",ACO43-ACO63) -> 0 | ACR68: =IF(ISERROR(ACR43-ACR63),"",ACR43-ACR63) -> 0 | ACU68: =IF(ISERROR(ACU43-ACU63),"",ACU43-ACU63) -> 0 | ACX68: =IF(ISERROR(ACX43-ACX63),"",ACX43-ACX63) -> 0 | ADA68: =IF(ISERROR(ADA43-ADA63),"",ADA43-ADA63) -> 0 | ADD68: =IF(ISERROR(ADD43-ADD63),"",ADD43-ADD63) -> 0 | ADG68: =IF(ISERROR(ADG43-ADG63),"",ADG43-ADG63) -> 0 | ADJ68: =IF(ISERROR(ADJ43-ADJ63),"",ADJ43-ADJ63) -> 0 | ADM68: =IF(ISERROR(ADM43-ADM63),"",ADM43-ADM63) -> 0 | ADP68: =IF(ISERROR(ADP43-ADP63),"",ADP43-ADP63) -> 0 | ADS68: =IF(ISERROR(ADS43-ADS63),"",ADS43-ADS63) -> 0 | ADV68: =IF(ISERROR(ADV43-ADV63),"",ADV43-ADV63) -> 0 | ADY68: =IF(ISERROR(ADY43-ADY63),"",ADY43-ADY63) -> 0 | AEB68: =IF(ISERROR(AEB43-AEB63),"",AEB43-AEB63) -> 0 | AEE68: =IF(ISERROR(AEE43-AEE63),"",AEE43-AEE63) -> 0 | AEH68: =IF(ISERROR(AEH43-AEH63),"",AEH43-AEH63) -> 0 | AEK68: =IF(ISERROR(AEK43-AEK63),"",AEK43-AEK63) -> 0 | AEN68: =IF(ISERROR(AEN43-AEN63),"",AEN43-AEN63) -> 0 | AEQ68: =IF(ISERROR(AEQ43-AEQ63),"",AEQ43-AEQ63) -> 0 | AET68: =IF(ISERROR(AET43-AET63),"",AET43-AET63) -> 0 | AEW68: =IF(ISERROR(AEW43-AEW63),"",AEW43-AEW63) -> 0 | AEZ68: =IF(ISERROR(AEZ43-AEZ63),"",AEZ43-AEZ63) -> 0 | AFC68: =IF(ISERROR(AFC43-AFC63),"",AFC43-AFC63) -> 0 | AFF68: =IF(ISERROR(AFF43-AFF63),"",AFF43-AFF63) -> 0 | AFI68: =IF(ISERROR(AFI43-AFI63),"",AFI43-AFI63) -> 0 | AFL68: =IF(ISERROR(AFL43-AFL63),"",AFL43-AFL63) -> 0 | AFO68: =IF(ISERROR(AFO43-AFO63),"",AFO43-AFO63) -> 0 | AFR68: =IF(ISERROR(AFR43-AFR63),"",AFR43-AFR63) -> 0 | AFU68: =IF(ISERROR(AFU43-AFU63),"",AFU43-AFU63) -> 0 | AFX68: =IF(ISERROR(AFX43-AFX63),"",AFX43-AFX63) -> 0 | AGA68: =IF(ISERROR(AGA43-AGA63),"",AGA43-AGA63) -> 0 | AGD68: =IF(ISERROR(AGD43-AGD63),"",AGD43-AGD63) -> 0 | AGG68: =IF(ISERROR(AGG43-AGG63),"",AGG43-AGG63) -> 0 | AGJ68: =IF(ISERROR(AGJ43-AGJ63),"",AGJ43-AGJ63) -> 0 | AGM68: =IF(ISERROR(AGM43-AGM63),"",AGM43-AGM63) -> 0 | AGP68: =IF(ISERROR(AGP43-AGP63),"",AGP43-AGP63) -> 0 | AGS68: =IF(ISERROR(AGS43-AGS63),"",AGS43-AGS63) -> 0 | AGV68: =IF(ISERROR(AGV43-AGV63),"",AGV43-AGV63) -> 0 | AGY68: =IF(ISERROR(AGY43-AGY63),"",AGY43-AGY63) -> 0 | AHB68: =IF(ISERROR(AHB43-AHB63),"",AHB43-AHB63) -> 0 | AHE68: =IF(ISERROR(AHE43-AHE63),"",AHE43-AHE63) -> 0 | AHH68: =IF(ISERROR(AHH43-AHH63),"",AHH43-AHH63) -> 0 | AHK68: =IF(ISERROR(AHK43-AHK63),"",AHK43-AHK63) -> 0 | AHN68: =IF(ISERROR(AHN43-AHN63),"",AHN43-AHN63) -> 0 | AHQ68: =IF(ISERROR(AHQ43-AHQ63),"",AHQ43-AHQ63) -> 0 | AHT68: =IF(ISERROR(AHT43-AHT63),"",AHT43-AHT63) -> 0
C71: Adjustment of [E2] greater than 1.5% | G71: =IF(G30="",".",MAX(IF(OR(H61>0.015,H61=0.015),G61-0.015*G30,0))) -> . | H71: =IF(ISERROR(G71/G30),".",G71/G30) -> . | J71: =IF(J30="",".",MAX(IF(OR(K61>0.015,K61=0.015),J61-0.015*J30,0))) -> 0 | K71: =IF(ISERROR(J71/J30),".",J71/J30) -> 0 | M71: =IF(M30="",".",MAX(IF(OR(N61>0.015,N61=0.015),M61-0.015*M30,0))) -> 0 | N71: =IF(ISERROR(M71/M30),".",M71/M30) -> 0 | P71: =IF(P30="",".",MAX(IF(OR(Q61>0.015,Q61=0.015),P61-0.015*P30,0))) -> . | Q71: =IF(ISERROR(P71/P30),".",P71/P30) -> . | S71: =IF(S30="",".",MAX(IF(OR(T61>0.015,T61=0.015),S61-0.015*S30,0))) -> . | T71: =IF(ISERROR(S71/S30),".",S71/S30) -> . | V71: =IF(V30="",".",MAX(IF(OR(W61>0.015,W61=0.015),V61-0.015*V30,0))) -> . | W71: =IF(ISERROR(V71/V30),".",V71/V30) -> . | Y71: =IF(Y30="",".",MAX(IF(OR(Z61>0.015,Z61=0.015),Y61-0.015*Y30,0))) -> 62500 | Z71: =IF(ISERROR(Y71/Y30),".",Y71/Y30) -> 0.025 | AB71: =IF(AB30="",".",MAX(IF(OR(AC61>0.015,AC61=0.015),AB61-0.015*AB30,0))) -> . | AC71: =IF(ISERROR(AB71/AB30),".",AB71/AB30) -> . | AE71: =IF(AE30="",".",MAX(IF(OR(AF61>0.015,AF61=0.015),AE61-0.015*AE30,0))) -> . | AF71: =IF(ISERROR(AE71/AE30),".",AE71/AE30) -> . | AH71: =IF(AH30="",".",MAX(IF(OR(AI61>0.015,AI61=0.015),AH61-0.015*AH30,0))) -> . | AI71: =IF(ISERROR(AH71/AH30),".",AH71/AH30) -> . | AK71: =IF(AK30="",".",MAX(IF(OR(AL61>0.015,AL61=0.015),AK61-0.015*AK30,0))) -> 350000 | AL71: =IF(ISERROR(AK71/AK30),".",AK71/AK30) -> 0.035 | AN71: =IF(AN30="",".",MAX(IF(OR(AO61>0.015,AO61=0.015),AN61-0.015*AN30,0))) -> . | AO71: =IF(ISERROR(AN71/AN30),".",AN71/AN30) -> . | AQ71: =IF(AQ30="",".",MAX(IF(OR(AR61>0.015,AR61=0.015),AQ61-0.015*AQ30,0))) -> . | AR71: =IF(ISERROR(AQ71/AQ30),".",AQ71/AQ30) -> . | AT71: =IF(AT30="",".",MAX(IF(OR(AU61>0.015,AU61=0.015),AT61-0.015*AT30,0))) -> . | AU71: =IF(ISERROR(AT71/AT30),".",AT71/AT30) -> . | AW71: =IF(AW30="",".",MAX(IF(OR(AX61>0.015,AX61=0.015),AW61-0.015*AW30,0))) -> . | AX71: =IF(ISERROR(AW71/AW30),".",AW71/AW30) -> . | AZ71: =IF(AZ30="",".",MAX(IF(OR(BA61>0.015,BA61=0.015),AZ61-0.015*AZ30,0))) -> . | BA71: =IF(ISERROR(AZ71/AZ30),".",AZ71/AZ30) -> . | BC71: =IF(BC30="",".",MAX(IF(OR(BD61>0.015,BD61=0.015),BC61-0.015*BC30,0))) -> . | BD71: =IF(ISERROR(BC71/BC30),".",BC71/BC30) -> . | BF71: =IF(BF30="",".",MAX(IF(OR(BG61>0.015,BG61=0.015),BF61-0.015*BF30,0))) -> . | BG71: =IF(ISERROR(BF71/BF30),".",BF71/BF30) -> . | BI71: =IF(BI30="",".",MAX(IF(OR(BJ61>0.015,BJ61=0.015),BI61-0.015*BI30,0))) -> . | BJ71: =IF(ISERROR(BI71/BI30),".",BI71/BI30) -> . | BL71: =IF(BL30="",".",MAX(IF(OR(BM61>0.015,BM61=0.015),BL61-0.015*BL30,0))) -> . | BM71: =IF(ISERROR(BL71/BL30),".",BL71/BL30) -> . | BO71: =IF(BO30="",".",MAX(IF(OR(BP61>0.015,BP61=0.015),BO61-0.015*BO30,0))) -> . | BP71: =IF(ISERROR(BO71/BO30),".",BO71/BO30) -> . | BR71: =IF(BR30="",".",MAX(IF(OR(BS61>0.015,BS61=0.015),BR61-0.015*BR30,0))) -> . | BS71: =IF(ISERROR(BR71/BR30),".",BR71/BR30) -> . | BU71: =IF(BU30="",".",MAX(IF(OR(BV61>0.015,BV61=0.015),BU61-0.015*BU30,0))) -> . | BV71: =IF(ISERROR(BU71/BU30),".",BU71/BU30) -> . | BX71: =IF(BX30="",".",MAX(IF(OR(BY61>0.015,BY61=0.015),BX61-0.015*BX30,0))) -> . | BY71: =IF(ISERROR(BX71/BX30),".",BX71/BX30) -> . | CA71: =IF(CA30="",".",MAX(IF(OR(CB61>0.015,CB61=0.015),CA61-0.015*CA30,0))) -> . | CB71: =IF(ISERROR(CA71/CA30),".",CA71/CA30) -> . | CD71: =IF(CD30="",".",MAX(IF(OR(CE61>0.015,CE61=0.015),CD61-0.015*CD30,0))) -> . | CE71: =IF(ISERROR(CD71/CD30),".",CD71/CD30) -> . | CG71: =IF(CG30="",".",MAX(IF(OR(CH61>0.015,CH61=0.015),CG61-0.015*CG30,0))) -> . | CH71: =IF(ISERROR(CG71/CG30),".",CG71/CG30) -> . | CJ71: =IF(CJ30="",".",MAX(IF(OR(CK61>0.015,CK61=0.015),CJ61-0.015*CJ30,0))) -> . | CK71: =IF(ISERROR(CJ71/CJ30),".",CJ71/CJ30) -> . | CM71: =IF(CM30="",".",MAX(IF(OR(CN61>0.015,CN61=0.015),CM61-0.015*CM30,0))) -> . | CN71: =IF(ISERROR(CM71/CM30),".",CM71/CM30) -> . | CP71: =IF(CP30="",".",MAX(IF(OR(CQ61>0.015,CQ61=0.015),CP61-0.015*CP30,0))) -> . | CQ71: =IF(ISERROR(CP71/CP30),".",CP71/CP30) -> . | CS71: =IF(CS30="",".",MAX(IF(OR(CT61>0.015,CT61=0.015),CS61-0.015*CS30,0))) -> . | CT71: =IF(ISERROR(CS71/CS30),".",CS71/CS30) -> . | CV71: =IF(CV30="",".",MAX(IF(OR(CW61>0.015,CW61=0.015),CV61-0.015*CV30,0))) -> . | CW71: =IF(ISERROR(CV71/CV30),".",CV71/CV30) -> . | CY71: =IF(CY30="",".",MAX(IF(OR(CZ61>0.015,CZ61=0.015),CY61-0.015*CY30,0))) -> . | CZ71: =IF(ISERROR(CY71/CY30),".",CY71/CY30) -> . | DB71: =IF(DB30="",".",MAX(IF(OR(DC61>0.015,DC61=0.015),DB61-0.015*DB30,0))) -> . | DC71: =IF(ISERROR(DB71/DB30),".",DB71/DB30) -> . | DE71: =IF(DE30="",".",MAX(IF(OR(DF61>0.015,DF61=0.015),DE61-0.015*DE30,0))) -> . | DF71: =IF(ISERROR(DE71/DE30),".",DE71/DE30) -> . | DH71: =IF(DH30="",".",MAX(IF(OR(DI61>0.015,DI61=0.015),DH61-0.015*DH30,0))) -> . | DI71: =IF(ISERROR(DH71/DH30),".",DH71/DH30) -> . | DK71: =IF(DK30="",".",MAX(IF(OR(DL61>0.015,DL61=0.015),DK61-0.015*DK30,0))) -> . | DL71: =IF(ISERROR(DK71/DK30),".",DK71/DK30) -> . | DN71: =IF(DN30="",".",MAX(IF(OR(DO61>0.015,DO61=0.015),DN61-0.015*DN30,0))) -> . | DO71: =IF(ISERROR(DN71/DN30),".",DN71/DN30) -> . | DQ71: =IF(DQ30="",".",MAX(IF(OR(DR61>0.015,DR61=0.015),DQ61-0.015*DQ30,0))) -> . | DR71: =IF(ISERROR(DQ71/DQ30),".",DQ71/DQ30) -> . | DT71: =IF(DT30="",".",MAX(IF(OR(DU61>0.015,DU61=0.015),DT61-0.015*DT30,0))) -> . | DU71: =IF(ISERROR(DT71/DT30),".",DT71/DT30) -> . | DW71: =IF(DW30="",".",MAX(IF(OR(DX61>0.015,DX61=0.015),DW61-0.015*DW30,0))) -> . | DX71: =IF(ISERROR(DW71/DW30),".",DW71/DW30) -> . | DZ71: =IF(DZ30="",".",MAX(IF(OR(EA61>0.015,EA61=0.015),DZ61-0.015*DZ30,0))) -> . | EA71: =IF(ISERROR(DZ71/DZ30),".",DZ71/DZ30) -> . | EC71: =IF(EC30="",".",MAX(IF(OR(ED61>0.015,ED61=0.015),EC61-0.015*EC30,0))) -> . | ED71: =IF(ISERROR(EC71/EC30),".",EC71/EC30) -> . | EF71: =IF(EF30="",".",MAX(IF(OR(EG61>0.015,EG61=0.015),EF61-0.015*EF30,0))) -> . | EG71: =IF(ISERROR(EF71/EF30),".",EF71/EF30) -> . | EI71: =IF(EI30="",".",MAX(IF(OR(EJ61>0.015,EJ61=0.015),EI61-0.015*EI30,0))) -> . | EJ71: =IF(ISERROR(EI71/EI30),".",EI71/EI30) -> . | EL71: =IF(EL30="",".",MAX(IF(OR(EM61>0.015,EM61=0.015),EL61-0.015*EL30,0))) -> . | EM71: =IF(ISERROR(EL71/EL30),".",EL71/EL30) -> . | EO71: =IF(EO30="",".",MAX(IF(OR(EP61>0.015,EP61=0.015),EO61-0.015*EO30,0))) -> . | EP71: =IF(ISERROR(EO71/EO30),".",EO71/EO30) -> . | ER71: =IF(ER30="",".",MAX(IF(OR(ES61>0.015,ES61=0.015),ER61-0.015*ER30,0))) -> . | ES71: =IF(ISERROR(ER71/ER30),".",ER71/ER30) -> . | EU71: =IF(EU30="",".",MAX(IF(OR(EV61>0.015,EV61=0.015),EU61-0.015*EU30,0))) -> . | EV71: =IF(ISERROR(EU71/EU30),".",EU71/EU30) -> . | EX71: =IF(EX30="",".",MAX(IF(OR(EY61>0.015,EY61=0.015),EX61-0.015*EX30,0))) -> . | EY71: =IF(ISERROR(EX71/EX30),".",EX71/EX30) -> . | FA71: =IF(FA30="",".",MAX(IF(OR(FB61>0.015,FB61=0.015),FA61-0.015*FA30,0))) -> . | FB71: =IF(ISERROR(FA71/FA30),".",FA71/FA30) -> . | FD71: =IF(FD30="",".",MAX(IF(OR(FE61>0.015,FE61=0.015),FD61-0.015*FD30,0))) -> . | FE71: =IF(ISERROR(FD71/FD30),".",FD71/FD30) -> . | FG71: =IF(FG30="",".",MAX(IF(OR(FH61>0.015,FH61=0.015),FG61-0.015*FG30,0))) -> . | FH71: =IF(ISERROR(FG71/FG30),".",FG71/FG30) -> . | FJ71: =IF(FJ30="",".",MAX(IF(OR(FK61>0.015,FK61=0.015),FJ61-0.015*FJ30,0))) -> . | FK71: =IF(ISERROR(FJ71/FJ30),".",FJ71/FJ30) -> . | FM71: =IF(FM30="",".",MAX(IF(OR(FN61>0.015,FN61=0.015),FM61-0.015*FM30,0))) -> . | FN71: =IF(ISERROR(FM71/FM30),".",FM71/FM30) -> . | FP71: =IF(FP30="",".",MAX(IF(OR(FQ61>0.015,FQ61=0.015),FP61-0.015*FP30,0))) -> . | FQ71: =IF(ISERROR(FP71/FP30),".",FP71/FP30) -> . | FS71: =IF(FS30="",".",MAX(IF(OR(FT61>0.015,FT61=0.015),FS61-0.015*FS30,0))) -> . | FT71: =IF(ISERROR(FS71/FS30),".",FS71/FS30) -> . | FV71: =IF(FV30="",".",MAX(IF(OR(FW61>0.015,FW61=0.015),FV61-0.015*FV30,0))) -> . | FW71: =IF(ISERROR(FV71/FV30),".",FV71/FV30) -> . | FY71: =IF(FY30="",".",MAX(IF(OR(FZ61>0.015,FZ61=0.015),FY61-0.015*FY30,0))) -> . | FZ71: =IF(ISERROR(FY71/FY30),".",FY71/FY30) -> . | GB71: =IF(GB30="",".",MAX(IF(OR(GC61>0.015,GC61=0.015),GB61-0.015*GB30,0))) -> . | GC71: =IF(ISERROR(GB71/GB30),".",GB71/GB30) -> . | GE71: =IF(GE30="",".",MAX(IF(OR(GF61>0.015,GF61=0.015),GE61-0.015*GE30,0))) -> . | GF71: =IF(ISERROR(GE71/GE30),".",GE71/GE30) -> . | GH71: =IF(GH30="",".",MAX(IF(OR(GI61>0.015,GI61=0.015),GH61-0.015*GH30,0))) -> . | GI71: =IF(ISERROR(GH71/GH30),".",GH71/GH30) -> . | GK71: =IF(GK30="",".",MAX(IF(OR(GL61>0.015,GL61=0.015),GK61-0.015*GK30,0))) -> . | GL71: =IF(ISERROR(GK71/GK30),".",GK71/GK30) -> . | GN71: =IF(GN30="",".",MAX(IF(OR(GO61>0.015,GO61=0.015),GN61-0.015*GN30,0))) -> . | GO71: =IF(ISERROR(GN71/GN30),".",GN71/GN30) -> . | GQ71: =IF(GQ30="",".",MAX(IF(OR(GR61>0.015,GR61=0.015),GQ61-0.015*GQ30,0))) -> . | GR71: =IF(ISERROR(GQ71/GQ30),".",GQ71/GQ30) -> . | GT71: =IF(GT30="",".",MAX(IF(OR(GU61>0.015,GU61=0.015),GT61-0.015*GT30,0))) -> . | GU71: =IF(ISERROR(GT71/GT30),".",GT71/GT30) -> . | GW71: =IF(GW30="",".",MAX(IF(OR(GX61>0.015,GX61=0.015),GW61-0.015*GW30,0))) -> . | GX71: =IF(ISERROR(GW71/GW30),".",GW71/GW30) -> . | GZ71: =IF(GZ30="",".",MAX(IF(OR(HA61>0.015,HA61=0.015),GZ61-0.015*GZ30,0))) -> . | HA71: =IF(ISERROR(GZ71/GZ30),".",GZ71/GZ30) -> . | HC71: =IF(HC30="",".",MAX(IF(OR(HD61>0.015,HD61=0.015),HC61-0.015*HC30,0))) -> . | HD71: =IF(ISERROR(HC71/HC30),".",HC71/HC30) -> . | HF71: =IF(HF30="",".",MAX(IF(OR(HG61>0.015,HG61=0.015),HF61-0.015*HF30,0))) -> . | HG71: =IF(ISERROR(HF71/HF30),".",HF71/HF30) -> . | HI71: =IF(HI30="",".",MAX(IF(OR(HJ61>0.015,HJ61=0.015),HI61-0.015*HI30,0))) -> . | HJ71: =IF(ISERROR(HI71/HI30),".",HI71/HI30) -> . | HL71: =IF(HL30="",".",MAX(IF(OR(HM61>0.015,HM61=0.015),HL61-0.015*HL30,0))) -> . | HM71: =IF(ISERROR(HL71/HL30),".",HL71/HL30) -> . | HO71: =IF(HO30="",".",MAX(IF(OR(HP61>0.015,HP61=0.015),HO61-0.015*HO30,0))) -> . | HP71: =IF(ISERROR(HO71/HO30),".",HO71/HO30) -> . | HR71: =IF(HR30="",".",MAX(IF(OR(HS61>0.015,HS61=0.015),HR61-0.015*HR30,0))) -> . | HS71: =IF(ISERROR(HR71/HR30),".",HR71/HR30) -> . | HU71: =IF(HU30="",".",MAX(IF(OR(HV61>0.015,HV61=0.015),HU61-0.015*HU30,0))) -> . | HV71: =IF(ISERROR(HU71/HU30),".",HU71/HU30) -> . | HX71: =IF(HX30="",".",MAX(IF(OR(HY61>0.015,HY61=0.015),HX61-0.015*HX30,0))) -> . | HY71: =IF(ISERROR(HX71/HX30),".",HX71/HX30) -> . | IA71: =IF(IA30="",".",MAX(IF(OR(IB61>0.015,IB61=0.015),IA61-0.015*IA30,0))) -> . | IB71: =IF(ISERROR(IA71/IA30),".",IA71/IA30) -> . | ID71: =IF(ID30="",".",MAX(IF(OR(IE61>0.015,IE61=0.015),ID61-0.015*ID30,0))) -> . | IE71: =IF(ISERROR(ID71/ID30),".",ID71/ID30) -> . | IG71: =IF(IG30="",".",MAX(IF(OR(IH61>0.015,IH61=0.015),IG61-0.015*IG30,0))) -> . | IH71: =IF(ISERROR(IG71/IG30),".",IG71/IG30) -> . | IJ71: =IF(IJ30="",".",MAX(IF(OR(IK61>0.015,IK61=0.015),IJ61-0.015*IJ30,0))) -> . | IK71: =IF(ISERROR(IJ71/IJ30),".",IJ71/IJ30) -> . | IM71: =IF(IM30="",".",MAX(IF(OR(IN61>0.015,IN61=0.015),IM61-0.015*IM30,0))) -> . | IN71: =IF(ISERROR(IM71/IM30),".",IM71/IM30) -> . | IP71: =IF(IP30="",".",MAX(IF(OR(IQ61>0.015,IQ61=0.015),IP61-0.015*IP30,0))) -> . | IQ71: =IF(ISERROR(IP71/IP30),".",IP71/IP30) -> . | IS71: =IF(IS30="",".",MAX(IF(OR(IT61>0.015,IT61=0.015),IS61-0.015*IS30,0))) -> . | IT71: =IF(ISERROR(IS71/IS30),".",IS71/IS30) -> . | IV71: =IF(IV30="",".",MAX(IF(OR(IW61>0.015,IW61=0.015),IV61-0.015*IV30,0))) -> . | IW71: =IF(ISERROR(IV71/IV30),".",IV71/IV30) -> . | IY71: =IF(IY30="",".",MAX(IF(OR(IZ61>0.015,IZ61=0.015),IY61-0.015*IY30,0))) -> . | IZ71: =IF(ISERROR(IY71/IY30),".",IY71/IY30) -> . | JB71: =IF(JB30="",".",MAX(IF(OR(JC61>0.015,JC61=0.015),JB61-0.015*JB30,0))) -> . | JC71: =IF(ISERROR(JB71/JB30),".",JB71/JB30) -> . | JE71: =IF(JE30="",".",MAX(IF(OR(JF61>0.015,JF61=0.015),JE61-0.015*JE30,0))) -> . | JF71: =IF(ISERROR(JE71/JE30),".",JE71/JE30) -> . | JH71: =IF(JH30="",".",MAX(IF(OR(JI61>0.015,JI61=0.015),JH61-0.015*JH30,0))) -> . | JI71: =IF(ISERROR(JH71/JH30),".",JH71/JH30) -> . | JK71: =IF(JK30="",".",MAX(IF(OR(JL61>0.015,JL61=0.015),JK61-0.015*JK30,0))) -> . | JL71: =IF(ISERROR(JK71/JK30),".",JK71/JK30) -> . | JN71: =IF(JN30="",".",MAX(IF(OR(JO61>0.015,JO61=0.015),JN61-0.015*JN30,0))) -> . | JO71: =IF(ISERROR(JN71/JN30),".",JN71/JN30) -> . | JQ71: =IF(JQ30="",".",MAX(IF(OR(JR61>0.015,JR61=0.015),JQ61-0.015*JQ30,0))) -> . | JR71: =IF(ISERROR(JQ71/JQ30),".",JQ71/JQ30) -> . | JT71: =IF(JT30="",".",MAX(IF(OR(JU61>0.015,JU61=0.015),JT61-0.015*JT30,0))) -> . | JU71: =IF(ISERROR(JT71/JT30),".",JT71/JT30) -> . | JW71: =IF(JW30="",".",MAX(IF(OR(JX61>0.015,JX61=0.015),JW61-0.015*JW30,0))) -> . | JX71: =IF(ISERROR(JW71/JW30),".",JW71/JW30) -> . | JZ71: =IF(JZ30="",".",MAX(IF(OR(KA61>0.015,KA61=0.015),JZ61-0.015*JZ30,0))) -> . | KA71: =IF(ISERROR(JZ71/JZ30),".",JZ71/JZ30) -> . | KC71: =IF(KC30="",".",MAX(IF(OR(KD61>0.015,KD61=0.015),KC61-0.015*KC30,0))) -> . | KD71: =IF(ISERROR(KC71/KC30),".",KC71/KC30) -> . | KF71: =IF(KF30="",".",MAX(IF(OR(KG61>0.015,KG61=0.015),KF61-0.015*KF30,0))) -> . | KG71: =IF(ISERROR(KF71/KF30),".",KF71/KF30) -> . | KI71: =IF(KI30="",".",MAX(IF(OR(KJ61>0.015,KJ61=0.015),KI61-0.015*KI30,0))) -> . | KJ71: =IF(ISERROR(KI71/KI30),".",KI71/KI30) -> . | KL71: =IF(KL30="",".",MAX(IF(OR(KM61>0.015,KM61=0.015),KL61-0.015*KL30,0))) -> . | KM71: =IF(ISERROR(KL71/KL30),".",KL71/KL30) -> . | KO71: =IF(KO30="",".",MAX(IF(OR(KP61>0.015,KP61=0.015),KO61-0.015*KO30,0))) -> . | KP71: =IF(ISERROR(KO71/KO30),".",KO71/KO30) -> . | KR71: =IF(KR30="",".",MAX(IF(OR(KS61>0.015,KS61=0.015),KR61-0.015*KR30,0))) -> . | KS71: =IF(ISERROR(KR71/KR30),".",KR71/KR30) -> . | KU71: =IF(KU30="",".",MAX(IF(OR(KV61>0.015,KV61=0.015),KU61-0.015*KU30,0))) -> . | KV71: =IF(ISERROR(KU71/KU30),".",KU71/KU30) -> . | KX71: =IF(KX30="",".",MAX(IF(OR(KY61>0.015,KY61=0.015),KX61-0.015*KX30,0))) -> . | KY71: =IF(ISERROR(KX71/KX30),".",KX71/KX30) -> . | LA71: =IF(LA30="",".",MAX(IF(OR(LB61>0.015,LB61=0.015),LA61-0.015*LA30,0))) -> . | LB71: =IF(ISERROR(LA71/LA30),".",LA71/LA30) -> . | LD71: =IF(LD30="",".",MAX(IF(OR(LE61>0.015,LE61=0.015),LD61-0.015*LD30,0))) -> . | LE71: =IF(ISERROR(LD71/LD30),".",LD71/LD30) -> . | LG71: =IF(LG30="",".",MAX(IF(OR(LH61>0.015,LH61=0.015),LG61-0.015*LG30,0))) -> . | LH71: =IF(ISERROR(LG71/LG30),".",LG71/LG30) -> . | LJ71: =IF(LJ30="",".",MAX(IF(OR(LK61>0.015,LK61=0.015),LJ61-0.015*LJ30,0))) -> . | LK71: =IF(ISERROR(LJ71/LJ30),".",LJ71/LJ30) -> . | LM71: =IF(LM30="",".",MAX(IF(OR(LN61>0.015,LN61=0.015),LM61-0.015*LM30,0))) -> . | LN71: =IF(ISERROR(LM71/LM30),".",LM71/LM30) -> . | LP71: =IF(LP30="",".",MAX(IF(OR(LQ61>0.015,LQ61=0.015),LP61-0.015*LP30,0))) -> . | LQ71: =IF(ISERROR(LP71/LP30),".",LP71/LP30) -> . | LS71: =IF(LS30="",".",MAX(IF(OR(LT61>0.015,LT61=0.015),LS61-0.015*LS30,0))) -> . | LT71: =IF(ISERROR(LS71/LS30),".",LS71/LS30) -> . | LV71: =IF(LV30="",".",MAX(IF(OR(LW61>0.015,LW61=0.015),LV61-0.015*LV30,0))) -> . | LW71: =IF(ISERROR(LV71/LV30),".",LV71/LV30) -> . | LY71: =IF(LY30="",".",MAX(IF(OR(LZ61>0.015,LZ61=0.015),LY61-0.015*LY30,0))) -> . | LZ71: =IF(ISERROR(LY71/LY30),".",LY71/LY30) -> . | MB71: =IF(MB30="",".",MAX(IF(OR(MC61>0.015,MC61=0.015),MB61-0.015*MB30,0))) -> . | MC71: =IF(ISERROR(MB71/MB30),".",MB71/MB30) -> . | ME71: =IF(ME30="",".",MAX(IF(OR(MF61>0.015,MF61=0.015),ME61-0.015*ME30,0))) -> . | MF71: =IF(ISERROR(ME71/ME30),".",ME71/ME30) -> . | MH71: =IF(MH30="",".",MAX(IF(OR(MI61>0.015,MI61=0.015),MH61-0.015*MH30,0))) -> . | MI71: =IF(ISERROR(MH71/MH30),".",MH71/MH30) -> . | MK71: =IF(MK30="",".",MAX(IF(OR(ML61>0.015,ML61=0.015),MK61-0.015*MK30,0))) -> . | ML71: =IF(ISERROR(MK71/MK30),".",MK71/MK30) -> . | MN71: =IF(MN30="",".",MAX(IF(OR(MO61>0.015,MO61=0.015),MN61-0.015*MN30,0))) -> . | MO71: =IF(ISERROR(MN71/MN30),".",MN71/MN30) -> . | MQ71: =IF(MQ30="",".",MAX(IF(OR(MR61>0.015,MR61=0.015),MQ61-0.015*MQ30,0))) -> . | MR71: =IF(ISERROR(MQ71/MQ30),".",MQ71/MQ30) -> . | MT71: =IF(MT30="",".",MAX(IF(OR(MU61>0.015,MU61=0.015),MT61-0.015*MT30,0))) -> . | MU71: =IF(ISERROR(MT71/MT30),".",MT71/MT30) -> . | MW71: =IF(MW30="",".",MAX(IF(OR(MX61>0.015,MX61=0.015),MW61-0.015*MW30,0))) -> . | MX71: =IF(ISERROR(MW71/MW30),".",MW71/MW30) -> . | MZ71: =IF(MZ30="",".",MAX(IF(OR(NA61>0.015,NA61=0.015),MZ61-0.015*MZ30,0))) -> . | NA71: =IF(ISERROR(MZ71/MZ30),".",MZ71/MZ30) -> . | NC71: =IF(NC30="",".",MAX(IF(OR(ND61>0.015,ND61=0.015),NC61-0.015*NC30,0))) -> . | ND71: =IF(ISERROR(NC71/NC30),".",NC71/NC30) -> . | NF71: =IF(NF30="",".",MAX(IF(OR(NG61>0.015,NG61=0.015),NF61-0.015*NF30,0))) -> . | NG71: =IF(ISERROR(NF71/NF30),".",NF71/NF30) -> . | NI71: =IF(NI30="",".",MAX(IF(OR(NJ61>0.015,NJ61=0.015),NI61-0.015*NI30,0))) -> . | NJ71: =IF(ISERROR(NI71/NI30),".",NI71/NI30) -> . | NL71: =IF(NL30="",".",MAX(IF(OR(NM61>0.015,NM61=0.015),NL61-0.015*NL30,0))) -> . | NM71: =IF(ISERROR(NL71/NL30),".",NL71/NL30) -> . | NO71: =IF(NO30="",".",MAX(IF(OR(NP61>0.015,NP61=0.015),NO61-0.015*NO30,0))) -> . | NP71: =IF(ISERROR(NO71/NO30),".",NO71/NO30) -> . | NR71: =IF(NR30="",".",MAX(IF(OR(NS61>0.015,NS61=0.015),NR61-0.015*NR30,0))) -> . | NS71: =IF(ISERROR(NR71/NR30),".",NR71/NR30) -> . | NU71: =IF(NU30="",".",MAX(IF(OR(NV61>0.015,NV61=0.015),NU61-0.015*NU30,0))) -> . | NV71: =IF(ISERROR(NU71/NU30),".",NU71/NU30) -> . | NX71: =IF(NX30="",".",MAX(IF(OR(NY61>0.015,NY61=0.015),NX61-0.015*NX30,0))) -> . | NY71: =IF(ISERROR(NX71/NX30),".",NX71/NX30) -> . | OA71: =IF(OA30="",".",MAX(IF(OR(OB61>0.015,OB61=0.015),OA61-0.015*OA30,0))) -> . | OB71: =IF(ISERROR(OA71/OA30),".",OA71/OA30) -> . | OD71: =IF(OD30="",".",MAX(IF(OR(OE61>0.015,OE61=0.015),OD61-0.015*OD30,0))) -> . | OE71: =IF(ISERROR(OD71/OD30),".",OD71/OD30) -> . | OG71: =IF(OG30="",".",MAX(IF(OR(OH61>0.015,OH61=0.015),OG61-0.015*OG30,0))) -> . | OH71: =IF(ISERROR(OG71/OG30),".",OG71/OG30) -> . | OJ71: =IF(OJ30="",".",MAX(IF(OR(OK61>0.015,OK61=0.015),OJ61-0.015*OJ30,0))) -> . | OK71: =IF(ISERROR(OJ71/OJ30),".",OJ71/OJ30) -> . | OM71: =IF(OM30="",".",MAX(IF(OR(ON61>0.015,ON61=0.015),OM61-0.015*OM30,0))) -> . | ON71: =IF(ISERROR(OM71/OM30),".",OM71/OM30) -> . | OP71: =IF(OP30="",".",MAX(IF(OR(OQ61>0.015,OQ61=0.015),OP61-0.015*OP30,0))) -> . | OQ71: =IF(ISERROR(OP71/OP30),".",OP71/OP30) -> . | OS71: =IF(OS30="",".",MAX(IF(OR(OT61>0.015,OT61=0.015),OS61-0.015*OS30,0))) -> . | OT71: =IF(ISERROR(OS71/OS30),".",OS71/OS30) -> . | OV71: =IF(OV30="",".",MAX(IF(OR(OW61>0.015,OW61=0.015),OV61-0.015*OV30,0))) -> . | OW71: =IF(ISERROR(OV71/OV30),".",OV71/OV30) -> . | OY71: =IF(OY30="",".",MAX(IF(OR(OZ61>0.015,OZ61=0.015),OY61-0.015*OY30,0))) -> . | OZ71: =IF(ISERROR(OY71/OY30),".",OY71/OY30) -> . | PB71: =IF(PB30="",".",MAX(IF(OR(PC61>0.015,PC61=0.015),PB61-0.015*PB30,0))) -> . | PC71: =IF(ISERROR(PB71/PB30),".",PB71/PB30) -> . | PE71: =IF(PE30="",".",MAX(IF(OR(PF61>0.015,PF61=0.015),PE61-0.015*PE30,0))) -> . | PF71: =IF(ISERROR(PE71/PE30),".",PE71/PE30) -> . | PH71: =IF(PH30="",".",MAX(IF(OR(PI61>0.015,PI61=0.015),PH61-0.015*PH30,0))) -> . | PI71: =IF(ISERROR(PH71/PH30),".",PH71/PH30) -> . | PK71: =IF(PK30="",".",MAX(IF(OR(PL61>0.015,PL61=0.015),PK61-0.015*PK30,0))) -> . | PL71: =IF(ISERROR(PK71/PK30),".",PK71/PK30) -> . | PN71: =IF(PN30="",".",MAX(IF(OR(PO61>0.015,PO61=0.015),PN61-0.015*PN30,0))) -> . | PO71: =IF(ISERROR(PN71/PN30),".",PN71/PN30) -> . | PQ71: =IF(PQ30="",".",MAX(IF(OR(PR61>0.015,PR61=0.015),PQ61-0.015*PQ30,0))) -> . | PR71: =IF(ISERROR(PQ71/PQ30),".",PQ71/PQ30) -> . | PT71: =IF(PT30="",".",MAX(IF(OR(PU61>0.015,PU61=0.015),PT61-0.015*PT30,0))) -> . | PU71: =IF(ISERROR(PT71/PT30),".",PT71/PT30) -> . | PW71: =IF(PW30="",".",MAX(IF(OR(PX61>0.015,PX61=0.015),PW61-0.015*PW30,0))) -> . | PX71: =IF(ISERROR(PW71/PW30),".",PW71/PW30) -> . | PZ71: =IF(PZ30="",".",MAX(IF(OR(QA61>0.015,QA61=0.015),PZ61-0.015*PZ30,0))) -> . | QA71: =IF(ISERROR(PZ71/PZ30),".",PZ71/PZ30) -> . | QC71: =IF(QC30="",".",MAX(IF(OR(QD61>0.015,QD61=0.015),QC61-0.015*QC30,0))) -> . | QD71: =IF(ISERROR(QC71/QC30),".",QC71/QC30) -> . | QF71: =IF(QF30="",".",MAX(IF(OR(QG61>0.015,QG61=0.015),QF61-0.015*QF30,0))) -> . | QG71: =IF(ISERROR(QF71/QF30),".",QF71/QF30) -> . | QI71: =IF(QI30="",".",MAX(IF(OR(QJ61>0.015,QJ61=0.015),QI61-0.015*QI30,0))) -> . | QJ71: =IF(ISERROR(QI71/QI30),".",QI71/QI30) -> . | QL71: =IF(QL30="",".",MAX(IF(OR(QM61>0.015,QM61=0.015),QL61-0.015*QL30,0))) -> . | QM71: =IF(ISERROR(QL71/QL30),".",QL71/QL30) -> . | QO71: =IF(QO30="",".",MAX(IF(OR(QP61>0.015,QP61=0.015),QO61-0.015*QO30,0))) -> . | QP71: =IF(ISERROR(QO71/QO30),".",QO71/QO30) -> . | QR71: =IF(QR30="",".",MAX(IF(OR(QS61>0.015,QS61=0.015),QR61-0.015*QR30,0))) -> . | QS71: =IF(ISERROR(QR71/QR30),".",QR71/QR30) -> . | QU71: =IF(QU30="",".",MAX(IF(OR(QV61>0.015,QV61=0.015),QU61-0.015*QU30,0))) -> . | QV71: =IF(ISERROR(QU71/QU30),".",QU71/QU30) -> . | QX71: =IF(QX30="",".",MAX(IF(OR(QY61>0.015,QY61=0.015),QX61-0.015*QX30,0))) -> . | QY71: =IF(ISERROR(QX71/QX30),".",QX71/QX30) -> . | RA71: =IF(RA30="",".",MAX(IF(OR(RB61>0.015,RB61=0.015),RA61-0.015*RA30,0))) -> . | RB71: =IF(ISERROR(RA71/RA30),".",RA71/RA30) -> . | RD71: =IF(RD30="",".",MAX(IF(OR(RE61>0.015,RE61=0.015),RD61-0.015*RD30,0))) -> . | RE71: =IF(ISERROR(RD71/RD30),".",RD71/RD30) -> . | RG71: =IF(RG30="",".",MAX(IF(OR(RH61>0.015,RH61=0.015),RG61-0.015*RG30,0))) -> . | RH71: =IF(ISERROR(RG71/RG30),".",RG71/RG30) -> . | RJ71: =IF(RJ30="",".",MAX(IF(OR(RK61>0.015,RK61=0.015),RJ61-0.015*RJ30,0))) -> . | RK71: =IF(ISERROR(RJ71/RJ30),".",RJ71/RJ30) -> . | RM71: =IF(RM30="",".",MAX(IF(OR(RN61>0.015,RN61=0.015),RM61-0.015*RM30,0))) -> . | RN71: =IF(ISERROR(RM71/RM30),".",RM71/RM30) -> . | RP71: =IF(RP30="",".",MAX(IF(OR(RQ61>0.015,RQ61=0.015),RP61-0.015*RP30,0))) -> . | RQ71: =IF(ISERROR(RP71/RP30),".",RP71/RP30) -> . | RS71: =IF(RS30="",".",MAX(IF(OR(RT61>0.015,RT61=0.015),RS61-0.015*RS30,0))) -> . | RT71: =IF(ISERROR(RS71/RS30),".",RS71/RS30) -> . | RV71: =IF(RV30="",".",MAX(IF(OR(RW61>0.015,RW61=0.015),RV61-0.015*RV30,0))) -> . | RW71: =IF(ISERROR(RV71/RV30),".",RV71/RV30) -> . | RY71: =IF(RY30="",".",MAX(IF(OR(RZ61>0.015,RZ61=0.015),RY61-0.015*RY30,0))) -> . | RZ71: =IF(ISERROR(RY71/RY30),".",RY71/RY30) -> . | SB71: =IF(SB30="",".",MAX(IF(OR(SC61>0.015,SC61=0.015),SB61-0.015*SB30,0))) -> . | SC71: =IF(ISERROR(SB71/SB30),".",SB71/SB30) -> . | SE71: =IF(SE30="",".",MAX(IF(OR(SF61>0.015,SF61=0.015),SE61-0.015*SE30,0))) -> . | SF71: =IF(ISERROR(SE71/SE30),".",SE71/SE30) -> . | SH71: =IF(SH30="",".",MAX(IF(OR(SI61>0.015,SI61=0.015),SH61-0.015*SH30,0))) -> . | SI71: =IF(ISERROR(SH71/SH30),".",SH71/SH30) -> . | SK71: =IF(SK30="",".",MAX(IF(OR(SL61>0.015,SL61=0.015),SK61-0.015*SK30,0))) -> . | SL71: =IF(ISERROR(SK71/SK30),".",SK71/SK30) -> . | SN71: =IF(SN30="",".",MAX(IF(OR(SO61>0.015,SO61=0.015),SN61-0.015*SN30,0))) -> . | SO71: =IF(ISERROR(SN71/SN30),".",SN71/SN30) -> . | SQ71: =IF(SQ30="",".",MAX(IF(OR(SR61>0.015,SR61=0.015),SQ61-0.015*SQ30,0))) -> . | SR71: =IF(ISERROR(SQ71/SQ30),".",SQ71/SQ30) -> . | ST71: =IF(ST30="",".",MAX(IF(OR(SU61>0.015,SU61=0.015),ST61-0.015*ST30,0))) -> . | SU71: =IF(ISERROR(ST71/ST30),".",ST71/ST30) -> . | SW71: =IF(SW30="",".",MAX(IF(OR(SX61>0.015,SX61=0.015),SW61-0.015*SW30,0))) -> . | SX71: =IF(ISERROR(SW71/SW30),".",SW71/SW30) -> . | SZ71: =IF(SZ30="",".",MAX(IF(OR(TA61>0.015,TA61=0.015),SZ61-0.015*SZ30,0))) -> . | TA71: =IF(ISERROR(SZ71/SZ30),".",SZ71/SZ30) -> . | TC71: =IF(TC30="",".",MAX(IF(OR(TD61>0.015,TD61=0.015),TC61-0.015*TC30,0))) -> . | TD71: =IF(ISERROR(TC71/TC30),".",TC71/TC30) -> . | TF71: =IF(TF30="",".",MAX(IF(OR(TG61>0.015,TG61=0.015),TF61-0.015*TF30,0))) -> . | TG71: =IF(ISERROR(TF71/TF30),".",TF71/TF30) -> . | TI71: =IF(TI30="",".",MAX(IF(OR(TJ61>0.015,TJ61=0.015),TI61-0.015*TI30,0))) -> . | TJ71: =IF(ISERROR(TI71/TI30),".",TI71/TI30) -> . | TL71: =IF(TL30="",".",MAX(IF(OR(TM61>0.015,TM61=0.015),TL61-0.015*TL30,0))) -> . | TM71: =IF(ISERROR(TL71/TL30),".",TL71/TL30) -> . | TO71: =IF(TO30="",".",MAX(IF(OR(TP61>0.015,TP61=0.015),TO61-0.015*TO30,0))) -> . | TP71: =IF(ISERROR(TO71/TO30),".",TO71/TO30) -> . | TR71: =IF(TR30="",".",MAX(IF(OR(TS61>0.015,TS61=0.015),TR61-0.015*TR30,0))) -> . | TS71: =IF(ISERROR(TR71/TR30),".",TR71/TR30) -> . | TU71: =IF(TU30="",".",MAX(IF(OR(TV61>0.015,TV61=0.015),TU61-0.015*TU30,0))) -> . | TV71: =IF(ISERROR(TU71/TU30),".",TU71/TU30) -> . | TX71: =IF(TX30="",".",MAX(IF(OR(TY61>0.015,TY61=0.015),TX61-0.015*TX30,0))) -> . | TY71: =IF(ISERROR(TX71/TX30),".",TX71/TX30) -> . | UA71: =IF(UA30="",".",MAX(IF(OR(UB61>0.015,UB61=0.015),UA61-0.015*UA30,0))) -> . | UB71: =IF(ISERROR(UA71/UA30),".",UA71/UA30) -> . | UD71: =IF(UD30="",".",MAX(IF(OR(UE61>0.015,UE61=0.015),UD61-0.015*UD30,0))) -> . | UE71: =IF(ISERROR(UD71/UD30),".",UD71/UD30) -> . | UG71: =IF(UG30="",".",MAX(IF(OR(UH61>0.015,UH61=0.015),UG61-0.015*UG30,0))) -> . | UH71: =IF(ISERROR(UG71/UG30),".",UG71/UG30) -> . | UJ71: =IF(UJ30="",".",MAX(IF(OR(UK61>0.015,UK61=0.015),UJ61-0.015*UJ30,0))) -> . | UK71: =IF(ISERROR(UJ71/UJ30),".",UJ71/UJ30) -> . | UM71: =IF(UM30="",".",MAX(IF(OR(UN61>0.015,UN61=0.015),UM61-0.015*UM30,0))) -> . | UN71: =IF(ISERROR(UM71/UM30),".",UM71/UM30) -> . | UP71: =IF(UP30="",".",MAX(IF(OR(UQ61>0.015,UQ61=0.015),UP61-0.015*UP30,0))) -> . | UQ71: =IF(ISERROR(UP71/UP30),".",UP71/UP30) -> . | US71: =IF(US30="",".",MAX(IF(OR(UT61>0.015,UT61=0.015),US61-0.015*US30,0))) -> . | UT71: =IF(ISERROR(US71/US30),".",US71/US30) -> . | UV71: =IF(UV30="",".",MAX(IF(OR(UW61>0.015,UW61=0.015),UV61-0.015*UV30,0))) -> . | UW71: =IF(ISERROR(UV71/UV30),".",UV71/UV30) -> . | UY71: =IF(UY30="",".",MAX(IF(OR(UZ61>0.015,UZ61=0.015),UY61-0.015*UY30,0))) -> . | UZ71: =IF(ISERROR(UY71/UY30),".",UY71/UY30) -> . | VB71: =IF(VB30="",".",MAX(IF(OR(VC61>0.015,VC61=0.015),VB61-0.015*VB30,0))) -> . | VC71: =IF(ISERROR(VB71/VB30),".",VB71/VB30) -> . | VE71: =IF(VE30="",".",MAX(IF(OR(VF61>0.015,VF61=0.015),VE61-0.015*VE30,0))) -> . | VF71: =IF(ISERROR(VE71/VE30),".",VE71/VE30) -> . | VH71: =IF(VH30="",".",MAX(IF(OR(VI61>0.015,VI61=0.015),VH61-0.015*VH30,0))) -> . | VI71: =IF(ISERROR(VH71/VH30),".",VH71/VH30) -> . | VK71: =IF(VK30="",".",MAX(IF(OR(VL61>0.015,VL61=0.015),VK61-0.015*VK30,0))) -> . | VL71: =IF(ISERROR(VK71/VK30),".",VK71/VK30) -> . | VN71: =IF(VN30="",".",MAX(IF(OR(VO61>0.015,VO61=0.015),VN61-0.015*VN30,0))) -> . | VO71: =IF(ISERROR(VN71/VN30),".",VN71/VN30) -> . | VQ71: =IF(VQ30="",".",MAX(IF(OR(VR61>0.015,VR61=0.015),VQ61-0.015*VQ30,0))) -> . | VR71: =IF(ISERROR(VQ71/VQ30),".",VQ71/VQ30) -> . | VT71: =IF(VT30="",".",MAX(IF(OR(VU61>0.015,VU61=0.015),VT61-0.015*VT30,0))) -> . | VU71: =IF(ISERROR(VT71/VT30),".",VT71/VT30) -> . | VW71: =IF(VW30="",".",MAX(IF(OR(VX61>0.015,VX61=0.015),VW61-0.015*VW30,0))) -> . | VX71: =IF(ISERROR(VW71/VW30),".",VW71/VW30) -> . | VZ71: =IF(VZ30="",".",MAX(IF(OR(WA61>0.015,WA61=0.015),VZ61-0.015*VZ30,0))) -> . | WA71: =IF(ISERROR(VZ71/VZ30),".",VZ71/VZ30) -> . | WC71: =IF(WC30="",".",MAX(IF(OR(WD61>0.015,WD61=0.015),WC61-0.015*WC30,0))) -> . | WD71: =IF(ISERROR(WC71/WC30),".",WC71/WC30) -> . | WF71: =IF(WF30="",".",MAX(IF(OR(WG61>0.015,WG61=0.015),WF61-0.015*WF30,0))) -> . | WG71: =IF(ISERROR(WF71/WF30),".",WF71/WF30) -> . | WI71: =IF(WI30="",".",MAX(IF(OR(WJ61>0.015,WJ61=0.015),WI61-0.015*WI30,0))) -> . | WJ71: =IF(ISERROR(WI71/WI30),".",WI71/WI30) -> . | WL71: =IF(WL30="",".",MAX(IF(OR(WM61>0.015,WM61=0.015),WL61-0.015*WL30,0))) -> . | WM71: =IF(ISERROR(WL71/WL30),".",WL71/WL30) -> . | WO71: =IF(WO30="",".",MAX(IF(OR(WP61>0.015,WP61=0.015),WO61-0.015*WO30,0))) -> . | WP71: =IF(ISERROR(WO71/WO30),".",WO71/WO30) -> . | WR71: =IF(WR30="",".",MAX(IF(OR(WS61>0.015,WS61=0.015),WR61-0.015*WR30,0))) -> . | WS71: =IF(ISERROR(WR71/WR30),".",WR71/WR30) -> . | WU71: =IF(WU30="",".",MAX(IF(OR(WV61>0.015,WV61=0.015),WU61-0.015*WU30,0))) -> . | WV71: =IF(ISERROR(WU71/WU30),".",WU71/WU30) -> . | WX71: =IF(WX30="",".",MAX(IF(OR(WY61>0.015,WY61=0.015),WX61-0.015*WX30,0))) -> . | WY71: =IF(ISERROR(WX71/WX30),".",WX71/WX30) -> . | XA71: =IF(XA30="",".",MAX(IF(OR(XB61>0.015,XB61=0.015),XA61-0.015*XA30,0))) -> . | XB71: =IF(ISERROR(XA71/XA30),".",XA71/XA30) -> . | XD71: =IF(XD30="",".",MAX(IF(OR(XE61>0.015,XE61=0.015),XD61-0.015*XD30,0))) -> . | XE71: =IF(ISERROR(XD71/XD30),".",XD71/XD30) -> . | XG71: =IF(XG30="",".",MAX(IF(OR(XH61>0.015,XH61=0.015),XG61-0.015*XG30,0))) -> . | XH71: =IF(ISERROR(XG71/XG30),".",XG71/XG30) -> . | XJ71: =IF(XJ30="",".",MAX(IF(OR(XK61>0.015,XK61=0.015),XJ61-0.015*XJ30,0))) -> . | XK71: =IF(ISERROR(XJ71/XJ30),".",XJ71/XJ30) -> . | XM71: =IF(XM30="",".",MAX(IF(OR(XN61>0.015,XN61=0.015),XM61-0.015*XM30,0))) -> . | XN71: =IF(ISERROR(XM71/XM30),".",XM71/XM30) -> . | XP71: =IF(XP30="",".",MAX(IF(OR(XQ61>0.015,XQ61=0.015),XP61-0.015*XP30,0))) -> . | XQ71: =IF(ISERROR(XP71/XP30),".",XP71/XP30) -> . | XS71: =IF(XS30="",".",MAX(IF(OR(XT61>0.015,XT61=0.015),XS61-0.015*XS30,0))) -> . | XT71: =IF(ISERROR(XS71/XS30),".",XS71/XS30) -> . | XV71: =IF(XV30="",".",MAX(IF(OR(XW61>0.015,XW61=0.015),XV61-0.015*XV30,0))) -> . | XW71: =IF(ISERROR(XV71/XV30),".",XV71/XV30) -> . | XY71: =IF(XY30="",".",MAX(IF(OR(XZ61>0.015,XZ61=0.015),XY61-0.015*XY30,0))) -> . | XZ71: =IF(ISERROR(XY71/XY30),".",XY71/XY30) -> . | YB71: =IF(YB30="",".",MAX(IF(OR(YC61>0.015,YC61=0.015),YB61-0.015*YB30,0))) -> . | YC71: =IF(ISERROR(YB71/YB30),".",YB71/YB30) -> . | YE71: =IF(YE30="",".",MAX(IF(OR(YF61>0.015,YF61=0.015),YE61-0.015*YE30,0))) -> . | YF71: =IF(ISERROR(YE71/YE30),".",YE71/YE30) -> . | YH71: =IF(YH30="",".",MAX(IF(OR(YI61>0.015,YI61=0.015),YH61-0.015*YH30,0))) -> . | YI71: =IF(ISERROR(YH71/YH30),".",YH71/YH30) -> . | YK71: =IF(YK30="",".",MAX(IF(OR(YL61>0.015,YL61=0.015),YK61-0.015*YK30,0))) -> . | YL71: =IF(ISERROR(YK71/YK30),".",YK71/YK30) -> . | YN71: =IF(YN30="",".",MAX(IF(OR(YO61>0.015,YO61=0.015),YN61-0.015*YN30,0))) -> . | YO71: =IF(ISERROR(YN71/YN30),".",YN71/YN30) -> . | YQ71: =IF(YQ30="",".",MAX(IF(OR(YR61>0.015,YR61=0.015),YQ61-0.015*YQ30,0))) -> . | YR71: =IF(ISERROR(YQ71/YQ30),".",YQ71/YQ30) -> . | YT71: =IF(YT30="",".",MAX(IF(OR(YU61>0.015,YU61=0.015),YT61-0.015*YT30,0))) -> . | YU71: =IF(ISERROR(YT71/YT30),".",YT71/YT30) -> . | YW71: =IF(YW30="",".",MAX(IF(OR(YX61>0.015,YX61=0.015),YW61-0.015*YW30,0))) -> . | YX71: =IF(ISERROR(YW71/YW30),".",YW71/YW30) -> . | YZ71: =IF(YZ30="",".",MAX(IF(OR(ZA61>0.015,ZA61=0.015),YZ61-0.015*YZ30,0))) -> . | ZA71: =IF(ISERROR(YZ71/YZ30),".",YZ71/YZ30) -> . | ZC71: =IF(ZC30="",".",MAX(IF(OR(ZD61>0.015,ZD61=0.015),ZC61-0.015*ZC30,0))) -> . | ZD71: =IF(ISERROR(ZC71/ZC30),".",ZC71/ZC30) -> . | ZF71: =IF(ZF30="",".",MAX(IF(OR(ZG61>0.015,ZG61=0.015),ZF61-0.015*ZF30,0))) -> . | ZG71: =IF(ISERROR(ZF71/ZF30),".",ZF71/ZF30) -> . | ZI71: =IF(ZI30="",".",MAX(IF(OR(ZJ61>0.015,ZJ61=0.015),ZI61-0.015*ZI30,0))) -> . | ZJ71: =IF(ISERROR(ZI71/ZI30),".",ZI71/ZI30) -> . | ZL71: =IF(ZL30="",".",MAX(IF(OR(ZM61>0.015,ZM61=0.015),ZL61-0.015*ZL30,0))) -> . | ZM71: =IF(ISERROR(ZL71/ZL30),".",ZL71/ZL30) -> . | ZO71: =IF(ZO30="",".",MAX(IF(OR(ZP61>0.015,ZP61=0.015),ZO61-0.015*ZO30,0))) -> . | ZP71: =IF(ISERROR(ZO71/ZO30),".",ZO71/ZO30) -> . | ZR71: =IF(ZR30="",".",MAX(IF(OR(ZS61>0.015,ZS61=0.015),ZR61-0.015*ZR30,0))) -> . | ZS71: =IF(ISERROR(ZR71/ZR30),".",ZR71/ZR30) -> . | ZU71: =IF(ZU30="",".",MAX(IF(OR(ZV61>0.015,ZV61=0.015),ZU61-0.015*ZU30,0))) -> . | ZV71: =IF(ISERROR(ZU71/ZU30),".",ZU71/ZU30) -> . | ZX71: =IF(ZX30="",".",MAX(IF(OR(ZY61>0.015,ZY61=0.015),ZX61-0.015*ZX30,0))) -> . | ZY71: =IF(ISERROR(ZX71/ZX30),".",ZX71/ZX30) -> . | AAA71: =IF(AAA30="",".",MAX(IF(OR(AAB61>0.015,AAB61=0.015),AAA61-0.015*AAA30,0))) -> . | AAB71: =IF(ISERROR(AAA71/AAA30),".",AAA71/AAA30) -> . | AAD71: =IF(AAD30="",".",MAX(IF(OR(AAE61>0.015,AAE61=0.015),AAD61-0.015*AAD30,0))) -> . | AAE71: =IF(ISERROR(AAD71/AAD30),".",AAD71/AAD30) -> . | AAG71: =IF(AAG30="",".",MAX(IF(OR(AAH61>0.015,AAH61=0.015),AAG61-0.015*AAG30,0))) -> . | AAH71: =IF(ISERROR(AAG71/AAG30),".",AAG71/AAG30) -> . | AAJ71: =IF(AAJ30="",".",MAX(IF(OR(AAK61>0.015,AAK61=0.015),AAJ61-0.015*AAJ30,0))) -> . | AAK71: =IF(ISERROR(AAJ71/AAJ30),".",AAJ71/AAJ30) -> . | AAM71: =IF(AAM30="",".",MAX(IF(OR(AAN61>0.015,AAN61=0.015),AAM61-0.015*AAM30,0))) -> . | AAN71: =IF(ISERROR(AAM71/AAM30),".",AAM71/AAM30) -> . | AAP71: =IF(AAP30="",".",MAX(IF(OR(AAQ61>0.015,AAQ61=0.015),AAP61-0.015*AAP30,0))) -> . | AAQ71: =IF(ISERROR(AAP71/AAP30),".",AAP71/AAP30) -> . | AAS71: =IF(AAS30="",".",MAX(IF(OR(AAT61>0.015,AAT61=0.015),AAS61-0.015*AAS30,0))) -> . | AAT71: =IF(ISERROR(AAS71/AAS30),".",AAS71/AAS30) -> . | AAV71: =IF(AAV30="",".",MAX(IF(OR(AAW61>0.015,AAW61=0.015),AAV61-0.015*AAV30,0))) -> . | AAW71: =IF(ISERROR(AAV71/AAV30),".",AAV71/AAV30) -> . | AAY71: =IF(AAY30="",".",MAX(IF(OR(AAZ61>0.015,AAZ61=0.015),AAY61-0.015*AAY30,0))) -> . | AAZ71: =IF(ISERROR(AAY71/AAY30),".",AAY71/AAY30) -> . | ABB71: =IF(ABB30="",".",MAX(IF(OR(ABC61>0.015,ABC61=0.015),ABB61-0.015*ABB30,0))) -> . | ABC71: =IF(ISERROR(ABB71/ABB30),".",ABB71/ABB30) -> . | ABE71: =IF(ABE30="",".",MAX(IF(OR(ABF61>0.015,ABF61=0.015),ABE61-0.015*ABE30,0))) -> . | ABF71: =IF(ISERROR(ABE71/ABE30),".",ABE71/ABE30) -> . | ABH71: =IF(ABH30="",".",MAX(IF(OR(ABI61>0.015,ABI61=0.015),ABH61-0.015*ABH30,0))) -> . | ABI71: =IF(ISERROR(ABH71/ABH30),".",ABH71/ABH30) -> . | ABK71: =IF(ABK30="",".",MAX(IF(OR(ABL61>0.015,ABL61=0.015),ABK61-0.015*ABK30,0))) -> . | ABL71: =IF(ISERROR(ABK71/ABK30),".",ABK71/ABK30) -> . | ABN71: =IF(ABN30="",".",MAX(IF(OR(ABO61>0.015,ABO61=0.015),ABN61-0.015*ABN30,0))) -> . | ABO71: =IF(ISERROR(ABN71/ABN30),".",ABN71/ABN30) -> . | ABQ71: =IF(ABQ30="",".",MAX(IF(OR(ABR61>0.015,ABR61=0.015),ABQ61-0.015*ABQ30,0))) -> . | ABR71: =IF(ISERROR(ABQ71/ABQ30),".",ABQ71/ABQ30) -> . | ABT71: =IF(ABT30="",".",MAX(IF(OR(ABU61>0.015,ABU61=0.015),ABT61-0.015*ABT30,0))) -> . | ABU71: =IF(ISERROR(ABT71/ABT30),".",ABT71/ABT30) -> . | ABW71: =IF(ABW30="",".",MAX(IF(OR(ABX61>0.015,ABX61=0.015),ABW61-0.015*ABW30,0))) -> . | ABX71: =IF(ISERROR(ABW71/ABW30),".",ABW71/ABW30) -> . | ABZ71: =IF(ABZ30="",".",MAX(IF(OR(ACA61>0.015,ACA61=0.015),ABZ61-0.015*ABZ30,0))) -> . | ACA71: =IF(ISERROR(ABZ71/ABZ30),".",ABZ71/ABZ30) -> . | ACC71: =IF(ACC30="",".",MAX(IF(OR(ACD61>0.015,ACD61=0.015),ACC61-0.015*ACC30,0))) -> . | ACD71: =IF(ISERROR(ACC71/ACC30),".",ACC71/ACC30) -> . | ACF71: =IF(ACF30="",".",MAX(IF(OR(ACG61>0.015,ACG61=0.015),ACF61-0.015*ACF30,0))) -> . | ACG71: =IF(ISERROR(ACF71/ACF30),".",ACF71/ACF30) -> . | ACI71: =IF(ACI30="",".",MAX(IF(OR(ACJ61>0.015,ACJ61=0.015),ACI61-0.015*ACI30,0))) -> . | ACJ71: =IF(ISERROR(ACI71/ACI30),".",ACI71/ACI30) -> . | ACL71: =IF(ACL30="",".",MAX(IF(OR(ACM61>0.015,ACM61=0.015),ACL61-0.015*ACL30,0))) -> . | ACM71: =IF(ISERROR(ACL71/ACL30),".",ACL71/ACL30) -> . | ACO71: =IF(ACO30="",".",MAX(IF(OR(ACP61>0.015,ACP61=0.015),ACO61-0.015*ACO30,0))) -> . | ACP71: =IF(ISERROR(ACO71/ACO30),".",ACO71/ACO30) -> . | ACR71: =IF(ACR30="",".",MAX(IF(OR(ACS61>0.015,ACS61=0.015),ACR61-0.015*ACR30,0))) -> . | ACS71: =IF(ISERROR(ACR71/ACR30),".",ACR71/ACR30) -> . | ACU71: =IF(ACU30="",".",MAX(IF(OR(ACV61>0.015,ACV61=0.015),ACU61-0.015*ACU30,0))) -> . | ACV71: =IF(ISERROR(ACU71/ACU30),".",ACU71/ACU30) -> . | ACX71: =IF(ACX30="",".",MAX(IF(OR(ACY61>0.015,ACY61=0.015),ACX61-0.015*ACX30,0))) -> . | ACY71: =IF(ISERROR(ACX71/ACX30),".",ACX71/ACX30) -> . | ADA71: =IF(ADA30="",".",MAX(IF(OR(ADB61>0.015,ADB61=0.015),ADA61-0.015*ADA30,0))) -> . | ADB71: =IF(ISERROR(ADA71/ADA30),".",ADA71/ADA30) -> . | ADD71: =IF(ADD30="",".",MAX(IF(OR(ADE61>0.015,ADE61=0.015),ADD61-0.015*ADD30,0))) -> . | ADE71: =IF(ISERROR(ADD71/ADD30),".",ADD71/ADD30) -> . | ADG71: =IF(ADG30="",".",MAX(IF(OR(ADH61>0.015,ADH61=0.015),ADG61-0.015*ADG30,0))) -> . | ADH71: =IF(ISERROR(ADG71/ADG30),".",ADG71/ADG30) -> . | ADJ71: =IF(ADJ30="",".",MAX(IF(OR(ADK61>0.015,ADK61=0.015),ADJ61-0.015*ADJ30,0))) -> . | ADK71: =IF(ISERROR(ADJ71/ADJ30),".",ADJ71/ADJ30) -> . | ADM71: =IF(ADM30="",".",MAX(IF(OR(ADN61>0.015,ADN61=0.015),ADM61-0.015*ADM30,0))) -> . | ADN71: =IF(ISERROR(ADM71/ADM30),".",ADM71/ADM30) -> . | ADP71: =IF(ADP30="",".",MAX(IF(OR(ADQ61>0.015,ADQ61=0.015),ADP61-0.015*ADP30,0))) -> . | ADQ71: =IF(ISERROR(ADP71/ADP30),".",ADP71/ADP30) -> . | ADS71: =IF(ADS30="",".",MAX(IF(OR(ADT61>0.015,ADT61=0.015),ADS61-0.015*ADS30,0))) -> . | ADT71: =IF(ISERROR(ADS71/ADS30),".",ADS71/ADS30) -> . | ADV71: =IF(ADV30="",".",MAX(IF(OR(ADW61>0.015,ADW61=0.015),ADV61-0.015*ADV30,0))) -> . | ADW71: =IF(ISERROR(ADV71/ADV30),".",ADV71/ADV30) -> . | ADY71: =IF(ADY30="",".",MAX(IF(OR(ADZ61>0.015,ADZ61=0.015),ADY61-0.015*ADY30,0))) -> . | ADZ71: =IF(ISERROR(ADY71/ADY30),".",ADY71/ADY30) -> . | AEB71: =IF(AEB30="",".",MAX(IF(OR(AEC61>0.015,AEC61=0.015),AEB61-0.015*AEB30,0))) -> . | AEC71: =IF(ISERROR(AEB71/AEB30),".",AEB71/AEB30) -> . | AEE71: =IF(AEE30="",".",MAX(IF(OR(AEF61>0.015,AEF61=0.015),AEE61-0.015*AEE30,0))) -> . | AEF71: =IF(ISERROR(AEE71/AEE30),".",AEE71/AEE30) -> . | AEH71: =IF(AEH30="",".",MAX(IF(OR(AEI61>0.015,AEI61=0.015),AEH61-0.015*AEH30,0))) -> . | AEI71: =IF(ISERROR(AEH71/AEH30),".",AEH71/AEH30) -> . | AEK71: =IF(AEK30="",".",MAX(IF(OR(AEL61>0.015,AEL61=0.015),AEK61-0.015*AEK30,0))) -> . | AEL71: =IF(ISERROR(AEK71/AEK30),".",AEK71/AEK30) -> . | AEN71: =IF(AEN30="",".",MAX(IF(OR(AEO61>0.015,AEO61=0.015),AEN61-0.015*AEN30,0))) -> . | AEO71: =IF(ISERROR(AEN71/AEN30),".",AEN71/AEN30) -> . | AEQ71: =IF(AEQ30="",".",MAX(IF(OR(AER61>0.015,AER61=0.015),AEQ61-0.015*AEQ30,0))) -> . | AER71: =IF(ISERROR(AEQ71/AEQ30),".",AEQ71/AEQ30) -> . | AET71: =IF(AET30="",".",MAX(IF(OR(AEU61>0.015,AEU61=0.015),AET61-0.015*AET30,0))) -> . | AEU71: =IF(ISERROR(AET71/AET30),".",AET71/AET30) -> . | AEW71: =IF(AEW30="",".",MAX(IF(OR(AEX61>0.015,AEX61=0.015),AEW61-0.015*AEW30,0))) -> . | AEX71: =IF(ISERROR(AEW71/AEW30),".",AEW71/AEW30) -> . | AEZ71: =IF(AEZ30="",".",MAX(IF(OR(AFA61>0.015,AFA61=0.015),AEZ61-0.015*AEZ30,0))) -> . | AFA71: =IF(ISERROR(AEZ71/AEZ30),".",AEZ71/AEZ30) -> . | AFC71: =IF(AFC30="",".",MAX(IF(OR(AFD61>0.015,AFD61=0.015),AFC61-0.015*AFC30,0))) -> . | AFD71: =IF(ISERROR(AFC71/AFC30),".",AFC71/AFC30) -> . | AFF71: =IF(AFF30="",".",MAX(IF(OR(AFG61>0.015,AFG61=0.015),AFF61-0.015*AFF30,0))) -> . | AFG71: =IF(ISERROR(AFF71/AFF30),".",AFF71/AFF30) -> . | AFI71: =IF(AFI30="",".",MAX(IF(OR(AFJ61>0.015,AFJ61=0.015),AFI61-0.015*AFI30,0))) -> . | AFJ71: =IF(ISERROR(AFI71/AFI30),".",AFI71/AFI30) -> . | AFL71: =IF(AFL30="",".",MAX(IF(OR(AFM61>0.015,AFM61=0.015),AFL61-0.015*AFL30,0))) -> . | AFM71: =IF(ISERROR(AFL71/AFL30),".",AFL71/AFL30) -> . | AFO71: =IF(AFO30="",".",MAX(IF(OR(AFP61>0.015,AFP61=0.015),AFO61-0.015*AFO30,0))) -> . | AFP71: =IF(ISERROR(AFO71/AFO30),".",AFO71/AFO30) -> . | AFR71: =IF(AFR30="",".",MAX(IF(OR(AFS61>0.015,AFS61=0.015),AFR61-0.015*AFR30,0))) -> . | AFS71: =IF(ISERROR(AFR71/AFR30),".",AFR71/AFR30) -> . | AFU71: =IF(AFU30="",".",MAX(IF(OR(AFV61>0.015,AFV61=0.015),AFU61-0.015*AFU30,0))) -> . | AFV71: =IF(ISERROR(AFU71/AFU30),".",AFU71/AFU30) -> . | AFX71: =IF(AFX30="",".",MAX(IF(OR(AFY61>0.015,AFY61=0.015),AFX61-0.015*AFX30,0))) -> . | AFY71: =IF(ISERROR(AFX71/AFX30),".",AFX71/AFX30) -> . | AGA71: =IF(AGA30="",".",MAX(IF(OR(AGB61>0.015,AGB61=0.015),AGA61-0.015*AGA30,0))) -> . | AGB71: =IF(ISERROR(AGA71/AGA30),".",AGA71/AGA30) -> . | AGD71: =IF(AGD30="",".",MAX(IF(OR(AGE61>0.015,AGE61=0.015),AGD61-0.015*AGD30,0))) -> . | AGE71: =IF(ISERROR(AGD71/AGD30),".",AGD71/AGD30) -> . | AGG71: =IF(AGG30="",".",MAX(IF(OR(AGH61>0.015,AGH61=0.015),AGG61-0.015*AGG30,0))) -> . | AGH71: =IF(ISERROR(AGG71/AGG30),".",AGG71/AGG30) -> . | AGJ71: =IF(AGJ30="",".",MAX(IF(OR(AGK61>0.015,AGK61=0.015),AGJ61-0.015*AGJ30,0))) -> . | AGK71: =IF(ISERROR(AGJ71/AGJ30),".",AGJ71/AGJ30) -> . | AGM71: =IF(AGM30="",".",MAX(IF(OR(AGN61>0.015,AGN61=0.015),AGM61-0.015*AGM30,0))) -> . | AGN71: =IF(ISERROR(AGM71/AGM30),".",AGM71/AGM30) -> . | AGP71: =IF(AGP30="",".",MAX(IF(OR(AGQ61>0.015,AGQ61=0.015),AGP61-0.015*AGP30,0))) -> . | AGQ71: =IF(ISERROR(AGP71/AGP30),".",AGP71/AGP30) -> . | AGS71: =IF(AGS30="",".",MAX(IF(OR(AGT61>0.015,AGT61=0.015),AGS61-0.015*AGS30,0))) -> . | AGT71: =IF(ISERROR(AGS71/AGS30),".",AGS71/AGS30) -> . | AGV71: =IF(AGV30="",".",MAX(IF(OR(AGW61>0.015,AGW61=0.015),AGV61-0.015*AGV30,0))) -> . | AGW71: =IF(ISERROR(AGV71/AGV30),".",AGV71/AGV30) -> . | AGY71: =IF(AGY30="",".",MAX(IF(OR(AGZ61>0.015,AGZ61=0.015),AGY61-0.015*AGY30,0))) -> . | AGZ71: =IF(ISERROR(AGY71/AGY30),".",AGY71/AGY30) -> . | AHB71: =IF(AHB30="",".",MAX(IF(OR(AHC61>0.015,AHC61=0.015),AHB61-0.015*AHB30,0))) -> . | AHC71: =IF(ISERROR(AHB71/AHB30),".",AHB71/AHB30) -> . | AHE71: =IF(AHE30="",".",MAX(IF(OR(AHF61>0.015,AHF61=0.015),AHE61-0.015*AHE30,0))) -> . | AHF71: =IF(ISERROR(AHE71/AHE30),".",AHE71/AHE30) -> . | AHH71: =IF(AHH30="",".",MAX(IF(OR(AHI61>0.015,AHI61=0.015),AHH61-0.015*AHH30,0))) -> . | AHI71: =IF(ISERROR(AHH71/AHH30),".",AHH71/AHH30) -> . | AHK71: =IF(AHK30="",".",MAX(IF(OR(AHL61>0.015,AHL61=0.015),AHK61-0.015*AHK30,0))) -> . | AHL71: =IF(ISERROR(AHK71/AHK30),".",AHK71/AHK30) -> . | AHN71: =IF(AHN30="",".",MAX(IF(OR(AHO61>0.015,AHO61=0.015),AHN61-0.015*AHN30,0))) -> . | AHO71: =IF(ISERROR(AHN71/AHN30),".",AHN71/AHN30) -> . | AHQ71: =IF(AHQ30="",".",MAX(IF(OR(AHR61>0.015,AHR61=0.015),AHQ61-0.015*AHQ30,0))) -> . | AHR71: =IF(ISERROR(AHQ71/AHQ30),".",AHQ71/AHQ30) -> . | AHT71: =IF(AHT30="",".",MAX(IF(OR(AHU61>0.015,AHU61=0.015),AHT61-0.015*AHT30,0))) -> . | AHU71: =IF(ISERROR(AHT71/AHT30),".",AHT71/AHT30) -> .
B73: [G] | C73: Taxable income (after adjustments) as per [DT2] | G73: =IF(ISERROR(MAX(G68+G71,0)),".",MAX(G68+G71,0)) -> . | J73: =IF(ISERROR(MAX(J68+J71,0)),".",MAX(J68+J71,0)) -> 708699.8 | M73: =IF(ISERROR(MAX(M68+M71,0)),".",MAX(M68+M71,0)) -> 213500 | P73: =IF(ISERROR(MAX(P68+P71,0)),".",MAX(P68+P71,0)) -> . | S73: =IF(ISERROR(MAX(S68+S71,0)),".",MAX(S68+S71,0)) -> . | V73: =IF(ISERROR(MAX(V68+V71,0)),".",MAX(V68+V71,0)) -> . | Y73: =IF(ISERROR(MAX(Y68+Y71,0)),".",MAX(Y68+Y71,0)) -> 72500 | AB73: =IF(ISERROR(MAX(AB68+AB71,0)),".",MAX(AB68+AB71,0)) -> . | AE73: =IF(ISERROR(MAX(AE68+AE71,0)),".",MAX(AE68+AE71,0)) -> . | AH73: =IF(ISERROR(MAX(AH68+AH71,0)),".",MAX(AH68+AH71,0)) -> . | AK73: =IF(ISERROR(MAX(AK68+AK71,0)),".",MAX(AK68+AK71,0)) -> 0 | AN73: =IF(ISERROR(MAX(AN68+AN71,0)),".",MAX(AN68+AN71,0)) -> . | AQ73: =IF(ISERROR(MAX(AQ68+AQ71,0)),".",MAX(AQ68+AQ71,0)) -> . | AT73: =IF(ISERROR(MAX(AT68+AT71,0)),".",MAX(AT68+AT71,0)) -> . | AW73: =IF(ISERROR(MAX(AW68+AW71,0)),".",MAX(AW68+AW71,0)) -> . | AZ73: =IF(ISERROR(MAX(AZ68+AZ71,0)),".",MAX(AZ68+AZ71,0)) -> . | BC73: =IF(ISERROR(MAX(BC68+BC71,0)),".",MAX(BC68+BC71,0)) -> . | BF73: =IF(ISERROR(MAX(BF68+BF71,0)),".",MAX(BF68+BF71,0)) -> . | BI73: =IF(ISERROR(MAX(BI68+BI71,0)),".",MAX(BI68+BI71,0)) -> . | BL73: =IF(ISERROR(MAX(BL68+BL71,0)),".",MAX(BL68+BL71,0)) -> . | BO73: =IF(ISERROR(MAX(BO68+BO71,0)),".",MAX(BO68+BO71,0)) -> . | BR73: =IF(ISERROR(MAX(BR68+BR71,0)),".",MAX(BR68+BR71,0)) -> . | BU73: =IF(ISERROR(MAX(BU68+BU71,0)),".",MAX(BU68+BU71,0)) -> . | BX73: =IF(ISERROR(MAX(BX68+BX71,0)),".",MAX(BX68+BX71,0)) -> . | CA73: =IF(ISERROR(MAX(CA68+CA71,0)),".",MAX(CA68+CA71,0)) -> . | CD73: =IF(ISERROR(MAX(CD68+CD71,0)),".",MAX(CD68+CD71,0)) -> . | CG73: =IF(ISERROR(MAX(CG68+CG71,0)),".",MAX(CG68+CG71,0)) -> . | CJ73: =IF(ISERROR(MAX(CJ68+CJ71,0)),".",MAX(CJ68+CJ71,0)) -> . | CM73: =IF(ISERROR(MAX(CM68+CM71,0)),".",MAX(CM68+CM71,0)) -> . | CP73: =IF(ISERROR(MAX(CP68+CP71,0)),".",MAX(CP68+CP71,0)) -> . | CS73: =IF(ISERROR(MAX(CS68+CS71,0)),".",MAX(CS68+CS71,0)) -> . | CV73: =IF(ISERROR(MAX(CV68+CV71,0)),".",MAX(CV68+CV71,0)) -> . | CY73: =IF(ISERROR(MAX(CY68+CY71,0)),".",MAX(CY68+CY71,0)) -> . | DB73: =IF(ISERROR(MAX(DB68+DB71,0)),".",MAX(DB68+DB71,0)) -> . | DE73: =IF(ISERROR(MAX(DE68+DE71,0)),".",MAX(DE68+DE71,0)) -> . | DH73: =IF(ISERROR(MAX(DH68+DH71,0)),".",MAX(DH68+DH71,0)) -> . | DK73: =IF(ISERROR(MAX(DK68+DK71,0)),".",MAX(DK68+DK71,0)) -> . | DN73: =IF(ISERROR(MAX(DN68+DN71,0)),".",MAX(DN68+DN71,0)) -> . | DQ73: =IF(ISERROR(MAX(DQ68+DQ71,0)),".",MAX(DQ68+DQ71,0)) -> . | DT73: =IF(ISERROR(MAX(DT68+DT71,0)),".",MAX(DT68+DT71,0)) -> . | DW73: =IF(ISERROR(MAX(DW68+DW71,0)),".",MAX(DW68+DW71,0)) -> . | DZ73: =IF(ISERROR(MAX(DZ68+DZ71,0)),".",MAX(DZ68+DZ71,0)) -> . | EC73: =IF(ISERROR(MAX(EC68+EC71,0)),".",MAX(EC68+EC71,0)) -> . | EF73: =IF(ISERROR(MAX(EF68+EF71,0)),".",MAX(EF68+EF71,0)) -> . | EI73: =IF(ISERROR(MAX(EI68+EI71,0)),".",MAX(EI68+EI71,0)) -> . | EL73: =IF(ISERROR(MAX(EL68+EL71,0)),".",MAX(EL68+EL71,0)) -> . | EO73: =IF(ISERROR(MAX(EO68+EO71,0)),".",MAX(EO68+EO71,0)) -> . | ER73: =IF(ISERROR(MAX(ER68+ER71,0)),".",MAX(ER68+ER71,0)) -> . | EU73: =IF(ISERROR(MAX(EU68+EU71,0)),".",MAX(EU68+EU71,0)) -> . | EX73: =IF(ISERROR(MAX(EX68+EX71,0)),".",MAX(EX68+EX71,0)) -> . | FA73: =IF(ISERROR(MAX(FA68+FA71,0)),".",MAX(FA68+FA71,0)) -> . | FD73: =IF(ISERROR(MAX(FD68+FD71,0)),".",MAX(FD68+FD71,0)) -> . | FG73: =IF(ISERROR(MAX(FG68+FG71,0)),".",MAX(FG68+FG71,0)) -> . | FJ73: =IF(ISERROR(MAX(FJ68+FJ71,0)),".",MAX(FJ68+FJ71,0)) -> . | FM73: =IF(ISERROR(MAX(FM68+FM71,0)),".",MAX(FM68+FM71,0)) -> . | FP73: =IF(ISERROR(MAX(FP68+FP71,0)),".",MAX(FP68+FP71,0)) -> . | FS73: =IF(ISERROR(MAX(FS68+FS71,0)),".",MAX(FS68+FS71,0)) -> . | FV73: =IF(ISERROR(MAX(FV68+FV71,0)),".",MAX(FV68+FV71,0)) -> . | FY73: =IF(ISERROR(MAX(FY68+FY71,0)),".",MAX(FY68+FY71,0)) -> . | GB73: =IF(ISERROR(MAX(GB68+GB71,0)),".",MAX(GB68+GB71,0)) -> . | GE73: =IF(ISERROR(MAX(GE68+GE71,0)),".",MAX(GE68+GE71,0)) -> . | GH73: =IF(ISERROR(MAX(GH68+GH71,0)),".",MAX(GH68+GH71,0)) -> . | GK73: =IF(ISERROR(MAX(GK68+GK71,0)),".",MAX(GK68+GK71,0)) -> . | GN73: =IF(ISERROR(MAX(GN68+GN71,0)),".",MAX(GN68+GN71,0)) -> . | GQ73: =IF(ISERROR(MAX(GQ68+GQ71,0)),".",MAX(GQ68+GQ71,0)) -> . | GT73: =IF(ISERROR(MAX(GT68+GT71,0)),".",MAX(GT68+GT71,0)) -> . | GW73: =IF(ISERROR(MAX(GW68+GW71,0)),".",MAX(GW68+GW71,0)) -> . | GZ73: =IF(ISERROR(MAX(GZ68+GZ71,0)),".",MAX(GZ68+GZ71,0)) -> . | HC73: =IF(ISERROR(MAX(HC68+HC71,0)),".",MAX(HC68+HC71,0)) -> . | HF73: =IF(ISERROR(MAX(HF68+HF71,0)),".",MAX(HF68+HF71,0)) -> . | HI73: =IF(ISERROR(MAX(HI68+HI71,0)),".",MAX(HI68+HI71,0)) -> . | HL73: =IF(ISERROR(MAX(HL68+HL71,0)),".",MAX(HL68+HL71,0)) -> . | HO73: =IF(ISERROR(MAX(HO68+HO71,0)),".",MAX(HO68+HO71,0)) -> . | HR73: =IF(ISERROR(MAX(HR68+HR71,0)),".",MAX(HR68+HR71,0)) -> . | HU73: =IF(ISERROR(MAX(HU68+HU71,0)),".",MAX(HU68+HU71,0)) -> . | HX73: =IF(ISERROR(MAX(HX68+HX71,0)),".",MAX(HX68+HX71,0)) -> . | IA73: =IF(ISERROR(MAX(IA68+IA71,0)),".",MAX(IA68+IA71,0)) -> . | ID73: =IF(ISERROR(MAX(ID68+ID71,0)),".",MAX(ID68+ID71,0)) -> . | IG73: =IF(ISERROR(MAX(IG68+IG71,0)),".",MAX(IG68+IG71,0)) -> . | IJ73: =IF(ISERROR(MAX(IJ68+IJ71,0)),".",MAX(IJ68+IJ71,0)) -> . | IM73: =IF(ISERROR(MAX(IM68+IM71,0)),".",MAX(IM68+IM71,0)) -> . | IP73: =IF(ISERROR(MAX(IP68+IP71,0)),".",MAX(IP68+IP71,0)) -> . | IS73: =IF(ISERROR(MAX(IS68+IS71,0)),".",MAX(IS68+IS71,0)) -> . | IV73: =IF(ISERROR(MAX(IV68+IV71,0)),".",MAX(IV68+IV71,0)) -> . | IY73: =IF(ISERROR(MAX(IY68+IY71,0)),".",MAX(IY68+IY71,0)) -> . | JB73: =IF(ISERROR(MAX(JB68+JB71,0)),".",MAX(JB68+JB71,0)) -> . | JE73: =IF(ISERROR(MAX(JE68+JE71,0)),".",MAX(JE68+JE71,0)) -> . | JH73: =IF(ISERROR(MAX(JH68+JH71,0)),".",MAX(JH68+JH71,0)) -> . | JK73: =IF(ISERROR(MAX(JK68+JK71,0)),".",MAX(JK68+JK71,0)) -> . | JN73: =IF(ISERROR(MAX(JN68+JN71,0)),".",MAX(JN68+JN71,0)) -> . | JQ73: =IF(ISERROR(MAX(JQ68+JQ71,0)),".",MAX(JQ68+JQ71,0)) -> . | JT73: =IF(ISERROR(MAX(JT68+JT71,0)),".",MAX(JT68+JT71,0)) -> . | JW73: =IF(ISERROR(MAX(JW68+JW71,0)),".",MAX(JW68+JW71,0)) -> . | JZ73: =IF(ISERROR(MAX(JZ68+JZ71,0)),".",MAX(JZ68+JZ71,0)) -> . | KC73: =IF(ISERROR(MAX(KC68+KC71,0)),".",MAX(KC68+KC71,0)) -> . | KF73: =IF(ISERROR(MAX(KF68+KF71,0)),".",MAX(KF68+KF71,0)) -> . | KI73: =IF(ISERROR(MAX(KI68+KI71,0)),".",MAX(KI68+KI71,0)) -> . | KL73: =IF(ISERROR(MAX(KL68+KL71,0)),".",MAX(KL68+KL71,0)) -> . | KO73: =IF(ISERROR(MAX(KO68+KO71,0)),".",MAX(KO68+KO71,0)) -> . | KR73: =IF(ISERROR(MAX(KR68+KR71,0)),".",MAX(KR68+KR71,0)) -> . | KU73: =IF(ISERROR(MAX(KU68+KU71,0)),".",MAX(KU68+KU71,0)) -> . | KX73: =IF(ISERROR(MAX(KX68+KX71,0)),".",MAX(KX68+KX71,0)) -> . | LA73: =IF(ISERROR(MAX(LA68+LA71,0)),".",MAX(LA68+LA71,0)) -> . | LD73: =IF(ISERROR(MAX(LD68+LD71,0)),".",MAX(LD68+LD71,0)) -> . | LG73: =IF(ISERROR(MAX(LG68+LG71,0)),".",MAX(LG68+LG71,0)) -> . | LJ73: =IF(ISERROR(MAX(LJ68+LJ71,0)),".",MAX(LJ68+LJ71,0)) -> . | LM73: =IF(ISERROR(MAX(LM68+LM71,0)),".",MAX(LM68+LM71,0)) -> . | LP73: =IF(ISERROR(MAX(LP68+LP71,0)),".",MAX(LP68+LP71,0)) -> . | LS73: =IF(ISERROR(MAX(LS68+LS71,0)),".",MAX(LS68+LS71,0)) -> . | LV73: =IF(ISERROR(MAX(LV68+LV71,0)),".",MAX(LV68+LV71,0)) -> . | LY73: =IF(ISERROR(MAX(LY68+LY71,0)),".",MAX(LY68+LY71,0)) -> . | MB73: =IF(ISERROR(MAX(MB68+MB71,0)),".",MAX(MB68+MB71,0)) -> . | ME73: =IF(ISERROR(MAX(ME68+ME71,0)),".",MAX(ME68+ME71,0)) -> . | MH73: =IF(ISERROR(MAX(MH68+MH71,0)),".",MAX(MH68+MH71,0)) -> . | MK73: =IF(ISERROR(MAX(MK68+MK71,0)),".",MAX(MK68+MK71,0)) -> . | MN73: =IF(ISERROR(MAX(MN68+MN71,0)),".",MAX(MN68+MN71,0)) -> . | MQ73: =IF(ISERROR(MAX(MQ68+MQ71,0)),".",MAX(MQ68+MQ71,0)) -> . | MT73: =IF(ISERROR(MAX(MT68+MT71,0)),".",MAX(MT68+MT71,0)) -> . | MW73: =IF(ISERROR(MAX(MW68+MW71,0)),".",MAX(MW68+MW71,0)) -> . | MZ73: =IF(ISERROR(MAX(MZ68+MZ71,0)),".",MAX(MZ68+MZ71,0)) -> . | NC73: =IF(ISERROR(MAX(NC68+NC71,0)),".",MAX(NC68+NC71,0)) -> . | NF73: =IF(ISERROR(MAX(NF68+NF71,0)),".",MAX(NF68+NF71,0)) -> . | NI73: =IF(ISERROR(MAX(NI68+NI71,0)),".",MAX(NI68+NI71,0)) -> . | NL73: =IF(ISERROR(MAX(NL68+NL71,0)),".",MAX(NL68+NL71,0)) -> . | NO73: =IF(ISERROR(MAX(NO68+NO71,0)),".",MAX(NO68+NO71,0)) -> . | NR73: =IF(ISERROR(MAX(NR68+NR71,0)),".",MAX(NR68+NR71,0)) -> . | NU73: =IF(ISERROR(MAX(NU68+NU71,0)),".",MAX(NU68+NU71,0)) -> . | NX73: =IF(ISERROR(MAX(NX68+NX71,0)),".",MAX(NX68+NX71,0)) -> . | OA73: =IF(ISERROR(MAX(OA68+OA71,0)),".",MAX(OA68+OA71,0)) -> . | OD73: =IF(ISERROR(MAX(OD68+OD71,0)),".",MAX(OD68+OD71,0)) -> . | OG73: =IF(ISERROR(MAX(OG68+OG71,0)),".",MAX(OG68+OG71,0)) -> . | OJ73: =IF(ISERROR(MAX(OJ68+OJ71,0)),".",MAX(OJ68+OJ71,0)) -> . | OM73: =IF(ISERROR(MAX(OM68+OM71,0)),".",MAX(OM68+OM71,0)) -> . | OP73: =IF(ISERROR(MAX(OP68+OP71,0)),".",MAX(OP68+OP71,0)) -> . | OS73: =IF(ISERROR(MAX(OS68+OS71,0)),".",MAX(OS68+OS71,0)) -> . | OV73: =IF(ISERROR(MAX(OV68+OV71,0)),".",MAX(OV68+OV71,0)) -> . | OY73: =IF(ISERROR(MAX(OY68+OY71,0)),".",MAX(OY68+OY71,0)) -> . | PB73: =IF(ISERROR(MAX(PB68+PB71,0)),".",MAX(PB68+PB71,0)) -> . | PE73: =IF(ISERROR(MAX(PE68+PE71,0)),".",MAX(PE68+PE71,0)) -> . | PH73: =IF(ISERROR(MAX(PH68+PH71,0)),".",MAX(PH68+PH71,0)) -> . | PK73: =IF(ISERROR(MAX(PK68+PK71,0)),".",MAX(PK68+PK71,0)) -> . | PN73: =IF(ISERROR(MAX(PN68+PN71,0)),".",MAX(PN68+PN71,0)) -> . | PQ73: =IF(ISERROR(MAX(PQ68+PQ71,0)),".",MAX(PQ68+PQ71,0)) -> . | PT73: =IF(ISERROR(MAX(PT68+PT71,0)),".",MAX(PT68+PT71,0)) -> . | PW73: =IF(ISERROR(MAX(PW68+PW71,0)),".",MAX(PW68+PW71,0)) -> . | PZ73: =IF(ISERROR(MAX(PZ68+PZ71,0)),".",MAX(PZ68+PZ71,0)) -> . | QC73: =IF(ISERROR(MAX(QC68+QC71,0)),".",MAX(QC68+QC71,0)) -> . | QF73: =IF(ISERROR(MAX(QF68+QF71,0)),".",MAX(QF68+QF71,0)) -> . | QI73: =IF(ISERROR(MAX(QI68+QI71,0)),".",MAX(QI68+QI71,0)) -> . | QL73: =IF(ISERROR(MAX(QL68+QL71,0)),".",MAX(QL68+QL71,0)) -> . | QO73: =IF(ISERROR(MAX(QO68+QO71,0)),".",MAX(QO68+QO71,0)) -> . | QR73: =IF(ISERROR(MAX(QR68+QR71,0)),".",MAX(QR68+QR71,0)) -> . | QU73: =IF(ISERROR(MAX(QU68+QU71,0)),".",MAX(QU68+QU71,0)) -> . | QX73: =IF(ISERROR(MAX(QX68+QX71,0)),".",MAX(QX68+QX71,0)) -> . | RA73: =IF(ISERROR(MAX(RA68+RA71,0)),".",MAX(RA68+RA71,0)) -> . | RD73: =IF(ISERROR(MAX(RD68+RD71,0)),".",MAX(RD68+RD71,0)) -> . | RG73: =IF(ISERROR(MAX(RG68+RG71,0)),".",MAX(RG68+RG71,0)) -> . | RJ73: =IF(ISERROR(MAX(RJ68+RJ71,0)),".",MAX(RJ68+RJ71,0)) -> . | RM73: =IF(ISERROR(MAX(RM68+RM71,0)),".",MAX(RM68+RM71,0)) -> . | RP73: =IF(ISERROR(MAX(RP68+RP71,0)),".",MAX(RP68+RP71,0)) -> . | RS73: =IF(ISERROR(MAX(RS68+RS71,0)),".",MAX(RS68+RS71,0)) -> . | RV73: =IF(ISERROR(MAX(RV68+RV71,0)),".",MAX(RV68+RV71,0)) -> . | RY73: =IF(ISERROR(MAX(RY68+RY71,0)),".",MAX(RY68+RY71,0)) -> . | SB73: =IF(ISERROR(MAX(SB68+SB71,0)),".",MAX(SB68+SB71,0)) -> . | SE73: =IF(ISERROR(MAX(SE68+SE71,0)),".",MAX(SE68+SE71,0)) -> . | SH73: =IF(ISERROR(MAX(SH68+SH71,0)),".",MAX(SH68+SH71,0)) -> . | SK73: =IF(ISERROR(MAX(SK68+SK71,0)),".",MAX(SK68+SK71,0)) -> . | SN73: =IF(ISERROR(MAX(SN68+SN71,0)),".",MAX(SN68+SN71,0)) -> . | SQ73: =IF(ISERROR(MAX(SQ68+SQ71,0)),".",MAX(SQ68+SQ71,0)) -> . | ST73: =IF(ISERROR(MAX(ST68+ST71,0)),".",MAX(ST68+ST71,0)) -> . | SW73: =IF(ISERROR(MAX(SW68+SW71,0)),".",MAX(SW68+SW71,0)) -> . | SZ73: =IF(ISERROR(MAX(SZ68+SZ71,0)),".",MAX(SZ68+SZ71,0)) -> . | TC73: =IF(ISERROR(MAX(TC68+TC71,0)),".",MAX(TC68+TC71,0)) -> . | TF73: =IF(ISERROR(MAX(TF68+TF71,0)),".",MAX(TF68+TF71,0)) -> . | TI73: =IF(ISERROR(MAX(TI68+TI71,0)),".",MAX(TI68+TI71,0)) -> . | TL73: =IF(ISERROR(MAX(TL68+TL71,0)),".",MAX(TL68+TL71,0)) -> . | TO73: =IF(ISERROR(MAX(TO68+TO71,0)),".",MAX(TO68+TO71,0)) -> . | TR73: =IF(ISERROR(MAX(TR68+TR71,0)),".",MAX(TR68+TR71,0)) -> . | TU73: =IF(ISERROR(MAX(TU68+TU71,0)),".",MAX(TU68+TU71,0)) -> . | TX73: =IF(ISERROR(MAX(TX68+TX71,0)),".",MAX(TX68+TX71,0)) -> . | UA73: =IF(ISERROR(MAX(UA68+UA71,0)),".",MAX(UA68+UA71,0)) -> . | UD73: =IF(ISERROR(MAX(UD68+UD71,0)),".",MAX(UD68+UD71,0)) -> . | UG73: =IF(ISERROR(MAX(UG68+UG71,0)),".",MAX(UG68+UG71,0)) -> . | UJ73: =IF(ISERROR(MAX(UJ68+UJ71,0)),".",MAX(UJ68+UJ71,0)) -> . | UM73: =IF(ISERROR(MAX(UM68+UM71,0)),".",MAX(UM68+UM71,0)) -> . | UP73: =IF(ISERROR(MAX(UP68+UP71,0)),".",MAX(UP68+UP71,0)) -> . | US73: =IF(ISERROR(MAX(US68+US71,0)),".",MAX(US68+US71,0)) -> . | UV73: =IF(ISERROR(MAX(UV68+UV71,0)),".",MAX(UV68+UV71,0)) -> . | UY73: =IF(ISERROR(MAX(UY68+UY71,0)),".",MAX(UY68+UY71,0)) -> . | VB73: =IF(ISERROR(MAX(VB68+VB71,0)),".",MAX(VB68+VB71,0)) -> . | VE73: =IF(ISERROR(MAX(VE68+VE71,0)),".",MAX(VE68+VE71,0)) -> . | VH73: =IF(ISERROR(MAX(VH68+VH71,0)),".",MAX(VH68+VH71,0)) -> . | VK73: =IF(ISERROR(MAX(VK68+VK71,0)),".",MAX(VK68+VK71,0)) -> . | VN73: =IF(ISERROR(MAX(VN68+VN71,0)),".",MAX(VN68+VN71,0)) -> . | VQ73: =IF(ISERROR(MAX(VQ68+VQ71,0)),".",MAX(VQ68+VQ71,0)) -> . | VT73: =IF(ISERROR(MAX(VT68+VT71,0)),".",MAX(VT68+VT71,0)) -> . | VW73: =IF(ISERROR(MAX(VW68+VW71,0)),".",MAX(VW68+VW71,0)) -> . | VZ73: =IF(ISERROR(MAX(VZ68+VZ71,0)),".",MAX(VZ68+VZ71,0)) -> . | WC73: =IF(ISERROR(MAX(WC68+WC71,0)),".",MAX(WC68+WC71,0)) -> . | WF73: =IF(ISERROR(MAX(WF68+WF71,0)),".",MAX(WF68+WF71,0)) -> . | WI73: =IF(ISERROR(MAX(WI68+WI71,0)),".",MAX(WI68+WI71,0)) -> . | WL73: =IF(ISERROR(MAX(WL68+WL71,0)),".",MAX(WL68+WL71,0)) -> . | WO73: =IF(ISERROR(MAX(WO68+WO71,0)),".",MAX(WO68+WO71,0)) -> . | WR73: =IF(ISERROR(MAX(WR68+WR71,0)),".",MAX(WR68+WR71,0)) -> . | WU73: =IF(ISERROR(MAX(WU68+WU71,0)),".",MAX(WU68+WU71,0)) -> . | WX73: =IF(ISERROR(MAX(WX68+WX71,0)),".",MAX(WX68+WX71,0)) -> . | XA73: =IF(ISERROR(MAX(XA68+XA71,0)),".",MAX(XA68+XA71,0)) -> . | XD73: =IF(ISERROR(MAX(XD68+XD71,0)),".",MAX(XD68+XD71,0)) -> . | XG73: =IF(ISERROR(MAX(XG68+XG71,0)),".",MAX(XG68+XG71,0)) -> . | XJ73: =IF(ISERROR(MAX(XJ68+XJ71,0)),".",MAX(XJ68+XJ71,0)) -> . | XM73: =IF(ISERROR(MAX(XM68+XM71,0)),".",MAX(XM68+XM71,0)) -> . | XP73: =IF(ISERROR(MAX(XP68+XP71,0)),".",MAX(XP68+XP71,0)) -> . | XS73: =IF(ISERROR(MAX(XS68+XS71,0)),".",MAX(XS68+XS71,0)) -> . | XV73: =IF(ISERROR(MAX(XV68+XV71,0)),".",MAX(XV68+XV71,0)) -> . | XY73: =IF(ISERROR(MAX(XY68+XY71,0)),".",MAX(XY68+XY71,0)) -> . | YB73: =IF(ISERROR(MAX(YB68+YB71,0)),".",MAX(YB68+YB71,0)) -> . | YE73: =IF(ISERROR(MAX(YE68+YE71,0)),".",MAX(YE68+YE71,0)) -> . | YH73: =IF(ISERROR(MAX(YH68+YH71,0)),".",MAX(YH68+YH71,0)) -> . | YK73: =IF(ISERROR(MAX(YK68+YK71,0)),".",MAX(YK68+YK71,0)) -> . | YN73: =IF(ISERROR(MAX(YN68+YN71,0)),".",MAX(YN68+YN71,0)) -> . | YQ73: =IF(ISERROR(MAX(YQ68+YQ71,0)),".",MAX(YQ68+YQ71,0)) -> . | YT73: =IF(ISERROR(MAX(YT68+YT71,0)),".",MAX(YT68+YT71,0)) -> . | YW73: =IF(ISERROR(MAX(YW68+YW71,0)),".",MAX(YW68+YW71,0)) -> . | YZ73: =IF(ISERROR(MAX(YZ68+YZ71,0)),".",MAX(YZ68+YZ71,0)) -> . | ZC73: =IF(ISERROR(MAX(ZC68+ZC71,0)),".",MAX(ZC68+ZC71,0)) -> . | ZF73: =IF(ISERROR(MAX(ZF68+ZF71,0)),".",MAX(ZF68+ZF71,0)) -> . | ZI73: =IF(ISERROR(MAX(ZI68+ZI71,0)),".",MAX(ZI68+ZI71,0)) -> . | ZL73: =IF(ISERROR(MAX(ZL68+ZL71,0)),".",MAX(ZL68+ZL71,0)) -> . | ZO73: =IF(ISERROR(MAX(ZO68+ZO71,0)),".",MAX(ZO68+ZO71,0)) -> . | ZR73: =IF(ISERROR(MAX(ZR68+ZR71,0)),".",MAX(ZR68+ZR71,0)) -> . | ZU73: =IF(ISERROR(MAX(ZU68+ZU71,0)),".",MAX(ZU68+ZU71,0)) -> . | ZX73: =IF(ISERROR(MAX(ZX68+ZX71,0)),".",MAX(ZX68+ZX71,0)) -> . | AAA73: =IF(ISERROR(MAX(AAA68+AAA71,0)),".",MAX(AAA68+AAA71,0)) -> . | AAD73: =IF(ISERROR(MAX(AAD68+AAD71,0)),".",MAX(AAD68+AAD71,0)) -> . | AAG73: =IF(ISERROR(MAX(AAG68+AAG71,0)),".",MAX(AAG68+AAG71,0)) -> . | AAJ73: =IF(ISERROR(MAX(AAJ68+AAJ71,0)),".",MAX(AAJ68+AAJ71,0)) -> . | AAM73: =IF(ISERROR(MAX(AAM68+AAM71,0)),".",MAX(AAM68+AAM71,0)) -> . | AAP73: =IF(ISERROR(MAX(AAP68+AAP71,0)),".",MAX(AAP68+AAP71,0)) -> . | AAS73: =IF(ISERROR(MAX(AAS68+AAS71,0)),".",MAX(AAS68+AAS71,0)) -> . | AAV73: =IF(ISERROR(MAX(AAV68+AAV71,0)),".",MAX(AAV68+AAV71,0)) -> . | AAY73: =IF(ISERROR(MAX(AAY68+AAY71,0)),".",MAX(AAY68+AAY71,0)) -> . | ABB73: =IF(ISERROR(MAX(ABB68+ABB71,0)),".",MAX(ABB68+ABB71,0)) -> . | ABE73: =IF(ISERROR(MAX(ABE68+ABE71,0)),".",MAX(ABE68+ABE71,0)) -> . | ABH73: =IF(ISERROR(MAX(ABH68+ABH71,0)),".",MAX(ABH68+ABH71,0)) -> . | ABK73: =IF(ISERROR(MAX(ABK68+ABK71,0)),".",MAX(ABK68+ABK71,0)) -> . | ABN73: =IF(ISERROR(MAX(ABN68+ABN71,0)),".",MAX(ABN68+ABN71,0)) -> . | ABQ73: =IF(ISERROR(MAX(ABQ68+ABQ71,0)),".",MAX(ABQ68+ABQ71,0)) -> . | ABT73: =IF(ISERROR(MAX(ABT68+ABT71,0)),".",MAX(ABT68+ABT71,0)) -> . | ABW73: =IF(ISERROR(MAX(ABW68+ABW71,0)),".",MAX(ABW68+ABW71,0)) -> . | ABZ73: =IF(ISERROR(MAX(ABZ68+ABZ71,0)),".",MAX(ABZ68+ABZ71,0)) -> . | ACC73: =IF(ISERROR(MAX(ACC68+ACC71,0)),".",MAX(ACC68+ACC71,0)) -> . | ACF73: =IF(ISERROR(MAX(ACF68+ACF71,0)),".",MAX(ACF68+ACF71,0)) -> . | ACI73: =IF(ISERROR(MAX(ACI68+ACI71,0)),".",MAX(ACI68+ACI71,0)) -> . | ACL73: =IF(ISERROR(MAX(ACL68+ACL71,0)),".",MAX(ACL68+ACL71,0)) -> . | ACO73: =IF(ISERROR(MAX(ACO68+ACO71,0)),".",MAX(ACO68+ACO71,0)) -> . | ACR73: =IF(ISERROR(MAX(ACR68+ACR71,0)),".",MAX(ACR68+ACR71,0)) -> . | ACU73: =IF(ISERROR(MAX(ACU68+ACU71,0)),".",MAX(ACU68+ACU71,0)) -> . | ACX73: =IF(ISERROR(MAX(ACX68+ACX71,0)),".",MAX(ACX68+ACX71,0)) -> . | ADA73: =IF(ISERROR(MAX(ADA68+ADA71,0)),".",MAX(ADA68+ADA71,0)) -> . | ADD73: =IF(ISERROR(MAX(ADD68+ADD71,0)),".",MAX(ADD68+ADD71,0)) -> . | ADG73: =IF(ISERROR(MAX(ADG68+ADG71,0)),".",MAX(ADG68+ADG71,0)) -> . | ADJ73: =IF(ISERROR(MAX(ADJ68+ADJ71,0)),".",MAX(ADJ68+ADJ71,0)) -> . | ADM73: =IF(ISERROR(MAX(ADM68+ADM71,0)),".",MAX(ADM68+ADM71,0)) -> . | ADP73: =IF(ISERROR(MAX(ADP68+ADP71,0)),".",MAX(ADP68+ADP71,0)) -> . | ADS73: =IF(ISERROR(MAX(ADS68+ADS71,0)),".",MAX(ADS68+ADS71,0)) -> . | ADV73: =IF(ISERROR(MAX(ADV68+ADV71,0)),".",MAX(ADV68+ADV71,0)) -> . | ADY73: =IF(ISERROR(MAX(ADY68+ADY71,0)),".",MAX(ADY68+ADY71,0)) -> . | AEB73: =IF(ISERROR(MAX(AEB68+AEB71,0)),".",MAX(AEB68+AEB71,0)) -> . | AEE73: =IF(ISERROR(MAX(AEE68+AEE71,0)),".",MAX(AEE68+AEE71,0)) -> . | AEH73: =IF(ISERROR(MAX(AEH68+AEH71,0)),".",MAX(AEH68+AEH71,0)) -> . | AEK73: =IF(ISERROR(MAX(AEK68+AEK71,0)),".",MAX(AEK68+AEK71,0)) -> . | AEN73: =IF(ISERROR(MAX(AEN68+AEN71,0)),".",MAX(AEN68+AEN71,0)) -> . | AEQ73: =IF(ISERROR(MAX(AEQ68+AEQ71,0)),".",MAX(AEQ68+AEQ71,0)) -> . | AET73: =IF(ISERROR(MAX(AET68+AET71,0)),".",MAX(AET68+AET71,0)) -> . | AEW73: =IF(ISERROR(MAX(AEW68+AEW71,0)),".",MAX(AEW68+AEW71,0)) -> . | AEZ73: =IF(ISERROR(MAX(AEZ68+AEZ71,0)),".",MAX(AEZ68+AEZ71,0)) -> . | AFC73: =IF(ISERROR(MAX(AFC68+AFC71,0)),".",MAX(AFC68+AFC71,0)) -> . | AFF73: =IF(ISERROR(MAX(AFF68+AFF71,0)),".",MAX(AFF68+AFF71,0)) -> . | AFI73: =IF(ISERROR(MAX(AFI68+AFI71,0)),".",MAX(AFI68+AFI71,0)) -> . | AFL73: =IF(ISERROR(MAX(AFL68+AFL71,0)),".",MAX(AFL68+AFL71,0)) -> . | AFO73: =IF(ISERROR(MAX(AFO68+AFO71,0)),".",MAX(AFO68+AFO71,0)) -> . | AFR73: =IF(ISERROR(MAX(AFR68+AFR71,0)),".",MAX(AFR68+AFR71,0)) -> . | AFU73: =IF(ISERROR(MAX(AFU68+AFU71,0)),".",MAX(AFU68+AFU71,0)) -> . | AFX73: =IF(ISERROR(MAX(AFX68+AFX71,0)),".",MAX(AFX68+AFX71,0)) -> . | AGA73: =IF(ISERROR(MAX(AGA68+AGA71,0)),".",MAX(AGA68+AGA71,0)) -> . | AGD73: =IF(ISERROR(MAX(AGD68+AGD71,0)),".",MAX(AGD68+AGD71,0)) -> . | AGG73: =IF(ISERROR(MAX(AGG68+AGG71,0)),".",MAX(AGG68+AGG71,0)) -> . | AGJ73: =IF(ISERROR(MAX(AGJ68+AGJ71,0)),".",MAX(AGJ68+AGJ71,0)) -> . | AGM73: =IF(ISERROR(MAX(AGM68+AGM71,0)),".",MAX(AGM68+AGM71,0)) -> . | AGP73: =IF(ISERROR(MAX(AGP68+AGP71,0)),".",MAX(AGP68+AGP71,0)) -> . | AGS73: =IF(ISERROR(MAX(AGS68+AGS71,0)),".",MAX(AGS68+AGS71,0)) -> . | AGV73: =IF(ISERROR(MAX(AGV68+AGV71,0)),".",MAX(AGV68+AGV71,0)) -> . | AGY73: =IF(ISERROR(MAX(AGY68+AGY71,0)),".",MAX(AGY68+AGY71,0)) -> . | AHB73: =IF(ISERROR(MAX(AHB68+AHB71,0)),".",MAX(AHB68+AHB71,0)) -> . | AHE73: =IF(ISERROR(MAX(AHE68+AHE71,0)),".",MAX(AHE68+AHE71,0)) -> . | AHH73: =IF(ISERROR(MAX(AHH68+AHH71,0)),".",MAX(AHH68+AHH71,0)) -> . | AHK73: =IF(ISERROR(MAX(AHK68+AHK71,0)),".",MAX(AHK68+AHK71,0)) -> . | AHN73: =IF(ISERROR(MAX(AHN68+AHN71,0)),".",MAX(AHN68+AHN71,0)) -> . | AHQ73: =IF(ISERROR(MAX(AHQ68+AHQ71,0)),".",MAX(AHQ68+AHQ71,0)) -> . | AHT73: =IF(ISERROR(MAX(AHT68+AHT71,0)),".",MAX(AHT68+AHT71,0)) -> .
C79: Taxable income per share for Swiss tax purposes in FoF currency
B81: [H] | C81: Taxable income per share in TF currency according to "Kursliste" of FTA | G81: 4.38 | P81: 1.5 | S81: 2.14 | V81: 792.67
B82: [H] | C82: If not available, Taxable income per share in TF currency as per [DT2] [G] / [B] | G82: . | J82: =MAX(TRUNC(J73/J31,IF(J73/J31<1,5,IF(AND(OR(J73/J31=1,J73/J31>1),J73/J31<100),3,IF(OR(J73/J31=100,J73/J31>100),2)))),TRUNC(0,5)) -> 141.73 | M82: =MAX(TRUNC(M73/M31,IF(M73/M31<1,5,IF(AND(OR(M73/M31=1,M73/M31>1),M73/M31<100),3,IF(OR(M73/M31=100,M73/M31>100),2)))),TRUNC(0,5)) -> 101.66 | P82: . | S82: . | V82: . | Y82: =MAX(TRUNC(Y73/Y31,IF(Y73/Y31<1,5,IF(AND(OR(Y73/Y31=1,Y73/Y31>1),Y73/Y31<100),3,IF(OR(Y73/Y31=100,Y73/Y31>100),2)))),TRUNC(0,5)) -> 7.25 | AB82: . | AE82: . | AH82: . | AK82: =MAX(TRUNC(AK73/AK31,IF(AK73/AK31<1,5,IF(AND(OR(AK73/AK31=1,AK73/AK31>1),AK73/AK31<100),3,IF(OR(AK73/AK31=100,AK73/AK31>100),2)))),TRUNC(0,5)) -> 0 | AN82: . | AQ82: . | AT82: . | AW82: . | AZ82: . | BC82: . | BF82: . | BI82: . | BL82: . | BO82: . | BR82: . | BU82: . | BX82: . | CA82: . | CD82: . | CG82: . | CJ82: . | CM82: . | CP82: . | CS82: . | CV82: . | CY82: . | DB82: . | DE82: . | DH82: . | DK82: . | DN82: . | DQ82: . | DT82: . | DW82: . | DZ82: . | EC82: . | EF82: . | EI82: . | EL82: . | EO82: . | ER82: . | EU82: . | EX82: . | FA82: . | FD82: . | FG82: . | FJ82: . | FM82: . | FP82: . | FS82: . | FV82: . | FY82: . | GB82: . | GE82: . | GH82: . | GK82: . | GN82: . | GQ82: . | GT82: . | GW82: . | GZ82: . | HC82: . | HF82: . | HI82: . | HL82: . | HO82: . | HR82: . | HU82: . | HX82: . | IA82: . | ID82: . | IG82: . | IJ82: . | IM82: . | IP82: . | IS82: . | IV82: . | IY82: . | JB82: . | JE82: . | JH82: . | JK82: . | JN82: . | JQ82: . | JT82: . | JW82: . | JZ82: . | KC82: . | KF82: . | KI82: . | KL82: . | KO82: . | KR82: . | KU82: . | KX82: . | LA82: . | LD82: . | LG82: . | LJ82: . | LM82: . | LP82: . | LS82: . | LV82: . | LY82: . | MB82: . | ME82: . | MH82: . | MK82: . | MN82: . | MQ82: . | MT82: . | MW82: . | MZ82: . | NC82: . | NF82: . | NI82: . | NL82: . | NO82: . | NR82: . | NU82: . | NX82: . | OA82: . | OD82: . | OG82: . | OJ82: . | OM82: . | OP82: . | OS82: . | OV82: . | OY82: . | PB82: . | PE82: . | PH82: . | PK82: . | PN82: . | PQ82: . | PT82: . | PW82: . | PZ82: . | QC82: . | QF82: . | QI82: . | QL82: . | QO82: . | QR82: . | QU82: . | QX82: . | RA82: . | RD82: . | RG82: . | RJ82: . | RM82: . | RP82: . | RS82: . | RV82: . | RY82: . | SB82: . | SE82: . | SH82: . | SK82: . | SN82: . | SQ82: . | ST82: . | SW82: . | SZ82: . | TC82: . | TF82: . | TI82: . | TL82: . | TO82: . | TR82: . | TU82: . | TX82: . | UA82: . | UD82: . | UG82: . | UJ82: . | UM82: . | UP82: . | US82: . | UV82: . | UY82: . | VB82: . | VE82: . | VH82: . | VK82: . | VN82: . | VQ82: . | VT82: . | VW82: . | VZ82: . | WC82: . | WF82: . | WI82: . | WL82: . | WO82: . | WR82: . | WU82: . | WX82: . | XA82: . | XD82: . | XG82: . | XJ82: . | XM82: . | XP82: . | XS82: . | XV82: . | XY82: . | YB82: . | YE82: . | YH82: . | YK82: . | YN82: . | YQ82: . | YT82: . | YW82: . | YZ82: . | ZC82: . | ZF82: . | ZI82: . | ZL82: . | ZO82: . | ZR82: . | ZU82: . | ZX82: . | AAA82: . | AAD82: . | AAG82: . | AAJ82: . | AAM82: . | AAP82: . | AAS82: . | AAV82: . | AAY82: . | ABB82: . | ABE82: . | ABH82: . | ABK82: . | ABN82: . | ABQ82: . | ABT82: . | ABW82: . | ABZ82: . | ACC82: . | ACF82: . | ACI82: . | ACL82: . | ACO82: . | ACR82: . | ACU82: . | ACX82: . | ADA82: . | ADD82: . | ADG82: . | ADJ82: . | ADM82: . | ADP82: . | ADS82: . | ADV82: . | ADY82: . | AEB82: . | AEE82: . | AEH82: . | AEK82: . | AEN82: . | AEQ82: . | AET82: . | AEW82: . | AEZ82: . | AFC82: . | AFF82: . | AFI82: . | AFL82: . | AFO82: . | AFR82: . | AFU82: . | AFX82: . | AGA82: . | AGD82: . | AGG82: . | AGJ82: . | AGM82: . | AGP82: . | AGS82: . | AGV82: . | AGY82: . | AHB82: . | AHE82: . | AHH82: . | AHK82: . | AHN82: . | AHQ82: . | AHT82: .
B84: [I] | C84: Taxable income TF in TF currency as per [DT1] [H]*[C] | G84: =IF(ISERROR(IF(G81="",G82*G32,G81*G32)),".",IF(G22="YES",0,IF(G81="",G82*G32,G81*G32))) -> 13140 | J84: =IF(ISERROR(IF(J81="",J82*J32,J81*J32)),".",IF(J22="YES",0,IF(J81="",J82*J32,J81*J32))) -> 92124.5 | M84: =IF(ISERROR(IF(M81="",M82*M32,M81*M32)),".",IF(M22="YES",0,IF(M81="",M82*M32,M81*M32))) -> 30498 | P84: =IF(ISERROR(IF(P81="",P82*P32,P81*P32)),".",IF(P22="YES",0,IF(P81="",P82*P32,P81*P32))) -> 7500 | S84: =IF(ISERROR(IF(S81="",S82*S32,S81*S32)),".",IF(S22="YES",0,IF(S81="",S82*S32,S81*S32))) -> 1070 | V84: =IF(ISERROR(IF(V81="",V82*V32,V81*V32)),".",IF(V22="YES",0,IF(V81="",V82*V32,V81*V32))) -> 792670 | Y84: =IF(ISERROR(IF(Y81="",Y82*Y32,Y81*Y32)),".",IF(Y22="YES",0,IF(Y81="",Y82*Y32,Y81*Y32))) -> 2537.5 | AB84: =IF(ISERROR(IF(AB81="",AB82*AB32,AB81*AB32)),".",IF(AB22="YES",0,IF(AB81="",AB82*AB32,AB81*AB32))) -> . | AE84: =IF(ISERROR(IF(AE81="",AE82*AE32,AE81*AE32)),".",IF(AE22="YES",0,IF(AE81="",AE82*AE32,AE81*AE32))) -> . | AH84: =IF(ISERROR(IF(AH81="",AH82*AH32,AH81*AH32)),".",IF(AH22="YES",0,IF(AH81="",AH82*AH32,AH81*AH32))) -> . | AK84: =IF(ISERROR(IF(AK81="",AK82*AK32,AK81*AK32)),".",IF(AK22="YES",0,IF(AK81="",AK82*AK32,AK81*AK32))) -> 0 | AN84: =IF(ISERROR(IF(AN81="",AN82*AN32,AN81*AN32)),".",IF(AN22="YES",0,IF(AN81="",AN82*AN32,AN81*AN32))) -> . | AQ84: =IF(ISERROR(IF(AQ81="",AQ82*AQ32,AQ81*AQ32)),".",IF(AQ22="YES",0,IF(AQ81="",AQ82*AQ32,AQ81*AQ32))) -> . | AT84: =IF(ISERROR(IF(AT81="",AT82*AT32,AT81*AT32)),".",IF(AT22="YES",0,IF(AT81="",AT82*AT32,AT81*AT32))) -> . | AW84: =IF(ISERROR(IF(AW81="",AW82*AW32,AW81*AW32)),".",IF(AW22="YES",0,IF(AW81="",AW82*AW32,AW81*AW32))) -> . | AZ84: =IF(ISERROR(IF(AZ81="",AZ82*AZ32,AZ81*AZ32)),".",IF(AZ22="YES",0,IF(AZ81="",AZ82*AZ32,AZ81*AZ32))) -> . | BC84: =IF(ISERROR(IF(BC81="",BC82*BC32,BC81*BC32)),".",IF(BC22="YES",0,IF(BC81="",BC82*BC32,BC81*BC32))) -> . | BF84: =IF(ISERROR(IF(BF81="",BF82*BF32,BF81*BF32)),".",IF(BF22="YES",0,IF(BF81="",BF82*BF32,BF81*BF32))) -> . | BI84: =IF(ISERROR(IF(BI81="",BI82*BI32,BI81*BI32)),".",IF(BI22="YES",0,IF(BI81="",BI82*BI32,BI81*BI32))) -> . | BL84: =IF(ISERROR(IF(BL81="",BL82*BL32,BL81*BL32)),".",IF(BL22="YES",0,IF(BL81="",BL82*BL32,BL81*BL32))) -> . | BO84: =IF(ISERROR(IF(BO81="",BO82*BO32,BO81*BO32)),".",IF(BO22="YES",0,IF(BO81="",BO82*BO32,BO81*BO32))) -> . | BR84: =IF(ISERROR(IF(BR81="",BR82*BR32,BR81*BR32)),".",IF(BR22="YES",0,IF(BR81="",BR82*BR32,BR81*BR32))) -> . | BU84: =IF(ISERROR(IF(BU81="",BU82*BU32,BU81*BU32)),".",IF(BU22="YES",0,IF(BU81="",BU82*BU32,BU81*BU32))) -> . | BX84: =IF(ISERROR(IF(BX81="",BX82*BX32,BX81*BX32)),".",IF(BX22="YES",0,IF(BX81="",BX82*BX32,BX81*BX32))) -> . | CA84: =IF(ISERROR(IF(CA81="",CA82*CA32,CA81*CA32)),".",IF(CA22="YES",0,IF(CA81="",CA82*CA32,CA81*CA32))) -> . | CD84: =IF(ISERROR(IF(CD81="",CD82*CD32,CD81*CD32)),".",IF(CD22="YES",0,IF(CD81="",CD82*CD32,CD81*CD32))) -> . | CG84: =IF(ISERROR(IF(CG81="",CG82*CG32,CG81*CG32)),".",IF(CG22="YES",0,IF(CG81="",CG82*CG32,CG81*CG32))) -> . | CJ84: =IF(ISERROR(IF(CJ81="",CJ82*CJ32,CJ81*CJ32)),".",IF(CJ22="YES",0,IF(CJ81="",CJ82*CJ32,CJ81*CJ32))) -> . | CM84: =IF(ISERROR(IF(CM81="",CM82*CM32,CM81*CM32)),".",IF(CM22="YES",0,IF(CM81="",CM82*CM32,CM81*CM32))) -> . | CP84: =IF(ISERROR(IF(CP81="",CP82*CP32,CP81*CP32)),".",IF(CP22="YES",0,IF(CP81="",CP82*CP32,CP81*CP32))) -> . | CS84: =IF(ISERROR(IF(CS81="",CS82*CS32,CS81*CS32)),".",IF(CS22="YES",0,IF(CS81="",CS82*CS32,CS81*CS32))) -> . | CV84: =IF(ISERROR(IF(CV81="",CV82*CV32,CV81*CV32)),".",IF(CV22="YES",0,IF(CV81="",CV82*CV32,CV81*CV32))) -> . | CY84: =IF(ISERROR(IF(CY81="",CY82*CY32,CY81*CY32)),".",IF(CY22="YES",0,IF(CY81="",CY82*CY32,CY81*CY32))) -> . | DB84: =IF(ISERROR(IF(DB81="",DB82*DB32,DB81*DB32)),".",IF(DB22="YES",0,IF(DB81="",DB82*DB32,DB81*DB32))) -> . | DE84: =IF(ISERROR(IF(DE81="",DE82*DE32,DE81*DE32)),".",IF(DE22="YES",0,IF(DE81="",DE82*DE32,DE81*DE32))) -> . | DH84: =IF(ISERROR(IF(DH81="",DH82*DH32,DH81*DH32)),".",IF(DH22="YES",0,IF(DH81="",DH82*DH32,DH81*DH32))) -> . | DK84: =IF(ISERROR(IF(DK81="",DK82*DK32,DK81*DK32)),".",IF(DK22="YES",0,IF(DK81="",DK82*DK32,DK81*DK32))) -> . | DN84: =IF(ISERROR(IF(DN81="",DN82*DN32,DN81*DN32)),".",IF(DN22="YES",0,IF(DN81="",DN82*DN32,DN81*DN32))) -> . | DQ84: =IF(ISERROR(IF(DQ81="",DQ82*DQ32,DQ81*DQ32)),".",IF(DQ22="YES",0,IF(DQ81="",DQ82*DQ32,DQ81*DQ32))) -> . | DT84: =IF(ISERROR(IF(DT81="",DT82*DT32,DT81*DT32)),".",IF(DT22="YES",0,IF(DT81="",DT82*DT32,DT81*DT32))) -> . | DW84: =IF(ISERROR(IF(DW81="",DW82*DW32,DW81*DW32)),".",IF(DW22="YES",0,IF(DW81="",DW82*DW32,DW81*DW32))) -> . | DZ84: =IF(ISERROR(IF(DZ81="",DZ82*DZ32,DZ81*DZ32)),".",IF(DZ22="YES",0,IF(DZ81="",DZ82*DZ32,DZ81*DZ32))) -> . | EC84: =IF(ISERROR(IF(EC81="",EC82*EC32,EC81*EC32)),".",IF(EC22="YES",0,IF(EC81="",EC82*EC32,EC81*EC32))) -> . | EF84: =IF(ISERROR(IF(EF81="",EF82*EF32,EF81*EF32)),".",IF(EF22="YES",0,IF(EF81="",EF82*EF32,EF81*EF32))) -> . | EI84: =IF(ISERROR(IF(EI81="",EI82*EI32,EI81*EI32)),".",IF(EI22="YES",0,IF(EI81="",EI82*EI32,EI81*EI32))) -> . | EL84: =IF(ISERROR(IF(EL81="",EL82*EL32,EL81*EL32)),".",IF(EL22="YES",0,IF(EL81="",EL82*EL32,EL81*EL32))) -> . | EO84: =IF(ISERROR(IF(EO81="",EO82*EO32,EO81*EO32)),".",IF(EO22="YES",0,IF(EO81="",EO82*EO32,EO81*EO32))) -> . | ER84: =IF(ISERROR(IF(ER81="",ER82*ER32,ER81*ER32)),".",IF(ER22="YES",0,IF(ER81="",ER82*ER32,ER81*ER32))) -> . | EU84: =IF(ISERROR(IF(EU81="",EU82*EU32,EU81*EU32)),".",IF(EU22="YES",0,IF(EU81="",EU82*EU32,EU81*EU32))) -> . | EX84: =IF(ISERROR(IF(EX81="",EX82*EX32,EX81*EX32)),".",IF(EX22="YES",0,IF(EX81="",EX82*EX32,EX81*EX32))) -> . | FA84: =IF(ISERROR(IF(FA81="",FA82*FA32,FA81*FA32)),".",IF(FA22="YES",0,IF(FA81="",FA82*FA32,FA81*FA32))) -> . | FD84: =IF(ISERROR(IF(FD81="",FD82*FD32,FD81*FD32)),".",IF(FD22="YES",0,IF(FD81="",FD82*FD32,FD81*FD32))) -> . | FG84: =IF(ISERROR(IF(FG81="",FG82*FG32,FG81*FG32)),".",IF(FG22="YES",0,IF(FG81="",FG82*FG32,FG81*FG32))) -> . | FJ84: =IF(ISERROR(IF(FJ81="",FJ82*FJ32,FJ81*FJ32)),".",IF(FJ22="YES",0,IF(FJ81="",FJ82*FJ32,FJ81*FJ32))) -> . | FM84: =IF(ISERROR(IF(FM81="",FM82*FM32,FM81*FM32)),".",IF(FM22="YES",0,IF(FM81="",FM82*FM32,FM81*FM32))) -> . | FP84: =IF(ISERROR(IF(FP81="",FP82*FP32,FP81*FP32)),".",IF(FP22="YES",0,IF(FP81="",FP82*FP32,FP81*FP32))) -> . | FS84: =IF(ISERROR(IF(FS81="",FS82*FS32,FS81*FS32)),".",IF(FS22="YES",0,IF(FS81="",FS82*FS32,FS81*FS32))) -> . | FV84: =IF(ISERROR(IF(FV81="",FV82*FV32,FV81*FV32)),".",IF(FV22="YES",0,IF(FV81="",FV82*FV32,FV81*FV32))) -> . | FY84: =IF(ISERROR(IF(FY81="",FY82*FY32,FY81*FY32)),".",IF(FY22="YES",0,IF(FY81="",FY82*FY32,FY81*FY32))) -> . | GB84: =IF(ISERROR(IF(GB81="",GB82*GB32,GB81*GB32)),".",IF(GB22="YES",0,IF(GB81="",GB82*GB32,GB81*GB32))) -> . | GE84: =IF(ISERROR(IF(GE81="",GE82*GE32,GE81*GE32)),".",IF(GE22="YES",0,IF(GE81="",GE82*GE32,GE81*GE32))) -> . | GH84: =IF(ISERROR(IF(GH81="",GH82*GH32,GH81*GH32)),".",IF(GH22="YES",0,IF(GH81="",GH82*GH32,GH81*GH32))) -> . | GK84: =IF(ISERROR(IF(GK81="",GK82*GK32,GK81*GK32)),".",IF(GK22="YES",0,IF(GK81="",GK82*GK32,GK81*GK32))) -> . | GN84: =IF(ISERROR(IF(GN81="",GN82*GN32,GN81*GN32)),".",IF(GN22="YES",0,IF(GN81="",GN82*GN32,GN81*GN32))) -> . | GQ84: =IF(ISERROR(IF(GQ81="",GQ82*GQ32,GQ81*GQ32)),".",IF(GQ22="YES",0,IF(GQ81="",GQ82*GQ32,GQ81*GQ32))) -> . | GT84: =IF(ISERROR(IF(GT81="",GT82*GT32,GT81*GT32)),".",IF(GT22="YES",0,IF(GT81="",GT82*GT32,GT81*GT32))) -> . | GW84: =IF(ISERROR(IF(GW81="",GW82*GW32,GW81*GW32)),".",IF(GW22="YES",0,IF(GW81="",GW82*GW32,GW81*GW32))) -> . | GZ84: =IF(ISERROR(IF(GZ81="",GZ82*GZ32,GZ81*GZ32)),".",IF(GZ22="YES",0,IF(GZ81="",GZ82*GZ32,GZ81*GZ32))) -> . | HC84: =IF(ISERROR(IF(HC81="",HC82*HC32,HC81*HC32)),".",IF(HC22="YES",0,IF(HC81="",HC82*HC32,HC81*HC32))) -> . | HF84: =IF(ISERROR(IF(HF81="",HF82*HF32,HF81*HF32)),".",IF(HF22="YES",0,IF(HF81="",HF82*HF32,HF81*HF32))) -> . | HI84: =IF(ISERROR(IF(HI81="",HI82*HI32,HI81*HI32)),".",IF(HI22="YES",0,IF(HI81="",HI82*HI32,HI81*HI32))) -> . | HL84: =IF(ISERROR(IF(HL81="",HL82*HL32,HL81*HL32)),".",IF(HL22="YES",0,IF(HL81="",HL82*HL32,HL81*HL32))) -> . | HO84: =IF(ISERROR(IF(HO81="",HO82*HO32,HO81*HO32)),".",IF(HO22="YES",0,IF(HO81="",HO82*HO32,HO81*HO32))) -> . | HR84: =IF(ISERROR(IF(HR81="",HR82*HR32,HR81*HR32)),".",IF(HR22="YES",0,IF(HR81="",HR82*HR32,HR81*HR32))) -> . | HU84: =IF(ISERROR(IF(HU81="",HU82*HU32,HU81*HU32)),".",IF(HU22="YES",0,IF(HU81="",HU82*HU32,HU81*HU32))) -> . | HX84: =IF(ISERROR(IF(HX81="",HX82*HX32,HX81*HX32)),".",IF(HX22="YES",0,IF(HX81="",HX82*HX32,HX81*HX32))) -> . | IA84: =IF(ISERROR(IF(IA81="",IA82*IA32,IA81*IA32)),".",IF(IA22="YES",0,IF(IA81="",IA82*IA32,IA81*IA32))) -> . | ID84: =IF(ISERROR(IF(ID81="",ID82*ID32,ID81*ID32)),".",IF(ID22="YES",0,IF(ID81="",ID82*ID32,ID81*ID32))) -> . | IG84: =IF(ISERROR(IF(IG81="",IG82*IG32,IG81*IG32)),".",IF(IG22="YES",0,IF(IG81="",IG82*IG32,IG81*IG32))) -> . | IJ84: =IF(ISERROR(IF(IJ81="",IJ82*IJ32,IJ81*IJ32)),".",IF(IJ22="YES",0,IF(IJ81="",IJ82*IJ32,IJ81*IJ32))) -> . | IM84: =IF(ISERROR(IF(IM81="",IM82*IM32,IM81*IM32)),".",IF(IM22="YES",0,IF(IM81="",IM82*IM32,IM81*IM32))) -> . | IP84: =IF(ISERROR(IF(IP81="",IP82*IP32,IP81*IP32)),".",IF(IP22="YES",0,IF(IP81="",IP82*IP32,IP81*IP32))) -> . | IS84: =IF(ISERROR(IF(IS81="",IS82*IS32,IS81*IS32)),".",IF(IS22="YES",0,IF(IS81="",IS82*IS32,IS81*IS32))) -> . | IV84: =IF(ISERROR(IF(IV81="",IV82*IV32,IV81*IV32)),".",IF(IV22="YES",0,IF(IV81="",IV82*IV32,IV81*IV32))) -> . | IY84: =IF(ISERROR(IF(IY81="",IY82*IY32,IY81*IY32)),".",IF(IY22="YES",0,IF(IY81="",IY82*IY32,IY81*IY32))) -> . | JB84: =IF(ISERROR(IF(JB81="",JB82*JB32,JB81*JB32)),".",IF(JB22="YES",0,IF(JB81="",JB82*JB32,JB81*JB32))) -> . | JE84: =IF(ISERROR(IF(JE81="",JE82*JE32,JE81*JE32)),".",IF(JE22="YES",0,IF(JE81="",JE82*JE32,JE81*JE32))) -> . | JH84: =IF(ISERROR(IF(JH81="",JH82*JH32,JH81*JH32)),".",IF(JH22="YES",0,IF(JH81="",JH82*JH32,JH81*JH32))) -> . | JK84: =IF(ISERROR(IF(JK81="",JK82*JK32,JK81*JK32)),".",IF(JK22="YES",0,IF(JK81="",JK82*JK32,JK81*JK32))) -> . | JN84: =IF(ISERROR(IF(JN81="",JN82*JN32,JN81*JN32)),".",IF(JN22="YES",0,IF(JN81="",JN82*JN32,JN81*JN32))) -> . | JQ84: =IF(ISERROR(IF(JQ81="",JQ82*JQ32,JQ81*JQ32)),".",IF(JQ22="YES",0,IF(JQ81="",JQ82*JQ32,JQ81*JQ32))) -> . | JT84: =IF(ISERROR(IF(JT81="",JT82*JT32,JT81*JT32)),".",IF(JT22="YES",0,IF(JT81="",JT82*JT32,JT81*JT32))) -> . | JW84: =IF(ISERROR(IF(JW81="",JW82*JW32,JW81*JW32)),".",IF(JW22="YES",0,IF(JW81="",JW82*JW32,JW81*JW32))) -> . | JZ84: =IF(ISERROR(IF(JZ81="",JZ82*JZ32,JZ81*JZ32)),".",IF(JZ22="YES",0,IF(JZ81="",JZ82*JZ32,JZ81*JZ32))) -> . | KC84: =IF(ISERROR(IF(KC81="",KC82*KC32,KC81*KC32)),".",IF(KC22="YES",0,IF(KC81="",KC82*KC32,KC81*KC32))) -> . | KF84: =IF(ISERROR(IF(KF81="",KF82*KF32,KF81*KF32)),".",IF(KF22="YES",0,IF(KF81="",KF82*KF32,KF81*KF32))) -> . | KI84: =IF(ISERROR(IF(KI81="",KI82*KI32,KI81*KI32)),".",IF(KI22="YES",0,IF(KI81="",KI82*KI32,KI81*KI32))) -> . | KL84: =IF(ISERROR(IF(KL81="",KL82*KL32,KL81*KL32)),".",IF(KL22="YES",0,IF(KL81="",KL82*KL32,KL81*KL32))) -> . | KO84: =IF(ISERROR(IF(KO81="",KO82*KO32,KO81*KO32)),".",IF(KO22="YES",0,IF(KO81="",KO82*KO32,KO81*KO32))) -> . | KR84: =IF(ISERROR(IF(KR81="",KR82*KR32,KR81*KR32)),".",IF(KR22="YES",0,IF(KR81="",KR82*KR32,KR81*KR32))) -> . | KU84: =IF(ISERROR(IF(KU81="",KU82*KU32,KU81*KU32)),".",IF(KU22="YES",0,IF(KU81="",KU82*KU32,KU81*KU32))) -> . | KX84: =IF(ISERROR(IF(KX81="",KX82*KX32,KX81*KX32)),".",IF(KX22="YES",0,IF(KX81="",KX82*KX32,KX81*KX32))) -> . | LA84: =IF(ISERROR(IF(LA81="",LA82*LA32,LA81*LA32)),".",IF(LA22="YES",0,IF(LA81="",LA82*LA32,LA81*LA32))) -> . | LD84: =IF(ISERROR(IF(LD81="",LD82*LD32,LD81*LD32)),".",IF(LD22="YES",0,IF(LD81="",LD82*LD32,LD81*LD32))) -> . | LG84: =IF(ISERROR(IF(LG81="",LG82*LG32,LG81*LG32)),".",IF(LG22="YES",0,IF(LG81="",LG82*LG32,LG81*LG32))) -> . | LJ84: =IF(ISERROR(IF(LJ81="",LJ82*LJ32,LJ81*LJ32)),".",IF(LJ22="YES",0,IF(LJ81="",LJ82*LJ32,LJ81*LJ32))) -> . | LM84: =IF(ISERROR(IF(LM81="",LM82*LM32,LM81*LM32)),".",IF(LM22="YES",0,IF(LM81="",LM82*LM32,LM81*LM32))) -> . | LP84: =IF(ISERROR(IF(LP81="",LP82*LP32,LP81*LP32)),".",IF(LP22="YES",0,IF(LP81="",LP82*LP32,LP81*LP32))) -> . | LS84: =IF(ISERROR(IF(LS81="",LS82*LS32,LS81*LS32)),".",IF(LS22="YES",0,IF(LS81="",LS82*LS32,LS81*LS32))) -> . | LV84: =IF(ISERROR(IF(LV81="",LV82*LV32,LV81*LV32)),".",IF(LV22="YES",0,IF(LV81="",LV82*LV32,LV81*LV32))) -> . | LY84: =IF(ISERROR(IF(LY81="",LY82*LY32,LY81*LY32)),".",IF(LY22="YES",0,IF(LY81="",LY82*LY32,LY81*LY32))) -> . | MB84: =IF(ISERROR(IF(MB81="",MB82*MB32,MB81*MB32)),".",IF(MB22="YES",0,IF(MB81="",MB82*MB32,MB81*MB32))) -> . | ME84: =IF(ISERROR(IF(ME81="",ME82*ME32,ME81*ME32)),".",IF(ME22="YES",0,IF(ME81="",ME82*ME32,ME81*ME32))) -> . | MH84: =IF(ISERROR(IF(MH81="",MH82*MH32,MH81*MH32)),".",IF(MH22="YES",0,IF(MH81="",MH82*MH32,MH81*MH32))) -> . | MK84: =IF(ISERROR(IF(MK81="",MK82*MK32,MK81*MK32)),".",IF(MK22="YES",0,IF(MK81="",MK82*MK32,MK81*MK32))) -> . | MN84: =IF(ISERROR(IF(MN81="",MN82*MN32,MN81*MN32)),".",IF(MN22="YES",0,IF(MN81="",MN82*MN32,MN81*MN32))) -> . | MQ84: =IF(ISERROR(IF(MQ81="",MQ82*MQ32,MQ81*MQ32)),".",IF(MQ22="YES",0,IF(MQ81="",MQ82*MQ32,MQ81*MQ32))) -> . | MT84: =IF(ISERROR(IF(MT81="",MT82*MT32,MT81*MT32)),".",IF(MT22="YES",0,IF(MT81="",MT82*MT32,MT81*MT32))) -> . | MW84: =IF(ISERROR(IF(MW81="",MW82*MW32,MW81*MW32)),".",IF(MW22="YES",0,IF(MW81="",MW82*MW32,MW81*MW32))) -> . | MZ84: =IF(ISERROR(IF(MZ81="",MZ82*MZ32,MZ81*MZ32)),".",IF(MZ22="YES",0,IF(MZ81="",MZ82*MZ32,MZ81*MZ32))) -> . | NC84: =IF(ISERROR(IF(NC81="",NC82*NC32,NC81*NC32)),".",IF(NC22="YES",0,IF(NC81="",NC82*NC32,NC81*NC32))) -> . | NF84: =IF(ISERROR(IF(NF81="",NF82*NF32,NF81*NF32)),".",IF(NF22="YES",0,IF(NF81="",NF82*NF32,NF81*NF32))) -> . | NI84: =IF(ISERROR(IF(NI81="",NI82*NI32,NI81*NI32)),".",IF(NI22="YES",0,IF(NI81="",NI82*NI32,NI81*NI32))) -> . | NL84: =IF(ISERROR(IF(NL81="",NL82*NL32,NL81*NL32)),".",IF(NL22="YES",0,IF(NL81="",NL82*NL32,NL81*NL32))) -> . | NO84: =IF(ISERROR(IF(NO81="",NO82*NO32,NO81*NO32)),".",IF(NO22="YES",0,IF(NO81="",NO82*NO32,NO81*NO32))) -> . | NR84: =IF(ISERROR(IF(NR81="",NR82*NR32,NR81*NR32)),".",IF(NR22="YES",0,IF(NR81="",NR82*NR32,NR81*NR32))) -> . | NU84: =IF(ISERROR(IF(NU81="",NU82*NU32,NU81*NU32)),".",IF(NU22="YES",0,IF(NU81="",NU82*NU32,NU81*NU32))) -> . | NX84: =IF(ISERROR(IF(NX81="",NX82*NX32,NX81*NX32)),".",IF(NX22="YES",0,IF(NX81="",NX82*NX32,NX81*NX32))) -> . | OA84: =IF(ISERROR(IF(OA81="",OA82*OA32,OA81*OA32)),".",IF(OA22="YES",0,IF(OA81="",OA82*OA32,OA81*OA32))) -> . | OD84: =IF(ISERROR(IF(OD81="",OD82*OD32,OD81*OD32)),".",IF(OD22="YES",0,IF(OD81="",OD82*OD32,OD81*OD32))) -> . | OG84: =IF(ISERROR(IF(OG81="",OG82*OG32,OG81*OG32)),".",IF(OG22="YES",0,IF(OG81="",OG82*OG32,OG81*OG32))) -> . | OJ84: =IF(ISERROR(IF(OJ81="",OJ82*OJ32,OJ81*OJ32)),".",IF(OJ22="YES",0,IF(OJ81="",OJ82*OJ32,OJ81*OJ32))) -> . | OM84: =IF(ISERROR(IF(OM81="",OM82*OM32,OM81*OM32)),".",IF(OM22="YES",0,IF(OM81="",OM82*OM32,OM81*OM32))) -> . | OP84: =IF(ISERROR(IF(OP81="",OP82*OP32,OP81*OP32)),".",IF(OP22="YES",0,IF(OP81="",OP82*OP32,OP81*OP32))) -> . | OS84: =IF(ISERROR(IF(OS81="",OS82*OS32,OS81*OS32)),".",IF(OS22="YES",0,IF(OS81="",OS82*OS32,OS81*OS32))) -> . | OV84: =IF(ISERROR(IF(OV81="",OV82*OV32,OV81*OV32)),".",IF(OV22="YES",0,IF(OV81="",OV82*OV32,OV81*OV32))) -> . | OY84: =IF(ISERROR(IF(OY81="",OY82*OY32,OY81*OY32)),".",IF(OY22="YES",0,IF(OY81="",OY82*OY32,OY81*OY32))) -> . | PB84: =IF(ISERROR(IF(PB81="",PB82*PB32,PB81*PB32)),".",IF(PB22="YES",0,IF(PB81="",PB82*PB32,PB81*PB32))) -> . | PE84: =IF(ISERROR(IF(PE81="",PE82*PE32,PE81*PE32)),".",IF(PE22="YES",0,IF(PE81="",PE82*PE32,PE81*PE32))) -> . | PH84: =IF(ISERROR(IF(PH81="",PH82*PH32,PH81*PH32)),".",IF(PH22="YES",0,IF(PH81="",PH82*PH32,PH81*PH32))) -> . | PK84: =IF(ISERROR(IF(PK81="",PK82*PK32,PK81*PK32)),".",IF(PK22="YES",0,IF(PK81="",PK82*PK32,PK81*PK32))) -> . | PN84: =IF(ISERROR(IF(PN81="",PN82*PN32,PN81*PN32)),".",IF(PN22="YES",0,IF(PN81="",PN82*PN32,PN81*PN32))) -> . | PQ84: =IF(ISERROR(IF(PQ81="",PQ82*PQ32,PQ81*PQ32)),".",IF(PQ22="YES",0,IF(PQ81="",PQ82*PQ32,PQ81*PQ32))) -> . | PT84: =IF(ISERROR(IF(PT81="",PT82*PT32,PT81*PT32)),".",IF(PT22="YES",0,IF(PT81="",PT82*PT32,PT81*PT32))) -> . | PW84: =IF(ISERROR(IF(PW81="",PW82*PW32,PW81*PW32)),".",IF(PW22="YES",0,IF(PW81="",PW82*PW32,PW81*PW32))) -> . | PZ84: =IF(ISERROR(IF(PZ81="",PZ82*PZ32,PZ81*PZ32)),".",IF(PZ22="YES",0,IF(PZ81="",PZ82*PZ32,PZ81*PZ32))) -> . | QC84: =IF(ISERROR(IF(QC81="",QC82*QC32,QC81*QC32)),".",IF(QC22="YES",0,IF(QC81="",QC82*QC32,QC81*QC32))) -> . | QF84: =IF(ISERROR(IF(QF81="",QF82*QF32,QF81*QF32)),".",IF(QF22="YES",0,IF(QF81="",QF82*QF32,QF81*QF32))) -> . | QI84: =IF(ISERROR(IF(QI81="",QI82*QI32,QI81*QI32)),".",IF(QI22="YES",0,IF(QI81="",QI82*QI32,QI81*QI32))) -> . | QL84: =IF(ISERROR(IF(QL81="",QL82*QL32,QL81*QL32)),".",IF(QL22="YES",0,IF(QL81="",QL82*QL32,QL81*QL32))) -> . | QO84: =IF(ISERROR(IF(QO81="",QO82*QO32,QO81*QO32)),".",IF(QO22="YES",0,IF(QO81="",QO82*QO32,QO81*QO32))) -> . | QR84: =IF(ISERROR(IF(QR81="",QR82*QR32,QR81*QR32)),".",IF(QR22="YES",0,IF(QR81="",QR82*QR32,QR81*QR32))) -> . | QU84: =IF(ISERROR(IF(QU81="",QU82*QU32,QU81*QU32)),".",IF(QU22="YES",0,IF(QU81="",QU82*QU32,QU81*QU32))) -> . | QX84: =IF(ISERROR(IF(QX81="",QX82*QX32,QX81*QX32)),".",IF(QX22="YES",0,IF(QX81="",QX82*QX32,QX81*QX32))) -> . | RA84: =IF(ISERROR(IF(RA81="",RA82*RA32,RA81*RA32)),".",IF(RA22="YES",0,IF(RA81="",RA82*RA32,RA81*RA32))) -> . | RD84: =IF(ISERROR(IF(RD81="",RD82*RD32,RD81*RD32)),".",IF(RD22="YES",0,IF(RD81="",RD82*RD32,RD81*RD32))) -> . | RG84: =IF(ISERROR(IF(RG81="",RG82*RG32,RG81*RG32)),".",IF(RG22="YES",0,IF(RG81="",RG82*RG32,RG81*RG32))) -> . | RJ84: =IF(ISERROR(IF(RJ81="",RJ82*RJ32,RJ81*RJ32)),".",IF(RJ22="YES",0,IF(RJ81="",RJ82*RJ32,RJ81*RJ32))) -> . | RM84: =IF(ISERROR(IF(RM81="",RM82*RM32,RM81*RM32)),".",IF(RM22="YES",0,IF(RM81="",RM82*RM32,RM81*RM32))) -> . | RP84: =IF(ISERROR(IF(RP81="",RP82*RP32,RP81*RP32)),".",IF(RP22="YES",0,IF(RP81="",RP82*RP32,RP81*RP32))) -> . | RS84: =IF(ISERROR(IF(RS81="",RS82*RS32,RS81*RS32)),".",IF(RS22="YES",0,IF(RS81="",RS82*RS32,RS81*RS32))) -> . | RV84: =IF(ISERROR(IF(RV81="",RV82*RV32,RV81*RV32)),".",IF(RV22="YES",0,IF(RV81="",RV82*RV32,RV81*RV32))) -> . | RY84: =IF(ISERROR(IF(RY81="",RY82*RY32,RY81*RY32)),".",IF(RY22="YES",0,IF(RY81="",RY82*RY32,RY81*RY32))) -> . | SB84: =IF(ISERROR(IF(SB81="",SB82*SB32,SB81*SB32)),".",IF(SB22="YES",0,IF(SB81="",SB82*SB32,SB81*SB32))) -> . | SE84: =IF(ISERROR(IF(SE81="",SE82*SE32,SE81*SE32)),".",IF(SE22="YES",0,IF(SE81="",SE82*SE32,SE81*SE32))) -> . | SH84: =IF(ISERROR(IF(SH81="",SH82*SH32,SH81*SH32)),".",IF(SH22="YES",0,IF(SH81="",SH82*SH32,SH81*SH32))) -> . | SK84: =IF(ISERROR(IF(SK81="",SK82*SK32,SK81*SK32)),".",IF(SK22="YES",0,IF(SK81="",SK82*SK32,SK81*SK32))) -> . | SN84: =IF(ISERROR(IF(SN81="",SN82*SN32,SN81*SN32)),".",IF(SN22="YES",0,IF(SN81="",SN82*SN32,SN81*SN32))) -> . | SQ84: =IF(ISERROR(IF(SQ81="",SQ82*SQ32,SQ81*SQ32)),".",IF(SQ22="YES",0,IF(SQ81="",SQ82*SQ32,SQ81*SQ32))) -> . | ST84: =IF(ISERROR(IF(ST81="",ST82*ST32,ST81*ST32)),".",IF(ST22="YES",0,IF(ST81="",ST82*ST32,ST81*ST32))) -> . | SW84: =IF(ISERROR(IF(SW81="",SW82*SW32,SW81*SW32)),".",IF(SW22="YES",0,IF(SW81="",SW82*SW32,SW81*SW32))) -> . | SZ84: =IF(ISERROR(IF(SZ81="",SZ82*SZ32,SZ81*SZ32)),".",IF(SZ22="YES",0,IF(SZ81="",SZ82*SZ32,SZ81*SZ32))) -> . | TC84: =IF(ISERROR(IF(TC81="",TC82*TC32,TC81*TC32)),".",IF(TC22="YES",0,IF(TC81="",TC82*TC32,TC81*TC32))) -> . | TF84: =IF(ISERROR(IF(TF81="",TF82*TF32,TF81*TF32)),".",IF(TF22="YES",0,IF(TF81="",TF82*TF32,TF81*TF32))) -> . | TI84: =IF(ISERROR(IF(TI81="",TI82*TI32,TI81*TI32)),".",IF(TI22="YES",0,IF(TI81="",TI82*TI32,TI81*TI32))) -> . | TL84: =IF(ISERROR(IF(TL81="",TL82*TL32,TL81*TL32)),".",IF(TL22="YES",0,IF(TL81="",TL82*TL32,TL81*TL32))) -> . | TO84: =IF(ISERROR(IF(TO81="",TO82*TO32,TO81*TO32)),".",IF(TO22="YES",0,IF(TO81="",TO82*TO32,TO81*TO32))) -> . | TR84: =IF(ISERROR(IF(TR81="",TR82*TR32,TR81*TR32)),".",IF(TR22="YES",0,IF(TR81="",TR82*TR32,TR81*TR32))) -> . | TU84: =IF(ISERROR(IF(TU81="",TU82*TU32,TU81*TU32)),".",IF(TU22="YES",0,IF(TU81="",TU82*TU32,TU81*TU32))) -> . | TX84: =IF(ISERROR(IF(TX81="",TX82*TX32,TX81*TX32)),".",IF(TX22="YES",0,IF(TX81="",TX82*TX32,TX81*TX32))) -> . | UA84: =IF(ISERROR(IF(UA81="",UA82*UA32,UA81*UA32)),".",IF(UA22="YES",0,IF(UA81="",UA82*UA32,UA81*UA32))) -> . | UD84: =IF(ISERROR(IF(UD81="",UD82*UD32,UD81*UD32)),".",IF(UD22="YES",0,IF(UD81="",UD82*UD32,UD81*UD32))) -> . | UG84: =IF(ISERROR(IF(UG81="",UG82*UG32,UG81*UG32)),".",IF(UG22="YES",0,IF(UG81="",UG82*UG32,UG81*UG32))) -> . | UJ84: =IF(ISERROR(IF(UJ81="",UJ82*UJ32,UJ81*UJ32)),".",IF(UJ22="YES",0,IF(UJ81="",UJ82*UJ32,UJ81*UJ32))) -> . | UM84: =IF(ISERROR(IF(UM81="",UM82*UM32,UM81*UM32)),".",IF(UM22="YES",0,IF(UM81="",UM82*UM32,UM81*UM32))) -> . | UP84: =IF(ISERROR(IF(UP81="",UP82*UP32,UP81*UP32)),".",IF(UP22="YES",0,IF(UP81="",UP82*UP32,UP81*UP32))) -> . | US84: =IF(ISERROR(IF(US81="",US82*US32,US81*US32)),".",IF(US22="YES",0,IF(US81="",US82*US32,US81*US32))) -> . | UV84: =IF(ISERROR(IF(UV81="",UV82*UV32,UV81*UV32)),".",IF(UV22="YES",0,IF(UV81="",UV82*UV32,UV81*UV32))) -> . | UY84: =IF(ISERROR(IF(UY81="",UY82*UY32,UY81*UY32)),".",IF(UY22="YES",0,IF(UY81="",UY82*UY32,UY81*UY32))) -> . | VB84: =IF(ISERROR(IF(VB81="",VB82*VB32,VB81*VB32)),".",IF(VB22="YES",0,IF(VB81="",VB82*VB32,VB81*VB32))) -> . | VE84: =IF(ISERROR(IF(VE81="",VE82*VE32,VE81*VE32)),".",IF(VE22="YES",0,IF(VE81="",VE82*VE32,VE81*VE32))) -> . | VH84: =IF(ISERROR(IF(VH81="",VH82*VH32,VH81*VH32)),".",IF(VH22="YES",0,IF(VH81="",VH82*VH32,VH81*VH32))) -> . | VK84: =IF(ISERROR(IF(VK81="",VK82*VK32,VK81*VK32)),".",IF(VK22="YES",0,IF(VK81="",VK82*VK32,VK81*VK32))) -> . | VN84: =IF(ISERROR(IF(VN81="",VN82*VN32,VN81*VN32)),".",IF(VN22="YES",0,IF(VN81="",VN82*VN32,VN81*VN32))) -> . | VQ84: =IF(ISERROR(IF(VQ81="",VQ82*VQ32,VQ81*VQ32)),".",IF(VQ22="YES",0,IF(VQ81="",VQ82*VQ32,VQ81*VQ32))) -> . | VT84: =IF(ISERROR(IF(VT81="",VT82*VT32,VT81*VT32)),".",IF(VT22="YES",0,IF(VT81="",VT82*VT32,VT81*VT32))) -> . | VW84: =IF(ISERROR(IF(VW81="",VW82*VW32,VW81*VW32)),".",IF(VW22="YES",0,IF(VW81="",VW82*VW32,VW81*VW32))) -> . | VZ84: =IF(ISERROR(IF(VZ81="",VZ82*VZ32,VZ81*VZ32)),".",IF(VZ22="YES",0,IF(VZ81="",VZ82*VZ32,VZ81*VZ32))) -> . | WC84: =IF(ISERROR(IF(WC81="",WC82*WC32,WC81*WC32)),".",IF(WC22="YES",0,IF(WC81="",WC82*WC32,WC81*WC32))) -> . | WF84: =IF(ISERROR(IF(WF81="",WF82*WF32,WF81*WF32)),".",IF(WF22="YES",0,IF(WF81="",WF82*WF32,WF81*WF32))) -> . | WI84: =IF(ISERROR(IF(WI81="",WI82*WI32,WI81*WI32)),".",IF(WI22="YES",0,IF(WI81="",WI82*WI32,WI81*WI32))) -> . | WL84: =IF(ISERROR(IF(WL81="",WL82*WL32,WL81*WL32)),".",IF(WL22="YES",0,IF(WL81="",WL82*WL32,WL81*WL32))) -> . | WO84: =IF(ISERROR(IF(WO81="",WO82*WO32,WO81*WO32)),".",IF(WO22="YES",0,IF(WO81="",WO82*WO32,WO81*WO32))) -> . | WR84: =IF(ISERROR(IF(WR81="",WR82*WR32,WR81*WR32)),".",IF(WR22="YES",0,IF(WR81="",WR82*WR32,WR81*WR32))) -> . | WU84: =IF(ISERROR(IF(WU81="",WU82*WU32,WU81*WU32)),".",IF(WU22="YES",0,IF(WU81="",WU82*WU32,WU81*WU32))) -> . | WX84: =IF(ISERROR(IF(WX81="",WX82*WX32,WX81*WX32)),".",IF(WX22="YES",0,IF(WX81="",WX82*WX32,WX81*WX32))) -> . | XA84: =IF(ISERROR(IF(XA81="",XA82*XA32,XA81*XA32)),".",IF(XA22="YES",0,IF(XA81="",XA82*XA32,XA81*XA32))) -> . | XD84: =IF(ISERROR(IF(XD81="",XD82*XD32,XD81*XD32)),".",IF(XD22="YES",0,IF(XD81="",XD82*XD32,XD81*XD32))) -> . | XG84: =IF(ISERROR(IF(XG81="",XG82*XG32,XG81*XG32)),".",IF(XG22="YES",0,IF(XG81="",XG82*XG32,XG81*XG32))) -> . | XJ84: =IF(ISERROR(IF(XJ81="",XJ82*XJ32,XJ81*XJ32)),".",IF(XJ22="YES",0,IF(XJ81="",XJ82*XJ32,XJ81*XJ32))) -> . | XM84: =IF(ISERROR(IF(XM81="",XM82*XM32,XM81*XM32)),".",IF(XM22="YES",0,IF(XM81="",XM82*XM32,XM81*XM32))) -> . | XP84: =IF(ISERROR(IF(XP81="",XP82*XP32,XP81*XP32)),".",IF(XP22="YES",0,IF(XP81="",XP82*XP32,XP81*XP32))) -> . | XS84: =IF(ISERROR(IF(XS81="",XS82*XS32,XS81*XS32)),".",IF(XS22="YES",0,IF(XS81="",XS82*XS32,XS81*XS32))) -> . | XV84: =IF(ISERROR(IF(XV81="",XV82*XV32,XV81*XV32)),".",IF(XV22="YES",0,IF(XV81="",XV82*XV32,XV81*XV32))) -> . | XY84: =IF(ISERROR(IF(XY81="",XY82*XY32,XY81*XY32)),".",IF(XY22="YES",0,IF(XY81="",XY82*XY32,XY81*XY32))) -> . | YB84: =IF(ISERROR(IF(YB81="",YB82*YB32,YB81*YB32)),".",IF(YB22="YES",0,IF(YB81="",YB82*YB32,YB81*YB32))) -> . | YE84: =IF(ISERROR(IF(YE81="",YE82*YE32,YE81*YE32)),".",IF(YE22="YES",0,IF(YE81="",YE82*YE32,YE81*YE32))) -> . | YH84: =IF(ISERROR(IF(YH81="",YH82*YH32,YH81*YH32)),".",IF(YH22="YES",0,IF(YH81="",YH82*YH32,YH81*YH32))) -> . | YK84: =IF(ISERROR(IF(YK81="",YK82*YK32,YK81*YK32)),".",IF(YK22="YES",0,IF(YK81="",YK82*YK32,YK81*YK32))) -> . | YN84: =IF(ISERROR(IF(YN81="",YN82*YN32,YN81*YN32)),".",IF(YN22="YES",0,IF(YN81="",YN82*YN32,YN81*YN32))) -> . | YQ84: =IF(ISERROR(IF(YQ81="",YQ82*YQ32,YQ81*YQ32)),".",IF(YQ22="YES",0,IF(YQ81="",YQ82*YQ32,YQ81*YQ32))) -> . | YT84: =IF(ISERROR(IF(YT81="",YT82*YT32,YT81*YT32)),".",IF(YT22="YES",0,IF(YT81="",YT82*YT32,YT81*YT32))) -> . | YW84: =IF(ISERROR(IF(YW81="",YW82*YW32,YW81*YW32)),".",IF(YW22="YES",0,IF(YW81="",YW82*YW32,YW81*YW32))) -> . | YZ84: =IF(ISERROR(IF(YZ81="",YZ82*YZ32,YZ81*YZ32)),".",IF(YZ22="YES",0,IF(YZ81="",YZ82*YZ32,YZ81*YZ32))) -> . | ZC84: =IF(ISERROR(IF(ZC81="",ZC82*ZC32,ZC81*ZC32)),".",IF(ZC22="YES",0,IF(ZC81="",ZC82*ZC32,ZC81*ZC32))) -> . | ZF84: =IF(ISERROR(IF(ZF81="",ZF82*ZF32,ZF81*ZF32)),".",IF(ZF22="YES",0,IF(ZF81="",ZF82*ZF32,ZF81*ZF32))) -> . | ZI84: =IF(ISERROR(IF(ZI81="",ZI82*ZI32,ZI81*ZI32)),".",IF(ZI22="YES",0,IF(ZI81="",ZI82*ZI32,ZI81*ZI32))) -> . | ZL84: =IF(ISERROR(IF(ZL81="",ZL82*ZL32,ZL81*ZL32)),".",IF(ZL22="YES",0,IF(ZL81="",ZL82*ZL32,ZL81*ZL32))) -> . | ZO84: =IF(ISERROR(IF(ZO81="",ZO82*ZO32,ZO81*ZO32)),".",IF(ZO22="YES",0,IF(ZO81="",ZO82*ZO32,ZO81*ZO32))) -> . | ZR84: =IF(ISERROR(IF(ZR81="",ZR82*ZR32,ZR81*ZR32)),".",IF(ZR22="YES",0,IF(ZR81="",ZR82*ZR32,ZR81*ZR32))) -> . | ZU84: =IF(ISERROR(IF(ZU81="",ZU82*ZU32,ZU81*ZU32)),".",IF(ZU22="YES",0,IF(ZU81="",ZU82*ZU32,ZU81*ZU32))) -> . | ZX84: =IF(ISERROR(IF(ZX81="",ZX82*ZX32,ZX81*ZX32)),".",IF(ZX22="YES",0,IF(ZX81="",ZX82*ZX32,ZX81*ZX32))) -> . | AAA84: =IF(ISERROR(IF(AAA81="",AAA82*AAA32,AAA81*AAA32)),".",IF(AAA22="YES",0,IF(AAA81="",AAA82*AAA32,AAA81*AAA32))) -> . | AAD84: =IF(ISERROR(IF(AAD81="",AAD82*AAD32,AAD81*AAD32)),".",IF(AAD22="YES",0,IF(AAD81="",AAD82*AAD32,AAD81*AAD32))) -> . | AAG84: =IF(ISERROR(IF(AAG81="",AAG82*AAG32,AAG81*AAG32)),".",IF(AAG22="YES",0,IF(AAG81="",AAG82*AAG32,AAG81*AAG32))) -> . | AAJ84: =IF(ISERROR(IF(AAJ81="",AAJ82*AAJ32,AAJ81*AAJ32)),".",IF(AAJ22="YES",0,IF(AAJ81="",AAJ82*AAJ32,AAJ81*AAJ32))) -> . | AAM84: =IF(ISERROR(IF(AAM81="",AAM82*AAM32,AAM81*AAM32)),".",IF(AAM22="YES",0,IF(AAM81="",AAM82*AAM32,AAM81*AAM32))) -> . | AAP84: =IF(ISERROR(IF(AAP81="",AAP82*AAP32,AAP81*AAP32)),".",IF(AAP22="YES",0,IF(AAP81="",AAP82*AAP32,AAP81*AAP32))) -> . | AAS84: =IF(ISERROR(IF(AAS81="",AAS82*AAS32,AAS81*AAS32)),".",IF(AAS22="YES",0,IF(AAS81="",AAS82*AAS32,AAS81*AAS32))) -> . | AAV84: =IF(ISERROR(IF(AAV81="",AAV82*AAV32,AAV81*AAV32)),".",IF(AAV22="YES",0,IF(AAV81="",AAV82*AAV32,AAV81*AAV32))) -> . | AAY84: =IF(ISERROR(IF(AAY81="",AAY82*AAY32,AAY81*AAY32)),".",IF(AAY22="YES",0,IF(AAY81="",AAY82*AAY32,AAY81*AAY32))) -> . | ABB84: =IF(ISERROR(IF(ABB81="",ABB82*ABB32,ABB81*ABB32)),".",IF(ABB22="YES",0,IF(ABB81="",ABB82*ABB32,ABB81*ABB32))) -> . | ABE84: =IF(ISERROR(IF(ABE81="",ABE82*ABE32,ABE81*ABE32)),".",IF(ABE22="YES",0,IF(ABE81="",ABE82*ABE32,ABE81*ABE32))) -> . | ABH84: =IF(ISERROR(IF(ABH81="",ABH82*ABH32,ABH81*ABH32)),".",IF(ABH22="YES",0,IF(ABH81="",ABH82*ABH32,ABH81*ABH32))) -> . | ABK84: =IF(ISERROR(IF(ABK81="",ABK82*ABK32,ABK81*ABK32)),".",IF(ABK22="YES",0,IF(ABK81="",ABK82*ABK32,ABK81*ABK32))) -> . | ABN84: =IF(ISERROR(IF(ABN81="",ABN82*ABN32,ABN81*ABN32)),".",IF(ABN22="YES",0,IF(ABN81="",ABN82*ABN32,ABN81*ABN32))) -> . | ABQ84: =IF(ISERROR(IF(ABQ81="",ABQ82*ABQ32,ABQ81*ABQ32)),".",IF(ABQ22="YES",0,IF(ABQ81="",ABQ82*ABQ32,ABQ81*ABQ32))) -> . | ABT84: =IF(ISERROR(IF(ABT81="",ABT82*ABT32,ABT81*ABT32)),".",IF(ABT22="YES",0,IF(ABT81="",ABT82*ABT32,ABT81*ABT32))) -> . | ABW84: =IF(ISERROR(IF(ABW81="",ABW82*ABW32,ABW81*ABW32)),".",IF(ABW22="YES",0,IF(ABW81="",ABW82*ABW32,ABW81*ABW32))) -> . | ABZ84: =IF(ISERROR(IF(ABZ81="",ABZ82*ABZ32,ABZ81*ABZ32)),".",IF(ABZ22="YES",0,IF(ABZ81="",ABZ82*ABZ32,ABZ81*ABZ32))) -> . | ACC84: =IF(ISERROR(IF(ACC81="",ACC82*ACC32,ACC81*ACC32)),".",IF(ACC22="YES",0,IF(ACC81="",ACC82*ACC32,ACC81*ACC32))) -> . | ACF84: =IF(ISERROR(IF(ACF81="",ACF82*ACF32,ACF81*ACF32)),".",IF(ACF22="YES",0,IF(ACF81="",ACF82*ACF32,ACF81*ACF32))) -> . | ACI84: =IF(ISERROR(IF(ACI81="",ACI82*ACI32,ACI81*ACI32)),".",IF(ACI22="YES",0,IF(ACI81="",ACI82*ACI32,ACI81*ACI32))) -> . | ACL84: =IF(ISERROR(IF(ACL81="",ACL82*ACL32,ACL81*ACL32)),".",IF(ACL22="YES",0,IF(ACL81="",ACL82*ACL32,ACL81*ACL32))) -> . | ACO84: =IF(ISERROR(IF(ACO81="",ACO82*ACO32,ACO81*ACO32)),".",IF(ACO22="YES",0,IF(ACO81="",ACO82*ACO32,ACO81*ACO32))) -> . | ACR84: =IF(ISERROR(IF(ACR81="",ACR82*ACR32,ACR81*ACR32)),".",IF(ACR22="YES",0,IF(ACR81="",ACR82*ACR32,ACR81*ACR32))) -> . | ACU84: =IF(ISERROR(IF(ACU81="",ACU82*ACU32,ACU81*ACU32)),".",IF(ACU22="YES",0,IF(ACU81="",ACU82*ACU32,ACU81*ACU32))) -> . | ACX84: =IF(ISERROR(IF(ACX81="",ACX82*ACX32,ACX81*ACX32)),".",IF(ACX22="YES",0,IF(ACX81="",ACX82*ACX32,ACX81*ACX32))) -> . | ADA84: =IF(ISERROR(IF(ADA81="",ADA82*ADA32,ADA81*ADA32)),".",IF(ADA22="YES",0,IF(ADA81="",ADA82*ADA32,ADA81*ADA32))) -> . | ADD84: =IF(ISERROR(IF(ADD81="",ADD82*ADD32,ADD81*ADD32)),".",IF(ADD22="YES",0,IF(ADD81="",ADD82*ADD32,ADD81*ADD32))) -> . | ADG84: =IF(ISERROR(IF(ADG81="",ADG82*ADG32,ADG81*ADG32)),".",IF(ADG22="YES",0,IF(ADG81="",ADG82*ADG32,ADG81*ADG32))) -> . | ADJ84: =IF(ISERROR(IF(ADJ81="",ADJ82*ADJ32,ADJ81*ADJ32)),".",IF(ADJ22="YES",0,IF(ADJ81="",ADJ82*ADJ32,ADJ81*ADJ32))) -> . | ADM84: =IF(ISERROR(IF(ADM81="",ADM82*ADM32,ADM81*ADM32)),".",IF(ADM22="YES",0,IF(ADM81="",ADM82*ADM32,ADM81*ADM32))) -> . | ADP84: =IF(ISERROR(IF(ADP81="",ADP82*ADP32,ADP81*ADP32)),".",IF(ADP22="YES",0,IF(ADP81="",ADP82*ADP32,ADP81*ADP32))) -> . | ADS84: =IF(ISERROR(IF(ADS81="",ADS82*ADS32,ADS81*ADS32)),".",IF(ADS22="YES",0,IF(ADS81="",ADS82*ADS32,ADS81*ADS32))) -> . | ADV84: =IF(ISERROR(IF(ADV81="",ADV82*ADV32,ADV81*ADV32)),".",IF(ADV22="YES",0,IF(ADV81="",ADV82*ADV32,ADV81*ADV32))) -> . | ADY84: =IF(ISERROR(IF(ADY81="",ADY82*ADY32,ADY81*ADY32)),".",IF(ADY22="YES",0,IF(ADY81="",ADY82*ADY32,ADY81*ADY32))) -> . | AEB84: =IF(ISERROR(IF(AEB81="",AEB82*AEB32,AEB81*AEB32)),".",IF(AEB22="YES",0,IF(AEB81="",AEB82*AEB32,AEB81*AEB32))) -> . | AEE84: =IF(ISERROR(IF(AEE81="",AEE82*AEE32,AEE81*AEE32)),".",IF(AEE22="YES",0,IF(AEE81="",AEE82*AEE32,AEE81*AEE32))) -> . | AEH84: =IF(ISERROR(IF(AEH81="",AEH82*AEH32,AEH81*AEH32)),".",IF(AEH22="YES",0,IF(AEH81="",AEH82*AEH32,AEH81*AEH32))) -> . | AEK84: =IF(ISERROR(IF(AEK81="",AEK82*AEK32,AEK81*AEK32)),".",IF(AEK22="YES",0,IF(AEK81="",AEK82*AEK32,AEK81*AEK32))) -> . | AEN84: =IF(ISERROR(IF(AEN81="",AEN82*AEN32,AEN81*AEN32)),".",IF(AEN22="YES",0,IF(AEN81="",AEN82*AEN32,AEN81*AEN32))) -> . | AEQ84: =IF(ISERROR(IF(AEQ81="",AEQ82*AEQ32,AEQ81*AEQ32)),".",IF(AEQ22="YES",0,IF(AEQ81="",AEQ82*AEQ32,AEQ81*AEQ32))) -> . | AET84: =IF(ISERROR(IF(AET81="",AET82*AET32,AET81*AET32)),".",IF(AET22="YES",0,IF(AET81="",AET82*AET32,AET81*AET32))) -> . | AEW84: =IF(ISERROR(IF(AEW81="",AEW82*AEW32,AEW81*AEW32)),".",IF(AEW22="YES",0,IF(AEW81="",AEW82*AEW32,AEW81*AEW32))) -> . | AEZ84: =IF(ISERROR(IF(AEZ81="",AEZ82*AEZ32,AEZ81*AEZ32)),".",IF(AEZ22="YES",0,IF(AEZ81="",AEZ82*AEZ32,AEZ81*AEZ32))) -> . | AFC84: =IF(ISERROR(IF(AFC81="",AFC82*AFC32,AFC81*AFC32)),".",IF(AFC22="YES",0,IF(AFC81="",AFC82*AFC32,AFC81*AFC32))) -> . | AFF84: =IF(ISERROR(IF(AFF81="",AFF82*AFF32,AFF81*AFF32)),".",IF(AFF22="YES",0,IF(AFF81="",AFF82*AFF32,AFF81*AFF32))) -> . | AFI84: =IF(ISERROR(IF(AFI81="",AFI82*AFI32,AFI81*AFI32)),".",IF(AFI22="YES",0,IF(AFI81="",AFI82*AFI32,AFI81*AFI32))) -> . | AFL84: =IF(ISERROR(IF(AFL81="",AFL82*AFL32,AFL81*AFL32)),".",IF(AFL22="YES",0,IF(AFL81="",AFL82*AFL32,AFL81*AFL32))) -> . | AFO84: =IF(ISERROR(IF(AFO81="",AFO82*AFO32,AFO81*AFO32)),".",IF(AFO22="YES",0,IF(AFO81="",AFO82*AFO32,AFO81*AFO32))) -> . | AFR84: =IF(ISERROR(IF(AFR81="",AFR82*AFR32,AFR81*AFR32)),".",IF(AFR22="YES",0,IF(AFR81="",AFR82*AFR32,AFR81*AFR32))) -> . | AFU84: =IF(ISERROR(IF(AFU81="",AFU82*AFU32,AFU81*AFU32)),".",IF(AFU22="YES",0,IF(AFU81="",AFU82*AFU32,AFU81*AFU32))) -> . | AFX84: =IF(ISERROR(IF(AFX81="",AFX82*AFX32,AFX81*AFX32)),".",IF(AFX22="YES",0,IF(AFX81="",AFX82*AFX32,AFX81*AFX32))) -> . | AGA84: =IF(ISERROR(IF(AGA81="",AGA82*AGA32,AGA81*AGA32)),".",IF(AGA22="YES",0,IF(AGA81="",AGA82*AGA32,AGA81*AGA32))) -> . | AGD84: =IF(ISERROR(IF(AGD81="",AGD82*AGD32,AGD81*AGD32)),".",IF(AGD22="YES",0,IF(AGD81="",AGD82*AGD32,AGD81*AGD32))) -> . | AGG84: =IF(ISERROR(IF(AGG81="",AGG82*AGG32,AGG81*AGG32)),".",IF(AGG22="YES",0,IF(AGG81="",AGG82*AGG32,AGG81*AGG32))) -> . | AGJ84: =IF(ISERROR(IF(AGJ81="",AGJ82*AGJ32,AGJ81*AGJ32)),".",IF(AGJ22="YES",0,IF(AGJ81="",AGJ82*AGJ32,AGJ81*AGJ32))) -> . | AGM84: =IF(ISERROR(IF(AGM81="",AGM82*AGM32,AGM81*AGM32)),".",IF(AGM22="YES",0,IF(AGM81="",AGM82*AGM32,AGM81*AGM32))) -> . | AGP84: =IF(ISERROR(IF(AGP81="",AGP82*AGP32,AGP81*AGP32)),".",IF(AGP22="YES",0,IF(AGP81="",AGP82*AGP32,AGP81*AGP32))) -> . | AGS84: =IF(ISERROR(IF(AGS81="",AGS82*AGS32,AGS81*AGS32)),".",IF(AGS22="YES",0,IF(AGS81="",AGS82*AGS32,AGS81*AGS32))) -> . | AGV84: =IF(ISERROR(IF(AGV81="",AGV82*AGV32,AGV81*AGV32)),".",IF(AGV22="YES",0,IF(AGV81="",AGV82*AGV32,AGV81*AGV32))) -> . | AGY84: =IF(ISERROR(IF(AGY81="",AGY82*AGY32,AGY81*AGY32)),".",IF(AGY22="YES",0,IF(AGY81="",AGY82*AGY32,AGY81*AGY32))) -> . | AHB84: =IF(ISERROR(IF(AHB81="",AHB82*AHB32,AHB81*AHB32)),".",IF(AHB22="YES",0,IF(AHB81="",AHB82*AHB32,AHB81*AHB32))) -> . | AHE84: =IF(ISERROR(IF(AHE81="",AHE82*AHE32,AHE81*AHE32)),".",IF(AHE22="YES",0,IF(AHE81="",AHE82*AHE32,AHE81*AHE32))) -> . | AHH84: =IF(ISERROR(IF(AHH81="",AHH82*AHH32,AHH81*AHH32)),".",IF(AHH22="YES",0,IF(AHH81="",AHH82*AHH32,AHH81*AHH32))) -> . | AHK84: =IF(ISERROR(IF(AHK81="",AHK82*AHK32,AHK81*AHK32)),".",IF(AHK22="YES",0,IF(AHK81="",AHK82*AHK32,AHK81*AHK32))) -> . | AHN84: =IF(ISERROR(IF(AHN81="",AHN82*AHN32,AHN81*AHN32)),".",IF(AHN22="YES",0,IF(AHN81="",AHN82*AHN32,AHN81*AHN32))) -> . | AHQ84: =IF(ISERROR(IF(AHQ81="",AHQ82*AHQ32,AHQ81*AHQ32)),".",IF(AHQ22="YES",0,IF(AHQ81="",AHQ82*AHQ32,AHQ81*AHQ32))) -> . | AHT84: =IF(ISERROR(IF(AHT81="",AHT82*AHT32,AHT81*AHT32)),".",IF(AHT22="YES",0,IF(AHT81="",AHT82*AHT32,AHT81*AHT32))) -> .
C86: Change rate as per [DT1] to FoF currency [FN1] | G86: 1 | J86: 1 | M86: 1.4267 | P86: 2.0473 | S86: 0.8591 | V86: =0.870989/100 -> 0.00870989 | Y86: 1.4267
B89: [J] | C89: Taxable income TF in FoF currency as per [DT1] | D89: =IF(ISERROR(SUM(G89:AHV89)),"",SUM(G89:AHV89)) -> 175574.3034 | G89: =IF(ISERROR(G84*G86),".",G84*G86) -> 13140 | J89: =IF(ISERROR(J84*J86),".",J84*J86) -> 92124.5 | M89: =IF(ISERROR(M84*M86),".",M84*M86) -> 43511.4966 | P89: =IF(ISERROR(P84*P86),".",P84*P86) -> 15354.75 | S89: =IF(ISERROR(S84*S86),".",S84*S86) -> 919.237 | V89: =IF(ISERROR(V84*V86),".",V84*V86) -> 6904.068506 | Y89: =IF(ISERROR(Y84*Y86),".",Y84*Y86) -> 3620.25125 | AB89: =IF(ISERROR(AB84*AB86),".",AB84*AB86) -> . | AE89: =IF(ISERROR(AE84*AE86),".",AE84*AE86) -> . | AH89: =IF(ISERROR(AH84*AH86),".",AH84*AH86) -> . | AK89: =IF(ISERROR(AK84*AK86),".",AK84*AK86) -> 0 | AN89: =IF(ISERROR(AN84*AN86),".",AN84*AN86) -> . | AQ89: =IF(ISERROR(AQ84*AQ86),".",AQ84*AQ86) -> . | AT89: =IF(ISERROR(AT84*AT86),".",AT84*AT86) -> . | AW89: =IF(ISERROR(AW84*AW86),".",AW84*AW86) -> . | AZ89: =IF(ISERROR(AZ84*AZ86),".",AZ84*AZ86) -> . | BC89: =IF(ISERROR(BC84*BC86),".",BC84*BC86) -> . | BF89: =IF(ISERROR(BF84*BF86),".",BF84*BF86) -> . | BI89: =IF(ISERROR(BI84*BI86),".",BI84*BI86) -> . | BL89: =IF(ISERROR(BL84*BL86),".",BL84*BL86) -> . | BO89: =IF(ISERROR(BO84*BO86),".",BO84*BO86) -> . | BR89: =IF(ISERROR(BR84*BR86),".",BR84*BR86) -> . | BU89: =IF(ISERROR(BU84*BU86),".",BU84*BU86) -> . | BX89: =IF(ISERROR(BX84*BX86),".",BX84*BX86) -> . | CA89: =IF(ISERROR(CA84*CA86),".",CA84*CA86) -> . | CD89: =IF(ISERROR(CD84*CD86),".",CD84*CD86) -> . | CG89: =IF(ISERROR(CG84*CG86),".",CG84*CG86) -> . | CJ89: =IF(ISERROR(CJ84*CJ86),".",CJ84*CJ86) -> . | CM89: =IF(ISERROR(CM84*CM86),".",CM84*CM86) -> . | CP89: =IF(ISERROR(CP84*CP86),".",CP84*CP86) -> . | CS89: =IF(ISERROR(CS84*CS86),".",CS84*CS86) -> . | CV89: =IF(ISERROR(CV84*CV86),".",CV84*CV86) -> . | CY89: =IF(ISERROR(CY84*CY86),".",CY84*CY86) -> . | DB89: =IF(ISERROR(DB84*DB86),".",DB84*DB86) -> . | DE89: =IF(ISERROR(DE84*DE86),".",DE84*DE86) -> . | DH89: =IF(ISERROR(DH84*DH86),".",DH84*DH86) -> . | DK89: =IF(ISERROR(DK84*DK86),".",DK84*DK86) -> . | DN89: =IF(ISERROR(DN84*DN86),".",DN84*DN86) -> . | DQ89: =IF(ISERROR(DQ84*DQ86),".",DQ84*DQ86) -> . | DT89: =IF(ISERROR(DT84*DT86),".",DT84*DT86) -> . | DW89: =IF(ISERROR(DW84*DW86),".",DW84*DW86) -> . | DZ89: =IF(ISERROR(DZ84*DZ86),".",DZ84*DZ86) -> . | EC89: =IF(ISERROR(EC84*EC86),".",EC84*EC86) -> . | EF89: =IF(ISERROR(EF84*EF86),".",EF84*EF86) -> . | EI89: =IF(ISERROR(EI84*EI86),".",EI84*EI86) -> . | EL89: =IF(ISERROR(EL84*EL86),".",EL84*EL86) -> . | EO89: =IF(ISERROR(EO84*EO86),".",EO84*EO86) -> . | ER89: =IF(ISERROR(ER84*ER86),".",ER84*ER86) -> . | EU89: =IF(ISERROR(EU84*EU86),".",EU84*EU86) -> . | EX89: =IF(ISERROR(EX84*EX86),".",EX84*EX86) -> . | FA89: =IF(ISERROR(FA84*FA86),".",FA84*FA86) -> . | FD89: =IF(ISERROR(FD84*FD86),".",FD84*FD86) -> . | FG89: =IF(ISERROR(FG84*FG86),".",FG84*FG86) -> . | FJ89: =IF(ISERROR(FJ84*FJ86),".",FJ84*FJ86) -> . | FM89: =IF(ISERROR(FM84*FM86),".",FM84*FM86) -> . | FP89: =IF(ISERROR(FP84*FP86),".",FP84*FP86) -> . | FS89: =IF(ISERROR(FS84*FS86),".",FS84*FS86) -> . | FV89: =IF(ISERROR(FV84*FV86),".",FV84*FV86) -> . | FY89: =IF(ISERROR(FY84*FY86),".",FY84*FY86) -> . | GB89: =IF(ISERROR(GB84*GB86),".",GB84*GB86) -> . | GE89: =IF(ISERROR(GE84*GE86),".",GE84*GE86) -> . | GH89: =IF(ISERROR(GH84*GH86),".",GH84*GH86) -> . | GK89: =IF(ISERROR(GK84*GK86),".",GK84*GK86) -> . | GN89: =IF(ISERROR(GN84*GN86),".",GN84*GN86) -> . | GQ89: =IF(ISERROR(GQ84*GQ86),".",GQ84*GQ86) -> . | GT89: =IF(ISERROR(GT84*GT86),".",GT84*GT86) -> . | GW89: =IF(ISERROR(GW84*GW86),".",GW84*GW86) -> . | GZ89: =IF(ISERROR(GZ84*GZ86),".",GZ84*GZ86) -> . | HC89: =IF(ISERROR(HC84*HC86),".",HC84*HC86) -> . | HF89: =IF(ISERROR(HF84*HF86),".",HF84*HF86) -> . | HI89: =IF(ISERROR(HI84*HI86),".",HI84*HI86) -> . | HL89: =IF(ISERROR(HL84*HL86),".",HL84*HL86) -> . | HO89: =IF(ISERROR(HO84*HO86),".",HO84*HO86) -> . | HR89: =IF(ISERROR(HR84*HR86),".",HR84*HR86) -> . | HU89: =IF(ISERROR(HU84*HU86),".",HU84*HU86) -> . | HX89: =IF(ISERROR(HX84*HX86),".",HX84*HX86) -> . | IA89: =IF(ISERROR(IA84*IA86),".",IA84*IA86) -> . | ID89: =IF(ISERROR(ID84*ID86),".",ID84*ID86) -> . | IG89: =IF(ISERROR(IG84*IG86),".",IG84*IG86) -> . | IJ89: =IF(ISERROR(IJ84*IJ86),".",IJ84*IJ86) -> . | IM89: =IF(ISERROR(IM84*IM86),".",IM84*IM86) -> . | IP89: =IF(ISERROR(IP84*IP86),".",IP84*IP86) -> . | IS89: =IF(ISERROR(IS84*IS86),".",IS84*IS86) -> . | IV89: =IF(ISERROR(IV84*IV86),".",IV84*IV86) -> . | IY89: =IF(ISERROR(IY84*IY86),".",IY84*IY86) -> . | JB89: =IF(ISERROR(JB84*JB86),".",JB84*JB86) -> . | JE89: =IF(ISERROR(JE84*JE86),".",JE84*JE86) -> . | JH89: =IF(ISERROR(JH84*JH86),".",JH84*JH86) -> . | JK89: =IF(ISERROR(JK84*JK86),".",JK84*JK86) -> . | JN89: =IF(ISERROR(JN84*JN86),".",JN84*JN86) -> . | JQ89: =IF(ISERROR(JQ84*JQ86),".",JQ84*JQ86) -> . | JT89: =IF(ISERROR(JT84*JT86),".",JT84*JT86) -> . | JW89: =IF(ISERROR(JW84*JW86),".",JW84*JW86) -> . | JZ89: =IF(ISERROR(JZ84*JZ86),".",JZ84*JZ86) -> . | KC89: =IF(ISERROR(KC84*KC86),".",KC84*KC86) -> . | KF89: =IF(ISERROR(KF84*KF86),".",KF84*KF86) -> . | KI89: =IF(ISERROR(KI84*KI86),".",KI84*KI86) -> . | KL89: =IF(ISERROR(KL84*KL86),".",KL84*KL86) -> . | KO89: =IF(ISERROR(KO84*KO86),".",KO84*KO86) -> . | KR89: =IF(ISERROR(KR84*KR86),".",KR84*KR86) -> . | KU89: =IF(ISERROR(KU84*KU86),".",KU84*KU86) -> . | KX89: =IF(ISERROR(KX84*KX86),".",KX84*KX86) -> . | LA89: =IF(ISERROR(LA84*LA86),".",LA84*LA86) -> . | LD89: =IF(ISERROR(LD84*LD86),".",LD84*LD86) -> . | LG89: =IF(ISERROR(LG84*LG86),".",LG84*LG86) -> . | LJ89: =IF(ISERROR(LJ84*LJ86),".",LJ84*LJ86) -> . | LM89: =IF(ISERROR(LM84*LM86),".",LM84*LM86) -> . | LP89: =IF(ISERROR(LP84*LP86),".",LP84*LP86) -> . | LS89: =IF(ISERROR(LS84*LS86),".",LS84*LS86) -> . | LV89: =IF(ISERROR(LV84*LV86),".",LV84*LV86) -> . | LY89: =IF(ISERROR(LY84*LY86),".",LY84*LY86) -> . | MB89: =IF(ISERROR(MB84*MB86),".",MB84*MB86) -> . | ME89: =IF(ISERROR(ME84*ME86),".",ME84*ME86) -> . | MH89: =IF(ISERROR(MH84*MH86),".",MH84*MH86) -> . | MK89: =IF(ISERROR(MK84*MK86),".",MK84*MK86) -> . | MN89: =IF(ISERROR(MN84*MN86),".",MN84*MN86) -> . | MQ89: =IF(ISERROR(MQ84*MQ86),".",MQ84*MQ86) -> . | MT89: =IF(ISERROR(MT84*MT86),".",MT84*MT86) -> . | MW89: =IF(ISERROR(MW84*MW86),".",MW84*MW86) -> . | MZ89: =IF(ISERROR(MZ84*MZ86),".",MZ84*MZ86) -> . | NC89: =IF(ISERROR(NC84*NC86),".",NC84*NC86) -> . | NF89: =IF(ISERROR(NF84*NF86),".",NF84*NF86) -> . | NI89: =IF(ISERROR(NI84*NI86),".",NI84*NI86) -> . | NL89: =IF(ISERROR(NL84*NL86),".",NL84*NL86) -> . | NO89: =IF(ISERROR(NO84*NO86),".",NO84*NO86) -> . | NR89: =IF(ISERROR(NR84*NR86),".",NR84*NR86) -> . | NU89: =IF(ISERROR(NU84*NU86),".",NU84*NU86) -> . | NX89: =IF(ISERROR(NX84*NX86),".",NX84*NX86) -> . | OA89: =IF(ISERROR(OA84*OA86),".",OA84*OA86) -> . | OD89: =IF(ISERROR(OD84*OD86),".",OD84*OD86) -> . | OG89: =IF(ISERROR(OG84*OG86),".",OG84*OG86) -> . | OJ89: =IF(ISERROR(OJ84*OJ86),".",OJ84*OJ86) -> . | OM89: =IF(ISERROR(OM84*OM86),".",OM84*OM86) -> . | OP89: =IF(ISERROR(OP84*OP86),".",OP84*OP86) -> . | OS89: =IF(ISERROR(OS84*OS86),".",OS84*OS86) -> . | OV89: =IF(ISERROR(OV84*OV86),".",OV84*OV86) -> . | OY89: =IF(ISERROR(OY84*OY86),".",OY84*OY86) -> . | PB89: =IF(ISERROR(PB84*PB86),".",PB84*PB86) -> . | PE89: =IF(ISERROR(PE84*PE86),".",PE84*PE86) -> . | PH89: =IF(ISERROR(PH84*PH86),".",PH84*PH86) -> . | PK89: =IF(ISERROR(PK84*PK86),".",PK84*PK86) -> . | PN89: =IF(ISERROR(PN84*PN86),".",PN84*PN86) -> . | PQ89: =IF(ISERROR(PQ84*PQ86),".",PQ84*PQ86) -> . | PT89: =IF(ISERROR(PT84*PT86),".",PT84*PT86) -> . | PW89: =IF(ISERROR(PW84*PW86),".",PW84*PW86) -> . | PZ89: =IF(ISERROR(PZ84*PZ86),".",PZ84*PZ86) -> . | QC89: =IF(ISERROR(QC84*QC86),".",QC84*QC86) -> . | QF89: =IF(ISERROR(QF84*QF86),".",QF84*QF86) -> . | QI89: =IF(ISERROR(QI84*QI86),".",QI84*QI86) -> . | QL89: =IF(ISERROR(QL84*QL86),".",QL84*QL86) -> . | QO89: =IF(ISERROR(QO84*QO86),".",QO84*QO86) -> . | QR89: =IF(ISERROR(QR84*QR86),".",QR84*QR86) -> . | QU89: =IF(ISERROR(QU84*QU86),".",QU84*QU86) -> . | QX89: =IF(ISERROR(QX84*QX86),".",QX84*QX86) -> . | RA89: =IF(ISERROR(RA84*RA86),".",RA84*RA86) -> . | RD89: =IF(ISERROR(RD84*RD86),".",RD84*RD86) -> . | RG89: =IF(ISERROR(RG84*RG86),".",RG84*RG86) -> . | RJ89: =IF(ISERROR(RJ84*RJ86),".",RJ84*RJ86) -> . | RM89: =IF(ISERROR(RM84*RM86),".",RM84*RM86) -> . | RP89: =IF(ISERROR(RP84*RP86),".",RP84*RP86) -> . | RS89: =IF(ISERROR(RS84*RS86),".",RS84*RS86) -> . | RV89: =IF(ISERROR(RV84*RV86),".",RV84*RV86) -> . | RY89: =IF(ISERROR(RY84*RY86),".",RY84*RY86) -> . | SB89: =IF(ISERROR(SB84*SB86),".",SB84*SB86) -> . | SE89: =IF(ISERROR(SE84*SE86),".",SE84*SE86) -> . | SH89: =IF(ISERROR(SH84*SH86),".",SH84*SH86) -> . | SK89: =IF(ISERROR(SK84*SK86),".",SK84*SK86) -> . | SN89: =IF(ISERROR(SN84*SN86),".",SN84*SN86) -> . | SQ89: =IF(ISERROR(SQ84*SQ86),".",SQ84*SQ86) -> . | ST89: =IF(ISERROR(ST84*ST86),".",ST84*ST86) -> . | SW89: =IF(ISERROR(SW84*SW86),".",SW84*SW86) -> . | SZ89: =IF(ISERROR(SZ84*SZ86),".",SZ84*SZ86) -> . | TC89: =IF(ISERROR(TC84*TC86),".",TC84*TC86) -> . | TF89: =IF(ISERROR(TF84*TF86),".",TF84*TF86) -> . | TI89: =IF(ISERROR(TI84*TI86),".",TI84*TI86) -> . | TL89: =IF(ISERROR(TL84*TL86),".",TL84*TL86) -> . | TO89: =IF(ISERROR(TO84*TO86),".",TO84*TO86) -> . | TR89: =IF(ISERROR(TR84*TR86),".",TR84*TR86) -> . | TU89: =IF(ISERROR(TU84*TU86),".",TU84*TU86) -> . | TX89: =IF(ISERROR(TX84*TX86),".",TX84*TX86) -> . | UA89: =IF(ISERROR(UA84*UA86),".",UA84*UA86) -> . | UD89: =IF(ISERROR(UD84*UD86),".",UD84*UD86) -> . | UG89: =IF(ISERROR(UG84*UG86),".",UG84*UG86) -> . | UJ89: =IF(ISERROR(UJ84*UJ86),".",UJ84*UJ86) -> . | UM89: =IF(ISERROR(UM84*UM86),".",UM84*UM86) -> . | UP89: =IF(ISERROR(UP84*UP86),".",UP84*UP86) -> . | US89: =IF(ISERROR(US84*US86),".",US84*US86) -> . | UV89: =IF(ISERROR(UV84*UV86),".",UV84*UV86) -> . | UY89: =IF(ISERROR(UY84*UY86),".",UY84*UY86) -> . | VB89: =IF(ISERROR(VB84*VB86),".",VB84*VB86) -> . | VE89: =IF(ISERROR(VE84*VE86),".",VE84*VE86) -> . | VH89: =IF(ISERROR(VH84*VH86),".",VH84*VH86) -> . | VK89: =IF(ISERROR(VK84*VK86),".",VK84*VK86) -> . | VN89: =IF(ISERROR(VN84*VN86),".",VN84*VN86) -> . | VQ89: =IF(ISERROR(VQ84*VQ86),".",VQ84*VQ86) -> . | VT89: =IF(ISERROR(VT84*VT86),".",VT84*VT86) -> . | VW89: =IF(ISERROR(VW84*VW86),".",VW84*VW86) -> . | VZ89: =IF(ISERROR(VZ84*VZ86),".",VZ84*VZ86) -> . | WC89: =IF(ISERROR(WC84*WC86),".",WC84*WC86) -> . | WF89: =IF(ISERROR(WF84*WF86),".",WF84*WF86) -> . | WI89: =IF(ISERROR(WI84*WI86),".",WI84*WI86) -> . | WL89: =IF(ISERROR(WL84*WL86),".",WL84*WL86) -> . | WO89: =IF(ISERROR(WO84*WO86),".",WO84*WO86) -> . | WR89: =IF(ISERROR(WR84*WR86),".",WR84*WR86) -> . | WU89: =IF(ISERROR(WU84*WU86),".",WU84*WU86) -> . | WX89: =IF(ISERROR(WX84*WX86),".",WX84*WX86) -> . | XA89: =IF(ISERROR(XA84*XA86),".",XA84*XA86) -> . | XD89: =IF(ISERROR(XD84*XD86),".",XD84*XD86) -> . | XG89: =IF(ISERROR(XG84*XG86),".",XG84*XG86) -> . | XJ89: =IF(ISERROR(XJ84*XJ86),".",XJ84*XJ86) -> . | XM89: =IF(ISERROR(XM84*XM86),".",XM84*XM86) -> . | XP89: =IF(ISERROR(XP84*XP86),".",XP84*XP86) -> . | XS89: =IF(ISERROR(XS84*XS86),".",XS84*XS86) -> . | XV89: =IF(ISERROR(XV84*XV86),".",XV84*XV86) -> . | XY89: =IF(ISERROR(XY84*XY86),".",XY84*XY86) -> . | YB89: =IF(ISERROR(YB84*YB86),".",YB84*YB86) -> . | YE89: =IF(ISERROR(YE84*YE86),".",YE84*YE86) -> . | YH89: =IF(ISERROR(YH84*YH86),".",YH84*YH86) -> . | YK89: =IF(ISERROR(YK84*YK86),".",YK84*YK86) -> . | YN89: =IF(ISERROR(YN84*YN86),".",YN84*YN86) -> . | YQ89: =IF(ISERROR(YQ84*YQ86),".",YQ84*YQ86) -> . | YT89: =IF(ISERROR(YT84*YT86),".",YT84*YT86) -> . | YW89: =IF(ISERROR(YW84*YW86),".",YW84*YW86) -> . | YZ89: =IF(ISERROR(YZ84*YZ86),".",YZ84*YZ86) -> . | ZC89: =IF(ISERROR(ZC84*ZC86),".",ZC84*ZC86) -> . | ZF89: =IF(ISERROR(ZF84*ZF86),".",ZF84*ZF86) -> . | ZI89: =IF(ISERROR(ZI84*ZI86),".",ZI84*ZI86) -> . | ZL89: =IF(ISERROR(ZL84*ZL86),".",ZL84*ZL86) -> . | ZO89: =IF(ISERROR(ZO84*ZO86),".",ZO84*ZO86) -> . | ZR89: =IF(ISERROR(ZR84*ZR86),".",ZR84*ZR86) -> . | ZU89: =IF(ISERROR(ZU84*ZU86),".",ZU84*ZU86) -> . | ZX89: =IF(ISERROR(ZX84*ZX86),".",ZX84*ZX86) -> . | AAA89: =IF(ISERROR(AAA84*AAA86),".",AAA84*AAA86) -> . | AAD89: =IF(ISERROR(AAD84*AAD86),".",AAD84*AAD86) -> . | AAG89: =IF(ISERROR(AAG84*AAG86),".",AAG84*AAG86) -> . | AAJ89: =IF(ISERROR(AAJ84*AAJ86),".",AAJ84*AAJ86) -> . | AAM89: =IF(ISERROR(AAM84*AAM86),".",AAM84*AAM86) -> . | AAP89: =IF(ISERROR(AAP84*AAP86),".",AAP84*AAP86) -> . | AAS89: =IF(ISERROR(AAS84*AAS86),".",AAS84*AAS86) -> . | AAV89: =IF(ISERROR(AAV84*AAV86),".",AAV84*AAV86) -> . | AAY89: =IF(ISERROR(AAY84*AAY86),".",AAY84*AAY86) -> . | ABB89: =IF(ISERROR(ABB84*ABB86),".",ABB84*ABB86) -> . | ABE89: =IF(ISERROR(ABE84*ABE86),".",ABE84*ABE86) -> . | ABH89: =IF(ISERROR(ABH84*ABH86),".",ABH84*ABH86) -> . | ABK89: =IF(ISERROR(ABK84*ABK86),".",ABK84*ABK86) -> . | ABN89: =IF(ISERROR(ABN84*ABN86),".",ABN84*ABN86) -> . | ABQ89: =IF(ISERROR(ABQ84*ABQ86),".",ABQ84*ABQ86) -> . | ABT89: =IF(ISERROR(ABT84*ABT86),".",ABT84*ABT86) -> . | ABW89: =IF(ISERROR(ABW84*ABW86),".",ABW84*ABW86) -> . | ABZ89: =IF(ISERROR(ABZ84*ABZ86),".",ABZ84*ABZ86) -> . | ACC89: =IF(ISERROR(ACC84*ACC86),".",ACC84*ACC86) -> . | ACF89: =IF(ISERROR(ACF84*ACF86),".",ACF84*ACF86) -> . | ACI89: =IF(ISERROR(ACI84*ACI86),".",ACI84*ACI86) -> . | ACL89: =IF(ISERROR(ACL84*ACL86),".",ACL84*ACL86) -> . | ACO89: =IF(ISERROR(ACO84*ACO86),".",ACO84*ACO86) -> . | ACR89: =IF(ISERROR(ACR84*ACR86),".",ACR84*ACR86) -> . | ACU89: =IF(ISERROR(ACU84*ACU86),".",ACU84*ACU86) -> . | ACX89: =IF(ISERROR(ACX84*ACX86),".",ACX84*ACX86) -> . | ADA89: =IF(ISERROR(ADA84*ADA86),".",ADA84*ADA86) -> . | ADD89: =IF(ISERROR(ADD84*ADD86),".",ADD84*ADD86) -> . | ADG89: =IF(ISERROR(ADG84*ADG86),".",ADG84*ADG86) -> . | ADJ89: =IF(ISERROR(ADJ84*ADJ86),".",ADJ84*ADJ86) -> . | ADM89: =IF(ISERROR(ADM84*ADM86),".",ADM84*ADM86) -> . | ADP89: =IF(ISERROR(ADP84*ADP86),".",ADP84*ADP86) -> . | ADS89: =IF(ISERROR(ADS84*ADS86),".",ADS84*ADS86) -> . | ADV89: =IF(ISERROR(ADV84*ADV86),".",ADV84*ADV86) -> . | ADY89: =IF(ISERROR(ADY84*ADY86),".",ADY84*ADY86) -> . | AEB89: =IF(ISERROR(AEB84*AEB86),".",AEB84*AEB86) -> . | AEE89: =IF(ISERROR(AEE84*AEE86),".",AEE84*AEE86) -> . | AEH89: =IF(ISERROR(AEH84*AEH86),".",AEH84*AEH86) -> . | AEK89: =IF(ISERROR(AEK84*AEK86),".",AEK84*AEK86) -> . | AEN89: =IF(ISERROR(AEN84*AEN86),".",AEN84*AEN86) -> . | AEQ89: =IF(ISERROR(AEQ84*AEQ86),".",AEQ84*AEQ86) -> . | AET89: =IF(ISERROR(AET84*AET86),".",AET84*AET86) -> . | AEW89: =IF(ISERROR(AEW84*AEW86),".",AEW84*AEW86) -> . | AEZ89: =IF(ISERROR(AEZ84*AEZ86),".",AEZ84*AEZ86) -> . | AFC89: =IF(ISERROR(AFC84*AFC86),".",AFC84*AFC86) -> . | AFF89: =IF(ISERROR(AFF84*AFF86),".",AFF84*AFF86) -> . | AFI89: =IF(ISERROR(AFI84*AFI86),".",AFI84*AFI86) -> . | AFL89: =IF(ISERROR(AFL84*AFL86),".",AFL84*AFL86) -> . | AFO89: =IF(ISERROR(AFO84*AFO86),".",AFO84*AFO86) -> . | AFR89: =IF(ISERROR(AFR84*AFR86),".",AFR84*AFR86) -> . | AFU89: =IF(ISERROR(AFU84*AFU86),".",AFU84*AFU86) -> . | AFX89: =IF(ISERROR(AFX84*AFX86),".",AFX84*AFX86) -> . | AGA89: =IF(ISERROR(AGA84*AGA86),".",AGA84*AGA86) -> . | AGD89: =IF(ISERROR(AGD84*AGD86),".",AGD84*AGD86) -> . | AGG89: =IF(ISERROR(AGG84*AGG86),".",AGG84*AGG86) -> . | AGJ89: =IF(ISERROR(AGJ84*AGJ86),".",AGJ84*AGJ86) -> . | AGM89: =IF(ISERROR(AGM84*AGM86),".",AGM84*AGM86) -> . | AGP89: =IF(ISERROR(AGP84*AGP86),".",AGP84*AGP86) -> . | AGS89: =IF(ISERROR(AGS84*AGS86),".",AGS84*AGS86) -> . | AGV89: =IF(ISERROR(AGV84*AGV86),".",AGV84*AGV86) -> . | AGY89: =IF(ISERROR(AGY84*AGY86),".",AGY84*AGY86) -> . | AHB89: =IF(ISERROR(AHB84*AHB86),".",AHB84*AHB86) -> . | AHE89: =IF(ISERROR(AHE84*AHE86),".",AHE84*AHE86) -> . | AHH89: =IF(ISERROR(AHH84*AHH86),".",AHH84*AHH86) -> . | AHK89: =IF(ISERROR(AHK84*AHK86),".",AHK84*AHK86) -> . | AHN89: =IF(ISERROR(AHN84*AHN86),".",AHN84*AHN86) -> . | AHQ89: =IF(ISERROR(AHQ84*AHQ86),".",AHQ84*AHQ86) -> . | AHT89: =IF(ISERROR(AHT84*AHT86),".",AHT84*AHT86) -> .
B93: [K] | C93: Refference yield in TF currency [FN5] as per [DT1] | AB93: 0.017751 | AE93: 0.048025 | AH93: 0.031767
C95: Refference yield as per [DT1] | G95: =IF(G93="","",$D$5) ->  | J95: =IF(J93="","",$D$5) ->  | M95: =IF(M93="","",$D$5) ->  | P95: =IF(P93="","",$D$5) ->  | S95: =IF(S93="","",$D$5) ->  | V95: =IF(V93="","",$D$5) ->  | Y95: =IF(Y93="","",$D$5) ->  | AB95: =IF(AB93="","",$D$5) -> 2007-09-30 | AE95: =IF(AE93="","",$D$5) -> 2007-09-30 | AH95: =IF(AH93="","",$D$5) -> 2007-09-30 | AK95: =IF(AK93="","",$D$5) ->  | AN95: =IF(AN93="","",$D$5) ->  | AQ95: =IF(AQ93="","",$D$5) ->  | AT95: =IF(AT93="","",$D$5) ->  | AW95: =IF(AW93="","",$D$5) ->  | AZ95: =IF(AZ93="","",$D$5) ->  | BC95: =IF(BC93="","",$D$5) ->  | BF95: =IF(BF93="","",$D$5) ->  | BI95: =IF(BI93="","",$D$5) ->  | BL95: =IF(BL93="","",$D$5) ->  | BO95: =IF(BO93="","",$D$5) ->  | BR95: =IF(BR93="","",$D$5) ->  | BU95: =IF(BU93="","",$D$5) ->  | BX95: =IF(BX93="","",$D$5) ->  | CA95: =IF(CA93="","",$D$5) ->  | CD95: =IF(CD93="","",$D$5) ->  | CG95: =IF(CG93="","",$D$5) ->  | CJ95: =IF(CJ93="","",$D$5) ->  | CM95: =IF(CM93="","",$D$5) ->  | CP95: =IF(CP93="","",$D$5) ->  | CS95: =IF(CS93="","",$D$5) ->  | CV95: =IF(CV93="","",$D$5) ->  | CY95: =IF(CY93="","",$D$5) ->  | DB95: =IF(DB93="","",$D$5) ->  | DE95: =IF(DE93="","",$D$5) ->  | DH95: =IF(DH93="","",$D$5) ->  | DK95: =IF(DK93="","",$D$5) ->  | DN95: =IF(DN93="","",$D$5) ->  | DQ95: =IF(DQ93="","",$D$5) ->  | DT95: =IF(DT93="","",$D$5) ->  | DW95: =IF(DW93="","",$D$5) ->  | DZ95: =IF(DZ93="","",$D$5) ->  | EC95: =IF(EC93="","",$D$5) ->  | EF95: =IF(EF93="","",$D$5) ->  | EI95: =IF(EI93="","",$D$5) ->  | EL95: =IF(EL93="","",$D$5) ->  | EO95: =IF(EO93="","",$D$5) ->  | ER95: =IF(ER93="","",$D$5) ->  | EU95: =IF(EU93="","",$D$5) ->  | EX95: =IF(EX93="","",$D$5) ->  | FA95: =IF(FA93="","",$D$5) ->  | FD95: =IF(FD93="","",$D$5) ->  | FG95: =IF(FG93="","",$D$5) ->  | FJ95: =IF(FJ93="","",$D$5) ->  | FM95: =IF(FM93="","",$D$5) ->  | FP95: =IF(FP93="","",$D$5) ->  | FS95: =IF(FS93="","",$D$5) ->  | FV95: =IF(FV93="","",$D$5) ->  | FY95: =IF(FY93="","",$D$5) ->  | GB95: =IF(GB93="","",$D$5) ->  | GE95: =IF(GE93="","",$D$5) ->  | GH95: =IF(GH93="","",$D$5) ->  | GK95: =IF(GK93="","",$D$5) ->  | GN95: =IF(GN93="","",$D$5) ->  | GQ95: =IF(GQ93="","",$D$5) ->  | GT95: =IF(GT93="","",$D$5) ->  | GW95: =IF(GW93="","",$D$5) ->  | GZ95: =IF(GZ93="","",$D$5) ->  | HC95: =IF(HC93="","",$D$5) ->  | HF95: =IF(HF93="","",$D$5) ->  | HI95: =IF(HI93="","",$D$5) ->  | HL95: =IF(HL93="","",$D$5) ->  | HO95: =IF(HO93="","",$D$5) ->  | HR95: =IF(HR93="","",$D$5) ->  | HU95: =IF(HU93="","",$D$5) ->  | HX95: =IF(HX93="","",$D$5) ->  | IA95: =IF(IA93="","",$D$5) ->  | ID95: =IF(ID93="","",$D$5) ->  | IG95: =IF(IG93="","",$D$5) ->  | IJ95: =IF(IJ93="","",$D$5) ->  | IM95: =IF(IM93="","",$D$5) ->  | IP95: =IF(IP93="","",$D$5) ->  | IS95: =IF(IS93="","",$D$5) ->  | IV95: =IF(IV93="","",$D$5) ->  | IY95: =IF(IY93="","",$D$5) ->  | JB95: =IF(JB93="","",$D$5) ->  | JE95: =IF(JE93="","",$D$5) ->  | JH95: =IF(JH93="","",$D$5) ->  | JK95: =IF(JK93="","",$D$5) ->  | JN95: =IF(JN93="","",$D$5) ->  | JQ95: =IF(JQ93="","",$D$5) ->  | JT95: =IF(JT93="","",$D$5) ->  | JW95: =IF(JW93="","",$D$5) ->  | JZ95: =IF(JZ93="","",$D$5) ->  | KC95: =IF(KC93="","",$D$5) ->  | KF95: =IF(KF93="","",$D$5) ->  | KI95: =IF(KI93="","",$D$5) ->  | KL95: =IF(KL93="","",$D$5) ->  | KO95: =IF(KO93="","",$D$5) ->  | KR95: =IF(KR93="","",$D$5) ->  | KU95: =IF(KU93="","",$D$5) ->  | KX95: =IF(KX93="","",$D$5) ->  | LA95: =IF(LA93="","",$D$5) ->  | LD95: =IF(LD93="","",$D$5) ->  | LG95: =IF(LG93="","",$D$5) ->  | LJ95: =IF(LJ93="","",$D$5) ->  | LM95: =IF(LM93="","",$D$5) ->  | LP95: =IF(LP93="","",$D$5) ->  | LS95: =IF(LS93="","",$D$5) ->  | LV95: =IF(LV93="","",$D$5) ->  | LY95: =IF(LY93="","",$D$5) ->  | MB95: =IF(MB93="","",$D$5) ->  | ME95: =IF(ME93="","",$D$5) ->  | MH95: =IF(MH93="","",$D$5) ->  | MK95: =IF(MK93="","",$D$5) ->  | MN95: =IF(MN93="","",$D$5) ->  | MQ95: =IF(MQ93="","",$D$5) ->  | MT95: =IF(MT93="","",$D$5) ->  | MW95: =IF(MW93="","",$D$5) ->  | MZ95: =IF(MZ93="","",$D$5) ->  | NC95: =IF(NC93="","",$D$5) ->  | NF95: =IF(NF93="","",$D$5) ->  | NI95: =IF(NI93="","",$D$5) ->  | NL95: =IF(NL93="","",$D$5) ->  | NO95: =IF(NO93="","",$D$5) ->  | NR95: =IF(NR93="","",$D$5) ->  | NU95: =IF(NU93="","",$D$5) ->  | NX95: =IF(NX93="","",$D$5) ->  | OA95: =IF(OA93="","",$D$5) ->  | OD95: =IF(OD93="","",$D$5) ->  | OG95: =IF(OG93="","",$D$5) ->  | OJ95: =IF(OJ93="","",$D$5) ->  | OM95: =IF(OM93="","",$D$5) ->  | OP95: =IF(OP93="","",$D$5) ->  | OS95: =IF(OS93="","",$D$5) ->  | OV95: =IF(OV93="","",$D$5) ->  | OY95: =IF(OY93="","",$D$5) ->  | PB95: =IF(PB93="","",$D$5) ->  | PE95: =IF(PE93="","",$D$5) ->  | PH95: =IF(PH93="","",$D$5) ->  | PK95: =IF(PK93="","",$D$5) ->  | PN95: =IF(PN93="","",$D$5) ->  | PQ95: =IF(PQ93="","",$D$5) ->  | PT95: =IF(PT93="","",$D$5) ->  | PW95: =IF(PW93="","",$D$5) ->  | PZ95: =IF(PZ93="","",$D$5) ->  | QC95: =IF(QC93="","",$D$5) ->  | QF95: =IF(QF93="","",$D$5) ->  | QI95: =IF(QI93="","",$D$5) ->  | QL95: =IF(QL93="","",$D$5) ->  | QO95: =IF(QO93="","",$D$5) ->  | QR95: =IF(QR93="","",$D$5) ->  | QU95: =IF(QU93="","",$D$5) ->  | QX95: =IF(QX93="","",$D$5) ->  | RA95: =IF(RA93="","",$D$5) ->  | RD95: =IF(RD93="","",$D$5) ->  | RG95: =IF(RG93="","",$D$5) ->  | RJ95: =IF(RJ93="","",$D$5) ->  | RM95: =IF(RM93="","",$D$5) ->  | RP95: =IF(RP93="","",$D$5) ->  | RS95: =IF(RS93="","",$D$5) ->  | RV95: =IF(RV93="","",$D$5) ->  | RY95: =IF(RY93="","",$D$5) ->  | SB95: =IF(SB93="","",$D$5) ->  | SE95: =IF(SE93="","",$D$5) ->  | SH95: =IF(SH93="","",$D$5) ->  | SK95: =IF(SK93="","",$D$5) ->  | SN95: =IF(SN93="","",$D$5) ->  | SQ95: =IF(SQ93="","",$D$5) ->  | ST95: =IF(ST93="","",$D$5) ->  | SW95: =IF(SW93="","",$D$5) ->  | SZ95: =IF(SZ93="","",$D$5) ->  | TC95: =IF(TC93="","",$D$5) ->  | TF95: =IF(TF93="","",$D$5) ->  | TI95: =IF(TI93="","",$D$5) ->  | TL95: =IF(TL93="","",$D$5) ->  | TO95: =IF(TO93="","",$D$5) ->  | TR95: =IF(TR93="","",$D$5) ->  | TU95: =IF(TU93="","",$D$5) ->  | TX95: =IF(TX93="","",$D$5) ->  | UA95: =IF(UA93="","",$D$5) ->  | UD95: =IF(UD93="","",$D$5) ->  | UG95: =IF(UG93="","",$D$5) ->  | UJ95: =IF(UJ93="","",$D$5) ->  | UM95: =IF(UM93="","",$D$5) ->  | UP95: =IF(UP93="","",$D$5) ->  | US95: =IF(US93="","",$D$5) ->  | UV95: =IF(UV93="","",$D$5) ->  | UY95: =IF(UY93="","",$D$5) ->  | VB95: =IF(VB93="","",$D$5) ->  | VE95: =IF(VE93="","",$D$5) ->  | VH95: =IF(VH93="","",$D$5) ->  | VK95: =IF(VK93="","",$D$5) ->  | VN95: =IF(VN93="","",$D$5) ->  | VQ95: =IF(VQ93="","",$D$5) ->  | VT95: =IF(VT93="","",$D$5) ->  | VW95: =IF(VW93="","",$D$5) ->  | VZ95: =IF(VZ93="","",$D$5) ->  | WC95: =IF(WC93="","",$D$5) ->  | WF95: =IF(WF93="","",$D$5) ->  | WI95: =IF(WI93="","",$D$5) ->  | WL95: =IF(WL93="","",$D$5) ->  | WO95: =IF(WO93="","",$D$5) ->  | WR95: =IF(WR93="","",$D$5) ->  | WU95: =IF(WU93="","",$D$5) ->  | WX95: =IF(WX93="","",$D$5) ->  | XA95: =IF(XA93="","",$D$5) ->  | XD95: =IF(XD93="","",$D$5) ->  | XG95: =IF(XG93="","",$D$5) ->  | XJ95: =IF(XJ93="","",$D$5) ->  | XM95: =IF(XM93="","",$D$5) ->  | XP95: =IF(XP93="","",$D$5) ->  | XS95: =IF(XS93="","",$D$5) ->  | XV95: =IF(XV93="","",$D$5) ->  | XY95: =IF(XY93="","",$D$5) ->  | YB95: =IF(YB93="","",$D$5) ->  | YE95: =IF(YE93="","",$D$5) ->  | YH95: =IF(YH93="","",$D$5) ->  | YK95: =IF(YK93="","",$D$5) ->  | YN95: =IF(YN93="","",$D$5) ->  | YQ95: =IF(YQ93="","",$D$5) ->  | YT95: =IF(YT93="","",$D$5) ->  | YW95: =IF(YW93="","",$D$5) ->  | YZ95: =IF(YZ93="","",$D$5) ->  | ZC95: =IF(ZC93="","",$D$5) ->  | ZF95: =IF(ZF93="","",$D$5) ->  | ZI95: =IF(ZI93="","",$D$5) ->  | ZL95: =IF(ZL93="","",$D$5) ->  | ZO95: =IF(ZO93="","",$D$5) ->  | ZR95: =IF(ZR93="","",$D$5) ->  | ZU95: =IF(ZU93="","",$D$5) ->  | ZX95: =IF(ZX93="","",$D$5) ->  | AAA95: =IF(AAA93="","",$D$5) ->  | AAD95: =IF(AAD93="","",$D$5) ->  | AAG95: =IF(AAG93="","",$D$5) ->  | AAJ95: =IF(AAJ93="","",$D$5) ->  | AAM95: =IF(AAM93="","",$D$5) ->  | AAP95: =IF(AAP93="","",$D$5) ->  | AAS95: =IF(AAS93="","",$D$5) ->  | AAV95: =IF(AAV93="","",$D$5) ->  | AAY95: =IF(AAY93="","",$D$5) ->  | ABB95: =IF(ABB93="","",$D$5) ->  | ABE95: =IF(ABE93="","",$D$5) ->  | ABH95: =IF(ABH93="","",$D$5) ->  | ABK95: =IF(ABK93="","",$D$5) ->  | ABN95: =IF(ABN93="","",$D$5) ->  | ABQ95: =IF(ABQ93="","",$D$5) ->  | ABT95: =IF(ABT93="","",$D$5) ->  | ABW95: =IF(ABW93="","",$D$5) ->  | ABZ95: =IF(ABZ93="","",$D$5) ->  | ACC95: =IF(ACC93="","",$D$5) ->  | ACF95: =IF(ACF93="","",$D$5) ->  | ACI95: =IF(ACI93="","",$D$5) ->  | ACL95: =IF(ACL93="","",$D$5) ->  | ACO95: =IF(ACO93="","",$D$5) ->  | ACR95: =IF(ACR93="","",$D$5) ->  | ACU95: =IF(ACU93="","",$D$5) ->  | ACX95: =IF(ACX93="","",$D$5) ->  | ADA95: =IF(ADA93="","",$D$5) ->  | ADD95: =IF(ADD93="","",$D$5) ->  | ADG95: =IF(ADG93="","",$D$5) ->  | ADJ95: =IF(ADJ93="","",$D$5) ->  | ADM95: =IF(ADM93="","",$D$5) ->  | ADP95: =IF(ADP93="","",$D$5) ->  | ADS95: =IF(ADS93="","",$D$5) ->  | ADV95: =IF(ADV93="","",$D$5) ->  | ADY95: =IF(ADY93="","",$D$5) ->  | AEB95: =IF(AEB93="","",$D$5) ->  | AEE95: =IF(AEE93="","",$D$5) ->  | AEH95: =IF(AEH93="","",$D$5) ->  | AEK95: =IF(AEK93="","",$D$5) ->  | AEN95: =IF(AEN93="","",$D$5) ->  | AEQ95: =IF(AEQ93="","",$D$5) ->  | AET95: =IF(AET93="","",$D$5) ->  | AEW95: =IF(AEW93="","",$D$5) ->  | AEZ95: =IF(AEZ93="","",$D$5) ->  | AFC95: =IF(AFC93="","",$D$5) ->  | AFF95: =IF(AFF93="","",$D$5) ->  | AFI95: =IF(AFI93="","",$D$5) ->  | AFL95: =IF(AFL93="","",$D$5) ->  | AFO95: =IF(AFO93="","",$D$5) ->  | AFR95: =IF(AFR93="","",$D$5) ->  | AFU95: =IF(AFU93="","",$D$5) ->  | AFX95: =IF(AFX93="","",$D$5) ->  | AGA95: =IF(AGA93="","",$D$5) ->  | AGD95: =IF(AGD93="","",$D$5) ->  | AGG95: =IF(AGG93="","",$D$5) ->  | AGJ95: =IF(AGJ93="","",$D$5) ->  | AGM95: =IF(AGM93="","",$D$5) ->  | AGP95: =IF(AGP93="","",$D$5) ->  | AGS95: =IF(AGS93="","",$D$5) ->  | AGV95: =IF(AGV93="","",$D$5) ->  | AGY95: =IF(AGY93="","",$D$5) ->  | AHB95: =IF(AHB93="","",$D$5) ->  | AHE95: =IF(AHE93="","",$D$5) ->  | AHH95: =IF(AHH93="","",$D$5) ->  | AHK95: =IF(AHK93="","",$D$5) ->  | AHN95: =IF(AHN93="","",$D$5) ->  | AHQ95: =IF(AHQ93="","",$D$5) ->  | AHT95: =IF(AHT93="","",$D$5) -> 
C96: Refference basis | AB96: MSCI Japan Index (Dividend yield) | AE96: MSCI UK Index (Dividend yield) | AH96: MSCI EUROPE INDEX (Dividend yield)
B98: [L] | C98: NAV of TF per share as per [DT1] | AB98: 955 | AE98: 124.9 | AH98: 232
B100: [M] | C100: Taxable income per share as per [DT1] [K]*[L] | G100: . | J100: . | M100: . | P100: . | S100: . | V100: . | Y100: . | AB100: =MAX(TRUNC(AB93*AB98,IF(AB93*AB98<1,5,IF(AND(OR(AB93*AB98=1,AB93*AB98>1),AB93*AB98<100),3,IF(OR(AB93*AB98=100,AB93*AB98>100),2)))),TRUNC(0,5)) -> 16.952 | AE100: =MAX(TRUNC(AE93*AE98,IF(AE93*AE98<1,5,IF(AND(OR(AE93*AE98=1,AE93*AE98>1),AE93*AE98<100),3,IF(OR(AE93*AE98=100,AE93*AE98>100),2)))),TRUNC(0,5)) -> 5.998 | AH100: =MAX(TRUNC(AH93*AH98,IF(AH93*AH98<1,5,IF(AND(OR(AH93*AH98=1,AH93*AH98>1),AH93*AH98<100),3,IF(OR(AH93*AH98=100,AH93*AH98>100),2)))),TRUNC(0,5)) -> 7.369 | AK100: . | AN100: . | AQ100: . | AT100: . | AW100: . | AZ100: . | BC100: . | BF100: . | BI100: . | BL100: . | BO100: . | BR100: . | BU100: . | BX100: . | CA100: . | CD100: . | CG100: . | CJ100: . | CM100: . | CP100: . | CS100: . | CV100: . | CY100: . | DB100: . | DE100: . | DH100: . | DK100: . | DN100: . | DQ100: . | DT100: . | DW100: . | DZ100: . | EC100: . | EF100: . | EI100: . | EL100: . | EO100: . | ER100: . | EU100: . | EX100: . | FA100: . | FD100: . | FG100: . | FJ100: . | FM100: . | FP100: . | FS100: . | FV100: . | FY100: . | GB100: . | GE100: . | GH100: . | GK100: . | GN100: . | GQ100: . | GT100: . | GW100: . | GZ100: . | HC100: . | HF100: . | HI100: . | HL100: . | HO100: . | HR100: . | HU100: . | HX100: . | IA100: . | ID100: . | IG100: . | IJ100: . | IM100: . | IP100: . | IS100: . | IV100: . | IY100: . | JB100: . | JE100: . | JH100: . | JK100: . | JN100: . | JQ100: . | JT100: . | JW100: . | JZ100: . | KC100: . | KF100: . | KI100: . | KL100: . | KO100: . | KR100: . | KU100: . | KX100: . | LA100: . | LD100: . | LG100: . | LJ100: . | LM100: . | LP100: . | LS100: . | LV100: . | LY100: . | MB100: . | ME100: . | MH100: . | MK100: . | MN100: . | MQ100: . | MT100: . | MW100: . | MZ100: . | NC100: . | NF100: . | NI100: . | NL100: . | NO100: . | NR100: . | NU100: . | NX100: . | OA100: . | OD100: . | OG100: . | OJ100: . | OM100: . | OP100: . | OS100: . | OV100: . | OY100: . | PB100: . | PE100: . | PH100: . | PK100: . | PN100: . | PQ100: . | PT100: . | PW100: . | PZ100: . | QC100: . | QF100: . | QI100: . | QL100: . | QO100: . | QR100: . | QU100: . | QX100: . | RA100: . | RD100: . | RG100: . | RJ100: . | RM100: . | RP100: . | RS100: . | RV100: . | RY100: . | SB100: . | SE100: . | SH100: . | SK100: . | SN100: . | SQ100: . | ST100: . | SW100: . | SZ100: . | TC100: . | TF100: . | TI100: . | TL100: . | TO100: . | TR100: . | TU100: . | TX100: . | UA100: . | UD100: . | UG100: . | UJ100: . | UM100: . | UP100: . | US100: . | UV100: . | UY100: . | VB100: . | VE100: . | VH100: . | VK100: . | VN100: . | VQ100: . | VT100: . | VW100: . | VZ100: . | WC100: . | WF100: . | WI100: . | WL100: . | WO100: . | WR100: . | WU100: . | WX100: . | XA100: . | XD100: . | XG100: . | XJ100: . | XM100: . | XP100: . | XS100: . | XV100: . | XY100: . | YB100: . | YE100: . | YH100: . | YK100: . | YN100: . | YQ100: . | YT100: . | YW100: . | YZ100: . | ZC100: . | ZF100: . | ZI100: . | ZL100: . | ZO100: . | ZR100: . | ZU100: . | ZX100: . | AAA100: . | AAD100: . | AAG100: . | AAJ100: . | AAM100: . | AAP100: . | AAS100: . | AAV100: . | AAY100: . | ABB100: . | ABE100: . | ABH100: . | ABK100: . | ABN100: . | ABQ100: . | ABT100: . | ABW100: . | ABZ100: . | ACC100: . | ACF100: . | ACI100: . | ACL100: . | ACO100: . | ACR100: . | ACU100: . | ACX100: . | ADA100: . | ADD100: . | ADG100: . | ADJ100: . | ADM100: . | ADP100: . | ADS100: . | ADV100: . | ADY100: . | AEB100: . | AEE100: . | AEH100: . | AEK100: . | AEN100: . | AEQ100: . | AET100: . | AEW100: . | AEZ100: . | AFC100: . | AFF100: . | AFI100: . | AFL100: . | AFO100: . | AFR100: . | AFU100: . | AFX100: . | AGA100: . | AGD100: . | AGG100: . | AGJ100: . | AGM100: . | AGP100: . | AGS100: . | AGV100: . | AGY100: . | AHB100: . | AHE100: . | AHH100: . | AHK100: . | AHN100: . | AHQ100: . | AHT100: .
B102: [N] | C102: Taxable income FoF in TF currency as per [DT1] [M]*[C] | G102: =IF(ISERROR(G100*G32),".",G100*G32) -> . | J102: =IF(ISERROR(J100*J32),".",J100*J32) -> . | M102: =IF(ISERROR(M100*M32),".",M100*M32) -> . | P102: =IF(ISERROR(P100*P32),".",P100*P32) -> . | S102: =IF(ISERROR(S100*S32),".",S100*S32) -> . | V102: =IF(ISERROR(V100*V32),".",V100*V32) -> . | Y102: =IF(ISERROR(Y100*Y32),".",Y100*Y32) -> . | AB102: =IF(ISERROR(AB100*AB32),".",AB100*AB32) -> 84760 | AE102: =IF(ISERROR(AE100*AE32),".",AE100*AE32) -> 1619.46 | AH102: =IF(ISERROR(AH100*AH32),".",AH100*AH32) -> 3684.5 | AK102: =IF(ISERROR(AK100*AK32),".",AK100*AK32) -> . | AN102: =IF(ISERROR(AN100*AN32),".",AN100*AN32) -> . | AQ102: =IF(ISERROR(AQ100*AQ32),".",AQ100*AQ32) -> . | AT102: =IF(ISERROR(AT100*AT32),".",AT100*AT32) -> . | AW102: =IF(ISERROR(AW100*AW32),".",AW100*AW32) -> . | AZ102: =IF(ISERROR(AZ100*AZ32),".",AZ100*AZ32) -> . | BC102: =IF(ISERROR(BC100*BC32),".",BC100*BC32) -> . | BF102: =IF(ISERROR(BF100*BF32),".",BF100*BF32) -> . | BI102: =IF(ISERROR(BI100*BI32),".",BI100*BI32) -> . | BL102: =IF(ISERROR(BL100*BL32),".",BL100*BL32) -> . | BO102: =IF(ISERROR(BO100*BO32),".",BO100*BO32) -> . | BR102: =IF(ISERROR(BR100*BR32),".",BR100*BR32) -> . | BU102: =IF(ISERROR(BU100*BU32),".",BU100*BU32) -> . | BX102: =IF(ISERROR(BX100*BX32),".",BX100*BX32) -> . | CA102: =IF(ISERROR(CA100*CA32),".",CA100*CA32) -> . | CD102: =IF(ISERROR(CD100*CD32),".",CD100*CD32) -> . | CG102: =IF(ISERROR(CG100*CG32),".",CG100*CG32) -> . | CJ102: =IF(ISERROR(CJ100*CJ32),".",CJ100*CJ32) -> . | CM102: =IF(ISERROR(CM100*CM32),".",CM100*CM32) -> . | CP102: =IF(ISERROR(CP100*CP32),".",CP100*CP32) -> . | CS102: =IF(ISERROR(CS100*CS32),".",CS100*CS32) -> . | CV102: =IF(ISERROR(CV100*CV32),".",CV100*CV32) -> . | CY102: =IF(ISERROR(CY100*CY32),".",CY100*CY32) -> . | DB102: =IF(ISERROR(DB100*DB32),".",DB100*DB32) -> . | DE102: =IF(ISERROR(DE100*DE32),".",DE100*DE32) -> . | DH102: =IF(ISERROR(DH100*DH32),".",DH100*DH32) -> . | DK102: =IF(ISERROR(DK100*DK32),".",DK100*DK32) -> . | DN102: =IF(ISERROR(DN100*DN32),".",DN100*DN32) -> . | DQ102: =IF(ISERROR(DQ100*DQ32),".",DQ100*DQ32) -> . | DT102: =IF(ISERROR(DT100*DT32),".",DT100*DT32) -> . | DW102: =IF(ISERROR(DW100*DW32),".",DW100*DW32) -> . | DZ102: =IF(ISERROR(DZ100*DZ32),".",DZ100*DZ32) -> . | EC102: =IF(ISERROR(EC100*EC32),".",EC100*EC32) -> . | EF102: =IF(ISERROR(EF100*EF32),".",EF100*EF32) -> . | EI102: =IF(ISERROR(EI100*EI32),".",EI100*EI32) -> . | EL102: =IF(ISERROR(EL100*EL32),".",EL100*EL32) -> . | EO102: =IF(ISERROR(EO100*EO32),".",EO100*EO32) -> . | ER102: =IF(ISERROR(ER100*ER32),".",ER100*ER32) -> . | EU102: =IF(ISERROR(EU100*EU32),".",EU100*EU32) -> . | EX102: =IF(ISERROR(EX100*EX32),".",EX100*EX32) -> . | FA102: =IF(ISERROR(FA100*FA32),".",FA100*FA32) -> . | FD102: =IF(ISERROR(FD100*FD32),".",FD100*FD32) -> . | FG102: =IF(ISERROR(FG100*FG32),".",FG100*FG32) -> . | FJ102: =IF(ISERROR(FJ100*FJ32),".",FJ100*FJ32) -> . | FM102: =IF(ISERROR(FM100*FM32),".",FM100*FM32) -> . | FP102: =IF(ISERROR(FP100*FP32),".",FP100*FP32) -> . | FS102: =IF(ISERROR(FS100*FS32),".",FS100*FS32) -> . | FV102: =IF(ISERROR(FV100*FV32),".",FV100*FV32) -> . | FY102: =IF(ISERROR(FY100*FY32),".",FY100*FY32) -> . | GB102: =IF(ISERROR(GB100*GB32),".",GB100*GB32) -> . | GE102: =IF(ISERROR(GE100*GE32),".",GE100*GE32) -> . | GH102: =IF(ISERROR(GH100*GH32),".",GH100*GH32) -> . | GK102: =IF(ISERROR(GK100*GK32),".",GK100*GK32) -> . | GN102: =IF(ISERROR(GN100*GN32),".",GN100*GN32) -> . | GQ102: =IF(ISERROR(GQ100*GQ32),".",GQ100*GQ32) -> . | GT102: =IF(ISERROR(GT100*GT32),".",GT100*GT32) -> . | GW102: =IF(ISERROR(GW100*GW32),".",GW100*GW32) -> . | GZ102: =IF(ISERROR(GZ100*GZ32),".",GZ100*GZ32) -> . | HC102: =IF(ISERROR(HC100*HC32),".",HC100*HC32) -> . | HF102: =IF(ISERROR(HF100*HF32),".",HF100*HF32) -> . | HI102: =IF(ISERROR(HI100*HI32),".",HI100*HI32) -> . | HL102: =IF(ISERROR(HL100*HL32),".",HL100*HL32) -> . | HO102: =IF(ISERROR(HO100*HO32),".",HO100*HO32) -> . | HR102: =IF(ISERROR(HR100*HR32),".",HR100*HR32) -> . | HU102: =IF(ISERROR(HU100*HU32),".",HU100*HU32) -> . | HX102: =IF(ISERROR(HX100*HX32),".",HX100*HX32) -> . | IA102: =IF(ISERROR(IA100*IA32),".",IA100*IA32) -> . | ID102: =IF(ISERROR(ID100*ID32),".",ID100*ID32) -> . | IG102: =IF(ISERROR(IG100*IG32),".",IG100*IG32) -> . | IJ102: =IF(ISERROR(IJ100*IJ32),".",IJ100*IJ32) -> . | IM102: =IF(ISERROR(IM100*IM32),".",IM100*IM32) -> . | IP102: =IF(ISERROR(IP100*IP32),".",IP100*IP32) -> . | IS102: =IF(ISERROR(IS100*IS32),".",IS100*IS32) -> . | IV102: =IF(ISERROR(IV100*IV32),".",IV100*IV32) -> . | IY102: =IF(ISERROR(IY100*IY32),".",IY100*IY32) -> . | JB102: =IF(ISERROR(JB100*JB32),".",JB100*JB32) -> . | JE102: =IF(ISERROR(JE100*JE32),".",JE100*JE32) -> . | JH102: =IF(ISERROR(JH100*JH32),".",JH100*JH32) -> . | JK102: =IF(ISERROR(JK100*JK32),".",JK100*JK32) -> . | JN102: =IF(ISERROR(JN100*JN32),".",JN100*JN32) -> . | JQ102: =IF(ISERROR(JQ100*JQ32),".",JQ100*JQ32) -> . | JT102: =IF(ISERROR(JT100*JT32),".",JT100*JT32) -> . | JW102: =IF(ISERROR(JW100*JW32),".",JW100*JW32) -> . | JZ102: =IF(ISERROR(JZ100*JZ32),".",JZ100*JZ32) -> . | KC102: =IF(ISERROR(KC100*KC32),".",KC100*KC32) -> . | KF102: =IF(ISERROR(KF100*KF32),".",KF100*KF32) -> . | KI102: =IF(ISERROR(KI100*KI32),".",KI100*KI32) -> . | KL102: =IF(ISERROR(KL100*KL32),".",KL100*KL32) -> . | KO102: =IF(ISERROR(KO100*KO32),".",KO100*KO32) -> . | KR102: =IF(ISERROR(KR100*KR32),".",KR100*KR32) -> . | KU102: =IF(ISERROR(KU100*KU32),".",KU100*KU32) -> . | KX102: =IF(ISERROR(KX100*KX32),".",KX100*KX32) -> . | LA102: =IF(ISERROR(LA100*LA32),".",LA100*LA32) -> . | LD102: =IF(ISERROR(LD100*LD32),".",LD100*LD32) -> . | LG102: =IF(ISERROR(LG100*LG32),".",LG100*LG32) -> . | LJ102: =IF(ISERROR(LJ100*LJ32),".",LJ100*LJ32) -> . | LM102: =IF(ISERROR(LM100*LM32),".",LM100*LM32) -> . | LP102: =IF(ISERROR(LP100*LP32),".",LP100*LP32) -> . | LS102: =IF(ISERROR(LS100*LS32),".",LS100*LS32) -> . | LV102: =IF(ISERROR(LV100*LV32),".",LV100*LV32) -> . | LY102: =IF(ISERROR(LY100*LY32),".",LY100*LY32) -> . | MB102: =IF(ISERROR(MB100*MB32),".",MB100*MB32) -> . | ME102: =IF(ISERROR(ME100*ME32),".",ME100*ME32) -> . | MH102: =IF(ISERROR(MH100*MH32),".",MH100*MH32) -> . | MK102: =IF(ISERROR(MK100*MK32),".",MK100*MK32) -> . | MN102: =IF(ISERROR(MN100*MN32),".",MN100*MN32) -> . | MQ102: =IF(ISERROR(MQ100*MQ32),".",MQ100*MQ32) -> . | MT102: =IF(ISERROR(MT100*MT32),".",MT100*MT32) -> . | MW102: =IF(ISERROR(MW100*MW32),".",MW100*MW32) -> . | MZ102: =IF(ISERROR(MZ100*MZ32),".",MZ100*MZ32) -> . | NC102: =IF(ISERROR(NC100*NC32),".",NC100*NC32) -> . | NF102: =IF(ISERROR(NF100*NF32),".",NF100*NF32) -> . | NI102: =IF(ISERROR(NI100*NI32),".",NI100*NI32) -> . | NL102: =IF(ISERROR(NL100*NL32),".",NL100*NL32) -> . | NO102: =IF(ISERROR(NO100*NO32),".",NO100*NO32) -> . | NR102: =IF(ISERROR(NR100*NR32),".",NR100*NR32) -> . | NU102: =IF(ISERROR(NU100*NU32),".",NU100*NU32) -> . | NX102: =IF(ISERROR(NX100*NX32),".",NX100*NX32) -> . | OA102: =IF(ISERROR(OA100*OA32),".",OA100*OA32) -> . | OD102: =IF(ISERROR(OD100*OD32),".",OD100*OD32) -> . | OG102: =IF(ISERROR(OG100*OG32),".",OG100*OG32) -> . | OJ102: =IF(ISERROR(OJ100*OJ32),".",OJ100*OJ32) -> . | OM102: =IF(ISERROR(OM100*OM32),".",OM100*OM32) -> . | OP102: =IF(ISERROR(OP100*OP32),".",OP100*OP32) -> . | OS102: =IF(ISERROR(OS100*OS32),".",OS100*OS32) -> . | OV102: =IF(ISERROR(OV100*OV32),".",OV100*OV32) -> . | OY102: =IF(ISERROR(OY100*OY32),".",OY100*OY32) -> . | PB102: =IF(ISERROR(PB100*PB32),".",PB100*PB32) -> . | PE102: =IF(ISERROR(PE100*PE32),".",PE100*PE32) -> . | PH102: =IF(ISERROR(PH100*PH32),".",PH100*PH32) -> . | PK102: =IF(ISERROR(PK100*PK32),".",PK100*PK32) -> . | PN102: =IF(ISERROR(PN100*PN32),".",PN100*PN32) -> . | PQ102: =IF(ISERROR(PQ100*PQ32),".",PQ100*PQ32) -> . | PT102: =IF(ISERROR(PT100*PT32),".",PT100*PT32) -> . | PW102: =IF(ISERROR(PW100*PW32),".",PW100*PW32) -> . | PZ102: =IF(ISERROR(PZ100*PZ32),".",PZ100*PZ32) -> . | QC102: =IF(ISERROR(QC100*QC32),".",QC100*QC32) -> . | QF102: =IF(ISERROR(QF100*QF32),".",QF100*QF32) -> . | QI102: =IF(ISERROR(QI100*QI32),".",QI100*QI32) -> . | QL102: =IF(ISERROR(QL100*QL32),".",QL100*QL32) -> . | QO102: =IF(ISERROR(QO100*QO32),".",QO100*QO32) -> . | QR102: =IF(ISERROR(QR100*QR32),".",QR100*QR32) -> . | QU102: =IF(ISERROR(QU100*QU32),".",QU100*QU32) -> . | QX102: =IF(ISERROR(QX100*QX32),".",QX100*QX32) -> . | RA102: =IF(ISERROR(RA100*RA32),".",RA100*RA32) -> . | RD102: =IF(ISERROR(RD100*RD32),".",RD100*RD32) -> . | RG102: =IF(ISERROR(RG100*RG32),".",RG100*RG32) -> . | RJ102: =IF(ISERROR(RJ100*RJ32),".",RJ100*RJ32) -> . | RM102: =IF(ISERROR(RM100*RM32),".",RM100*RM32) -> . | RP102: =IF(ISERROR(RP100*RP32),".",RP100*RP32) -> . | RS102: =IF(ISERROR(RS100*RS32),".",RS100*RS32) -> . | RV102: =IF(ISERROR(RV100*RV32),".",RV100*RV32) -> . | RY102: =IF(ISERROR(RY100*RY32),".",RY100*RY32) -> . | SB102: =IF(ISERROR(SB100*SB32),".",SB100*SB32) -> . | SE102: =IF(ISERROR(SE100*SE32),".",SE100*SE32) -> . | SH102: =IF(ISERROR(SH100*SH32),".",SH100*SH32) -> . | SK102: =IF(ISERROR(SK100*SK32),".",SK100*SK32) -> . | SN102: =IF(ISERROR(SN100*SN32),".",SN100*SN32) -> . | SQ102: =IF(ISERROR(SQ100*SQ32),".",SQ100*SQ32) -> . | ST102: =IF(ISERROR(ST100*ST32),".",ST100*ST32) -> . | SW102: =IF(ISERROR(SW100*SW32),".",SW100*SW32) -> . | SZ102: =IF(ISERROR(SZ100*SZ32),".",SZ100*SZ32) -> . | TC102: =IF(ISERROR(TC100*TC32),".",TC100*TC32) -> . | TF102: =IF(ISERROR(TF100*TF32),".",TF100*TF32) -> . | TI102: =IF(ISERROR(TI100*TI32),".",TI100*TI32) -> . | TL102: =IF(ISERROR(TL100*TL32),".",TL100*TL32) -> . | TO102: =IF(ISERROR(TO100*TO32),".",TO100*TO32) -> . | TR102: =IF(ISERROR(TR100*TR32),".",TR100*TR32) -> . | TU102: =IF(ISERROR(TU100*TU32),".",TU100*TU32) -> . | TX102: =IF(ISERROR(TX100*TX32),".",TX100*TX32) -> . | UA102: =IF(ISERROR(UA100*UA32),".",UA100*UA32) -> . | UD102: =IF(ISERROR(UD100*UD32),".",UD100*UD32) -> . | UG102: =IF(ISERROR(UG100*UG32),".",UG100*UG32) -> . | UJ102: =IF(ISERROR(UJ100*UJ32),".",UJ100*UJ32) -> . | UM102: =IF(ISERROR(UM100*UM32),".",UM100*UM32) -> . | UP102: =IF(ISERROR(UP100*UP32),".",UP100*UP32) -> . | US102: =IF(ISERROR(US100*US32),".",US100*US32) -> . | UV102: =IF(ISERROR(UV100*UV32),".",UV100*UV32) -> . | UY102: =IF(ISERROR(UY100*UY32),".",UY100*UY32) -> . | VB102: =IF(ISERROR(VB100*VB32),".",VB100*VB32) -> . | VE102: =IF(ISERROR(VE100*VE32),".",VE100*VE32) -> . | VH102: =IF(ISERROR(VH100*VH32),".",VH100*VH32) -> . | VK102: =IF(ISERROR(VK100*VK32),".",VK100*VK32) -> . | VN102: =IF(ISERROR(VN100*VN32),".",VN100*VN32) -> . | VQ102: =IF(ISERROR(VQ100*VQ32),".",VQ100*VQ32) -> . | VT102: =IF(ISERROR(VT100*VT32),".",VT100*VT32) -> . | VW102: =IF(ISERROR(VW100*VW32),".",VW100*VW32) -> . | VZ102: =IF(ISERROR(VZ100*VZ32),".",VZ100*VZ32) -> . | WC102: =IF(ISERROR(WC100*WC32),".",WC100*WC32) -> . | WF102: =IF(ISERROR(WF100*WF32),".",WF100*WF32) -> . | WI102: =IF(ISERROR(WI100*WI32),".",WI100*WI32) -> . | WL102: =IF(ISERROR(WL100*WL32),".",WL100*WL32) -> . | WO102: =IF(ISERROR(WO100*WO32),".",WO100*WO32) -> . | WR102: =IF(ISERROR(WR100*WR32),".",WR100*WR32) -> . | WU102: =IF(ISERROR(WU100*WU32),".",WU100*WU32) -> . | WX102: =IF(ISERROR(WX100*WX32),".",WX100*WX32) -> . | XA102: =IF(ISERROR(XA100*XA32),".",XA100*XA32) -> . | XD102: =IF(ISERROR(XD100*XD32),".",XD100*XD32) -> . | XG102: =IF(ISERROR(XG100*XG32),".",XG100*XG32) -> . | XJ102: =IF(ISERROR(XJ100*XJ32),".",XJ100*XJ32) -> . | XM102: =IF(ISERROR(XM100*XM32),".",XM100*XM32) -> . | XP102: =IF(ISERROR(XP100*XP32),".",XP100*XP32) -> . | XS102: =IF(ISERROR(XS100*XS32),".",XS100*XS32) -> . | XV102: =IF(ISERROR(XV100*XV32),".",XV100*XV32) -> . | XY102: =IF(ISERROR(XY100*XY32),".",XY100*XY32) -> . | YB102: =IF(ISERROR(YB100*YB32),".",YB100*YB32) -> . | YE102: =IF(ISERROR(YE100*YE32),".",YE100*YE32) -> . | YH102: =IF(ISERROR(YH100*YH32),".",YH100*YH32) -> . | YK102: =IF(ISERROR(YK100*YK32),".",YK100*YK32) -> . | YN102: =IF(ISERROR(YN100*YN32),".",YN100*YN32) -> . | YQ102: =IF(ISERROR(YQ100*YQ32),".",YQ100*YQ32) -> . | YT102: =IF(ISERROR(YT100*YT32),".",YT100*YT32) -> . | YW102: =IF(ISERROR(YW100*YW32),".",YW100*YW32) -> . | YZ102: =IF(ISERROR(YZ100*YZ32),".",YZ100*YZ32) -> . | ZC102: =IF(ISERROR(ZC100*ZC32),".",ZC100*ZC32) -> . | ZF102: =IF(ISERROR(ZF100*ZF32),".",ZF100*ZF32) -> . | ZI102: =IF(ISERROR(ZI100*ZI32),".",ZI100*ZI32) -> . | ZL102: =IF(ISERROR(ZL100*ZL32),".",ZL100*ZL32) -> . | ZO102: =IF(ISERROR(ZO100*ZO32),".",ZO100*ZO32) -> . | ZR102: =IF(ISERROR(ZR100*ZR32),".",ZR100*ZR32) -> . | ZU102: =IF(ISERROR(ZU100*ZU32),".",ZU100*ZU32) -> . | ZX102: =IF(ISERROR(ZX100*ZX32),".",ZX100*ZX32) -> . | AAA102: =IF(ISERROR(AAA100*AAA32),".",AAA100*AAA32) -> . | AAD102: =IF(ISERROR(AAD100*AAD32),".",AAD100*AAD32) -> . | AAG102: =IF(ISERROR(AAG100*AAG32),".",AAG100*AAG32) -> . | AAJ102: =IF(ISERROR(AAJ100*AAJ32),".",AAJ100*AAJ32) -> . | AAM102: =IF(ISERROR(AAM100*AAM32),".",AAM100*AAM32) -> . | AAP102: =IF(ISERROR(AAP100*AAP32),".",AAP100*AAP32) -> . | AAS102: =IF(ISERROR(AAS100*AAS32),".",AAS100*AAS32) -> . | AAV102: =IF(ISERROR(AAV100*AAV32),".",AAV100*AAV32) -> . | AAY102: =IF(ISERROR(AAY100*AAY32),".",AAY100*AAY32) -> . | ABB102: =IF(ISERROR(ABB100*ABB32),".",ABB100*ABB32) -> . | ABE102: =IF(ISERROR(ABE100*ABE32),".",ABE100*ABE32) -> . | ABH102: =IF(ISERROR(ABH100*ABH32),".",ABH100*ABH32) -> . | ABK102: =IF(ISERROR(ABK100*ABK32),".",ABK100*ABK32) -> . | ABN102: =IF(ISERROR(ABN100*ABN32),".",ABN100*ABN32) -> . | ABQ102: =IF(ISERROR(ABQ100*ABQ32),".",ABQ100*ABQ32) -> . | ABT102: =IF(ISERROR(ABT100*ABT32),".",ABT100*ABT32) -> . | ABW102: =IF(ISERROR(ABW100*ABW32),".",ABW100*ABW32) -> . | ABZ102: =IF(ISERROR(ABZ100*ABZ32),".",ABZ100*ABZ32) -> . | ACC102: =IF(ISERROR(ACC100*ACC32),".",ACC100*ACC32) -> . | ACF102: =IF(ISERROR(ACF100*ACF32),".",ACF100*ACF32) -> . | ACI102: =IF(ISERROR(ACI100*ACI32),".",ACI100*ACI32) -> . | ACL102: =IF(ISERROR(ACL100*ACL32),".",ACL100*ACL32) -> . | ACO102: =IF(ISERROR(ACO100*ACO32),".",ACO100*ACO32) -> . | ACR102: =IF(ISERROR(ACR100*ACR32),".",ACR100*ACR32) -> . | ACU102: =IF(ISERROR(ACU100*ACU32),".",ACU100*ACU32) -> . | ACX102: =IF(ISERROR(ACX100*ACX32),".",ACX100*ACX32) -> . | ADA102: =IF(ISERROR(ADA100*ADA32),".",ADA100*ADA32) -> . | ADD102: =IF(ISERROR(ADD100*ADD32),".",ADD100*ADD32) -> . | ADG102: =IF(ISERROR(ADG100*ADG32),".",ADG100*ADG32) -> . | ADJ102: =IF(ISERROR(ADJ100*ADJ32),".",ADJ100*ADJ32) -> . | ADM102: =IF(ISERROR(ADM100*ADM32),".",ADM100*ADM32) -> . | ADP102: =IF(ISERROR(ADP100*ADP32),".",ADP100*ADP32) -> . | ADS102: =IF(ISERROR(ADS100*ADS32),".",ADS100*ADS32) -> . | ADV102: =IF(ISERROR(ADV100*ADV32),".",ADV100*ADV32) -> . | ADY102: =IF(ISERROR(ADY100*ADY32),".",ADY100*ADY32) -> . | AEB102: =IF(ISERROR(AEB100*AEB32),".",AEB100*AEB32) -> . | AEE102: =IF(ISERROR(AEE100*AEE32),".",AEE100*AEE32) -> . | AEH102: =IF(ISERROR(AEH100*AEH32),".",AEH100*AEH32) -> . | AEK102: =IF(ISERROR(AEK100*AEK32),".",AEK100*AEK32) -> . | AEN102: =IF(ISERROR(AEN100*AEN32),".",AEN100*AEN32) -> . | AEQ102: =IF(ISERROR(AEQ100*AEQ32),".",AEQ100*AEQ32) -> . | AET102: =IF(ISERROR(AET100*AET32),".",AET100*AET32) -> . | AEW102: =IF(ISERROR(AEW100*AEW32),".",AEW100*AEW32) -> . | AEZ102: =IF(ISERROR(AEZ100*AEZ32),".",AEZ100*AEZ32) -> . | AFC102: =IF(ISERROR(AFC100*AFC32),".",AFC100*AFC32) -> . | AFF102: =IF(ISERROR(AFF100*AFF32),".",AFF100*AFF32) -> . | AFI102: =IF(ISERROR(AFI100*AFI32),".",AFI100*AFI32) -> . | AFL102: =IF(ISERROR(AFL100*AFL32),".",AFL100*AFL32) -> . | AFO102: =IF(ISERROR(AFO100*AFO32),".",AFO100*AFO32) -> . | AFR102: =IF(ISERROR(AFR100*AFR32),".",AFR100*AFR32) -> . | AFU102: =IF(ISERROR(AFU100*AFU32),".",AFU100*AFU32) -> . | AFX102: =IF(ISERROR(AFX100*AFX32),".",AFX100*AFX32) -> . | AGA102: =IF(ISERROR(AGA100*AGA32),".",AGA100*AGA32) -> . | AGD102: =IF(ISERROR(AGD100*AGD32),".",AGD100*AGD32) -> . | AGG102: =IF(ISERROR(AGG100*AGG32),".",AGG100*AGG32) -> . | AGJ102: =IF(ISERROR(AGJ100*AGJ32),".",AGJ100*AGJ32) -> . | AGM102: =IF(ISERROR(AGM100*AGM32),".",AGM100*AGM32) -> . | AGP102: =IF(ISERROR(AGP100*AGP32),".",AGP100*AGP32) -> . | AGS102: =IF(ISERROR(AGS100*AGS32),".",AGS100*AGS32) -> . | AGV102: =IF(ISERROR(AGV100*AGV32),".",AGV100*AGV32) -> . | AGY102: =IF(ISERROR(AGY100*AGY32),".",AGY100*AGY32) -> . | AHB102: =IF(ISERROR(AHB100*AHB32),".",AHB100*AHB32) -> . | AHE102: =IF(ISERROR(AHE100*AHE32),".",AHE100*AHE32) -> . | AHH102: =IF(ISERROR(AHH100*AHH32),".",AHH100*AHH32) -> . | AHK102: =IF(ISERROR(AHK100*AHK32),".",AHK100*AHK32) -> . | AHN102: =IF(ISERROR(AHN100*AHN32),".",AHN100*AHN32) -> . | AHQ102: =IF(ISERROR(AHQ100*AHQ32),".",AHQ100*AHQ32) -> . | AHT102: =IF(ISERROR(AHT100*AHT32),".",AHT100*AHT32) -> .
C105: Change rate as per [DT1] to FoF currency [FN1] | AB105: =0.870989/100 -> 0.00870989 | AE105: 2.0473 | AH105: 1.4267
B108: [O] | C108: Taxable income FoF in FoF currency as per [DT1] | D108: =IF(ISERROR(SUM(G108:AHV108)),"",SUM(G108:AHV108)) -> 9310.446884 | G108: =IF(ISERROR(G102*G105),".",G102*G105) -> . | J108: =IF(ISERROR(J102*J105),".",J102*J105) -> . | M108: =IF(ISERROR(M102*M105),".",M102*M105) -> . | P108: =IF(ISERROR(P102*P105),".",P102*P105) -> . | S108: =IF(ISERROR(S102*S105),".",S102*S105) -> . | V108: =IF(ISERROR(V102*V105),".",V102*V105) -> . | Y108: =IF(ISERROR(Y102*Y105),".",Y102*Y105) -> . | AB108: =IF(ISERROR(AB102*AB105),".",AB102*AB105) -> 738.2502764 | AE108: =IF(ISERROR(AE102*AE105),".",AE102*AE105) -> 3315.520458 | AH108: =IF(ISERROR(AH102*AH105),".",AH102*AH105) -> 5256.67615 | AK108: =IF(ISERROR(AK102*AK105),".",AK102*AK105) -> . | AN108: =IF(ISERROR(AN102*AN105),".",AN102*AN105) -> . | AQ108: =IF(ISERROR(AQ102*AQ105),".",AQ102*AQ105) -> . | AT108: =IF(ISERROR(AT102*AT105),".",AT102*AT105) -> . | AW108: =IF(ISERROR(AW102*AW105),".",AW102*AW105) -> . | AZ108: =IF(ISERROR(AZ102*AZ105),".",AZ102*AZ105) -> . | BC108: =IF(ISERROR(BC102*BC105),".",BC102*BC105) -> . | BF108: =IF(ISERROR(BF102*BF105),".",BF102*BF105) -> . | BI108: =IF(ISERROR(BI102*BI105),".",BI102*BI105) -> . | BL108: =IF(ISERROR(BL102*BL105),".",BL102*BL105) -> . | BO108: =IF(ISERROR(BO102*BO105),".",BO102*BO105) -> . | BR108: =IF(ISERROR(BR102*BR105),".",BR102*BR105) -> . | BU108: =IF(ISERROR(BU102*BU105),".",BU102*BU105) -> . | BX108: =IF(ISERROR(BX102*BX105),".",BX102*BX105) -> . | CA108: =IF(ISERROR(CA102*CA105),".",CA102*CA105) -> . | CD108: =IF(ISERROR(CD102*CD105),".",CD102*CD105) -> . | CG108: =IF(ISERROR(CG102*CG105),".",CG102*CG105) -> . | CJ108: =IF(ISERROR(CJ102*CJ105),".",CJ102*CJ105) -> . | CM108: =IF(ISERROR(CM102*CM105),".",CM102*CM105) -> . | CP108: =IF(ISERROR(CP102*CP105),".",CP102*CP105) -> . | CS108: =IF(ISERROR(CS102*CS105),".",CS102*CS105) -> . | CV108: =IF(ISERROR(CV102*CV105),".",CV102*CV105) -> . | CY108: =IF(ISERROR(CY102*CY105),".",CY102*CY105) -> . | DB108: =IF(ISERROR(DB102*DB105),".",DB102*DB105) -> . | DE108: =IF(ISERROR(DE102*DE105),".",DE102*DE105) -> . | DH108: =IF(ISERROR(DH102*DH105),".",DH102*DH105) -> . | DK108: =IF(ISERROR(DK102*DK105),".",DK102*DK105) -> . | DN108: =IF(ISERROR(DN102*DN105),".",DN102*DN105) -> . | DQ108: =IF(ISERROR(DQ102*DQ105),".",DQ102*DQ105) -> . | DT108: =IF(ISERROR(DT102*DT105),".",DT102*DT105) -> . | DW108: =IF(ISERROR(DW102*DW105),".",DW102*DW105) -> . | DZ108: =IF(ISERROR(DZ102*DZ105),".",DZ102*DZ105) -> . | EC108: =IF(ISERROR(EC102*EC105),".",EC102*EC105) -> . | EF108: =IF(ISERROR(EF102*EF105),".",EF102*EF105) -> . | EI108: =IF(ISERROR(EI102*EI105),".",EI102*EI105) -> . | EL108: =IF(ISERROR(EL102*EL105),".",EL102*EL105) -> . | EO108: =IF(ISERROR(EO102*EO105),".",EO102*EO105) -> . | ER108: =IF(ISERROR(ER102*ER105),".",ER102*ER105) -> . | EU108: =IF(ISERROR(EU102*EU105),".",EU102*EU105) -> . | EX108: =IF(ISERROR(EX102*EX105),".",EX102*EX105) -> . | FA108: =IF(ISERROR(FA102*FA105),".",FA102*FA105) -> . | FD108: =IF(ISERROR(FD102*FD105),".",FD102*FD105) -> . | FG108: =IF(ISERROR(FG102*FG105),".",FG102*FG105) -> . | FJ108: =IF(ISERROR(FJ102*FJ105),".",FJ102*FJ105) -> . | FM108: =IF(ISERROR(FM102*FM105),".",FM102*FM105) -> . | FP108: =IF(ISERROR(FP102*FP105),".",FP102*FP105) -> . | FS108: =IF(ISERROR(FS102*FS105),".",FS102*FS105) -> . | FV108: =IF(ISERROR(FV102*FV105),".",FV102*FV105) -> . | FY108: =IF(ISERROR(FY102*FY105),".",FY102*FY105) -> . | GB108: =IF(ISERROR(GB102*GB105),".",GB102*GB105) -> . | GE108: =IF(ISERROR(GE102*GE105),".",GE102*GE105) -> . | GH108: =IF(ISERROR(GH102*GH105),".",GH102*GH105) -> . | GK108: =IF(ISERROR(GK102*GK105),".",GK102*GK105) -> . | GN108: =IF(ISERROR(GN102*GN105),".",GN102*GN105) -> . | GQ108: =IF(ISERROR(GQ102*GQ105),".",GQ102*GQ105) -> . | GT108: =IF(ISERROR(GT102*GT105),".",GT102*GT105) -> . | GW108: =IF(ISERROR(GW102*GW105),".",GW102*GW105) -> . | GZ108: =IF(ISERROR(GZ102*GZ105),".",GZ102*GZ105) -> . | HC108: =IF(ISERROR(HC102*HC105),".",HC102*HC105) -> . | HF108: =IF(ISERROR(HF102*HF105),".",HF102*HF105) -> . | HI108: =IF(ISERROR(HI102*HI105),".",HI102*HI105) -> . | HL108: =IF(ISERROR(HL102*HL105),".",HL102*HL105) -> . | HO108: =IF(ISERROR(HO102*HO105),".",HO102*HO105) -> . | HR108: =IF(ISERROR(HR102*HR105),".",HR102*HR105) -> . | HU108: =IF(ISERROR(HU102*HU105),".",HU102*HU105) -> . | HX108: =IF(ISERROR(HX102*HX105),".",HX102*HX105) -> . | IA108: =IF(ISERROR(IA102*IA105),".",IA102*IA105) -> . | ID108: =IF(ISERROR(ID102*ID105),".",ID102*ID105) -> . | IG108: =IF(ISERROR(IG102*IG105),".",IG102*IG105) -> . | IJ108: =IF(ISERROR(IJ102*IJ105),".",IJ102*IJ105) -> . | IM108: =IF(ISERROR(IM102*IM105),".",IM102*IM105) -> . | IP108: =IF(ISERROR(IP102*IP105),".",IP102*IP105) -> . | IS108: =IF(ISERROR(IS102*IS105),".",IS102*IS105) -> . | IV108: =IF(ISERROR(IV102*IV105),".",IV102*IV105) -> . | IY108: =IF(ISERROR(IY102*IY105),".",IY102*IY105) -> . | JB108: =IF(ISERROR(JB102*JB105),".",JB102*JB105) -> . | JE108: =IF(ISERROR(JE102*JE105),".",JE102*JE105) -> . | JH108: =IF(ISERROR(JH102*JH105),".",JH102*JH105) -> . | JK108: =IF(ISERROR(JK102*JK105),".",JK102*JK105) -> . | JN108: =IF(ISERROR(JN102*JN105),".",JN102*JN105) -> . | JQ108: =IF(ISERROR(JQ102*JQ105),".",JQ102*JQ105) -> . | JT108: =IF(ISERROR(JT102*JT105),".",JT102*JT105) -> . | JW108: =IF(ISERROR(JW102*JW105),".",JW102*JW105) -> . | JZ108: =IF(ISERROR(JZ102*JZ105),".",JZ102*JZ105) -> . | KC108: =IF(ISERROR(KC102*KC105),".",KC102*KC105) -> . | KF108: =IF(ISERROR(KF102*KF105),".",KF102*KF105) -> . | KI108: =IF(ISERROR(KI102*KI105),".",KI102*KI105) -> . | KL108: =IF(ISERROR(KL102*KL105),".",KL102*KL105) -> . | KO108: =IF(ISERROR(KO102*KO105),".",KO102*KO105) -> . | KR108: =IF(ISERROR(KR102*KR105),".",KR102*KR105) -> . | KU108: =IF(ISERROR(KU102*KU105),".",KU102*KU105) -> . | KX108: =IF(ISERROR(KX102*KX105),".",KX102*KX105) -> . | LA108: =IF(ISERROR(LA102*LA105),".",LA102*LA105) -> . | LD108: =IF(ISERROR(LD102*LD105),".",LD102*LD105) -> . | LG108: =IF(ISERROR(LG102*LG105),".",LG102*LG105) -> . | LJ108: =IF(ISERROR(LJ102*LJ105),".",LJ102*LJ105) -> . | LM108: =IF(ISERROR(LM102*LM105),".",LM102*LM105) -> . | LP108: =IF(ISERROR(LP102*LP105),".",LP102*LP105) -> . | LS108: =IF(ISERROR(LS102*LS105),".",LS102*LS105) -> . | LV108: =IF(ISERROR(LV102*LV105),".",LV102*LV105) -> . | LY108: =IF(ISERROR(LY102*LY105),".",LY102*LY105) -> . | MB108: =IF(ISERROR(MB102*MB105),".",MB102*MB105) -> . | ME108: =IF(ISERROR(ME102*ME105),".",ME102*ME105) -> . | MH108: =IF(ISERROR(MH102*MH105),".",MH102*MH105) -> . | MK108: =IF(ISERROR(MK102*MK105),".",MK102*MK105) -> . | MN108: =IF(ISERROR(MN102*MN105),".",MN102*MN105) -> . | MQ108: =IF(ISERROR(MQ102*MQ105),".",MQ102*MQ105) -> . | MT108: =IF(ISERROR(MT102*MT105),".",MT102*MT105) -> . | MW108: =IF(ISERROR(MW102*MW105),".",MW102*MW105) -> . | MZ108: =IF(ISERROR(MZ102*MZ105),".",MZ102*MZ105) -> . | NC108: =IF(ISERROR(NC102*NC105),".",NC102*NC105) -> . | NF108: =IF(ISERROR(NF102*NF105),".",NF102*NF105) -> . | NI108: =IF(ISERROR(NI102*NI105),".",NI102*NI105) -> . | NL108: =IF(ISERROR(NL102*NL105),".",NL102*NL105) -> . | NO108: =IF(ISERROR(NO102*NO105),".",NO102*NO105) -> . | NR108: =IF(ISERROR(NR102*NR105),".",NR102*NR105) -> . | NU108: =IF(ISERROR(NU102*NU105),".",NU102*NU105) -> . | NX108: =IF(ISERROR(NX102*NX105),".",NX102*NX105) -> . | OA108: =IF(ISERROR(OA102*OA105),".",OA102*OA105) -> . | OD108: =IF(ISERROR(OD102*OD105),".",OD102*OD105) -> . | OG108: =IF(ISERROR(OG102*OG105),".",OG102*OG105) -> . | OJ108: =IF(ISERROR(OJ102*OJ105),".",OJ102*OJ105) -> . | OM108: =IF(ISERROR(OM102*OM105),".",OM102*OM105) -> . | OP108: =IF(ISERROR(OP102*OP105),".",OP102*OP105) -> . | OS108: =IF(ISERROR(OS102*OS105),".",OS102*OS105) -> . | OV108: =IF(ISERROR(OV102*OV105),".",OV102*OV105) -> . | OY108: =IF(ISERROR(OY102*OY105),".",OY102*OY105) -> . | PB108: =IF(ISERROR(PB102*PB105),".",PB102*PB105) -> . | PE108: =IF(ISERROR(PE102*PE105),".",PE102*PE105) -> . | PH108: =IF(ISERROR(PH102*PH105),".",PH102*PH105) -> . | PK108: =IF(ISERROR(PK102*PK105),".",PK102*PK105) -> . | PN108: =IF(ISERROR(PN102*PN105),".",PN102*PN105) -> . | PQ108: =IF(ISERROR(PQ102*PQ105),".",PQ102*PQ105) -> . | PT108: =IF(ISERROR(PT102*PT105),".",PT102*PT105) -> . | PW108: =IF(ISERROR(PW102*PW105),".",PW102*PW105) -> . | PZ108: =IF(ISERROR(PZ102*PZ105),".",PZ102*PZ105) -> . | QC108: =IF(ISERROR(QC102*QC105),".",QC102*QC105) -> . | QF108: =IF(ISERROR(QF102*QF105),".",QF102*QF105) -> . | QI108: =IF(ISERROR(QI102*QI105),".",QI102*QI105) -> . | QL108: =IF(ISERROR(QL102*QL105),".",QL102*QL105) -> . | QO108: =IF(ISERROR(QO102*QO105),".",QO102*QO105) -> . | QR108: =IF(ISERROR(QR102*QR105),".",QR102*QR105) -> . | QU108: =IF(ISERROR(QU102*QU105),".",QU102*QU105) -> . | QX108: =IF(ISERROR(QX102*QX105),".",QX102*QX105) -> . | RA108: =IF(ISERROR(RA102*RA105),".",RA102*RA105) -> . | RD108: =IF(ISERROR(RD102*RD105),".",RD102*RD105) -> . | RG108: =IF(ISERROR(RG102*RG105),".",RG102*RG105) -> . | RJ108: =IF(ISERROR(RJ102*RJ105),".",RJ102*RJ105) -> . | RM108: =IF(ISERROR(RM102*RM105),".",RM102*RM105) -> . | RP108: =IF(ISERROR(RP102*RP105),".",RP102*RP105) -> . | RS108: =IF(ISERROR(RS102*RS105),".",RS102*RS105) -> . | RV108: =IF(ISERROR(RV102*RV105),".",RV102*RV105) -> . | RY108: =IF(ISERROR(RY102*RY105),".",RY102*RY105) -> . | SB108: =IF(ISERROR(SB102*SB105),".",SB102*SB105) -> . | SE108: =IF(ISERROR(SE102*SE105),".",SE102*SE105) -> . | SH108: =IF(ISERROR(SH102*SH105),".",SH102*SH105) -> . | SK108: =IF(ISERROR(SK102*SK105),".",SK102*SK105) -> . | SN108: =IF(ISERROR(SN102*SN105),".",SN102*SN105) -> . | SQ108: =IF(ISERROR(SQ102*SQ105),".",SQ102*SQ105) -> . | ST108: =IF(ISERROR(ST102*ST105),".",ST102*ST105) -> . | SW108: =IF(ISERROR(SW102*SW105),".",SW102*SW105) -> . | SZ108: =IF(ISERROR(SZ102*SZ105),".",SZ102*SZ105) -> . | TC108: =IF(ISERROR(TC102*TC105),".",TC102*TC105) -> . | TF108: =IF(ISERROR(TF102*TF105),".",TF102*TF105) -> . | TI108: =IF(ISERROR(TI102*TI105),".",TI102*TI105) -> . | TL108: =IF(ISERROR(TL102*TL105),".",TL102*TL105) -> . | TO108: =IF(ISERROR(TO102*TO105),".",TO102*TO105) -> . | TR108: =IF(ISERROR(TR102*TR105),".",TR102*TR105) -> . | TU108: =IF(ISERROR(TU102*TU105),".",TU102*TU105) -> . | TX108: =IF(ISERROR(TX102*TX105),".",TX102*TX105) -> . | UA108: =IF(ISERROR(UA102*UA105),".",UA102*UA105) -> . | UD108: =IF(ISERROR(UD102*UD105),".",UD102*UD105) -> . | UG108: =IF(ISERROR(UG102*UG105),".",UG102*UG105) -> . | UJ108: =IF(ISERROR(UJ102*UJ105),".",UJ102*UJ105) -> . | UM108: =IF(ISERROR(UM102*UM105),".",UM102*UM105) -> . | UP108: =IF(ISERROR(UP102*UP105),".",UP102*UP105) -> . | US108: =IF(ISERROR(US102*US105),".",US102*US105) -> . | UV108: =IF(ISERROR(UV102*UV105),".",UV102*UV105) -> . | UY108: =IF(ISERROR(UY102*UY105),".",UY102*UY105) -> . | VB108: =IF(ISERROR(VB102*VB105),".",VB102*VB105) -> . | VE108: =IF(ISERROR(VE102*VE105),".",VE102*VE105) -> . | VH108: =IF(ISERROR(VH102*VH105),".",VH102*VH105) -> . | VK108: =IF(ISERROR(VK102*VK105),".",VK102*VK105) -> . | VN108: =IF(ISERROR(VN102*VN105),".",VN102*VN105) -> . | VQ108: =IF(ISERROR(VQ102*VQ105),".",VQ102*VQ105) -> . | VT108: =IF(ISERROR(VT102*VT105),".",VT102*VT105) -> . | VW108: =IF(ISERROR(VW102*VW105),".",VW102*VW105) -> . | VZ108: =IF(ISERROR(VZ102*VZ105),".",VZ102*VZ105) -> . | WC108: =IF(ISERROR(WC102*WC105),".",WC102*WC105) -> . | WF108: =IF(ISERROR(WF102*WF105),".",WF102*WF105) -> . | WI108: =IF(ISERROR(WI102*WI105),".",WI102*WI105) -> . | WL108: =IF(ISERROR(WL102*WL105),".",WL102*WL105) -> . | WO108: =IF(ISERROR(WO102*WO105),".",WO102*WO105) -> . | WR108: =IF(ISERROR(WR102*WR105),".",WR102*WR105) -> . | WU108: =IF(ISERROR(WU102*WU105),".",WU102*WU105) -> . | WX108: =IF(ISERROR(WX102*WX105),".",WX102*WX105) -> . | XA108: =IF(ISERROR(XA102*XA105),".",XA102*XA105) -> . | XD108: =IF(ISERROR(XD102*XD105),".",XD102*XD105) -> . | XG108: =IF(ISERROR(XG102*XG105),".",XG102*XG105) -> . | XJ108: =IF(ISERROR(XJ102*XJ105),".",XJ102*XJ105) -> . | XM108: =IF(ISERROR(XM102*XM105),".",XM102*XM105) -> . | XP108: =IF(ISERROR(XP102*XP105),".",XP102*XP105) -> . | XS108: =IF(ISERROR(XS102*XS105),".",XS102*XS105) -> . | XV108: =IF(ISERROR(XV102*XV105),".",XV102*XV105) -> . | XY108: =IF(ISERROR(XY102*XY105),".",XY102*XY105) -> . | YB108: =IF(ISERROR(YB102*YB105),".",YB102*YB105) -> . | YE108: =IF(ISERROR(YE102*YE105),".",YE102*YE105) -> . | YH108: =IF(ISERROR(YH102*YH105),".",YH102*YH105) -> . | YK108: =IF(ISERROR(YK102*YK105),".",YK102*YK105) -> . | YN108: =IF(ISERROR(YN102*YN105),".",YN102*YN105) -> . | YQ108: =IF(ISERROR(YQ102*YQ105),".",YQ102*YQ105) -> . | YT108: =IF(ISERROR(YT102*YT105),".",YT102*YT105) -> . | YW108: =IF(ISERROR(YW102*YW105),".",YW102*YW105) -> . | YZ108: =IF(ISERROR(YZ102*YZ105),".",YZ102*YZ105) -> . | ZC108: =IF(ISERROR(ZC102*ZC105),".",ZC102*ZC105) -> . | ZF108: =IF(ISERROR(ZF102*ZF105),".",ZF102*ZF105) -> . | ZI108: =IF(ISERROR(ZI102*ZI105),".",ZI102*ZI105) -> . | ZL108: =IF(ISERROR(ZL102*ZL105),".",ZL102*ZL105) -> . | ZO108: =IF(ISERROR(ZO102*ZO105),".",ZO102*ZO105) -> . | ZR108: =IF(ISERROR(ZR102*ZR105),".",ZR102*ZR105) -> . | ZU108: =IF(ISERROR(ZU102*ZU105),".",ZU102*ZU105) -> . | ZX108: =IF(ISERROR(ZX102*ZX105),".",ZX102*ZX105) -> . | AAA108: =IF(ISERROR(AAA102*AAA105),".",AAA102*AAA105) -> . | AAD108: =IF(ISERROR(AAD102*AAD105),".",AAD102*AAD105) -> . | AAG108: =IF(ISERROR(AAG102*AAG105),".",AAG102*AAG105) -> . | AAJ108: =IF(ISERROR(AAJ102*AAJ105),".",AAJ102*AAJ105) -> . | AAM108: =IF(ISERROR(AAM102*AAM105),".",AAM102*AAM105) -> . | AAP108: =IF(ISERROR(AAP102*AAP105),".",AAP102*AAP105) -> . | AAS108: =IF(ISERROR(AAS102*AAS105),".",AAS102*AAS105) -> . | AAV108: =IF(ISERROR(AAV102*AAV105),".",AAV102*AAV105) -> . | AAY108: =IF(ISERROR(AAY102*AAY105),".",AAY102*AAY105) -> . | ABB108: =IF(ISERROR(ABB102*ABB105),".",ABB102*ABB105) -> . | ABE108: =IF(ISERROR(ABE102*ABE105),".",ABE102*ABE105) -> . | ABH108: =IF(ISERROR(ABH102*ABH105),".",ABH102*ABH105) -> . | ABK108: =IF(ISERROR(ABK102*ABK105),".",ABK102*ABK105) -> . | ABN108: =IF(ISERROR(ABN102*ABN105),".",ABN102*ABN105) -> . | ABQ108: =IF(ISERROR(ABQ102*ABQ105),".",ABQ102*ABQ105) -> . | ABT108: =IF(ISERROR(ABT102*ABT105),".",ABT102*ABT105) -> . | ABW108: =IF(ISERROR(ABW102*ABW105),".",ABW102*ABW105) -> . | ABZ108: =IF(ISERROR(ABZ102*ABZ105),".",ABZ102*ABZ105) -> . | ACC108: =IF(ISERROR(ACC102*ACC105),".",ACC102*ACC105) -> . | ACF108: =IF(ISERROR(ACF102*ACF105),".",ACF102*ACF105) -> . | ACI108: =IF(ISERROR(ACI102*ACI105),".",ACI102*ACI105) -> . | ACL108: =IF(ISERROR(ACL102*ACL105),".",ACL102*ACL105) -> . | ACO108: =IF(ISERROR(ACO102*ACO105),".",ACO102*ACO105) -> . | ACR108: =IF(ISERROR(ACR102*ACR105),".",ACR102*ACR105) -> . | ACU108: =IF(ISERROR(ACU102*ACU105),".",ACU102*ACU105) -> . | ACX108: =IF(ISERROR(ACX102*ACX105),".",ACX102*ACX105) -> . | ADA108: =IF(ISERROR(ADA102*ADA105),".",ADA102*ADA105) -> . | ADD108: =IF(ISERROR(ADD102*ADD105),".",ADD102*ADD105) -> . | ADG108: =IF(ISERROR(ADG102*ADG105),".",ADG102*ADG105) -> . | ADJ108: =IF(ISERROR(ADJ102*ADJ105),".",ADJ102*ADJ105) -> . | ADM108: =IF(ISERROR(ADM102*ADM105),".",ADM102*ADM105) -> . | ADP108: =IF(ISERROR(ADP102*ADP105),".",ADP102*ADP105) -> . | ADS108: =IF(ISERROR(ADS102*ADS105),".",ADS102*ADS105) -> . | ADV108: =IF(ISERROR(ADV102*ADV105),".",ADV102*ADV105) -> . | ADY108: =IF(ISERROR(ADY102*ADY105),".",ADY102*ADY105) -> . | AEB108: =IF(ISERROR(AEB102*AEB105),".",AEB102*AEB105) -> . | AEE108: =IF(ISERROR(AEE102*AEE105),".",AEE102*AEE105) -> . | AEH108: =IF(ISERROR(AEH102*AEH105),".",AEH102*AEH105) -> . | AEK108: =IF(ISERROR(AEK102*AEK105),".",AEK102*AEK105) -> . | AEN108: =IF(ISERROR(AEN102*AEN105),".",AEN102*AEN105) -> . | AEQ108: =IF(ISERROR(AEQ102*AEQ105),".",AEQ102*AEQ105) -> . | AET108: =IF(ISERROR(AET102*AET105),".",AET102*AET105) -> . | AEW108: =IF(ISERROR(AEW102*AEW105),".",AEW102*AEW105) -> . | AEZ108: =IF(ISERROR(AEZ102*AEZ105),".",AEZ102*AEZ105) -> . | AFC108: =IF(ISERROR(AFC102*AFC105),".",AFC102*AFC105) -> . | AFF108: =IF(ISERROR(AFF102*AFF105),".",AFF102*AFF105) -> . | AFI108: =IF(ISERROR(AFI102*AFI105),".",AFI102*AFI105) -> . | AFL108: =IF(ISERROR(AFL102*AFL105),".",AFL102*AFL105) -> . | AFO108: =IF(ISERROR(AFO102*AFO105),".",AFO102*AFO105) -> . | AFR108: =IF(ISERROR(AFR102*AFR105),".",AFR102*AFR105) -> . | AFU108: =IF(ISERROR(AFU102*AFU105),".",AFU102*AFU105) -> . | AFX108: =IF(ISERROR(AFX102*AFX105),".",AFX102*AFX105) -> . | AGA108: =IF(ISERROR(AGA102*AGA105),".",AGA102*AGA105) -> . | AGD108: =IF(ISERROR(AGD102*AGD105),".",AGD102*AGD105) -> . | AGG108: =IF(ISERROR(AGG102*AGG105),".",AGG102*AGG105) -> . | AGJ108: =IF(ISERROR(AGJ102*AGJ105),".",AGJ102*AGJ105) -> . | AGM108: =IF(ISERROR(AGM102*AGM105),".",AGM102*AGM105) -> . | AGP108: =IF(ISERROR(AGP102*AGP105),".",AGP102*AGP105) -> . | AGS108: =IF(ISERROR(AGS102*AGS105),".",AGS102*AGS105) -> . | AGV108: =IF(ISERROR(AGV102*AGV105),".",AGV102*AGV105) -> . | AGY108: =IF(ISERROR(AGY102*AGY105),".",AGY102*AGY105) -> . | AHB108: =IF(ISERROR(AHB102*AHB105),".",AHB102*AHB105) -> . | AHE108: =IF(ISERROR(AHE102*AHE105),".",AHE102*AHE105) -> . | AHH108: =IF(ISERROR(AHH102*AHH105),".",AHH102*AHH105) -> . | AHK108: =IF(ISERROR(AHK102*AHK105),".",AHK102*AHK105) -> . | AHN108: =IF(ISERROR(AHN102*AHN105),".",AHN102*AHN105) -> . | AHQ108: =IF(ISERROR(AHQ102*AHQ105),".",AHQ102*AHQ105) -> . | AHT108: =IF(ISERROR(AHT102*AHT105),".",AHT102*AHT105) -> .
B112: [FN1] | C112: e.g. Source Bloomberg EUR/USD: EURUSD Curncy HP
B113: [FN2] | C113: If a refference yield is necessary, it should be adequate under consideration of asset class, rating, duration and currency

Sheet Target Funds Distributing
C1: Appendix VIII - Sample Reporting Foreign Fund of Funds
C2: Distributing Target funds (TF)
B5: [DT1] | C5: Financial year end of fund-of-funds (FoF) | D5: =IF(Master!D4="","",Master!D4) -> 2007-09-30
C6: FoF currency | D6: =IF(Master!D5="","",Master!D5) -> USD
C10: Basis data Name of target fund | D10: Subtotal FoF | G10: Vontobel Fund - Eastern European Bond | J10: Distributing Taget fund 2 | M10: Distributing target fund 3 | P10: Distributing target fund 4 | S10: Distributing target fund 5 | V10: Distributing target fund 6
C12: ISIN or Valor | G12: 634 784
C14: Distributing fund (at least 70% of taxable income distributed) | G14: YES | J14: YES | M14: YES | P14: YES | S14: NO | V14: NO
C16: Distribution during business year of master fund | G16: YES | J16: YES | M16: NO | P16: NO | S16: YES | V16: YES
C18: Tax figures available ("Kursliste" of FTA) | G18: YES | J18: NO | M18: NO | P18: YES | S18: YES | V18: NO
B20: [DTD] | C20: Date of distribution | G20: 2006-12-20 | J20: 2007-02-15 | P20: 2007-11-15 | S20: 2007-06-15 | V20: 2007-05-23
C22: TF currency | G22: EUR | J22: EUR | P22: USD | S22: JPY | V22: GBP
B24: [A] | C24: TF shares held by the FoF as per [DTD] | G24: 450 | J24: 250 | P24: 150 | S24: 15000 | V24: 1000
C27: Total distribution in FoF currency
B29: [B] | C29: Distribution amount per share in TF currency | G29: 2.1 | J29: 2.4 | P29: 1.5 | S29: 10 | V29: 0.5
B31: [C] | C31: Total Distribution in TF currency as per [DTD] [A]*[B] | G31: =G24*G29 -> 945 | J31: =J24*J29 -> 600 | M31: 0 | P31: 0 | S31: =S24*S29 -> 150000 | V31: =V24*V29 -> 500 | Y31: =Y24*Y29 -> 0 | AB31: =AB24*AB29 -> 0 | AE31: =IF(ISERROR(AE24*AE29),".",AE24*AE29) -> 0 | AH31: =IF(ISERROR(AH24*AH29),".",AH24*AH29) -> 0 | AK31: =IF(ISERROR(AK24*AK29),".",AK24*AK29) -> 0 | AN31: =IF(ISERROR(AN24*AN29),".",AN24*AN29) -> 0 | AQ31: =IF(ISERROR(AQ24*AQ29),".",AQ24*AQ29) -> 0 | AT31: =IF(ISERROR(AT24*AT29),".",AT24*AT29) -> 0 | AW31: =IF(ISERROR(AW24*AW29),".",AW24*AW29) -> 0 | AZ31: =IF(ISERROR(AZ24*AZ29),".",AZ24*AZ29) -> 0 | BC31: =IF(ISERROR(BC24*BC29),".",BC24*BC29) -> 0 | BF31: =IF(ISERROR(BF24*BF29),".",BF24*BF29) -> 0 | BI31: =IF(ISERROR(BI24*BI29),".",BI24*BI29) -> 0 | BL31: =IF(ISERROR(BL24*BL29),".",BL24*BL29) -> 0 | BO31: =IF(ISERROR(BO24*BO29),".",BO24*BO29) -> 0 | BR31: =IF(ISERROR(BR24*BR29),".",BR24*BR29) -> 0 | BU31: =IF(ISERROR(BU24*BU29),".",BU24*BU29) -> 0 | BX31: =IF(ISERROR(BX24*BX29),".",BX24*BX29) -> 0 | CA31: =IF(ISERROR(CA24*CA29),".",CA24*CA29) -> 0 | CD31: =IF(ISERROR(CD24*CD29),".",CD24*CD29) -> 0 | CG31: =IF(ISERROR(CG24*CG29),".",CG24*CG29) -> 0 | CJ31: =IF(ISERROR(CJ24*CJ29),".",CJ24*CJ29) -> 0 | CM31: =IF(ISERROR(CM24*CM29),".",CM24*CM29) -> 0 | CP31: =IF(ISERROR(CP24*CP29),".",CP24*CP29) -> 0 | CS31: =IF(ISERROR(CS24*CS29),".",CS24*CS29) -> 0 | CV31: =IF(ISERROR(CV24*CV29),".",CV24*CV29) -> 0 | CY31: =IF(ISERROR(CY24*CY29),".",CY24*CY29) -> 0 | DB31: =IF(ISERROR(DB24*DB29),".",DB24*DB29) -> 0 | DE31: =IF(ISERROR(DE24*DE29),".",DE24*DE29) -> 0 | DH31: =IF(ISERROR(DH24*DH29),".",DH24*DH29) -> 0 | DK31: =IF(ISERROR(DK24*DK29),".",DK24*DK29) -> 0 | DN31: =IF(ISERROR(DN24*DN29),".",DN24*DN29) -> 0 | DQ31: =IF(ISERROR(DQ24*DQ29),".",DQ24*DQ29) -> 0 | DT31: =IF(ISERROR(DT24*DT29),".",DT24*DT29) -> 0 | DW31: =IF(ISERROR(DW24*DW29),".",DW24*DW29) -> 0 | DZ31: =IF(ISERROR(DZ24*DZ29),".",DZ24*DZ29) -> 0 | EC31: =IF(ISERROR(EC24*EC29),".",EC24*EC29) -> 0 | EF31: =IF(ISERROR(EF24*EF29),".",EF24*EF29) -> 0 | EI31: =IF(ISERROR(EI24*EI29),".",EI24*EI29) -> 0 | EL31: =IF(ISERROR(EL24*EL29),".",EL24*EL29) -> 0 | EO31: =IF(ISERROR(EO24*EO29),".",EO24*EO29) -> 0 | ER31: =IF(ISERROR(ER24*ER29),".",ER24*ER29) -> 0 | EU31: =IF(ISERROR(EU24*EU29),".",EU24*EU29) -> 0 | EX31: =IF(ISERROR(EX24*EX29),".",EX24*EX29) -> 0 | FA31: =IF(ISERROR(FA24*FA29),".",FA24*FA29) -> 0 | FD31: =IF(ISERROR(FD24*FD29),".",FD24*FD29) -> 0 | FG31: =IF(ISERROR(FG24*FG29),".",FG24*FG29) -> 0 | FJ31: =IF(ISERROR(FJ24*FJ29),".",FJ24*FJ29) -> 0 | FM31: =IF(ISERROR(FM24*FM29),".",FM24*FM29) -> 0 | FP31: =IF(ISERROR(FP24*FP29),".",FP24*FP29) -> 0 | FS31: =IF(ISERROR(FS24*FS29),".",FS24*FS29) -> 0 | FV31: =IF(ISERROR(FV24*FV29),".",FV24*FV29) -> 0 | FY31: =IF(ISERROR(FY24*FY29),".",FY24*FY29) -> 0 | GB31: =IF(ISERROR(GB24*GB29),".",GB24*GB29) -> 0 | GE31: =IF(ISERROR(GE24*GE29),".",GE24*GE29) -> 0 | GH31: =IF(ISERROR(GH24*GH29),".",GH24*GH29) -> 0 | GK31: =IF(ISERROR(GK24*GK29),".",GK24*GK29) -> 0 | GN31: =IF(ISERROR(GN24*GN29),".",GN24*GN29) -> 0 | GQ31: =IF(ISERROR(GQ24*GQ29),".",GQ24*GQ29) -> 0 | GT31: =IF(ISERROR(GT24*GT29),".",GT24*GT29) -> 0 | GW31: =IF(ISERROR(GW24*GW29),".",GW24*GW29) -> 0 | GZ31: =IF(ISERROR(GZ24*GZ29),".",GZ24*GZ29) -> 0 | HC31: =IF(ISERROR(HC24*HC29),".",HC24*HC29) -> 0 | HF31: =IF(ISERROR(HF24*HF29),".",HF24*HF29) -> 0 | HI31: =IF(ISERROR(HI24*HI29),".",HI24*HI29) -> 0 | HL31: =IF(ISERROR(HL24*HL29),".",HL24*HL29) -> 0 | HO31: =IF(ISERROR(HO24*HO29),".",HO24*HO29) -> 0 | HR31: =IF(ISERROR(HR24*HR29),".",HR24*HR29) -> 0 | HU31: =IF(ISERROR(HU24*HU29),".",HU24*HU29) -> 0 | HX31: =IF(ISERROR(HX24*HX29),".",HX24*HX29) -> 0 | IA31: =IF(ISERROR(IA24*IA29),".",IA24*IA29) -> 0 | ID31: =IF(ISERROR(ID24*ID29),".",ID24*ID29) -> 0 | IG31: =IF(ISERROR(IG24*IG29),".",IG24*IG29) -> 0 | IJ31: =IF(ISERROR(IJ24*IJ29),".",IJ24*IJ29) -> 0 | IM31: =IM24*IM29 -> 0 | IP31: =IP24*IP29 -> 0 | IS31: =IF(ISERROR(IS24*IS29),".",IS24*IS29) -> 0 | IV31: =IF(ISERROR(IV24*IV29),".",IV24*IV29) -> 0 | IY31: =IF(ISERROR(IY24*IY29),".",IY24*IY29) -> 0 | JB31: =IF(ISERROR(JB24*JB29),".",JB24*JB29) -> 0 | JE31: =IF(ISERROR(JE24*JE29),".",JE24*JE29) -> 0 | JH31: =IF(ISERROR(JH24*JH29),".",JH24*JH29) -> 0 | JK31: =IF(ISERROR(JK24*JK29),".",JK24*JK29) -> 0 | JN31: =IF(ISERROR(JN24*JN29),".",JN24*JN29) -> 0 | JQ31: =IF(ISERROR(JQ24*JQ29),".",JQ24*JQ29) -> 0 | JT31: =IF(ISERROR(JT24*JT29),".",JT24*JT29) -> 0 | JW31: =IF(ISERROR(JW24*JW29),".",JW24*JW29) -> 0 | JZ31: =IF(ISERROR(JZ24*JZ29),".",JZ24*JZ29) -> 0 | KC31: =IF(ISERROR(KC24*KC29),".",KC24*KC29) -> 0 | KF31: =IF(ISERROR(KF24*KF29),".",KF24*KF29) -> 0 | KI31: =IF(ISERROR(KI24*KI29),".",KI24*KI29) -> 0 | KL31: =IF(ISERROR(KL24*KL29),".",KL24*KL29) -> 0 | KO31: =IF(ISERROR(KO24*KO29),".",KO24*KO29) -> 0 | KR31: =IF(ISERROR(KR24*KR29),".",KR24*KR29) -> 0 | KU31: =IF(ISERROR(KU24*KU29),".",KU24*KU29) -> 0 | KX31: =IF(ISERROR(KX24*KX29),".",KX24*KX29) -> 0 | LA31: =IF(ISERROR(LA24*LA29),".",LA24*LA29) -> 0 | LD31: =IF(ISERROR(LD24*LD29),".",LD24*LD29) -> 0 | LG31: =IF(ISERROR(LG24*LG29),".",LG24*LG29) -> 0 | LJ31: =IF(ISERROR(LJ24*LJ29),".",LJ24*LJ29) -> 0 | LM31: =IF(ISERROR(LM24*LM29),".",LM24*LM29) -> 0 | LP31: =IF(ISERROR(LP24*LP29),".",LP24*LP29) -> 0 | LS31: =IF(ISERROR(LS24*LS29),".",LS24*LS29) -> 0 | LV31: =IF(ISERROR(LV24*LV29),".",LV24*LV29) -> 0 | LY31: =IF(ISERROR(LY24*LY29),".",LY24*LY29) -> 0 | MB31: =IF(ISERROR(MB24*MB29),".",MB24*MB29) -> 0 | ME31: =IF(ISERROR(ME24*ME29),".",ME24*ME29) -> 0 | MH31: =IF(ISERROR(MH24*MH29),".",MH24*MH29) -> 0 | MK31: =IF(ISERROR(MK24*MK29),".",MK24*MK29) -> 0 | MN31: =IF(ISERROR(MN24*MN29),".",MN24*MN29) -> 0 | MQ31: =IF(ISERROR(MQ24*MQ29),".",MQ24*MQ29) -> 0 | MT31: =IF(ISERROR(MT24*MT29),".",MT24*MT29) -> 0 | MW31: =IF(ISERROR(MW24*MW29),".",MW24*MW29) -> 0 | MZ31: =IF(ISERROR(MZ24*MZ29),".",MZ24*MZ29) -> 0 | NC31: =IF(ISERROR(NC24*NC29),".",NC24*NC29) -> 0 | NF31: =IF(ISERROR(NF24*NF29),".",NF24*NF29) -> 0 | NI31: =IF(ISERROR(NI24*NI29),".",NI24*NI29) -> 0 | NL31: =IF(ISERROR(NL24*NL29),".",NL24*NL29) -> 0 | NO31: =IF(ISERROR(NO24*NO29),".",NO24*NO29) -> 0 | NR31: =IF(ISERROR(NR24*NR29),".",NR24*NR29) -> 0 | NU31: =IF(ISERROR(NU24*NU29),".",NU24*NU29) -> 0 | NX31: =IF(ISERROR(NX24*NX29),".",NX24*NX29) -> 0 | OA31: =IF(ISERROR(OA24*OA29),".",OA24*OA29) -> 0 | OD31: =IF(ISERROR(OD24*OD29),".",OD24*OD29) -> 0 | OG31: =IF(ISERROR(OG24*OG29),".",OG24*OG29) -> 0 | OJ31: =IF(ISERROR(OJ24*OJ29),".",OJ24*OJ29) -> 0 | OM31: =IF(ISERROR(OM24*OM29),".",OM24*OM29) -> 0 | OP31: =IF(ISERROR(OP24*OP29),".",OP24*OP29) -> 0 | OS31: =IF(ISERROR(OS24*OS29),".",OS24*OS29) -> 0 | OV31: =IF(ISERROR(OV24*OV29),".",OV24*OV29) -> 0 | OY31: =IF(ISERROR(OY24*OY29),".",OY24*OY29) -> 0 | PB31: =IF(ISERROR(PB24*PB29),".",PB24*PB29) -> 0 | PE31: =IF(ISERROR(PE24*PE29),".",PE24*PE29) -> 0 | PH31: =IF(ISERROR(PH24*PH29),".",PH24*PH29) -> 0 | PK31: =IF(ISERROR(PK24*PK29),".",PK24*PK29) -> 0 | PN31: =IF(ISERROR(PN24*PN29),".",PN24*PN29) -> 0 | PQ31: =IF(ISERROR(PQ24*PQ29),".",PQ24*PQ29) -> 0 | PT31: =IF(ISERROR(PT24*PT29),".",PT24*PT29) -> 0 | PW31: =IF(ISERROR(PW24*PW29),".",PW24*PW29) -> 0 | PZ31: =IF(ISERROR(PZ24*PZ29),".",PZ24*PZ29) -> 0 | QC31: =IF(ISERROR(QC24*QC29),".",QC24*QC29) -> 0 | QF31: =IF(ISERROR(QF24*QF29),".",QF24*QF29) -> 0 | QI31: =IF(ISERROR(QI24*QI29),".",QI24*QI29) -> 0 | QL31: =IF(ISERROR(QL24*QL29),".",QL24*QL29) -> 0 | QO31: =IF(ISERROR(QO24*QO29),".",QO24*QO29) -> 0 | QR31: =IF(ISERROR(QR24*QR29),".",QR24*QR29) -> 0 | QU31: =IF(ISERROR(QU24*QU29),".",QU24*QU29) -> 0 | QX31: =IF(ISERROR(QX24*QX29),".",QX24*QX29) -> 0 | RA31: =RA24*RA29 -> 0 | RD31: =RD24*RD29 -> 0 | RG31: =IF(ISERROR(RG24*RG29),".",RG24*RG29) -> 0 | RJ31: =IF(ISERROR(RJ24*RJ29),".",RJ24*RJ29) -> 0 | RM31: =IF(ISERROR(RM24*RM29),".",RM24*RM29) -> 0 | RP31: =IF(ISERROR(RP24*RP29),".",RP24*RP29) -> 0 | RS31: =IF(ISERROR(RS24*RS29),".",RS24*RS29) -> 0 | RV31: =IF(ISERROR(RV24*RV29),".",RV24*RV29) -> 0 | RY31: =IF(ISERROR(RY24*RY29),".",RY24*RY29) -> 0 | SB31: =IF(ISERROR(SB24*SB29),".",SB24*SB29) -> 0 | SE31: =IF(ISERROR(SE24*SE29),".",SE24*SE29) -> 0 | SH31: =IF(ISERROR(SH24*SH29),".",SH24*SH29) -> 0 | SK31: =IF(ISERROR(SK24*SK29),".",SK24*SK29) -> 0 | SN31: =IF(ISERROR(SN24*SN29),".",SN24*SN29) -> 0 | SQ31: =IF(ISERROR(SQ24*SQ29),".",SQ24*SQ29) -> 0 | ST31: =IF(ISERROR(ST24*ST29),".",ST24*ST29) -> 0 | SW31: =IF(ISERROR(SW24*SW29),".",SW24*SW29) -> 0 | SZ31: =IF(ISERROR(SZ24*SZ29),".",SZ24*SZ29) -> 0 | TC31: =IF(ISERROR(TC24*TC29),".",TC24*TC29) -> 0 | TF31: =IF(ISERROR(TF24*TF29),".",TF24*TF29) -> 0 | TI31: =IF(ISERROR(TI24*TI29),".",TI24*TI29) -> 0 | TL31: =IF(ISERROR(TL24*TL29),".",TL24*TL29) -> 0 | TO31: =IF(ISERROR(TO24*TO29),".",TO24*TO29) -> 0 | TR31: =IF(ISERROR(TR24*TR29),".",TR24*TR29) -> 0 | TU31: =IF(ISERROR(TU24*TU29),".",TU24*TU29) -> 0 | TX31: =IF(ISERROR(TX24*TX29),".",TX24*TX29) -> 0 | UA31: =IF(ISERROR(UA24*UA29),".",UA24*UA29) -> 0 | UD31: =IF(ISERROR(UD24*UD29),".",UD24*UD29) -> 0 | UG31: =IF(ISERROR(UG24*UG29),".",UG24*UG29) -> 0 | UJ31: =IF(ISERROR(UJ24*UJ29),".",UJ24*UJ29) -> 0 | UM31: =IF(ISERROR(UM24*UM29),".",UM24*UM29) -> 0 | UP31: =IF(ISERROR(UP24*UP29),".",UP24*UP29) -> 0 | US31: =IF(ISERROR(US24*US29),".",US24*US29) -> 0 | UV31: =IF(ISERROR(UV24*UV29),".",UV24*UV29) -> 0 | UY31: =IF(ISERROR(UY24*UY29),".",UY24*UY29) -> 0 | VB31: =IF(ISERROR(VB24*VB29),".",VB24*VB29) -> 0 | VE31: =IF(ISERROR(VE24*VE29),".",VE24*VE29) -> 0 | VH31: =IF(ISERROR(VH24*VH29),".",VH24*VH29) -> 0 | VK31: =IF(ISERROR(VK24*VK29),".",VK24*VK29) -> 0 | VN31: =IF(ISERROR(VN24*VN29),".",VN24*VN29) -> 0 | VQ31: =IF(ISERROR(VQ24*VQ29),".",VQ24*VQ29) -> 0 | VT31: =IF(ISERROR(VT24*VT29),".",VT24*VT29) -> 0 | VW31: =IF(ISERROR(VW24*VW29),".",VW24*VW29) -> 0 | VZ31: =IF(ISERROR(VZ24*VZ29),".",VZ24*VZ29) -> 0 | WC31: =IF(ISERROR(WC24*WC29),".",WC24*WC29) -> 0 | WF31: =IF(ISERROR(WF24*WF29),".",WF24*WF29) -> 0 | WI31: =IF(ISERROR(WI24*WI29),".",WI24*WI29) -> 0 | WL31: =IF(ISERROR(WL24*WL29),".",WL24*WL29) -> 0 | WO31: =IF(ISERROR(WO24*WO29),".",WO24*WO29) -> 0 | WR31: =IF(ISERROR(WR24*WR29),".",WR24*WR29) -> 0 | WU31: =IF(ISERROR(WU24*WU29),".",WU24*WU29) -> 0 | WX31: =IF(ISERROR(WX24*WX29),".",WX24*WX29) -> 0 | XA31: =IF(ISERROR(XA24*XA29),".",XA24*XA29) -> 0 | XD31: =IF(ISERROR(XD24*XD29),".",XD24*XD29) -> 0 | XG31: =IF(ISERROR(XG24*XG29),".",XG24*XG29) -> 0 | XJ31: =IF(ISERROR(XJ24*XJ29),".",XJ24*XJ29) -> 0 | XM31: =IF(ISERROR(XM24*XM29),".",XM24*XM29) -> 0 | XP31: =IF(ISERROR(XP24*XP29),".",XP24*XP29) -> 0 | XS31: =IF(ISERROR(XS24*XS29),".",XS24*XS29) -> 0 | XV31: =IF(ISERROR(XV24*XV29),".",XV24*XV29) -> 0 | XY31: =IF(ISERROR(XY24*XY29),".",XY24*XY29) -> 0 | YB31: =IF(ISERROR(YB24*YB29),".",YB24*YB29) -> 0 | YE31: =IF(ISERROR(YE24*YE29),".",YE24*YE29) -> 0 | YH31: =IF(ISERROR(YH24*YH29),".",YH24*YH29) -> 0 | YK31: =IF(ISERROR(YK24*YK29),".",YK24*YK29) -> 0 | YN31: =IF(ISERROR(YN24*YN29),".",YN24*YN29) -> 0 | YQ31: =IF(ISERROR(YQ24*YQ29),".",YQ24*YQ29) -> 0 | YT31: =IF(ISERROR(YT24*YT29),".",YT24*YT29) -> 0 | YW31: =IF(ISERROR(YW24*YW29),".",YW24*YW29) -> 0 | YZ31: =IF(ISERROR(YZ24*YZ29),".",YZ24*YZ29) -> 0 | ZC31: =IF(ISERROR(ZC24*ZC29),".",ZC24*ZC29) -> 0 | ZF31: =IF(ISERROR(ZF24*ZF29),".",ZF24*ZF29) -> 0 | ZI31: =IF(ISERROR(ZI24*ZI29),".",ZI24*ZI29) -> 0 | ZL31: =IF(ISERROR(ZL24*ZL29),".",ZL24*ZL29) -> 0 | ZO31: =ZO24*ZO29 -> 0 | ZR31: =ZR24*ZR29 -> 0 | ZU31: =IF(ISERROR(ZU24*ZU29),".",ZU24*ZU29) -> 0 | ZX31: =IF(ISERROR(ZX24*ZX29),".",ZX24*ZX29) -> 0 | AAA31: =IF(ISERROR(AAA24*AAA29),".",AAA24*AAA29) -> 0 | AAD31: =IF(ISERROR(AAD24*AAD29),".",AAD24*AAD29) -> 0 | AAG31: =IF(ISERROR(AAG24*AAG29),".",AAG24*AAG29) -> 0 | AAJ31: =IF(ISERROR(AAJ24*AAJ29),".",AAJ24*AAJ29) -> 0 | AAM31: =IF(ISERROR(AAM24*AAM29),".",AAM24*AAM29) -> 0 | AAP31: =IF(ISERROR(AAP24*AAP29),".",AAP24*AAP29) -> 0 | AAS31: =IF(ISERROR(AAS24*AAS29),".",AAS24*AAS29) -> 0 | AAV31: =IF(ISERROR(AAV24*AAV29),".",AAV24*AAV29) -> 0 | AAY31: =IF(ISERROR(AAY24*AAY29),".",AAY24*AAY29) -> 0 | ABB31: =IF(ISERROR(ABB24*ABB29),".",ABB24*ABB29) -> 0 | ABE31: =IF(ISERROR(ABE24*ABE29),".",ABE24*ABE29) -> 0 | ABH31: =IF(ISERROR(ABH24*ABH29),".",ABH24*ABH29) -> 0 | ABK31: =IF(ISERROR(ABK24*ABK29),".",ABK24*ABK29) -> 0 | ABN31: =IF(ISERROR(ABN24*ABN29),".",ABN24*ABN29) -> 0 | ABQ31: =IF(ISERROR(ABQ24*ABQ29),".",ABQ24*ABQ29) -> 0 | ABT31: =IF(ISERROR(ABT24*ABT29),".",ABT24*ABT29) -> 0 | ABW31: =IF(ISERROR(ABW24*ABW29),".",ABW24*ABW29) -> 0 | ABZ31: =IF(ISERROR(ABZ24*ABZ29),".",ABZ24*ABZ29) -> 0 | ACC31: =IF(ISERROR(ACC24*ACC29),".",ACC24*ACC29) -> 0 | ACF31: =IF(ISERROR(ACF24*ACF29),".",ACF24*ACF29) -> 0 | ACI31: =IF(ISERROR(ACI24*ACI29),".",ACI24*ACI29) -> 0 | ACL31: =IF(ISERROR(ACL24*ACL29),".",ACL24*ACL29) -> 0 | ACO31: =IF(ISERROR(ACO24*ACO29),".",ACO24*ACO29) -> 0 | ACR31: =IF(ISERROR(ACR24*ACR29),".",ACR24*ACR29) -> 0 | ACU31: =IF(ISERROR(ACU24*ACU29),".",ACU24*ACU29) -> 0 | ACX31: =IF(ISERROR(ACX24*ACX29),".",ACX24*ACX29) -> 0 | ADA31: =IF(ISERROR(ADA24*ADA29),".",ADA24*ADA29) -> 0 | ADD31: =IF(ISERROR(ADD24*ADD29),".",ADD24*ADD29) -> 0 | ADG31: =IF(ISERROR(ADG24*ADG29),".",ADG24*ADG29) -> 0 | ADJ31: =IF(ISERROR(ADJ24*ADJ29),".",ADJ24*ADJ29) -> 0 | ADM31: =IF(ISERROR(ADM24*ADM29),".",ADM24*ADM29) -> 0 | ADP31: =IF(ISERROR(ADP24*ADP29),".",ADP24*ADP29) -> 0 | ADS31: =IF(ISERROR(ADS24*ADS29),".",ADS24*ADS29) -> 0 | ADV31: =IF(ISERROR(ADV24*ADV29),".",ADV24*ADV29) -> 0 | ADY31: =IF(ISERROR(ADY24*ADY29),".",ADY24*ADY29) -> 0 | AEB31: =IF(ISERROR(AEB24*AEB29),".",AEB24*AEB29) -> 0 | AEE31: =IF(ISERROR(AEE24*AEE29),".",AEE24*AEE29) -> 0 | AEH31: =IF(ISERROR(AEH24*AEH29),".",AEH24*AEH29) -> 0 | AEK31: =IF(ISERROR(AEK24*AEK29),".",AEK24*AEK29) -> 0 | AEN31: =IF(ISERROR(AEN24*AEN29),".",AEN24*AEN29) -> 0 | AEQ31: =IF(ISERROR(AEQ24*AEQ29),".",AEQ24*AEQ29) -> 0 | AET31: =IF(ISERROR(AET24*AET29),".",AET24*AET29) -> 0 | AEW31: =IF(ISERROR(AEW24*AEW29),".",AEW24*AEW29) -> 0 | AEZ31: =IF(ISERROR(AEZ24*AEZ29),".",AEZ24*AEZ29) -> 0 | AFC31: =IF(ISERROR(AFC24*AFC29),".",AFC24*AFC29) -> 0 | AFF31: =IF(ISERROR(AFF24*AFF29),".",AFF24*AFF29) -> 0 | AFI31: =IF(ISERROR(AFI24*AFI29),".",AFI24*AFI29) -> 0 | AFL31: =IF(ISERROR(AFL24*AFL29),".",AFL24*AFL29) -> 0 | AFO31: =IF(ISERROR(AFO24*AFO29),".",AFO24*AFO29) -> 0 | AFR31: =IF(ISERROR(AFR24*AFR29),".",AFR24*AFR29) -> 0 | AFU31: =IF(ISERROR(AFU24*AFU29),".",AFU24*AFU29) -> 0 | AFX31: =IF(ISERROR(AFX24*AFX29),".",AFX24*AFX29) -> 0 | AGA31: =IF(ISERROR(AGA24*AGA29),".",AGA24*AGA29) -> 0 | AGD31: =IF(ISERROR(AGD24*AGD29),".",AGD24*AGD29) -> 0 | AGG31: =IF(ISERROR(AGG24*AGG29),".",AGG24*AGG29) -> 0 | AGJ31: =IF(ISERROR(AGJ24*AGJ29),".",AGJ24*AGJ29) -> 0 | AGM31: =IF(ISERROR(AGM24*AGM29),".",AGM24*AGM29) -> 0 | AGP31: =IF(ISERROR(AGP24*AGP29),".",AGP24*AGP29) -> 0 | AGS31: =IF(ISERROR(AGS24*AGS29),".",AGS24*AGS29) -> 0 | AGV31: =IF(ISERROR(AGV24*AGV29),".",AGV24*AGV29) -> 0 | AGY31: =IF(ISERROR(AGY24*AGY29),".",AGY24*AGY29) -> 0 | AHB31: =IF(ISERROR(AHB24*AHB29),".",AHB24*AHB29) -> 0 | AHE31: =IF(ISERROR(AHE24*AHE29),".",AHE24*AHE29) -> 0 | AHH31: =IF(ISERROR(AHH24*AHH29),".",AHH24*AHH29) -> 0 | AHK31: =IF(ISERROR(AHK24*AHK29),".",AHK24*AHK29) -> 0 | AHN31: =IF(ISERROR(AHN24*AHN29),".",AHN24*AHN29) -> 0 | AHQ31: =IF(ISERROR(AHQ24*AHQ29),".",AHQ24*AHQ29) -> 0 | AHT31: =IF(ISERROR(AHT24*AHT29),".",AHT24*AHT29) -> 0
C33: Change rate as per [DT1] to FoF currency [FN1] | G33: 1.4267 | J33: 1.4267 | P33: 1 | S33: 0.00870989 | V33: 2.0473
B35: [D] | C35: Total Distribution TF in FoF currency as per [DT1] | D35: =IF(ISERROR(SUM(G35:AHV35)),"",SUM(G35:AHV35)) -> 4534.385 | G35: =IF(ISERROR(G31*G33),".",G31*G33) -> 1348.2315 | J35: =IF(ISERROR(J31*J33),".",J31*J33) -> 856.02 | M35: =IF(ISERROR(M31*M33),".",M31*M33) -> 0 | P35: =IF(ISERROR(P31*P33),".",P31*P33) -> 0 | S35: =IF(ISERROR(S31*S33),".",S31*S33) -> 1306.4835 | V35: =IF(ISERROR(V31*V33),".",V31*V33) -> 1023.65 | Y35: =IF(ISERROR(Y31*Y33),".",Y31*Y33) -> 0 | AB35: =IF(ISERROR(AB31*AB33),".",AB31*AB33) -> 0 | AE35: =IF(ISERROR(AE31*AE33),".",AE31*AE33) -> 0 | AH35: =IF(ISERROR(AH31*AH33),".",AH31*AH33) -> 0 | AK35: =IF(ISERROR(AK31*AK33),".",AK31*AK33) -> 0 | AN35: =IF(ISERROR(AN31*AN33),".",AN31*AN33) -> 0 | AQ35: =IF(ISERROR(AQ31*AQ33),".",AQ31*AQ33) -> 0 | AT35: =IF(ISERROR(AT31*AT33),".",AT31*AT33) -> 0 | AW35: =IF(ISERROR(AW31*AW33),".",AW31*AW33) -> 0 | AZ35: =IF(ISERROR(AZ31*AZ33),".",AZ31*AZ33) -> 0 | BC35: =IF(ISERROR(BC31*BC33),".",BC31*BC33) -> 0 | BF35: =IF(ISERROR(BF31*BF33),".",BF31*BF33) -> 0 | BI35: =IF(ISERROR(BI31*BI33),".",BI31*BI33) -> 0 | BL35: =IF(ISERROR(BL31*BL33),".",BL31*BL33) -> 0 | BO35: =IF(ISERROR(BO31*BO33),".",BO31*BO33) -> 0 | BR35: =IF(ISERROR(BR31*BR33),".",BR31*BR33) -> 0 | BU35: =IF(ISERROR(BU31*BU33),".",BU31*BU33) -> 0 | BX35: =IF(ISERROR(BX31*BX33),".",BX31*BX33) -> 0 | CA35: =IF(ISERROR(CA31*CA33),".",CA31*CA33) -> 0 | CD35: =IF(ISERROR(CD31*CD33),".",CD31*CD33) -> 0 | CG35: =IF(ISERROR(CG31*CG33),".",CG31*CG33) -> 0 | CJ35: =IF(ISERROR(CJ31*CJ33),".",CJ31*CJ33) -> 0 | CM35: =IF(ISERROR(CM31*CM33),".",CM31*CM33) -> 0 | CP35: =IF(ISERROR(CP31*CP33),".",CP31*CP33) -> 0 | CS35: =IF(ISERROR(CS31*CS33),".",CS31*CS33) -> 0 | CV35: =IF(ISERROR(CV31*CV33),".",CV31*CV33) -> 0 | CY35: =IF(ISERROR(CY31*CY33),".",CY31*CY33) -> 0 | DB35: =IF(ISERROR(DB31*DB33),".",DB31*DB33) -> 0 | DE35: =IF(ISERROR(DE31*DE33),".",DE31*DE33) -> 0 | DH35: =IF(ISERROR(DH31*DH33),".",DH31*DH33) -> 0 | DK35: =IF(ISERROR(DK31*DK33),".",DK31*DK33) -> 0 | DN35: =IF(ISERROR(DN31*DN33),".",DN31*DN33) -> 0 | DQ35: =IF(ISERROR(DQ31*DQ33),".",DQ31*DQ33) -> 0 | DT35: =IF(ISERROR(DT31*DT33),".",DT31*DT33) -> 0 | DW35: =IF(ISERROR(DW31*DW33),".",DW31*DW33) -> 0 | DZ35: =IF(ISERROR(DZ31*DZ33),".",DZ31*DZ33) -> 0 | EC35: =IF(ISERROR(EC31*EC33),".",EC31*EC33) -> 0 | EF35: =IF(ISERROR(EF31*EF33),".",EF31*EF33) -> 0 | EI35: =IF(ISERROR(EI31*EI33),".",EI31*EI33) -> 0 | EL35: =IF(ISERROR(EL31*EL33),".",EL31*EL33) -> 0 | EO35: =IF(ISERROR(EO31*EO33),".",EO31*EO33) -> 0 | ER35: =IF(ISERROR(ER31*ER33),".",ER31*ER33) -> 0 | EU35: =IF(ISERROR(EU31*EU33),".",EU31*EU33) -> 0 | EX35: =IF(ISERROR(EX31*EX33),".",EX31*EX33) -> 0 | FA35: =IF(ISERROR(FA31*FA33),".",FA31*FA33) -> 0 | FD35: =IF(ISERROR(FD31*FD33),".",FD31*FD33) -> 0 | FG35: =IF(ISERROR(FG31*FG33),".",FG31*FG33) -> 0 | FJ35: =IF(ISERROR(FJ31*FJ33),".",FJ31*FJ33) -> 0 | FM35: =IF(ISERROR(FM31*FM33),".",FM31*FM33) -> 0 | FP35: =IF(ISERROR(FP31*FP33),".",FP31*FP33) -> 0 | FS35: =IF(ISERROR(FS31*FS33),".",FS31*FS33) -> 0 | FV35: =IF(ISERROR(FV31*FV33),".",FV31*FV33) -> 0 | FY35: =IF(ISERROR(FY31*FY33),".",FY31*FY33) -> 0 | GB35: =IF(ISERROR(GB31*GB33),".",GB31*GB33) -> 0 | GE35: =IF(ISERROR(GE31*GE33),".",GE31*GE33) -> 0 | GH35: =IF(ISERROR(GH31*GH33),".",GH31*GH33) -> 0 | GK35: =IF(ISERROR(GK31*GK33),".",GK31*GK33) -> 0 | GN35: =IF(ISERROR(GN31*GN33),".",GN31*GN33) -> 0 | GQ35: =IF(ISERROR(GQ31*GQ33),".",GQ31*GQ33) -> 0 | GT35: =IF(ISERROR(GT31*GT33),".",GT31*GT33) -> 0 | GW35: =IF(ISERROR(GW31*GW33),".",GW31*GW33) -> 0 | GZ35: =IF(ISERROR(GZ31*GZ33),".",GZ31*GZ33) -> 0 | HC35: =IF(ISERROR(HC31*HC33),".",HC31*HC33) -> 0 | HF35: =IF(ISERROR(HF31*HF33),".",HF31*HF33) -> 0 | HI35: =IF(ISERROR(HI31*HI33),".",HI31*HI33) -> 0 | HL35: =IF(ISERROR(HL31*HL33),".",HL31*HL33) -> 0 | HO35: =IF(ISERROR(HO31*HO33),".",HO31*HO33) -> 0 | HR35: =IF(ISERROR(HR31*HR33),".",HR31*HR33) -> 0 | HU35: =IF(ISERROR(HU31*HU33),".",HU31*HU33) -> 0 | HX35: =IF(ISERROR(HX31*HX33),".",HX31*HX33) -> 0 | IA35: =IF(ISERROR(IA31*IA33),".",IA31*IA33) -> 0 | ID35: =IF(ISERROR(ID31*ID33),".",ID31*ID33) -> 0 | IG35: =IF(ISERROR(IG31*IG33),".",IG31*IG33) -> 0 | IJ35: =IF(ISERROR(IJ31*IJ33),".",IJ31*IJ33) -> 0 | IM35: =IF(ISERROR(IM31*IM33),".",IM31*IM33) -> 0 | IP35: =IF(ISERROR(IP31*IP33),".",IP31*IP33) -> 0 | IS35: =IF(ISERROR(IS31*IS33),".",IS31*IS33) -> 0 | IV35: =IF(ISERROR(IV31*IV33),".",IV31*IV33) -> 0 | IY35: =IF(ISERROR(IY31*IY33),".",IY31*IY33) -> 0 | JB35: =IF(ISERROR(JB31*JB33),".",JB31*JB33) -> 0 | JE35: =IF(ISERROR(JE31*JE33),".",JE31*JE33) -> 0 | JH35: =IF(ISERROR(JH31*JH33),".",JH31*JH33) -> 0 | JK35: =IF(ISERROR(JK31*JK33),".",JK31*JK33) -> 0 | JN35: =IF(ISERROR(JN31*JN33),".",JN31*JN33) -> 0 | JQ35: =IF(ISERROR(JQ31*JQ33),".",JQ31*JQ33) -> 0 | JT35: =IF(ISERROR(JT31*JT33),".",JT31*JT33) -> 0 | JW35: =IF(ISERROR(JW31*JW33),".",JW31*JW33) -> 0 | JZ35: =IF(ISERROR(JZ31*JZ33),".",JZ31*JZ33) -> 0 | KC35: =IF(ISERROR(KC31*KC33),".",KC31*KC33) -> 0 | KF35: =IF(ISERROR(KF31*KF33),".",KF31*KF33) -> 0 | KI35: =IF(ISERROR(KI31*KI33),".",KI31*KI33) -> 0 | KL35: =IF(ISERROR(KL31*KL33),".",KL31*KL33) -> 0 | KO35: =IF(ISERROR(KO31*KO33),".",KO31*KO33) -> 0 | KR35: =IF(ISERROR(KR31*KR33),".",KR31*KR33) -> 0 | KU35: =IF(ISERROR(KU31*KU33),".",KU31*KU33) -> 0 | KX35: =IF(ISERROR(KX31*KX33),".",KX31*KX33) -> 0 | LA35: =IF(ISERROR(LA31*LA33),".",LA31*LA33) -> 0 | LD35: =IF(ISERROR(LD31*LD33),".",LD31*LD33) -> 0 | LG35: =IF(ISERROR(LG31*LG33),".",LG31*LG33) -> 0 | LJ35: =IF(ISERROR(LJ31*LJ33),".",LJ31*LJ33) -> 0 | LM35: =IF(ISERROR(LM31*LM33),".",LM31*LM33) -> 0 | LP35: =IF(ISERROR(LP31*LP33),".",LP31*LP33) -> 0 | LS35: =IF(ISERROR(LS31*LS33),".",LS31*LS33) -> 0 | LV35: =IF(ISERROR(LV31*LV33),".",LV31*LV33) -> 0 | LY35: =IF(ISERROR(LY31*LY33),".",LY31*LY33) -> 0 | MB35: =IF(ISERROR(MB31*MB33),".",MB31*MB33) -> 0 | ME35: =IF(ISERROR(ME31*ME33),".",ME31*ME33) -> 0 | MH35: =IF(ISERROR(MH31*MH33),".",MH31*MH33) -> 0 | MK35: =IF(ISERROR(MK31*MK33),".",MK31*MK33) -> 0 | MN35: =IF(ISERROR(MN31*MN33),".",MN31*MN33) -> 0 | MQ35: =IF(ISERROR(MQ31*MQ33),".",MQ31*MQ33) -> 0 | MT35: =IF(ISERROR(MT31*MT33),".",MT31*MT33) -> 0 | MW35: =IF(ISERROR(MW31*MW33),".",MW31*MW33) -> 0 | MZ35: =IF(ISERROR(MZ31*MZ33),".",MZ31*MZ33) -> 0 | NC35: =IF(ISERROR(NC31*NC33),".",NC31*NC33) -> 0 | NF35: =IF(ISERROR(NF31*NF33),".",NF31*NF33) -> 0 | NI35: =IF(ISERROR(NI31*NI33),".",NI31*NI33) -> 0 | NL35: =IF(ISERROR(NL31*NL33),".",NL31*NL33) -> 0 | NO35: =IF(ISERROR(NO31*NO33),".",NO31*NO33) -> 0 | NR35: =IF(ISERROR(NR31*NR33),".",NR31*NR33) -> 0 | NU35: =IF(ISERROR(NU31*NU33),".",NU31*NU33) -> 0 | NX35: =IF(ISERROR(NX31*NX33),".",NX31*NX33) -> 0 | OA35: =IF(ISERROR(OA31*OA33),".",OA31*OA33) -> 0 | OD35: =IF(ISERROR(OD31*OD33),".",OD31*OD33) -> 0 | OG35: =IF(ISERROR(OG31*OG33),".",OG31*OG33) -> 0 | OJ35: =IF(ISERROR(OJ31*OJ33),".",OJ31*OJ33) -> 0 | OM35: =IF(ISERROR(OM31*OM33),".",OM31*OM33) -> 0 | OP35: =IF(ISERROR(OP31*OP33),".",OP31*OP33) -> 0 | OS35: =IF(ISERROR(OS31*OS33),".",OS31*OS33) -> 0 | OV35: =IF(ISERROR(OV31*OV33),".",OV31*OV33) -> 0 | OY35: =IF(ISERROR(OY31*OY33),".",OY31*OY33) -> 0 | PB35: =IF(ISERROR(PB31*PB33),".",PB31*PB33) -> 0 | PE35: =IF(ISERROR(PE31*PE33),".",PE31*PE33) -> 0 | PH35: =IF(ISERROR(PH31*PH33),".",PH31*PH33) -> 0 | PK35: =IF(ISERROR(PK31*PK33),".",PK31*PK33) -> 0 | PN35: =IF(ISERROR(PN31*PN33),".",PN31*PN33) -> 0 | PQ35: =IF(ISERROR(PQ31*PQ33),".",PQ31*PQ33) -> 0 | PT35: =IF(ISERROR(PT31*PT33),".",PT31*PT33) -> 0 | PW35: =IF(ISERROR(PW31*PW33),".",PW31*PW33) -> 0 | PZ35: =IF(ISERROR(PZ31*PZ33),".",PZ31*PZ33) -> 0 | QC35: =IF(ISERROR(QC31*QC33),".",QC31*QC33) -> 0 | QF35: =IF(ISERROR(QF31*QF33),".",QF31*QF33) -> 0 | QI35: =IF(ISERROR(QI31*QI33),".",QI31*QI33) -> 0 | QL35: =IF(ISERROR(QL31*QL33),".",QL31*QL33) -> 0 | QO35: =IF(ISERROR(QO31*QO33),".",QO31*QO33) -> 0 | QR35: =IF(ISERROR(QR31*QR33),".",QR31*QR33) -> 0 | QU35: =IF(ISERROR(QU31*QU33),".",QU31*QU33) -> 0 | QX35: =IF(ISERROR(QX31*QX33),".",QX31*QX33) -> 0 | RA35: =IF(ISERROR(RA31*RA33),".",RA31*RA33) -> 0 | RD35: =IF(ISERROR(RD31*RD33),".",RD31*RD33) -> 0 | RG35: =IF(ISERROR(RG31*RG33),".",RG31*RG33) -> 0 | RJ35: =IF(ISERROR(RJ31*RJ33),".",RJ31*RJ33) -> 0 | RM35: =IF(ISERROR(RM31*RM33),".",RM31*RM33) -> 0 | RP35: =IF(ISERROR(RP31*RP33),".",RP31*RP33) -> 0 | RS35: =IF(ISERROR(RS31*RS33),".",RS31*RS33) -> 0 | RV35: =IF(ISERROR(RV31*RV33),".",RV31*RV33) -> 0 | RY35: =IF(ISERROR(RY31*RY33),".",RY31*RY33) -> 0 | SB35: =IF(ISERROR(SB31*SB33),".",SB31*SB33) -> 0 | SE35: =IF(ISERROR(SE31*SE33),".",SE31*SE33) -> 0 | SH35: =IF(ISERROR(SH31*SH33),".",SH31*SH33) -> 0 | SK35: =IF(ISERROR(SK31*SK33),".",SK31*SK33) -> 0 | SN35: =IF(ISERROR(SN31*SN33),".",SN31*SN33) -> 0 | SQ35: =IF(ISERROR(SQ31*SQ33),".",SQ31*SQ33) -> 0 | ST35: =IF(ISERROR(ST31*ST33),".",ST31*ST33) -> 0 | SW35: =IF(ISERROR(SW31*SW33),".",SW31*SW33) -> 0 | SZ35: =IF(ISERROR(SZ31*SZ33),".",SZ31*SZ33) -> 0 | TC35: =IF(ISERROR(TC31*TC33),".",TC31*TC33) -> 0 | TF35: =IF(ISERROR(TF31*TF33),".",TF31*TF33) -> 0 | TI35: =IF(ISERROR(TI31*TI33),".",TI31*TI33) -> 0 | TL35: =IF(ISERROR(TL31*TL33),".",TL31*TL33) -> 0 | TO35: =IF(ISERROR(TO31*TO33),".",TO31*TO33) -> 0 | TR35: =IF(ISERROR(TR31*TR33),".",TR31*TR33) -> 0 | TU35: =IF(ISERROR(TU31*TU33),".",TU31*TU33) -> 0 | TX35: =IF(ISERROR(TX31*TX33),".",TX31*TX33) -> 0 | UA35: =IF(ISERROR(UA31*UA33),".",UA31*UA33) -> 0 | UD35: =IF(ISERROR(UD31*UD33),".",UD31*UD33) -> 0 | UG35: =IF(ISERROR(UG31*UG33),".",UG31*UG33) -> 0 | UJ35: =IF(ISERROR(UJ31*UJ33),".",UJ31*UJ33) -> 0 | UM35: =IF(ISERROR(UM31*UM33),".",UM31*UM33) -> 0 | UP35: =IF(ISERROR(UP31*UP33),".",UP31*UP33) -> 0 | US35: =IF(ISERROR(US31*US33),".",US31*US33) -> 0 | UV35: =IF(ISERROR(UV31*UV33),".",UV31*UV33) -> 0 | UY35: =IF(ISERROR(UY31*UY33),".",UY31*UY33) -> 0 | VB35: =IF(ISERROR(VB31*VB33),".",VB31*VB33) -> 0 | VE35: =IF(ISERROR(VE31*VE33),".",VE31*VE33) -> 0 | VH35: =IF(ISERROR(VH31*VH33),".",VH31*VH33) -> 0 | VK35: =IF(ISERROR(VK31*VK33),".",VK31*VK33) -> 0 | VN35: =IF(ISERROR(VN31*VN33),".",VN31*VN33) -> 0 | VQ35: =IF(ISERROR(VQ31*VQ33),".",VQ31*VQ33) -> 0 | VT35: =IF(ISERROR(VT31*VT33),".",VT31*VT33) -> 0 | VW35: =IF(ISERROR(VW31*VW33),".",VW31*VW33) -> 0 | VZ35: =IF(ISERROR(VZ31*VZ33),".",VZ31*VZ33) -> 0 | WC35: =IF(ISERROR(WC31*WC33),".",WC31*WC33) -> 0 | WF35: =IF(ISERROR(WF31*WF33),".",WF31*WF33) -> 0 | WI35: =IF(ISERROR(WI31*WI33),".",WI31*WI33) -> 0 | WL35: =IF(ISERROR(WL31*WL33),".",WL31*WL33) -> 0 | WO35: =IF(ISERROR(WO31*WO33),".",WO31*WO33) -> 0 | WR35: =IF(ISERROR(WR31*WR33),".",WR31*WR33) -> 0 | WU35: =IF(ISERROR(WU31*WU33),".",WU31*WU33) -> 0 | WX35: =IF(ISERROR(WX31*WX33),".",WX31*WX33) -> 0 | XA35: =IF(ISERROR(XA31*XA33),".",XA31*XA33) -> 0 | XD35: =IF(ISERROR(XD31*XD33),".",XD31*XD33) -> 0 | XG35: =IF(ISERROR(XG31*XG33),".",XG31*XG33) -> 0 | XJ35: =IF(ISERROR(XJ31*XJ33),".",XJ31*XJ33) -> 0 | XM35: =IF(ISERROR(XM31*XM33),".",XM31*XM33) -> 0 | XP35: =IF(ISERROR(XP31*XP33),".",XP31*XP33) -> 0 | XS35: =IF(ISERROR(XS31*XS33),".",XS31*XS33) -> 0 | XV35: =IF(ISERROR(XV31*XV33),".",XV31*XV33) -> 0 | XY35: =IF(ISERROR(XY31*XY33),".",XY31*XY33) -> 0 | YB35: =IF(ISERROR(YB31*YB33),".",YB31*YB33) -> 0 | YE35: =IF(ISERROR(YE31*YE33),".",YE31*YE33) -> 0 | YH35: =IF(ISERROR(YH31*YH33),".",YH31*YH33) -> 0 | YK35: =IF(ISERROR(YK31*YK33),".",YK31*YK33) -> 0 | YN35: =IF(ISERROR(YN31*YN33),".",YN31*YN33) -> 0 | YQ35: =IF(ISERROR(YQ31*YQ33),".",YQ31*YQ33) -> 0 | YT35: =IF(ISERROR(YT31*YT33),".",YT31*YT33) -> 0 | YW35: =IF(ISERROR(YW31*YW33),".",YW31*YW33) -> 0 | YZ35: =IF(ISERROR(YZ31*YZ33),".",YZ31*YZ33) -> 0 | ZC35: =IF(ISERROR(ZC31*ZC33),".",ZC31*ZC33) -> 0 | ZF35: =IF(ISERROR(ZF31*ZF33),".",ZF31*ZF33) -> 0 | ZI35: =IF(ISERROR(ZI31*ZI33),".",ZI31*ZI33) -> 0 | ZL35: =IF(ISERROR(ZL31*ZL33),".",ZL31*ZL33) -> 0 | ZO35: =IF(ISERROR(ZO31*ZO33),".",ZO31*ZO33) -> 0 | ZR35: =IF(ISERROR(ZR31*ZR33),".",ZR31*ZR33) -> 0 | ZU35: =IF(ISERROR(ZU31*ZU33),".",ZU31*ZU33) -> 0 | ZX35: =IF(ISERROR(ZX31*ZX33),".",ZX31*ZX33) -> 0 | AAA35: =IF(ISERROR(AAA31*AAA33),".",AAA31*AAA33) -> 0 | AAD35: =IF(ISERROR(AAD31*AAD33),".",AAD31*AAD33) -> 0 | AAG35: =IF(ISERROR(AAG31*AAG33),".",AAG31*AAG33) -> 0 | AAJ35: =IF(ISERROR(AAJ31*AAJ33),".",AAJ31*AAJ33) -> 0 | AAM35: =IF(ISERROR(AAM31*AAM33),".",AAM31*AAM33) -> 0 | AAP35: =IF(ISERROR(AAP31*AAP33),".",AAP31*AAP33) -> 0 | AAS35: =IF(ISERROR(AAS31*AAS33),".",AAS31*AAS33) -> 0 | AAV35: =IF(ISERROR(AAV31*AAV33),".",AAV31*AAV33) -> 0 | AAY35: =IF(ISERROR(AAY31*AAY33),".",AAY31*AAY33) -> 0 | ABB35: =IF(ISERROR(ABB31*ABB33),".",ABB31*ABB33) -> 0 | ABE35: =IF(ISERROR(ABE31*ABE33),".",ABE31*ABE33) -> 0 | ABH35: =IF(ISERROR(ABH31*ABH33),".",ABH31*ABH33) -> 0 | ABK35: =IF(ISERROR(ABK31*ABK33),".",ABK31*ABK33) -> 0 | ABN35: =IF(ISERROR(ABN31*ABN33),".",ABN31*ABN33) -> 0 | ABQ35: =IF(ISERROR(ABQ31*ABQ33),".",ABQ31*ABQ33) -> 0 | ABT35: =IF(ISERROR(ABT31*ABT33),".",ABT31*ABT33) -> 0 | ABW35: =IF(ISERROR(ABW31*ABW33),".",ABW31*ABW33) -> 0 | ABZ35: =IF(ISERROR(ABZ31*ABZ33),".",ABZ31*ABZ33) -> 0 | ACC35: =IF(ISERROR(ACC31*ACC33),".",ACC31*ACC33) -> 0 | ACF35: =IF(ISERROR(ACF31*ACF33),".",ACF31*ACF33) -> 0 | ACI35: =IF(ISERROR(ACI31*ACI33),".",ACI31*ACI33) -> 0 | ACL35: =IF(ISERROR(ACL31*ACL33),".",ACL31*ACL33) -> 0 | ACO35: =IF(ISERROR(ACO31*ACO33),".",ACO31*ACO33) -> 0 | ACR35: =IF(ISERROR(ACR31*ACR33),".",ACR31*ACR33) -> 0 | ACU35: =IF(ISERROR(ACU31*ACU33),".",ACU31*ACU33) -> 0 | ACX35: =IF(ISERROR(ACX31*ACX33),".",ACX31*ACX33) -> 0 | ADA35: =IF(ISERROR(ADA31*ADA33),".",ADA31*ADA33) -> 0 | ADD35: =IF(ISERROR(ADD31*ADD33),".",ADD31*ADD33) -> 0 | ADG35: =IF(ISERROR(ADG31*ADG33),".",ADG31*ADG33) -> 0 | ADJ35: =IF(ISERROR(ADJ31*ADJ33),".",ADJ31*ADJ33) -> 0 | ADM35: =IF(ISERROR(ADM31*ADM33),".",ADM31*ADM33) -> 0 | ADP35: =IF(ISERROR(ADP31*ADP33),".",ADP31*ADP33) -> 0 | ADS35: =IF(ISERROR(ADS31*ADS33),".",ADS31*ADS33) -> 0 | ADV35: =IF(ISERROR(ADV31*ADV33),".",ADV31*ADV33) -> 0 | ADY35: =IF(ISERROR(ADY31*ADY33),".",ADY31*ADY33) -> 0 | AEB35: =IF(ISERROR(AEB31*AEB33),".",AEB31*AEB33) -> 0 | AEE35: =IF(ISERROR(AEE31*AEE33),".",AEE31*AEE33) -> 0 | AEH35: =IF(ISERROR(AEH31*AEH33),".",AEH31*AEH33) -> 0 | AEK35: =IF(ISERROR(AEK31*AEK33),".",AEK31*AEK33) -> 0 | AEN35: =IF(ISERROR(AEN31*AEN33),".",AEN31*AEN33) -> 0 | AEQ35: =IF(ISERROR(AEQ31*AEQ33),".",AEQ31*AEQ33) -> 0 | AET35: =IF(ISERROR(AET31*AET33),".",AET31*AET33) -> 0 | AEW35: =IF(ISERROR(AEW31*AEW33),".",AEW31*AEW33) -> 0 | AEZ35: =IF(ISERROR(AEZ31*AEZ33),".",AEZ31*AEZ33) -> 0 | AFC35: =IF(ISERROR(AFC31*AFC33),".",AFC31*AFC33) -> 0 | AFF35: =IF(ISERROR(AFF31*AFF33),".",AFF31*AFF33) -> 0 | AFI35: =IF(ISERROR(AFI31*AFI33),".",AFI31*AFI33) -> 0 | AFL35: =IF(ISERROR(AFL31*AFL33),".",AFL31*AFL33) -> 0 | AFO35: =IF(ISERROR(AFO31*AFO33),".",AFO31*AFO33) -> 0 | AFR35: =IF(ISERROR(AFR31*AFR33),".",AFR31*AFR33) -> 0 | AFU35: =IF(ISERROR(AFU31*AFU33),".",AFU31*AFU33) -> 0 | AFX35: =IF(ISERROR(AFX31*AFX33),".",AFX31*AFX33) -> 0 | AGA35: =IF(ISERROR(AGA31*AGA33),".",AGA31*AGA33) -> 0 | AGD35: =IF(ISERROR(AGD31*AGD33),".",AGD31*AGD33) -> 0 | AGG35: =IF(ISERROR(AGG31*AGG33),".",AGG31*AGG33) -> 0 | AGJ35: =IF(ISERROR(AGJ31*AGJ33),".",AGJ31*AGJ33) -> 0 | AGM35: =IF(ISERROR(AGM31*AGM33),".",AGM31*AGM33) -> 0 | AGP35: =IF(ISERROR(AGP31*AGP33),".",AGP31*AGP33) -> 0 | AGS35: =IF(ISERROR(AGS31*AGS33),".",AGS31*AGS33) -> 0 | AGV35: =IF(ISERROR(AGV31*AGV33),".",AGV31*AGV33) -> 0 | AGY35: =IF(ISERROR(AGY31*AGY33),".",AGY31*AGY33) -> 0 | AHB35: =IF(ISERROR(AHB31*AHB33),".",AHB31*AHB33) -> 0 | AHE35: =IF(ISERROR(AHE31*AHE33),".",AHE31*AHE33) -> 0 | AHH35: =IF(ISERROR(AHH31*AHH33),".",AHH31*AHH33) -> 0 | AHK35: =IF(ISERROR(AHK31*AHK33),".",AHK31*AHK33) -> 0 | AHN35: =IF(ISERROR(AHN31*AHN33),".",AHN31*AHN33) -> 0 | AHQ35: =IF(ISERROR(AHQ31*AHQ33),".",AHQ31*AHQ33) -> 0 | AHT35: =IF(ISERROR(AHT31*AHT33),".",AHT31*AHT33) -> 0
C38: Taxable income per share for Swiss tax purposes in FoF currency
B40: [E] | C40: Taxable income per share in TF currency according to "Kursliste" of FTA or according to an adequate calculation | G40: 1.99 | P40: 1.5
